Workbook

Sheet How to Use
B1: यह एक्सेल प्रोग्राम इष्टदेव बजरंगबली व पाबूजी महाराज की असीम कृपा तथा गुरुदेव वासुदेवजी महाराज के आशीर्वाद और माता -पिता के शुभ आशीष से आप तक हाजिर किया जा रहा है
B4: :: निर्देश ::
B5: Video No. 01 link :- | C5: https://youtu.be/e9tzJ3zCZPk
B6: Video No. 02 link :- | C6: https://youtu.be/KZNCz_sq6iQ
B7: Video No. 03 link :- | C7: https://youtu.be/ZmZ-D7xZTpA
A8: 1 | B8: Master Sheet :- | C8: इस शीट पर आप अपने से सम्बंधित सूचना की एंट्री कर सकते है I सबसे पहले आप अपने विद्यालय का नाम तथा उसके बाद अपने डीडीओ का नाम व पद , उसके बाद अपना स्वयं का नाम व पद इनपुट करें I उसके बाद आपको किस माह से एरियर बनाना है , उस माह को सलेक्ट बटन से सलेक्ट करे तथा अगले कॉलम में किस माह तक एरियर बनाना है उसे सलेक्ट करें I मकान किराया दर , पे मेट्रिक्स लेवल और इनकम टैक्स कटवाना है तो प्रतिशत में लिखे अन्यथा शुन्य ही रहने देवे I उसके बाद वेतन का प्रकार लिखें , इसमे आप रेगुलर पे और फिक्स पे में से चयन करें I यदि आप फिक्स वेतन को सलेक्ट करते है तो फ़िक्स पे के वेतन वाला कॉलम खुल जायेगा और रेगुलर वेतन वाला कॉलम फ्रीज़ हो जायेगा I और यदि आप रेगुलर पे का आप्शन सलेक्ट करते है तो रेगुलर पे वाला आप्शन अनफ्रीज़ हो जायेगा I उसके बाद आप जिस दिनांक से वेतन बनाना चाहते है उस दिनांक को DD/MM/YYYY के फॉर्मेट में लिखें I नवीन वेतन का बेसिक पे लिखें , जिसके द्वारा एरियर की कैलकुलेशन होगी I उसके बाद यदि आप किसी पूर्व राजकीय सेवा में रहने के कारण एरियर बनाना है तो इसमे YES सलेक्ट करें I जैसे ही YES सलेक्ट करेंगे तो वेतन लिखने के लिए कॉलम अनफ्रीज़ हो जायेगा , जिसमे वेतन लिख पायेंगे I उसके बाद यदि आपके S.I. कटौती हो रही है तो S.I. कटौती को इन्द्राज करें I उसके बाद यदि आपके G.P.F. कटौती हो रही है तो पहले YES सलेक्ट करें तथा उसके बाद आप G.P.F. कटौती को इन्द्राज करें I अन्त में यदि एरियर बनाने के पीरियड में आपके वेतन में जुलाई की वेतन वृद्धि के अलावा ओर किसी प्रकार की वेतन वृद्धि हुई है तो YES सलेक्ट करे , YES सलेक्ट करते ही वेतन लिखने के लिए आप्शन शो हो जायेंगे I नियमित वेतन वृद्धि स्वतः होगी I मार्च 2020 के वेतन से कोरोना की कटौती हुई हो तो yes सेलेक्ट करे I जैसे ही yes सलेक्ट करेंगे दिनों की संख्या भरने के आप्शन शो हो जायेगा I वहा दिनों की संख्या सलेक्ट कर लेवे I
D9: Update on
C10: नोट :- आप को जो भी एन्ट्री करनी है वो सब मास्टर शीट पर ही करनी है , एरियर शीट पर कुछ नहीं करना है I यदि आपको ड्राप डाउन लिस्ट में आपका पद नहीं मिल रहा है तो मास्टर शीट पर गुरुदेव की फोटो के निचे टेबल दे रखी है , उसमे लिख लेवे , वह पद लिस्ट में ऐड हो जाएगा I | D10: 2023-06-15
A12: 2 | B12: Arrear Sheet :- | C12: यहाँ पर मास्टर शीट पर जो एंट्री की गयी है उसका आउटपुट मिलेगा I यहाँ किसी भी प्रकार की एन्ट्री नहीं होगी I जो भी संशोधन करना है तो मास्टर शीट पर करना है I यह शीट fully ऑटोमेटेड है , यहाँ पर केवल प्रिंट निकलना है , जो A4 साइज़ में पेज सेट किया हुआ है I
A14: 3 | B14: Unlock Arrear Sheet :- | C14: यह अनलॉक शीट इसलिए डाली गयी ताकि किसी भी अपवाद स्वरुप किसी कार्मिक का वेतन ड्रा (एरियर ) सही नहीं बैठ रहा है या फिर वेतन व कटोती में ज्यादा संशोधन है तो आप अनलॉक शीट काम में ले सकते है I कही पर त्रुटि रहने के समय काम ले सकते है I
B16: सूचना :- | C16: वैसे इस प्रोग्राम को तैयार करने में पूर्ण सावधानी बरती गयी है , फिर भी मानवीय त्रुटि होना संम्भव है I अतः आप अपने स्तर पर जरुर चेक कर लेवे I इस हेतु निर्माणकर्ता कतई जिम्मेदार नहीं होगा I यह आपकी सुविधा के लिए है I
C18: वैसे शीट पूरी मेहनत से तैयार की गयी है , फिर भी अगर कही पर त्रुटि रहती है तो जरुर अवगत करावे , इस हेतु जरुर संशोधित संस्करण निकाला जायेगा I
C20: धन्यवाद
C21: आपका दोस्त
C22: हीरालाल जाट , वरिष्ठ अध्यापक (एक्सेल प्रोग्रामर )

Sheet Master Sheet
D1: DATA ENTRY | L1: You tube Video Link Given Bleow
C3: Office Name :- | D3: Mahatma Gandhi Government School (English Medium) Bar, PALI | AI3: 2017-01-01
AI4: 2017-02-01
C5: डीडीओ का नाम :- | D5: USHA PALIYA | H5: डीडीओ का पद :- | I5: Principal | K5: जुलाई 2021 से पूर्व मकान किराया दर :- | M5: 8 | N5: % | P5: HRA पुराना ही लिखे नए के लिए Cell no. D29 | AI5: 2017-03-01
AI6: 2017-04-01
C7: कार्मिक का नाम :- | D7: HEERALAL JAT | H7: कार्मिक का पद :- | I7: Sr. Teacher | K7: निर्धारित पे मैट्रिक्स लेवल :- | M7: L-11 | Q7: परम पूज्य गुरुदेव वासुदेवजी महाराज | AI7: 2017-05-01
AI8: 2017-06-01
B9: किस माह से एरियर बनाना है :- | D9: 2023-01-01 | H9: तथा किस माह तक एरियर बनाना है :- | I9: 2023-11-01 | K9: इन्कम टैक्स कटाना है तो % में लिखे :- | M9: 0 | N9: % | AI9: 2017-07-01
Q10: Post | AI10: 2017-08-01
B11: जो पूर्व में वेतन मिला है उसका प्रकार सेलेक्ट करें :- | D11: Regular Pay | H11: फिक्स पे वेतन मिला हो तो यहाँ लिखें :- | I11: 23700 | K11: यदि नियमित वेतन मिला हो तो यहाँ लिखें :- | M11: 32800 | Q11: CDEO | AI11: 2017-09-01
D12: DD | E12: MM | F12: YYYYY | Q12: DEEO | AI12: 2017-10-01
B13: किस तारीख से एरियर बनाना है :- (Date Format :- DD/MM/YYYY ). | D13: 20 | E13: 1 | F13: 2022 | H13: नया वेतन मिलने के दिनों की संख्या :- (आप सिर्फ़ चेक कर सकते है ) | I13: =IFERROR(IF('Arrear Sheet'!AX6="","",'Arrear Sheet'!AX6),"") -> 12 | K13: नवीन निर्धारित वेतन (New Basic Salary) :- | M13: 33800 | Q13: ADEO | AI13: 2017-11-01
Q14: ADPC | AI14: 2017-12-01
B15: यदि कार्मिक ने प्रोबेशन में पूर्व राजकीय सेवा का वेतन आहरण किया है तो सामने कॉलम में YES सेलेक्ट करे :- | I15: NO | K15: पूर्व राजकीय सेवा का वेतन (बेसिक) यहाँ लिखे :- | M15: 30500 | Q15: APC | AI15: 2018-01-01
Q16: CBEO | AI16: 2018-02-01
B17: यदि कार्मिक के वेतन से राज्य बीमा कटोती हो रही है तो YES सेलेक्ट करें :- | D17: NO | H17: S.I. Deduction Premium Amount :- | I17: 2100 | K17: S.I. Deduction Due Premium Amount :- | M17: 2100 | Q17: ACBEO-1 | AI17: 2018-03-01
Q18: ACBEO-2 | AI18: 2018-04-01
B19: यदि एरियर बनाने की अवधि के दौरान राज्य बीमा कटोती में वृद्धि हुई है तो YES सेलेक्ट करें :- | D19: NO | H19: जिस माह में S.I. Premium में बदलाव आया है , वह माह सलेक्ट करें :- | I19: 2019-03-01 | K19: परिवर्तित प्रीमियम राशि यहाँ पर लिखें :- | M19: 3000 | Q19: PEEO | AI19: 2018-05-01
Q20: Principal | AI20: 2018-06-01
B21: यदि कार्मिक की नियुक्ति 01-01-2004 से पूर्व है तो YES सेलेक्ट करें :- | D21: NO | H21: G.P.F. Deduction Premium Amount :- | I21: 3675 | K21: G.P.F. Deduction Due Premium Amount :- | M21: 3675 | Q21: PEEO | AI21: 2018-07-01
Q22: Principal | AI22: 2018-08-01
B23: यदि एरियर बनाने की अवधि के दौरान GPF कटोती में वृद्धि हुई है तो YES सेलेक्ट करें :- | D23: NO | H23: जिस माह में G.P.F. Ded. में वृद्धि करवाई है , वह माह सलेक्ट करें :- | I23: 2021-04-01 | K23: परिवर्तित प्रीमियम राशि यहाँ पर लिखें :- | M23: 5000 | Q23: Head Master | AI23: 2018-09-01
Q24: Lecturer | AI24: 2018-10-01
B25: यदि एरियर ड्रा के दौरान आपके वेतन में फिक्सेशन या एसीपी के कारण वेतन में बदलाव आया हो तो YES सेलेक्ट करें :- | D25: NO | H25: जिस माह में वेतन में बदलाव आया है , वह माह सलेक्ट करें :- | I25: 2021-04-01 | K25: परिवर्तित वेतन यहाँ पर लिखें :- | M25: 41100 | Q25: Sr. Teacher | AI25: 2018-11-01
Q26: Teacher L-2 | AI26: 2018-12-01
B27: यदि आपके मार्च 2020 के वेतन से कोरोना कटोती हुई है तो YES सेलेक्ट करें :- | D27: NO | H27: कितने दिनों का वेतन काटा गया है , उन दिनों की संख्या को सलेक्ट करें :- | I27: 3 | Q27: Teacher L-1 | AI27: 2019-01-01
Q28: Prabodhak | AI28: 2019-02-01
B29: जुलाई 2021 से मकान किराया दर :- | D29: =IFERROR(IF(M5=8,9,18),"") -> 9 | G29: % | H29: यदि GPF-2004 की कटौती हो रही है तो YES सलेक्ट करे, नहीं तो NO सलेक्ट करें (1 अप्रैल 2022 से) :- | M29: YES | Q29: PTI - 1 | AI29: 2019-03-01
Q30: PTI - II | AI30: 2019-04-01
B31: RGHS की दर में परिवर्तन हुआ है तो लिखे :- | K31: GPF-2004 के प्रीमियम राशि यहाँ पर लिखें :- | M31: 2100 | Q31: PTI - III | AI31: 2019-05-01
Q32: Librarian | AI32: 2019-06-01
Q33: OA | AI33: 2019-07-01
M34: Last Update Date | Q34: UDC | AI34: 2019-08-01
C35: You tube Video Link | G35: This Program Is Developed By : | M35: 2023-05-19 | Q35: LDC | AI35: 2019-09-01
C36: https://youtu.be/e9tzJ3zCZPk | G36: Heeralal Jat | Q36: Lab Tec. | AI36: 2019-10-01
C37: https://youtu.be/KZNCz_sq6iQ | G37: Senior Teacher | M37: https://youtu.be/ZmZ-D7xZTpA | Q37: Peon | AI37: 2019-11-01
C38: You tube Channal Link | G38: Mahatma Gandhi Government School Bar , PALI | AI38: 2019-12-01
C39: https://youtube.com/c/Heeralaljat | G39: V./P. :- Chandawal Nagar, Teh. - Sojat (Pali) | AI39: 2020-01-01
AI40: 2020-02-01
AI41: 2020-03-01
AI42: 2020-04-01
AI43: 2020-05-01
AI44: 2020-06-01
AI45: 2020-07-01
AI46: 2020-08-01
AI47: 2020-09-01
AI48: 2020-10-01
AI49: 2020-11-01
AI50: 2020-12-01
AI51: 2021-01-01
AI52: 2021-02-01
AI53: 2021-03-01
AI54: 2021-04-01
AI55: 2021-05-01
AI56: 2021-06-01
AI57: 2021-07-01
AI58: 2021-08-01
AI59: 2021-09-01
AI60: 2021-10-01
AI61: 2021-11-01
AI62: 2021-12-01
AI63: 2022-01-01
AI64: 2022-02-01
AI65: 2022-03-01
AI66: 2022-04-01
AI67: 2022-05-01
AI68: 2022-06-01
AI69: 2022-07-01
AI70: 2022-08-01
AI71: 2022-09-01
AI72: 2022-10-01
AI73: 2022-11-01
AI74: 2022-12-01
AI75: 2023-01-01
AI76: 2023-02-01
AI77: 2023-03-01
AI78: 2023-04-01
AI79: 2023-05-01
AI80: 2023-06-01
AI81: 2023-07-01
AI82: 2023-08-01
AI83: 2023-09-01
AI84: 2023-10-01
AI85: 2023-11-01
AI86: 2023-12-01

Sheet Arrear Sheet
C1: =IF('Master Sheet'!D3="","",CONCATENATE("Office ",'Master Sheet'!D3,)) -> Office Mahatma Gandhi Government School (English Medium) Bar, PALI | AO1: 2022-03-01 | AR1: 2020-03-01 | AV1: ='Master Sheet'!M31 -> 2100 | BT1: 2022-03-01
C2: Difference Arrear Sheet | AO2: NPS | AR2: ='Master Sheet'!D27 -> NO | AS2: ='Master Sheet'!I27 -> 3 | AT2: =IFERROR(IF(AS4="",0,MONTH(AS4)),"") -> 1 | AX2: =IF(AR4=AR3,29,IF(AT2=1,31,IF(AT2=2,28,IF(AT2=3,31,IF(AT2=4,30,IF(AT2=5,31,IF(AT2=6,30,IF(AT2=7,31,IF(AT2=8,31,IF(AT2=9,30,IF(AT2=10,31,IF(AT2=11,30,IF(AT2=12,31,0))))))))))))) -> 31 | AZ2: 2017-07-01 | BA2: 2023-07-01
C3: Name Of Employee : | F3: =IFERROR(UPPER('Master Sheet'!D7),"") -> HEERALAL JAT | M3: Post : | O3: =IFERROR(UPPER('Master Sheet'!I7),"") -> SR. TEACHER | T3: Pay Matrix Level : | W3: =IFERROR(CONCATENATE("L - ",'Master Sheet'!M7),"") -> L - 11 | AC3: GPF / NPS :- | AF3: =IF($AR$18=$AR$20,"GPF","NPS") -> NPS | AP3: =MONTH(AT10) ->  | AR3: ='Master Sheet'!D9 -> 2023-01-01 | AT3: =IFERROR(IF(AR6="",0,MONTH(AR6)),"") -> 1 | AX3: =IF(AR4=AR3,29,IF(AT2=1,31,IF(AT2=2,28,IF(AT2=3,31,IF(AT2=4,30,IF(AT2=5,31,IF(AT2=6,30,IF(AT2=7,31,IF(AT2=8,31,IF(AT2=9,30,IF(AT2=10,31,IF(AT2=11,30,IF(AT2=12,31,0))))))))))))) -> 31 | AZ3: 2018-07-01
H4: Arrear From Date : | N4: =IFERROR('Master Sheet'!D9,"") -> 2023-01-01 | Q4: to | R4: =IFERROR('Master Sheet'!I9,"") -> 2023-11-01 | U4: Posting Place : | X4: ='Master Sheet'!D3 -> Mahatma Gandhi Government School (English Medium) Bar, PALI | AO4: =IF(AF3="GPF"," GPF","GPF-2004") -> GPF-2004 | AP4: =MONTH(AS6) -> 11 | AR4: 2020-02-01 | AS4: ='Master Sheet'!D13 -> 20 | AT4: =IFERROR(IF(AS4="",0,AS4-1),"") -> 19 | AX4: =IFERROR(SUM(AX3-AT4),"") -> 12 | AZ4: 2019-07-01
AZ5: 2020-07-01
B6: Sr. No. | C6: Month | D6: Pay Due | H6: Pay Drawn | L6: Pay Difference | P6: =IF($AR$18=$AR$20,"GPF","NPS/GPF-2004") -> NPS/GPF-2004 | S6: SI | V6: Corona relief fund | Y6: RGHS | AB6: =CONCATENATE("GPF In ",AO4) -> GPF In GPF-2004 | AC6: Income Tax | AD6: Total Deduction | AE6: Net Payment | AF6: Bill No./Date | AG6: Encashment Date | AP6: 2020-09-01 | AQ6: 2020-10-01 | AR6: =IF('Master Sheet'!D9="","",'Master Sheet'!D9) -> 2023-01-01 | AS6: =IF('Master Sheet'!I9="","",'Master Sheet'!I9) -> 2023-11-01 | AT6: =IFERROR(IF(AS4="",0,DAY(AS4)-1),"") -> 19 | AX6: =IFERROR(SUM(AX2-AT4),"") -> 12 | AZ6: 2021-07-01
D7: Pay | E7: DA | F7: HRA | G7: Total | H7: Pay | I7: DA | J7: HRA | K7: Total | L7: Pay | M7: DA | N7: HRA | O7: Total | P7: Due | Q7: Ded | R7: Diff. | S7: Due | T7: Ded | U7: Diff. | V7: Due | W7: Ded | X7: Diff. | Y7: Due | Z7: Ded | AA7: Diff. | AO7: =IF(AP7="NO",28,31) -> 31 | AP7: =IF('Master Sheet'!M29="","",'Master Sheet'!M29) -> YES | AR7: =IF('Master Sheet'!M9="","",'Master Sheet'!M9) -> 0 | AT7: =IF('Master Sheet'!M5="","",'Master Sheet'!M5) -> 8 | AX7: =IF('Master Sheet'!D29="","",'Master Sheet'!D29) -> 9 | AY7: 2021-07-01 | AZ7: 2022-07-01 | BL7: =ROUND(ROUND(M8*3%,0)*10%,0) -> 1
A8: =IF(LEN(C8)>=2,1,0) -> 1 | B8: =IFERROR(IF(A8="","",IF(A8=0,"",A8)),"") -> 1 | C8: =IFERROR(IF(AW9="","",AW9),"") -> 2023-01-01 | D8: =IFERROR(IF(AX9="","",AX9),"") -> 13084 | E8: =IFERROR(IF(AY9="","",AY9),"") -> 5495 | F8: =IFERROR(IF(OR(C8=$AP$16,C8=$AP$17,C8=$AP$18,C8=$AP$19,C8=$AP$20,C8=$AP$21,C8=$AP$22,C8=$AP$23,C8=$AP$24),0,IF(AZ9="","",AZ9)),"") -> 1178 | G8: =IF(C8="","",SUM(D8:F8)) -> 19757 | H8: =IFERROR(IF(BB9="","",BB9),"") -> 12697 | I8: =IFERROR(IF(BC9="","",BC9),"") -> 5333 | J8: =IFERROR(IF(OR(C8=$AP$16,C8=$AP$17,C8=$AP$18,C8=$AP$19,C8=$AP$20,C8=$AP$21,C8=$AP$22,C8=$AP$23,C8=$AP$24),0,IF(BD9="","",BD9)),"") -> 1143 | K8: =IF(C8="","",SUM(H8:J8)) -> 19173 | L8: =IFERROR(IF(C8="","",IF(D8="","",IF(H8="","",SUM(D8-H8)))),"") -> 387 | M8: =IFERROR(IF(C8="","",IF(E8="","",IF(I8="","",SUM(E8-I8)))),"") -> 162 | N8: =IFERROR(IF(C8="","",IF(F8="","",IF(J8="","",SUM(F8-J8)))),"") -> 35 | O8: =IFERROR(IF(C8="","",IF(G8="","",IF(K8="","",SUM(G8-K8)))),"") -> 584 | P8: =IF(C8="","",IF(AND(C8>$AO$1,$AF$3=$AO$2),BR9,IF($AR$18=$AR$20,SUM(BE9+BM9),ROUND((D8+E8)*10%,0)))) -> 2100 | Q8: =IFERROR(IF(C8="","",IF(H8="","",IF(I8="","",IF(AND(C8>$AO$1,$AF$3=$AO$2),BR9,IF($AR$18=$AR$20,$AR$21,ROUND((H8+I8)*10%,0)))))),"") -> 2100 | R8: =IFERROR(IF(C8="","",SUM(P8-Q8)),"") -> 0 | S8: =IFERROR(IF(C8="","",IF($AR$16=$AR$17,0,IF($AR$19=$AR$20,$AR$25,0))),"") -> 0 | T8: =IFERROR(IF(C8="","",IF($AR$16=$AR$17,0,IF($AR$19=$AR$20,$AR$24,0))),"") -> 0 | U8: =IFERROR(IF(C8="","",SUM(S8-T8)),"") -> 0 | V8: =IF(C8="","",IF(AND($AR$2=$AR$20,C8=$AR$1),ROUND(D8/31*$AS$2,0),IF(C8=$AP$6,ROUND((G8)*1/30,0),IF(C8=$AQ$6,ROUND((G8)*1/31,0),"")))) ->  | W8: =IF(C8="","",IF(AND($AR$2=$AR$20,C8=$AR$1),ROUND(H8/31*$AS$2,0),IF(C8=$AP$6,ROUND((K8)*1/30,0),IF(C8=$AQ$6,ROUND((K8)*1/31,0),"")))) ->  | X8: =IFERROR(IF(C8="","",SUM(V8-W8)),"") ->  | Y8: =IFERROR(IF(C8="","",IF($AR$16=$AR$17,0,IF($AF$3=$AO$4,"",BU8))),"") -> 658 | Z8: =IFERROR(IF(C8="","",IF($AR$16=$AR$17,0,IF($AF$3=$AO$4,"",BT8))),"") -> 440 | AA8: =IFERROR(IF(C8="","",SUM(Y8-Z8)),"") -> 218 | AB8: =IFERROR(IF(BJ9="","",IF(AND(AF3="NPS",BJ9="YES"),SUM(BK9+BR9),"")),"") ->  | AC8: =IFERROR(IF(C8="","",ROUND(O8*$AR$7%,0)),"") -> 0 | AD8: =IFERROR(IF(C8="","",IF($AF$3="GPF",SUM(R8,U8,X8,AB8,AC8),SUM(U8,X8,AB8,AC8))),"") -> 0 | AE8: =IFERROR(IF(C8="","",SUM(O8-AD8)),"") -> 584 | BM8: GPF | BT8: =IF(AW9="","",IF(AW9="TOTAL","",IF($AR$16=$AR$17,0,IF(AND(AW9=$BT$1,$AF$3=$AO$2),IF($AR$14<18001,135,IF($AR$14<33501,220,IF($AR$14<54001,330,440))),IF(AND(AW9>$BT$1,$AF$3=$AO$2),IF($AR$14<18001,265,IF($AR$14<33501,440,IF($AR$14<54001,658,875))),""))))) -> 440 | BU8: =IF(AW9="","",IF(AW9="TOTAL","",IF($AR$16=$AR$17,0,IF(AND(AW9>$BT$1,$AF$3=$AO$2,'Master Sheet'!$D$31>0),'Master Sheet'!$D$31,IF(AND(AW9=$BT$1,$AF$3=$AO$2),IF($AR$9<18001,135,IF($AR$9<33501,220,IF($AR$9<54001,330,440))),IF(AND(AW9>$BT$1,$AF$3=$AO$2),IF($AR$9<18001,265,IF($AR$9<33501,440,IF($AR$9<54001,658,875))),"")))))) -> 658
A9: =IF(C9="TOTAL","",IF(LEN(C9)>=2,B8+1,0)) -> 2 | B9: =IFERROR(IF(A9="","",IF(A9=0,"",A9)),"") -> 2 | C9: =IFERROR(IF(AW10="","",AW10),"") -> 2023-02-01 | D9: =IFERROR(IF($C9="TOTAL",SUM($D$8:D8),IF(AX10="","",AX10)),"") -> 33800 | E9: =IFERROR(IF($C9="TOTAL",SUM($E$8:E8),IF(AY10="","",AY10)),"") -> 14196 | F9: =IFERROR(IF($C9="TOTAL",SUM($F$8:F8),IF(OR(C9=$AP$16,C9=$AP$17,C9=$AP$18,C9=$AP$19,C9=$AP$20,C9=$AP$21,C9=$AP$22,C9=$AP$23,C9=$AP$24),0,IF(AZ10="","",AZ10))),"") -> 3042 | G9: =IF(C9="","",SUM(D9:F9)) -> 51038 | H9: =IFERROR(IF($C9="TOTAL",SUM($H$8:H8),IF(BB10="","",BB10)),"") -> 32800 | I9: =IFERROR(IF($C9="TOTAL",SUM($I$8:I8),IF(BC10="","",BC10)),"") -> 13776 | J9: =IFERROR(IF($C9="TOTAL",SUM($J$8:J8),IF(OR(C9=$AP$16,C9=$AP$17,C9=$AP$18,C9=$AP$19,C9=$AP$20,C9=$AP$21,C9=$AP$22,C9=$AP$23,C9=$AP$24),0,IF(BD10="","",BD10))),"") -> 2952 | K9: =IF(C9="","",SUM(H9:J9)) -> 49528 | L9: =IFERROR(IF(C9="","",IF(D9="","",IF(H9="","",IF($C9="TOTAL",SUM($L$8:L8),SUM(D9-H9))))),"") -> 1000 | M9: =IFERROR(IF(C9="","",IF(E9="","",IF(I9="","",IF($C9="TOTAL",SUM($M$8:M8),SUM(E9-I9))))),"") -> 420 | N9: =IFERROR(IF(C9="","",IF(F9="","",IF(J9="","",IF($C9="TOTAL",SUM($N$8:N8),SUM(F9-J9))))),"") -> 90 | O9: =IFERROR(IF(C9="","",IF(G9="","",IF(K9="","",SUM(G9-K9)))),"") -> 1510 | P9: =IFERROR(IF(C9="","",IF(AND(C9>$AO$1,$AF$3=$AO$2),BR10,IF($AR$18=$AR$20,SUM(BE10+BM10),ROUND((D9+E9)*10%,0)))),"") -> 2100 | Q9: =IFERROR(IF(C9="","",IF(H9="","",IF(I9="","",IF(AND(C9>$AO$1,$AF$3=$AO$2),BR10,IF($AR$18=$AR$20,$AR$21,ROUND((H9+I9)*10%,0)))))),"") -> 2100 | R9: =IFERROR(IF(C9="","",SUM(P9-Q9)),"") -> 0 | S9: =IFERROR(IF(C9="","",IF($AR$16=$AR$17,0,IF($C9="TOTAL",SUM($S$8:S8),IF($AR$19=$AR$31,0,IF(AND($AR$32=$AR$20,C9=$AR$33),$AR$34,S8))))),"") -> 0 | T9: =IFERROR(IF(C9="","",IF($AR$16=$AR$17,0,IF($C9="TOTAL",SUM($T$8:T8),IF($AR$19=$AR$20,$AR$24,0)))),"") -> 0 | U9: =IFERROR(IF(C9="","",SUM(S9-T9)),"") -> 0 | V9: =IF(C9="","",IF($C9="TOTAL",SUM($V$8:V8),IF(AND($AR$2=$AR$20,C9=$AR$1),ROUND(D9/31*$AS$2,0),IF(C9=$AP$6,ROUND((G9)*1/30,0),IF(C9=$AQ$6,ROUND((G9)*1/31,0),""))))) ->  | W9: =IF(C9="","",IF($C9="TOTAL",SUM($W$8:W8),IF(AND($AR$2=$AR$20,C9=$AR$1),ROUND(H9/31*$AS$2,0),IF(C9=$AP$6,ROUND((K9)*1/30,0),IF(C9=$AQ$6,ROUND((K9)*1/31,0),""))))) ->  | X9: =IFERROR(IF(C9="","",SUM(V9-W9)),"") ->  | Y9: =IFERROR(IF(C9="","",IF($AR$16=$AR$17,0,IF($AF$3=$AO$4,"",IF($C9="TOTAL",SUM($Y$8:Y8),BU9)))),"") -> 658 | Z9: =IFERROR(IF(C9="","",IF($AR$16=$AR$17,0,IF($AF$3=$AO$4,"",IF($C9="TOTAL",SUM($Z$8:Z8),BT9)))),"") -> 440 | AA9: =IFERROR(IF(C9="","",SUM(Y9-Z9)),"") -> 218 | AB9: =IFERROR(IF(C9="","",IF(AND(BK10="",BR10=""),"",IF($C9="TOTAL",SUM($AB$8:AB8),BK10))),"") ->  | AC9: =IFERROR(IF(C9="","",IF($C9="TOTAL",SUM($AC$8:AC8),ROUND(O9*$AR$7%,0))),"") -> 0 | AD9: =IFERROR(IF(C9="","",IF($C9="TOTAL",SUM($AD$8:AD8),IF($AF$3=$AO$2,SUM(U9,X9,AB9,AC9),SUM(R9,U9,X9,AB9,AC9)))),"") -> 0 | AE9: =IFERROR(IF(C9="","",IF($C9="TOTAL",SUM($AE$8:AE8),SUM(O9-AD9))),"") -> 1510 | AN9: =IF(OR(AW9=$AQ$9,AW9=$AQ$10,AW9=$AQ$11,AW9=$AQ$12,AW9=$AQ$13,AW9=$AQ$14),4,IF(OR(AW9=$AQ$15,AW9=$AQ$16,AW9=$AQ$17,AW9=$AQ$18,AW9=$AQ$19,AW9=$AQ$20),5,IF(OR(AW9=$AQ$21,AW9=$AQ$22,AW9=$AQ$23,AW9=$AQ$24,AW9=$AQ$25,AW9=$AQ$26),7,IF(OR(AW9=$AQ$27,AW9=$AQ$28,AW9=$AQ$29,AW9=$AQ$30,AW9=$AQ$31,AW9=$AQ$32),9,IF(OR(AW9=$AQ$33,AW9=$AQ$34,AW9=$AQ$35,AW9=$AQ$36,AW9=$AQ$37,AW9=$AQ$38),12,IF(OR(AW9=$AQ$39,AW9=$AQ$40,AW9=$AQ$41,AW9=$AQ$42,AW9=$AQ$43,AW9=$AQ$44,AW9=$AQ$45,AW9=$AQ$46,AW9=$AQ$47,AW9=$AQ$48,AW9=$AQ$49,AW9=$AQ$50,AW9=$AQ$51,AW9=$AQ$52,AW9=$AQ$53,AW9=$AQ$54,AW9=$AQ$55,AW9=$AQ$56,AW9=$AQ$57,AW9=$AQ$58,AW9=$AQ$59,AW9=$AQ$60,AW9=$AQ$61,AW9=$AQ$62),17,IF(OR(AW9=$AQ$63,AW9=$AQ$64,AW9=$AQ$65,AW9=$AQ$66,AW9=$AQ$67,AW9=$AQ$68),31,IF(OR(AW9=$AQ$69,AW9=$AQ$70,AW9=$AQ$71,AW9=$AQ$72,AW9=$AQ$73,AW9=$AQ$74),34,IF(OR(AW9=$AQ$75,AW9=$AQ$76,AW9=$AQ$77,AW9=$AQ$78,AW9=$AQ$79,AW9=$AQ$80),38,42))))))))) -> 42 | AO9: =IF(OR(AW9=$AQ$9,AW9=$AQ$10,AW9=$AQ$11,AW9=$AQ$12,AW9=$AQ$13,AW9=$AQ$14),4,IF(OR(AW9=$AQ$15,AW9=$AQ$16,AW9=$AQ$17,AW9=$AQ$18,AW9=$AQ$19,AW9=$AQ$20),5,IF(OR(AW9=$AQ$21,AW9=$AQ$22,AW9=$AQ$23,AW9=$AQ$24,AW9=$AQ$25,AW9=$AQ$26),7,IF(OR(AW9=$AQ$27,AW9=$AQ$28,AW9=$AQ$29,AW9=$AQ$30,AW9=$AQ$31,AW9=$AQ$32),9,IF(OR(AW9=$AQ$33,AW9=$AQ$34,AW9=$AQ$35,AW9=$AQ$36,AW9=$AQ$37,AW9=$AQ$38),12,IF(OR(AW9=$AQ$39,AW9=$AQ$40,AW9=$AQ$41,AW9=$AQ$42,AW9=$AQ$43,AW9=$AQ$44,AW9=$AQ$45,AW9=$AQ$46,AW9=$AQ$47,AW9=$AQ$48,AW9=$AQ$49,AW9=$AQ$50,AW9=$AQ$51,AW9=$AQ$52,AW9=$AQ$53,AW9=$AQ$54,AW9=$AQ$55,AW9=$AQ$56,AW9=$AQ$57,AW9=$AQ$58,AW9=$AQ$59,AW9=$AQ$60,AW9=$AQ$61,AW9=$AQ$62),17,IF(OR(AW9=$AQ$63,AW9=$AQ$64,AW9=$AQ$65,AW9=$AQ$66,AW9=$AQ$67,AW9=$AQ$68),31,IF(OR(AW9=$AQ$69,AW9=$AQ$70,AW9=$AQ$71,AW9=$AQ$72,AW9=$AQ$73,AW9=$AQ$74),34,IF(OR(AW9=$AQ$75,AW9=$AQ$76,AW9=$AQ$77,AW9=$AQ$78,AW9=$AQ$79,AW9=$AQ$80),38,42))))))))) -> 42 | AQ9: 2017-01-01 | AR9: ='Master Sheet'!M13 -> 33800 | AS9: =IF(AND($AR$6>$AS$6),"",DATE(YEAR(AR6),MONTH(AR6),DAY(AR6))) -> 2023-01-01 | AT9: =IF(AND(AS9=""),"",IF(AND(AS9=$AQ$9),$AQ$9,IF(AND(AS9=$AQ$10),$AQ$10,IF(AND(AS9=$AQ$11),$AQ$11,IF(AND(AS9=$AQ$12),$AQ$12,IF(AND(AS9=$AQ$13),$AQ$13,IF(AND(AS9=$AQ$14),$AQ$14,IF(AND(AS9=$AQ$15),$AQ$15,IF(AND(AS9=$AQ$16),$AQ$16,IF(AND(AS9=$AQ$17),$AQ$17,IF(AND(AS9=$AQ$18),$AQ$18,IF(AND(AS9=$AQ$19),$AQ$19,IF(AND(AS9=$AQ$20),$AQ$20,IF(AND(AS9=$AQ$21),$AQ$21,IF(AND(AS9=$AQ$22),$AQ$22,IF(AND(AS9=$AQ$23),$AQ$23,IF(AND(AS9=$AQ$24),$AQ$24,IF(AND(AS9=$AQ$25),$AQ$25,IF(AND(AS9=$AQ$26),$AQ$26,IF(AND(AS9=$AQ$27),$AQ$27,IF(AND(AS9=$AQ$28),$AQ$28,IF(AND(AS9=$AQ$29),$AQ$29,IF(AND(AS9=$AQ$30),$AQ$30,IF(AND(AS9=$AQ$31),$AQ$31,IF(AND(AS9=$AQ$32),$AQ$32,IF(AND(AS9=$AQ$33),$AQ$33,IF(AND(AS9=$AQ$34),$AQ$34,IF(AND(AS9=$AQ$35),$AQ$35,IF(AND(AS9=$AQ$36),$AQ$36,IF(AND(AS9=$AQ$37),$AQ$37,IF(AND(AS9=$AQ$38),$AQ$38,IF(AND(AS9=$AQ$39),$AQ$39,IF(AND(AS9=$AQ$40),$AQ$40,IF(AND(AS9=$AQ$41),$AQ$41,IF(AND(AS9=$AQ$42),$AQ$42,IF(AND(AS9=$AQ$43),$AQ$43,IF(AND(AS9=$AQ$44),$AQ$44,IF(AND(AS9=$AQ$45),$AQ$45,IF(AND(AS9=$AQ$46),$AQ$46,IF(AND(AS9=$AQ$47),$AQ$47,IF(AND(AS9=$AQ$48),$AQ$48,IF(AND(AS9=$AQ$49),$AQ$49,IF(AND(AS9=$AQ$50),$AQ$50,IF(AND(AS9=$AQ$51),$AQ$51,IF(AND(AS9=$AQ$52),$AQ$52,IF(AND(AS9=$AQ$53),$AQ$53,IF(AND(AS9=$AQ$54),$AQ$54,IF(AND(AS9=$AQ$55),$AQ$55,IF(AND(AS9=$AQ$56),$AQ$56,IF(AND(AS9=$AQ$57),$AQ$57,IF(AND(AS9=$AQ$58),$AQ$58,IF(AND(AS9=$AQ$59),$AQ$59,IF(AND(AS9=$AQ$60),$AQ$60,IF(AND(AS9=$AQ$61),$AQ$61,IF(AND(AS9=$AQ$62),$AQ$62,IF(AND(AS9=$AQ$63),$AQ$63,IF(AND(AS9=$AQ$64),$AQ$64,IF(AND(AS9=$AQ$65),$AQ$65,IF(AND(AS9=$AQ$66),$AQ$66,IF(AND(AS9=$AQ$67),$AQ$67,IF(AND(AS9=$AQ$68),$AQ$68,IF(AND(AS9=$AQ$69),$AQ$69,IF(AND(AS9=$AQ$70),$AQ$70,IF(AND(AS9=$AQ$71),$AQ$71,"")))))))))))))))))))))))))))))))))))))))))))))))))))))))))))))))) ->  | AU9: =IF(AND(AS9=""),"",IF(AND(AS9=$AQ$72),$AR$72,IF(AND(AS9=$AQ$73),$AR$73,IF(AND(AS9=$AQ$74),$AR$74,IF(AND(AS9=$AQ$75),$AR$75,IF(AND(AS9=$AQ$76),$AR$76,IF(AND(AS9=$AQ$77),$AR$77,IF(AND(AS9=$AQ$78),$AR$78,IF(AND(AS9=$AQ$79),$AR$79,IF(AND(AS9=$AQ$80),$AR$80,IF(AND(AS9=$AQ$81),$AR$81,IF(AND(AS9=$AQ$82),$AR$82,IF(AND(AS9=$AQ$83),$AR$83,IF(AND(AS9=$AQ$84),$AR$84,IF(AND(AS9=$AQ$85),$AR$85,IF(AND(AS9=$AQ$86),$AR$86,IF(AND(AS9=$AQ$87),$AR$87,IF(AND(AS9=$AQ$88),$AR$88,IF(AND(AS9=$AQ$89),$AR$89,IF(AND(AS9=$AQ$90),$AR$90,IF(AND(AS9=$AQ$91),$AR$91,IF(AND(AS9=$AQ$92),$AR$92,"")))))))))))))))))))))) -> 2023-01-01 | AV9: =IFERROR(IF(AND(AT9="",AU9=""),"",IF(AT9="",AU9,AT9)),"") -> 2023-01-01 | AW9: =IFERROR(IF(AND(AT9="",AV9=""),"",IF(AV9>$AS$6,"",AV9)),"") -> 2023-01-01 | AX9: =IF(AW9="","",ROUND((AR9/AX3)*AX6,0)) -> 13084 | AY9: =IF(AW9="","",IF(AW9="TOTAL","",ROUND(AX9*AN9%,0))) -> 5495 | AZ9: =IF(AW9="","",IF(AW9="TOTAL","",IF(AW9>=$AY$7,ROUND(AX9*$AX$7%,0),ROUND(AX9*$AT$7%,0)))) -> 1178 | BB9: =IF(AW9="","",IF(AND($AR$10="",$AR$14=""),"",IF(AR26=AR20,ROUND((AR27/AX3)*AX6,0),IF($AR$13=$AR$15,ROUND(($AR$14/AX3)*AX6,0),ROUND(($AR$10/AX3)*AX6,0))))) -> 12697 | BC9: =IF(AW9="","",IF(BB9="","",IF($AR$16=$AR$17,0,ROUND(BB9*AO9%,0)))) -> 5333 | BD9: =IF(AW9="","",IF(BB9="","",IF($AR$16=$AR$17,0,IF(AW9>=$AY$7,ROUND(BB9*$AX$7%,0),ROUND(BB9*$AT$7%,0))))) -> 1143 | BE9: =IF(AW9="","",IF(AW9="TOTAL","",IF(BB9="","",IF($AR$16=$AR$17,0,IF(OR(C8=$AP$16,C8=$AP$17,C8=$AP$18,C8=$AP$19,C8=$AP$20,C8=$AP$21,C8=$AP$22,C8=$AP$23,C8=$AP$24),SUM(BH9+$AR$22),$AR$22))))) -> 3675 | BH9: =IF(AW9="","",IF(AW9="TOTAL","",IF(BB9="","",SUM(O8)-SUM(($AR$22-$AR$21)+SUM(U8,X8,AC8))))) -> 584 | BI9: =IF(AW9="","",IF(AW9="TOTAL","",IF(AND($AR$20=$AR$36,C9=$AR$37),$AR$38,$AR$22))) -> 3675 | BJ9: =IF(OR(AW9=$AQ$63,AW9=$AQ$64,AW9=$AQ$65),"YES","") ->  | BK9: =IF(BJ9="","",IF($AR$16=$AR$17,ROUND((D8)*3%,0),IF(OR(AW9=$AQ$63,AW9=$AQ$64,AW9=$AQ$65),SUM(ROUND((D8-H8)*3%,0)),IF(OR(AW9=$AQ$69,AW9=$AQ$70,AW9=$AQ$71),SUM(ROUND((D8-H8)*3%,0)),"")))) ->  | BL9: =IFERROR(IF(AND($AR$16=$AR$17,BJ9="YES"),ROUND(ROUND(D8*3%,0)*10%,0),IF(AND($AR$16=$AR$15,BJ9="YES",$AP$7="NO"),ROUND(ROUND((L8+H8)*3%,0)*10%,0),IF(AND($AR$16=$AR$15,BJ9="YES",$AP$7="YES"),ROUND(ROUND((L8+M8)*3%,0)*10%,0),0))),"") -> 0 | BM9: =IF(AND($AR$16=$AR$17,BJ9="YES"),ROUND(D8*3%,0),IF(AND($AR$16=$AR$15,BJ9="YES",$AP$7="NO"),ROUND((L8+H8)*3%,0),IF(AND($AR$16=$AR$15,BJ9="YES",$AP$7="YES"),ROUND((L8+M8)*3%,0),0))) -> 0 | BN9: =IF(AND($AR$16=$AR$17,BJ9="YES"),ROUND(ROUND(D8*3%,0)*10%,0),IF(AND($AR$16=$AR$15,BJ9="YES",$AP$7="NO"),ROUND(ROUND((L8+H8)*3%,0)*10%,0),IF(AND($AR$16=$AR$15,BJ9="YES",$AP$7="YES"),ROUND(ROUND((L8+M8)*3%,0)*10%,0),""))) ->  | BR9: =IF(AW9="","",IF(AW9="TOTAL","",IF(AND(AW9>$AO$1,$AF$3=$AO$2),$AV$1,""))) -> 2100 | BT9: =IF(AW10="","",IF(AW10="TOTAL","",IF($AR$16=$AR$17,0,IF(AND(AW10=$BT$1,$AF$3=$AO$2),IF($AR$14<18001,135,IF($AR$14<33501,220,IF($AR$14<54001,330,440))),IF(AND(AW10>$BT$1,$AF$3=$AO$2),IF($AR$14<18001,265,IF($AR$14<33501,440,IF($AR$14<54001,658,875))),""))))) -> 440 | BU9: =IF(AW10="","",IF(AW10="TOTAL","",IF($AR$16=$AR$17,0,IF(AND(AW10>$BT$1,$AF$3=$AO$2,'Master Sheet'!$D$31>0),'Master Sheet'!$D$31,IF(AND(AW10=$BT$1,$AF$3=$AO$2),IF($AR$9<18001,135,IF($AR$9<33501,220,IF($AR$9<54001,330,440))),IF(AND(AW10>$BT$1,$AF$3=$AO$2),IF($AR$9<18001,265,IF($AR$9<33501,440,IF($AR$9<54001,658,875))),"")))))) -> 658
A10: =IF(C10="TOTAL","",IF(B9="","",IF(LEN(C10)>=2,B9+1,0))) -> 3 | B10: 3 | C10: 2023-03-01 | D10: =IFERROR(IF($C9="TOTAL","अक्षरें राशि :-",IF($C10="TOTAL",SUM($D$8:D9),IF(AX11="","",AX11))),"") -> 33800 | E10: =IFERROR(IF($C10="TOTAL",SUM($E$8:E9),IF(AY11="","",AY11)),"") -> 14196 | F10: =IFERROR(IF($C10="TOTAL",SUM($F$8:F9),IF(OR(C10=$AP$16,C10=$AP$17,C10=$AP$18,C10=$AP$19,C10=$AP$20,C10=$AP$21,C10=$AP$22,C10=$AP$23,C10=$AP$24),0,IF(AZ11="","",AZ11))),"") -> 3042 | G10: =IF(C10="","",SUM(D10:F10)) -> 51038 | H10: =IFERROR(IF($C10="TOTAL",SUM($H$8:H9),IF(BB11="","",BB11)),"") -> 32800 | I10: =IFERROR(IF($C10="TOTAL",SUM($I$8:I9),IF(BC11="","",BC11)),"") -> 13776 | J10: =IFERROR(IF($C10="TOTAL",SUM($J$8:J9),IF(OR(C10=$AP$16,C10=$AP$17,C10=$AP$18,C10=$AP$19,C10=$AP$20,C10=$AP$21,C10=$AP$22,C10=$AP$23,C10=$AP$24),0,IF(BD11="","",BD11))),"") -> 2952 | K10: =IF(C10="","",SUM(H10:J10)) -> 49528 | L10: =IFERROR(IF(C10="","",IF(D10="","",IF(H10="","",IF($C10="TOTAL",SUM($L$8:L9),SUM(D10-H10))))),"") -> 1000 | M10: =IFERROR(IF(C10="","",IF(E10="","",IF(I10="","",IF($C10="TOTAL",SUM($M$8:M9),SUM(E10-I10))))),"") -> 420 | N10: =IFERROR(IF(C10="","",IF(F10="","",IF(J10="","",IF($C10="TOTAL",SUM($N$8:N9),SUM(F10-J10))))),"") -> 90 | O10: =IFERROR(IF(C10="","",IF(G10="","",IF(K10="","",SUM(G10-K10)))),"") -> 1510 | P10: =IFERROR(IF(C10="","",IF($C10="TOTAL",SUM($P$8:P9),IF(AND(C10>$AO$1,$AF$3=$AO$2),BR11,IF($AR$18=$AR$20,SUM(BE11+BM11),ROUND((D10+E10)*10%,0))))),"") -> 2100 | Q10: =IFERROR(IF(C10="","",IF(H10="","",IF(I10="","",IF($C10="TOTAL",SUM($Q$8:Q9),IF(AND(C10>$AO$1,$AF$3=$AO$2),BR11,IF($AR$18=$AR$20,$AR$21,ROUND((H10+I10)*10%,0))))))),"") -> 2100 | R10: =IFERROR(IF(C10="","",SUM(P10-Q10)),"") -> 0 | S10: =IFERROR(IF(C10="","",IF($AR$16=$AR$17,0,IF($C10="TOTAL",SUM($S$8:S9),IF($AR$19=$AR$31,0,IF(AND($AR$32=$AR$20,C10=$AR$33),$AR$34,S9))))),"") -> 0 | T10: =IFERROR(IF(C10="","",IF($AR$16=$AR$17,0,IF($C10="TOTAL",SUM($T$8:T9),IF($AR$19=$AR$20,$AR$24,0)))),"") -> 0 | U10: =IFERROR(IF(C10="","",SUM(S10-T10)),"") -> 0 | V10: =IF(C10="","",IF($C10="TOTAL",SUM($V$8:V9),IF(AND($AR$2=$AR$20,C10=$AR$1),ROUND(D10/31*$AS$2,0),IF(C10=$AP$6,ROUND((G10)*1/30,0),IF(C10=$AQ$6,ROUND((G10)*1/31,0),""))))) ->  | W10: =IF(C10="","",IF($C10="TOTAL",SUM($W$8:W9),IF(AND($AR$2=$AR$20,C10=$AR$1),ROUND(H10/31*$AS$2,0),IF(C10=$AP$6,ROUND((K10)*1/30,0),IF(C10=$AQ$6,ROUND((K10)*1/31,0),""))))) ->  | X10: =IFERROR(IF(C10="","",SUM(V10-W10)),"") ->  | Y10: =IFERROR(IF(C10="","",IF($AR$16=$AR$17,0,IF($AF$3=$AO$4,"",IF($C10="TOTAL",SUM($Y$8:Y9),BU10)))),"") -> 658 | Z10: =IFERROR(IF(C10="","",IF($AR$16=$AR$17,0,IF($AF$3=$AO$4,"",IF($C10="TOTAL",SUM($Z$8:Z9),BT10)))),"") -> 440 | AA10: 218 | AB10: =IFERROR(IF(C10="","",IF(AND(BK11="",BR11=""),"",IF($C10="TOTAL",SUM($AB$8:AB9),BK11))),"") ->  | AC10: =IFERROR(IF(C10="","",IF($C10="TOTAL",SUM($AC$8:AC9),ROUND(O10*$AR$7%,0))),"") -> 0 | AD10: =IFERROR(IF(C10="","",IF($C10="TOTAL",SUM($AD$8:AD9),IF($AF$3=$AO$2,SUM(U10,X10,AB10,AC10),SUM(R10,U10,X10,AB10,AC10)))),"") -> 0 | AE10: =IFERROR(IF(C10="","",IF($C10="TOTAL",SUM($AE$8:AE9),SUM(O10-AD10))),"") -> 1510 | AN10: =IF(OR(AW10=$AQ$9,AW10=$AQ$10,AW10=$AQ$11,AW10=$AQ$12,AW10=$AQ$13,AW10=$AQ$14),4,IF(OR(AW10=$AQ$15,AW10=$AQ$16,AW10=$AQ$17,AW10=$AQ$18,AW10=$AQ$19,AW10=$AQ$20),5,IF(OR(AW10=$AQ$21,AW10=$AQ$22,AW10=$AQ$23,AW10=$AQ$24,AW10=$AQ$25,AW10=$AQ$26),7,IF(OR(AW10=$AQ$27,AW10=$AQ$28,AW10=$AQ$29,AW10=$AQ$30,AW10=$AQ$31,AW10=$AQ$32),9,IF(OR(AW10=$AQ$33,AW10=$AQ$34,AW10=$AQ$35,AW10=$AQ$36,AW10=$AQ$37,AW10=$AQ$38),12,IF(OR(AW10=$AQ$39,AW10=$AQ$40,AW10=$AQ$41,AW10=$AQ$42,AW10=$AQ$43,AW10=$AQ$44,AW10=$AQ$45,AW10=$AQ$46,AW10=$AQ$47,AW10=$AQ$48,AW10=$AQ$49,AW10=$AQ$50,AW10=$AQ$51,AW10=$AQ$52,AW10=$AQ$53,AW10=$AQ$54,AW10=$AQ$55,AW10=$AQ$56,AW10=$AQ$57,AW10=$AQ$58,AW10=$AQ$59,AW10=$AQ$60,AW10=$AQ$61,AW10=$AQ$62),17,IF(OR(AW10=$AQ$63,AW10=$AQ$64,AW10=$AQ$65,AW10=$AQ$66,AW10=$AQ$67,AW10=$AQ$68),31,IF(OR(AW10=$AQ$69,AW10=$AQ$70,AW10=$AQ$71,AW10=$AQ$72,AW10=$AQ$73,AW10=$AQ$74),34,IF(OR(AW10=$AQ$75,AW10=$AQ$76,AW10=$AQ$77,AW10=$AQ$78,AW10=$AQ$79,AW10=$AQ$80),38,42))))))))) -> 42 | AO10: =IF(OR(AW10=$AQ$9,AW10=$AQ$10,AW10=$AQ$11,AW10=$AQ$12,AW10=$AQ$13,AW10=$AQ$14),4,IF(OR(AW10=$AQ$15,AW10=$AQ$16,AW10=$AQ$17,AW10=$AQ$18,AW10=$AQ$19,AW10=$AQ$20),5,IF(OR(AW10=$AQ$21,AW10=$AQ$22,AW10=$AQ$23,AW10=$AQ$24,AW10=$AQ$25,AW10=$AQ$26),7,IF(OR(AW10=$AQ$27,AW10=$AQ$28,AW10=$AQ$29,AW10=$AQ$30,AW10=$AQ$31,AW10=$AQ$32),9,IF(OR(AW10=$AQ$33,AW10=$AQ$34,AW10=$AQ$35,AW10=$AQ$36,AW10=$AQ$37,AW10=$AQ$38),12,IF(OR(AW10=$AQ$39,AW10=$AQ$40,AW10=$AQ$41,AW10=$AQ$42,AW10=$AQ$43,AW10=$AQ$44,AW10=$AQ$45,AW10=$AQ$46,AW10=$AQ$47,AW10=$AQ$48,AW10=$AQ$49,AW10=$AQ$50,AW10=$AQ$51,AW10=$AQ$52,AW10=$AQ$53,AW10=$AQ$54,AW10=$AQ$55,AW10=$AQ$56,AW10=$AQ$57,AW10=$AQ$58,AW10=$AQ$59,AW10=$AQ$60,AW10=$AQ$61,AW10=$AQ$62),17,IF(OR(AW10=$AQ$63,AW10=$AQ$64,AW10=$AQ$65,AW10=$AQ$66,AW10=$AQ$67,AW10=$AQ$68),31,IF(OR(AW10=$AQ$69,AW10=$AQ$70,AW10=$AQ$71,AW10=$AQ$72,AW10=$AQ$73,AW10=$AQ$74),34,IF(OR(AW10=$AQ$75,AW10=$AQ$76,AW10=$AQ$77,AW10=$AQ$78,AW10=$AQ$79,AW10=$AQ$80),38,42))))))))) -> 42 | AQ10: 2017-02-01 | AR10: ='Master Sheet'!I11 -> 23700 | AS10: =IF(AND($AR$6>$AS$6),"",DATE(YEAR(AS9),MONTH(AS9)+1,DAY(AS9))) -> 2023-02-01 | AT10: =IF(AND(AS10=""),"",IF(AND(AS10=$AQ$9),$AQ$9,IF(AND(AS10=$AQ$10),$AQ$10,IF(AND(AS10=$AQ$11),$AQ$11,IF(AND(AS10=$AQ$12),$AQ$12,IF(AND(AS10=$AQ$13),$AQ$13,IF(AND(AS10=$AQ$14),$AQ$14,IF(AND(AS10=$AQ$15),$AQ$15,IF(AND(AS10=$AQ$16),$AQ$16,IF(AND(AS10=$AQ$17),$AQ$17,IF(AND(AS10=$AQ$18),$AQ$18,IF(AND(AS10=$AQ$19),$AQ$19,IF(AND(AS10=$AQ$20),$AQ$20,IF(AND(AS10=$AQ$21),$AQ$21,IF(AND(AS10=$AQ$22),$AQ$22,IF(AND(AS10=$AQ$23),$AQ$23,IF(AND(AS10=$AQ$24),$AQ$24,IF(AND(AS10=$AQ$25),$AQ$25,IF(AND(AS10=$AQ$26),$AQ$26,IF(AND(AS10=$AQ$27),$AQ$27,IF(AND(AS10=$AQ$28),$AQ$28,IF(AND(AS10=$AQ$29),$AQ$29,IF(AND(AS10=$AQ$30),$AQ$30,IF(AND(AS10=$AQ$31),$AQ$31,IF(AND(AS10=$AQ$32),$AQ$32,IF(AND(AS10=$AQ$33),$AQ$33,IF(AND(AS10=$AQ$34),$AQ$34,IF(AND(AS10=$AQ$35),$AQ$35,IF(AND(AS10=$AQ$36),$AQ$36,IF(AND(AS10=$AQ$37),$AQ$37,IF(AND(AS10=$AQ$38),$AQ$38,IF(AND(AS10=$AQ$39),$AQ$39,IF(AND(AS10=$AQ$40),$AQ$40,IF(AND(AS10=$AQ$41),$AQ$41,IF(AND(AS10=$AQ$42),$AQ$42,IF(AND(AS10=$AQ$43),$AQ$43,IF(AND(AS10=$AQ$44),$AQ$44,IF(AND(AS10=$AQ$45),$AQ$45,IF(AND(AS10=$AQ$46),$AQ$46,IF(AND(AS10=$AQ$47),$AQ$47,IF(AND(AS10=$AQ$48),$AQ$48,IF(AND(AS10=$AQ$49),$AQ$49,IF(AND(AS10=$AQ$50),$AQ$50,IF(AND(AS10=$AQ$51),$AQ$51,IF(AND(AS10=$AQ$52),$AQ$52,IF(AND(AS10=$AQ$53),$AQ$53,IF(AND(AS10=$AQ$54),$AQ$54,IF(AND(AS10=$AQ$55),$AQ$55,IF(AND(AS10=$AQ$56),$AQ$56,IF(AND(AS10=$AQ$57),$AQ$57,IF(AND(AS10=$AQ$58),$AQ$58,IF(AND(AS10=$AQ$59),$AQ$59,IF(AND(AS10=$AQ$60),$AQ$60,IF(AND(AS10=$AQ$61),$AQ$61,IF(AND(AS10=$AQ$62),$AQ$62,IF(AND(AS10=$AQ$63),$AQ$63,IF(AND(AS10=$AQ$64),$AQ$64,IF(AND(AS10=$AQ$65),$AQ$65,IF(AND(AS10=$AQ$66),$AQ$66,IF(AND(AS10=$AQ$67),$AQ$67,IF(AND(AS10=$AQ$68),$AQ$68,IF(AND(AS10=$AQ$69),$AQ$69,IF(AND(AS10=$AQ$70),$AQ$70,IF(AND(AS10=$AQ$71),$AQ$71,"")))))))))))))))))))))))))))))))))))))))))))))))))))))))))))))))) ->  | AU10: =IF(AND(AS10=""),"",IF(AND(AS10=$AQ$72),$AR$72,IF(AND(AS10=$AQ$73),$AR$73,IF(AND(AS10=$AQ$74),$AR$74,IF(AND(AS10=$AQ$75),$AR$75,IF(AND(AS10=$AQ$76),$AR$76,IF(AND(AS10=$AQ$77),$AR$77,IF(AND(AS10=$AQ$78),$AR$78,IF(AND(AS10=$AQ$79),$AR$79,IF(AND(AS10=$AQ$80),$AR$80,IF(AND(AS10=$AQ$81),$AR$81,IF(AND(AS10=$AQ$82),$AR$82,IF(AND(AS10=$AQ$83),$AR$83,IF(AND(AS10=$AQ$84),$AR$84,IF(AND(AS10=$AQ$85),$AR$85,IF(AND(AS10=$AQ$86),$AR$86,IF(AND(AS10=$AQ$87),$AR$87,IF(AND(AS10=$AQ$88),$AR$88,IF(AND(AS10=$AQ$89),$AR$89,IF(AND(AS10=$AQ$90),$AR$90,IF(AND(AS10=$AQ$91),$AR$91,IF(AND(AS10=$AQ$92),$AR$92,"")))))))))))))))))))))) -> 2023-02-01 | AV10: =IFERROR(IF(AND(AT10="",AU10=""),"",IF(AT10="",AU10,AT10)),"") -> 2023-02-01 | AW10: =IFERROR(IF(AV10="","",IF(DATE(YEAR(AV10),MONTH(AV10),DAY(AV10))=DATE(YEAR($AS$6),MONTH($AS$6)+1,DAY($AS$6)),"TOTAL",IF(AV10>$AS$6,"",AV10))),"") -> 2023-02-01 | AX10: =IFERROR(IF(AW10="","",IF(AND($AR$20=$AR$28,$AR$30=AW10),$AR$29,IF(OR(AW10=$AZ$2,AW10=$AZ$3,AW10=$AZ$4,AW10=$AZ$5,AW10=$AZ$6,AW10=$AZ$7,AW10=$BA$2),MROUND(AR9*1.03,100),AR9))),"") -> 33800 | AY10: =IF(AW10="","",IF(AW10="TOTAL","",ROUND(AX10*AN10%,0))) -> 14196 | AZ10: =IF(AW10="","",IF(AW10="TOTAL","",IF(AW10>=$AY$7,ROUND(AX10*$AX$7%,0),ROUND(AX10*$AT$7%,0)))) -> 3042 | BB10: =IFERROR(IF(AW10="","",IF(AW10="TOTAL","",IF($AR$16=$AR$17,$AR$10,IF($AR$20=$AR$26,BF10,BG10)))),"") -> 32800 | BC10: =IF(AW10="","",IF(AW10="TOTAL","",IF(BB10="","",IF($AR$16=$AR$17,0,ROUND(BB10*AO10%,0))))) -> 13776 | BD10: =IF(AW10="","",IF(AW10="TOTAL","",IF(BB10="","",IF($AR$16=$AR$17,0,IF(AW10>=$AY$7,ROUND(BB10*$AX$7%,0),ROUND(BB10*$AT$7%,0)))))) -> 2952 | BE10: =IF(AW10="","",IF(AW10="TOTAL","",IF(BB10="","",IF($AR$16=$AR$17,0,IF(OR(C9=$AP$16,C9=$AP$17,C9=$AP$18,C9=$AP$19,C9=$AP$20,C9=$AP$21,C9=$AP$22,C9=$AP$23,C9=$AP$24),SUM(BH10+BI10),BI10))))) -> 3675 | BF10: =IF(OR(AW10=$AZ$2,AW10=$AZ$3,AW10=$AZ$4,AW10=$AZ$5,AW10=$AZ$6),MROUND(AR27*1.03,100),AR27) -> 30500 | BG10: =IF(OR(AW10=$AZ$2,AW10=$AZ$3,AW10=$AZ$4,AW10=$AZ$5,AW10=$AZ$6),MROUND(AR14*1.03,100),AR14) -> 32800 | BH10: =IF(AW10="","",IF(AW10="TOTAL","",IF(BB10="","",SUM(O9)-SUM((BI10-$AR$21)+SUM(U9,X9,AC9))))) -> 1510 | BI10: =IF(AW9="","",IF(AW9="TOTAL","",IF(AND($AR$20=$AR$36,C10=$AR$37),$AR$38,BI9))) -> 3675 | BJ10: =IF(OR(AW10=$AQ$63,AW10=$AQ$64,AW10=$AQ$65),"YES","") ->  | BK10: =IF(BJ10="","",IF($AR$16=$AR$17,ROUND((D9)*3%,0),IF(OR(AW10=$AQ$63,AW10=$AQ$64,AW10=$AQ$65),SUM(ROUND((D9-H9)*3%,0)),IF(OR(AW10=$AQ$69,AW10=$AQ$70,AW10=$AQ$71),SUM(ROUND((D9-H9)*3%,0)),"")))) ->  | BL10: =IFERROR(IF(AND($AR$16=$AR$17,BJ10="YES"),ROUND(ROUND(D9*3%,0)*10%,0),IF(AND($AR$16=$AR$15,BJ10="YES",$AP$7="NO"),ROUND(ROUND((L9+H9)*3%,0)*10%,0),IF(AND($AR$16=$AR$15,BJ10="YES",$AP$7="YES"),ROUND(ROUND((L9+M9)*3%,0)*10%,0),0))),"") -> 0 | BM10: =IF(AND($AR$16=$AR$17,BJ10="YES"),ROUND(D9*3%,0),IF(AND($AR$16=$AR$15,BJ10="YES",$AP$7="NO"),ROUND((L9+H9)*3%,0),IF(AND($AR$16=$AR$15,BJ10="YES",$AP$7="YES"),ROUND((L9+M9)*3%,0),0))) -> 0 | BR10: =IF(AW10="","",IF(AW10="TOTAL","",IF(AND(AW10>$AO$1,$AF$3=$AO$2),$AV$1,""))) -> 2100 | BT10: 440 | BU10: =IF(AW11="","",IF(AW11="TOTAL","",IF($AR$16=$AR$17,0,IF(AND(AW11>$BT$1,$AF$3=$AO$2,'Master Sheet'!$D$31>0),'Master Sheet'!$D$31,IF(AND(AW11=$BT$1,$AF$3=$AO$2),IF($AR$9<18001,135,IF($AR$9<33501,220,IF($AR$9<54001,330,440))),IF(AND(AW11>$BT$1,$AF$3=$AO$2),IF($AR$9<18001,265,IF($AR$9<33501,440,IF($AR$9<54001,658,875))),"")))))) -> 658
A11: =IF(C11="TOTAL","",IF(B10="","",IF(LEN(C11)>=2,B10+1,0))) -> 4 | B11: 4 | C11: =IFERROR(IF(AW12="","",AW12),"") -> 2023-04-01 | D11: =IFERROR(IF($C10="TOTAL","अक्षरें राशि :-",IF($C11="TOTAL",SUM($D$8:D10),IF(AX12="","",AX12))),"") -> 33800 | E11: =IFERROR(IF($C11="TOTAL",SUM($E$8:E10),IF(AY12="","",AY12)),"") -> 14196 | F11: =IFERROR(IF($C11="TOTAL",SUM($F$8:F10),IF(OR(C11=$AP$16,C11=$AP$17,C11=$AP$18,C11=$AP$19,C11=$AP$20,C11=$AP$21,C11=$AP$22,C11=$AP$23,C11=$AP$24),0,IF(AZ12="","",AZ12))),"") -> 3042 | G11: =IF(C11="","",SUM(D11:F11)) -> 51038 | H11: =IFERROR(IF($C11="TOTAL",SUM($H$8:H10),IF(BB12="","",BB12)),"") -> 32800 | I11: =IFERROR(IF($C11="TOTAL",SUM($I$8:I10),IF(BC12="","",BC12)),"") -> 13776 | J11: =IFERROR(IF($C11="TOTAL",SUM($J$8:J10),IF(OR(C11=$AP$16,C11=$AP$17,C11=$AP$18,C11=$AP$19,C11=$AP$20,C11=$AP$21,C11=$AP$22,C11=$AP$23,C11=$AP$24),0,IF(BD12="","",BD12))),"") -> 2952 | K11: 49528 | L11: =IFERROR(IF(C11="","",IF(D11="","",IF(H11="","",IF($C11="TOTAL",SUM($L$8:L10),SUM(D11-H11))))),"") -> 1000 | M11: =IFERROR(IF(C11="","",IF(E11="","",IF(I11="","",IF($C11="TOTAL",SUM($M$8:M10),SUM(E11-I11))))),"") -> 420 | N11: =IFERROR(IF(C11="","",IF(F11="","",IF(J11="","",IF($C11="TOTAL",SUM($N$8:N10),SUM(F11-J11))))),"") -> 90 | O11: 1510 | P11: =IFERROR(IF(C11="","",IF($C11="TOTAL",SUM($P$8:P10),IF(AND(C11>$AO$1,$AF$3=$AO$2),BR12,IF($AR$18=$AR$20,SUM(BE12+BM12),ROUND((D11+E11)*10%,0))))),"") -> 2100 | Q11: =IFERROR(IF(C11="","",IF(H11="","",IF(I11="","",IF($C11="TOTAL",SUM($Q$8:Q10),IF(AND(C11>$AO$1,$AF$3=$AO$2),BR12,IF($AR$18=$AR$20,$AR$21,ROUND((H11+I11)*10%,0))))))),"") -> 2100 | R11: 0 | S11: =IFERROR(IF(C11="","",IF($AR$16=$AR$17,0,IF($C11="TOTAL",SUM($S$8:S10),IF($AR$19=$AR$31,0,IF(AND($AR$32=$AR$20,C11=$AR$33),$AR$34,S10))))),"") -> 0 | T11: =IFERROR(IF(C11="","",IF($AR$16=$AR$17,0,IF($C11="TOTAL",SUM($T$8:T10),IF($AR$19=$AR$20,$AR$24,0)))),"") -> 0 | U11: 0 | V11: =IF(C11="","",IF($C11="TOTAL",SUM($V$8:V10),IF(AND($AR$2=$AR$20,C11=$AR$1),ROUND(D11/31*$AS$2,0),IF(C11=$AP$6,ROUND((G11)*1/30,0),IF(C11=$AQ$6,ROUND((G11)*1/31,0),""))))) ->  | W11: =IF(C11="","",IF($C11="TOTAL",SUM($W$8:W10),IF(AND($AR$2=$AR$20,C11=$AR$1),ROUND(H11/31*$AS$2,0),IF(C11=$AP$6,ROUND((K11)*1/30,0),IF(C11=$AQ$6,ROUND((K11)*1/31,0),""))))) ->  | Y11: =IFERROR(IF(C11="","",IF($AR$16=$AR$17,0,IF($AF$3=$AO$4,"",IF($C11="TOTAL",SUM($Y$8:Y10),BU11)))),"") -> 658 | Z11: =IFERROR(IF(C11="","",IF($AR$16=$AR$17,0,IF($AF$3=$AO$4,"",IF($C11="TOTAL",SUM($Z$8:Z10),BT11)))),"") -> 440 | AA11: 218 | AB11: =IFERROR(IF(C11="","",IF(AND(BK12="",BR12=""),"",IF($C11="TOTAL",SUM($AB$8:AB10),BK12))),"") ->  | AC11: =IFERROR(IF(C11="","",IF($C11="TOTAL",SUM($AC$8:AC10),ROUND(O11*$AR$7%,0))),"") -> 0 | AD11: =IFERROR(IF(C11="","",IF($C11="TOTAL",SUM($AD$8:AD10),IF($AF$3=$AO$2,SUM(U11,X11,AB11,AC11),SUM(R11,U11,X11,AB11,AC11)))),"") -> 0 | AE11: =IFERROR(IF(C11="","",IF($C11="TOTAL",SUM($AE$8:AE10),SUM(O11-AD11))),"") -> 1510 | AN11: 42 | AO11: 42 | AP11: =IF(AY9="","",ROUND((AR11+AY9)*10%,0)) -> 1858 | AQ11: 2017-03-01 | AR11: =IFERROR(ROUND((AR9/AX3)*AX6,0),"") -> 13084 | AS11: 2023-03-01 | AT11: =IF(AND(AS11=""),"",IF(AND(AS11=$AQ$9),$AQ$9,IF(AND(AS11=$AQ$10),$AQ$10,IF(AND(AS11=$AQ$11),$AQ$11,IF(AND(AS11=$AQ$12),$AQ$12,IF(AND(AS11=$AQ$13),$AQ$13,IF(AND(AS11=$AQ$14),$AQ$14,IF(AND(AS11=$AQ$15),$AQ$15,IF(AND(AS11=$AQ$16),$AQ$16,IF(AND(AS11=$AQ$17),$AQ$17,IF(AND(AS11=$AQ$18),$AQ$18,IF(AND(AS11=$AQ$19),$AQ$19,IF(AND(AS11=$AQ$20),$AQ$20,IF(AND(AS11=$AQ$21),$AQ$21,IF(AND(AS11=$AQ$22),$AQ$22,IF(AND(AS11=$AQ$23),$AQ$23,IF(AND(AS11=$AQ$24),$AQ$24,IF(AND(AS11=$AQ$25),$AQ$25,IF(AND(AS11=$AQ$26),$AQ$26,IF(AND(AS11=$AQ$27),$AQ$27,IF(AND(AS11=$AQ$28),$AQ$28,IF(AND(AS11=$AQ$29),$AQ$29,IF(AND(AS11=$AQ$30),$AQ$30,IF(AND(AS11=$AQ$31),$AQ$31,IF(AND(AS11=$AQ$32),$AQ$32,IF(AND(AS11=$AQ$33),$AQ$33,IF(AND(AS11=$AQ$34),$AQ$34,IF(AND(AS11=$AQ$35),$AQ$35,IF(AND(AS11=$AQ$36),$AQ$36,IF(AND(AS11=$AQ$37),$AQ$37,IF(AND(AS11=$AQ$38),$AQ$38,IF(AND(AS11=$AQ$39),$AQ$39,IF(AND(AS11=$AQ$40),$AQ$40,IF(AND(AS11=$AQ$41),$AQ$41,IF(AND(AS11=$AQ$42),$AQ$42,IF(AND(AS11=$AQ$43),$AQ$43,IF(AND(AS11=$AQ$44),$AQ$44,IF(AND(AS11=$AQ$45),$AQ$45,IF(AND(AS11=$AQ$46),$AQ$46,IF(AND(AS11=$AQ$47),$AQ$47,IF(AND(AS11=$AQ$48),$AQ$48,IF(AND(AS11=$AQ$49),$AQ$49,IF(AND(AS11=$AQ$50),$AQ$50,IF(AND(AS11=$AQ$51),$AQ$51,IF(AND(AS11=$AQ$52),$AQ$52,IF(AND(AS11=$AQ$53),$AQ$53,IF(AND(AS11=$AQ$54),$AQ$54,IF(AND(AS11=$AQ$55),$AQ$55,IF(AND(AS11=$AQ$56),$AQ$56,IF(AND(AS11=$AQ$57),$AQ$57,IF(AND(AS11=$AQ$58),$AQ$58,IF(AND(AS11=$AQ$59),$AQ$59,IF(AND(AS11=$AQ$60),$AQ$60,IF(AND(AS11=$AQ$61),$AQ$61,IF(AND(AS11=$AQ$62),$AQ$62,IF(AND(AS11=$AQ$63),$AQ$63,IF(AND(AS11=$AQ$64),$AQ$64,IF(AND(AS11=$AQ$65),$AQ$65,IF(AND(AS11=$AQ$66),$AQ$66,IF(AND(AS11=$AQ$67),$AQ$67,IF(AND(AS11=$AQ$68),$AQ$68,IF(AND(AS11=$AQ$69),$AQ$69,IF(AND(AS11=$AQ$70),$AQ$70,IF(AND(AS11=$AQ$71),$AQ$71,"")))))))))))))))))))))))))))))))))))))))))))))))))))))))))))))))) ->  | AU11: 2023-03-01 | AV11: =IFERROR(IF(AND(AT11="",AU11=""),"",IF(AT11="",AU11,AT11)),"") -> 2023-03-01 | AW11: =IFERROR(IF(AV11="","",IF(DATE(YEAR(AV11),MONTH(AV11),DAY(AV11))=DATE(YEAR($AS$6),MONTH($AS$6)+1,DAY($AS$6)),"TOTAL",IF(AV11>$AS$6,"",AV11))),"") -> 2023-03-01 | AX11: =IFERROR(IF(AW11="","",IF(AND($AR$20=$AR$28,$AR$30=AW11),$AR$29,IF(OR(AW11=$AZ$2,AW11=$AZ$3,AW11=$AZ$4,AW11=$AZ$5,AW11=$AZ$6,AW11=$AZ$7,AW11=$BA$2),MROUND(AX10*1.03,100),AX10))),"") -> 33800 | AY11: 14196 | AZ11: =IF(AW11="","",IF(AW11="TOTAL","",IF(AW11>=$AY$7,ROUND(AX11*$AX$7%,0),ROUND(AX11*$AT$7%,0)))) -> 3042 | BB11: =IFERROR(IF(AW11="","",IF(AW11="TOTAL","",IF($AR$16=$AR$17,$AR$10,IF(OR(AW11=$AZ$2,AW11=$AZ$3,AW11=$AZ$4,AW11=$AZ$5,AW11=$AZ$6,AW11=$AZ$7,AW11=$BA$2),MROUND(BB10*1.03,100),BB10)))),"") -> 32800 | BC11: =IF(AW11="","",IF(AW11="TOTAL","",IF(BB11="","",IF($AR$16=$AR$17,0,ROUND(BB11*AO11%,0))))) -> 13776 | BD11: =IF(AW11="","",IF(AW11="TOTAL","",IF(BB11="","",IF($AR$16=$AR$17,0,IF(AW11>=$AY$7,ROUND(BB11*$AX$7%,0),ROUND(BB11*$AT$7%,0)))))) -> 2952 | BE11: =IF(AW11="","",IF(AW11="TOTAL","",IF(BB11="","",IF($AR$16=$AR$17,0,IF(OR(C10=$AP$16,C10=$AP$17,C10=$AP$18,C10=$AP$19,C10=$AP$20,C10=$AP$21,C10=$AP$22,C10=$AP$23,C10=$AP$24),SUM(BH11+BI11),BI11))))) -> 3675 | BF11: =IF(OR(AW11=$AZ$2,AW11=$AZ$3,AW11=$AZ$4,AW11=$AZ$5,AW11=$AZ$6),MROUND(BF10*1.03,100),BF10) -> 30500 | BG11: =IF(OR(AW11=$AZ$2,AW11=$AZ$3,AW11=$AZ$4,AW11=$AZ$5,AW11=$AZ$6),MROUND(BG10*1.03,100),BG10) -> 32800 | BH11: =IF(AW11="","",IF(AW11="TOTAL","",IF(BB11="","",SUM(O10)-SUM((BI11-$AR$21)+SUM(U10,X10,AC10))))) -> 1510 | BI11: =IF(AW10="","",IF(AW10="TOTAL","",IF(AND($AR$20=$AR$36,C11=$AR$37),$AR$38,BI10))) -> 3675 | BL11: 0 | BM11: =IF(AND($AR$16=$AR$17,BJ11="YES"),ROUND(D10*3%,0),IF(AND($AR$16=$AR$15,BJ11="YES",$AP$7="NO"),ROUND((L10+H10)*3%,0),IF(AND($AR$16=$AR$15,BJ11="YES",$AP$7="YES"),ROUND((L10+M10)*3%,0),0))) -> 0 | BR11: 2100 | BT11: 440 | BU11: =IF(AW12="","",IF(AW12="TOTAL","",IF($AR$16=$AR$17,0,IF(AND(AW12>$BT$1,$AF$3=$AO$2,'Master Sheet'!$D$31>0),'Master Sheet'!$D$31,IF(AND(AW12=$BT$1,$AF$3=$AO$2),IF($AR$9<18001,135,IF($AR$9<33501,220,IF($AR$9<54001,330,440))),IF(AND(AW12>$BT$1,$AF$3=$AO$2),IF($AR$9<18001,265,IF($AR$9<33501,440,IF($AR$9<54001,658,875))),"")))))) -> 658
A12: 5 | B12: 5 | C12: 2023-05-01 | D12: =IFERROR(IF($C11="TOTAL","अक्षरें राशि :-",IF($C12="TOTAL",SUM($D$8:D11),IF(AX13="","",AX13))),"") -> 33800 | E12: =IFERROR(IF($C12="TOTAL",SUM($E$8:E11),IF(AY13="","",AY13)),"") -> 14196 | F12: =IFERROR(IF($C12="TOTAL",SUM($F$8:F11),IF(OR(C12=$AP$16,C12=$AP$17,C12=$AP$18,C12=$AP$19,C12=$AP$20,C12=$AP$21,C12=$AP$22,C12=$AP$23,C12=$AP$24),0,IF(AZ13="","",AZ13))),"") -> 3042 | G12: 51038 | H12: =IFERROR(IF($C12="TOTAL",SUM($H$8:H11),IF(BB13="","",BB13)),"") -> 32800 | I12: =IFERROR(IF($C12="TOTAL",SUM($I$8:I11),IF(BC13="","",BC13)),"") -> 13776 | J12: =IFERROR(IF($C12="TOTAL",SUM($J$8:J11),IF(OR(C12=$AP$16,C12=$AP$17,C12=$AP$18,C12=$AP$19,C12=$AP$20,C12=$AP$21,C12=$AP$22,C12=$AP$23,C12=$AP$24),0,IF(BD13="","",BD13))),"") -> 2952 | K12: 49528 | L12: =IFERROR(IF(C12="","",IF(D12="","",IF(H12="","",IF($C12="TOTAL",SUM($L$8:L11),SUM(D12-H12))))),"") -> 1000 | M12: =IFERROR(IF(C12="","",IF(E12="","",IF(I12="","",IF($C12="TOTAL",SUM($M$8:M11),SUM(E12-I12))))),"") -> 420 | N12: =IFERROR(IF(C12="","",IF(F12="","",IF(J12="","",IF($C12="TOTAL",SUM($N$8:N11),SUM(F12-J12))))),"") -> 90 | O12: 1510 | P12: =IFERROR(IF(C12="","",IF($C12="TOTAL",SUM($P$8:P11),IF(AND(C12>$AO$1,$AF$3=$AO$2),BR13,IF($AR$18=$AR$20,SUM(BE13+BM13),ROUND((D12+E12)*10%,0))))),"") -> 2100 | Q12: =IFERROR(IF(C12="","",IF(H12="","",IF(I12="","",IF($C12="TOTAL",SUM($Q$8:Q11),IF(AND(C12>$AO$1,$AF$3=$AO$2),BR13,IF($AR$18=$AR$20,$AR$21,ROUND((H12+I12)*10%,0))))))),"") -> 2100 | R12: 0 | S12: =IFERROR(IF(C12="","",IF($AR$16=$AR$17,0,IF($C12="TOTAL",SUM($S$8:S11),IF($AR$19=$AR$31,0,IF(AND($AR$32=$AR$20,C12=$AR$33),$AR$34,S11))))),"") -> 0 | T12: =IFERROR(IF(C12="","",IF($AR$16=$AR$17,0,IF($C12="TOTAL",SUM($T$8:T11),IF($AR$19=$AR$20,$AR$24,0)))),"") -> 0 | U12: 0 | V12: =IF(C12="","",IF($C12="TOTAL",SUM($V$8:V11),IF(AND($AR$2=$AR$20,C12=$AR$1),ROUND(D12/31*$AS$2,0),IF(C12=$AP$6,ROUND((G12)*1/30,0),IF(C12=$AQ$6,ROUND((G12)*1/31,0),""))))) ->  | W12: =IF(C12="","",IF($C12="TOTAL",SUM($W$8:W11),IF(AND($AR$2=$AR$20,C12=$AR$1),ROUND(H12/31*$AS$2,0),IF(C12=$AP$6,ROUND((K12)*1/30,0),IF(C12=$AQ$6,ROUND((K12)*1/31,0),""))))) ->  | Y12: =IFERROR(IF(C12="","",IF($AR$16=$AR$17,0,IF($AF$3=$AO$4,"",IF($C12="TOTAL",SUM($Y$8:Y11),BU12)))),"") -> 658 | Z12: =IFERROR(IF(C12="","",IF($AR$16=$AR$17,0,IF($AF$3=$AO$4,"",IF($C12="TOTAL",SUM($Z$8:Z11),BT12)))),"") -> 440 | AA12: 218 | AB12: =IFERROR(IF(C12="","",IF(AND(BK13="",BR13=""),"",IF($C12="TOTAL",SUM($AB$8:AB11),BK13))),"") ->  | AC12: =IFERROR(IF(C12="","",IF($C12="TOTAL",SUM($AC$8:AC11),ROUND(O12*$AR$7%,0))),"") -> 0 | AD12: =IFERROR(IF(C12="","",IF($C12="TOTAL",SUM($AD$8:AD11),IF($AF$3=$AO$2,SUM(U12,X12,AB12,AC12),SUM(R12,U12,X12,AB12,AC12)))),"") -> 0 | AE12: =IFERROR(IF(C12="","",IF($C12="TOTAL",SUM($AE$8:AE11),SUM(O12-AD12))),"") -> 1510 | AN12: 42 | AO12: 42 | AP12: =ROUND((AR12)*10%,0) -> 2010 | AQ12: 2017-04-01 | AR12: =IFERROR(IF($AR$13=$AR$15,ROUND((AR14/AX3)*AT6,0),ROUND((AR10/AX3)*AT6,0)),"") -> 20103 | AS12: 2023-04-01 | AU12: 2023-04-01 | AV12: 2023-04-01 | AW12: =IFERROR(IF(AV12="","",IF(DATE(YEAR(AV12),MONTH(AV12),DAY(AV12))=DATE(YEAR($AS$6),MONTH($AS$6)+1,DAY($AS$6)),"TOTAL",IF(AV12>$AS$6,"",AV12))),"") -> 2023-04-01 | AX12: =IFERROR(IF(AW12="","",IF(AND($AR$20=$AR$28,$AR$30=AW12),$AR$29,IF(OR(AW12=$AZ$2,AW12=$AZ$3,AW12=$AZ$4,AW12=$AZ$5,AW12=$AZ$6,AW12=$AZ$7,AW12=$BA$2),MROUND(AX11*1.03,100),AX11))),"") -> 33800 | AY12: =IF(AW12="","",IF(AW12="TOTAL","",ROUND(AX12*AN12%,0))) -> 14196 | AZ12: =IF(AW12="","",IF(AW12="TOTAL","",IF(AW12>=$AY$7,ROUND(AX12*$AX$7%,0),ROUND(AX12*$AT$7%,0)))) -> 3042 | BB12: =IFERROR(IF(AW12="","",IF(AW12="TOTAL","",IF($AR$16=$AR$17,$AR$10,IF(OR(AW12=$AZ$2,AW12=$AZ$3,AW12=$AZ$4,AW12=$AZ$5,AW12=$AZ$6,AW12=$AZ$7,AW12=$BA$2),MROUND(BB11*1.03,100),BB11)))),"") -> 32800 | BC12: 13776 | BD12: =IF(AW12="","",IF(AW12="TOTAL","",IF(BB12="","",IF($AR$16=$AR$17,0,IF(AW12>=$AY$7,ROUND(BB12*$AX$7%,0),ROUND(BB12*$AT$7%,0)))))) -> 2952 | BE12: 3675 | BH12: =IF(AW12="","",IF(AW12="TOTAL","",IF(BB12="","",SUM(O11)-SUM((BI12-$AR$21)+SUM(U11,X11,AC11))))) -> 1510 | BI12: =IF(AW11="","",IF(AW11="TOTAL","",IF(AND($AR$20=$AR$36,C12=$AR$37),$AR$38,BI11))) -> 3675 | BL12: 0 | BM12: 0 | BR12: 2100 | BT12: 440 | BU12: =IF(AW13="","",IF(AW13="TOTAL","",IF($AR$16=$AR$17,0,IF(AND(AW13>$BT$1,$AF$3=$AO$2,'Master Sheet'!$D$31>0),'Master Sheet'!$D$31,IF(AND(AW13=$BT$1,$AF$3=$AO$2),IF($AR$9<18001,135,IF($AR$9<33501,220,IF($AR$9<54001,330,440))),IF(AND(AW13>$BT$1,$AF$3=$AO$2),IF($AR$9<18001,265,IF($AR$9<33501,440,IF($AR$9<54001,658,875))),"")))))) -> 658
A13: 6 | B13: 6 | C13: 2023-06-01 | D13: =IFERROR(IF($C12="TOTAL","अक्षरें राशि :-",IF($C13="TOTAL",SUM($D$8:D12),IF(AX14="","",AX14))),"") -> 33800 | E13: =IFERROR(IF($C13="TOTAL",SUM($E$8:E12),IF(AY14="","",AY14)),"") -> 14196 | F13: =IFERROR(IF($C13="TOTAL",SUM($F$8:F12),IF(OR(C13=$AP$16,C13=$AP$17,C13=$AP$18,C13=$AP$19,C13=$AP$20,C13=$AP$21,C13=$AP$22,C13=$AP$23,C13=$AP$24),0,IF(AZ14="","",AZ14))),"") -> 3042 | G13: 51038 | H13: =IFERROR(IF($C13="TOTAL",SUM($H$8:H12),IF(BB14="","",BB14)),"") -> 32800 | I13: =IFERROR(IF($C13="TOTAL",SUM($I$8:I12),IF(BC14="","",BC14)),"") -> 13776 | J13: =IFERROR(IF($C13="TOTAL",SUM($J$8:J12),IF(OR(C13=$AP$16,C13=$AP$17,C13=$AP$18,C13=$AP$19,C13=$AP$20,C13=$AP$21,C13=$AP$22,C13=$AP$23,C13=$AP$24),0,IF(BD14="","",BD14))),"") -> 2952 | K13: 49528 | L13: =IFERROR(IF(C13="","",IF(D13="","",IF(H13="","",IF($C13="TOTAL",SUM($L$8:L12),SUM(D13-H13))))),"") -> 1000 | M13: =IFERROR(IF(C13="","",IF(E13="","",IF(I13="","",IF($C13="TOTAL",SUM($M$8:M12),SUM(E13-I13))))),"") -> 420 | N13: =IFERROR(IF(C13="","",IF(F13="","",IF(J13="","",IF($C13="TOTAL",SUM($N$8:N12),SUM(F13-J13))))),"") -> 90 | O13: 1510 | P13: =IFERROR(IF(C13="","",IF($C13="TOTAL",SUM($P$8:P12),IF(AND(C13>$AO$1,$AF$3=$AO$2),BR14,IF($AR$18=$AR$20,SUM(BE14+BM14),ROUND((D13+E13)*10%,0))))),"") -> 2100 | Q13: =IFERROR(IF(C13="","",IF(H13="","",IF(I13="","",IF($C13="TOTAL",SUM($Q$8:Q12),IF(AND(C13>$AO$1,$AF$3=$AO$2),BR14,IF($AR$18=$AR$20,$AR$21,ROUND((H13+I13)*10%,0))))))),"") -> 2100 | R13: 0 | S13: =IFERROR(IF(C13="","",IF($AR$16=$AR$17,0,IF($C13="TOTAL",SUM($S$8:S12),IF($AR$19=$AR$31,0,IF(AND($AR$32=$AR$20,C13=$AR$33),$AR$34,S12))))),"") -> 0 | T13: =IFERROR(IF(C13="","",IF($AR$16=$AR$17,0,IF($C13="TOTAL",SUM($T$8:T12),IF($AR$19=$AR$20,$AR$24,0)))),"") -> 0 | U13: 0 | V13: =IF(C13="","",IF($C13="TOTAL",SUM($V$8:V12),IF(AND($AR$2=$AR$20,C13=$AR$1),ROUND(D13/31*$AS$2,0),IF(C13=$AP$6,ROUND((G13)*1/30,0),IF(C13=$AQ$6,ROUND((G13)*1/31,0),""))))) ->  | W13: =IF(C13="","",IF($C13="TOTAL",SUM($W$8:W12),IF(AND($AR$2=$AR$20,C13=$AR$1),ROUND(H13/31*$AS$2,0),IF(C13=$AP$6,ROUND((K13)*1/30,0),IF(C13=$AQ$6,ROUND((K13)*1/31,0),""))))) ->  | Y13: =IFERROR(IF(C13="","",IF($AR$16=$AR$17,0,IF($AF$3=$AO$4,"",IF($C13="TOTAL",SUM($Y$8:Y12),BU13)))),"") -> 658 | Z13: =IFERROR(IF(C13="","",IF($AR$16=$AR$17,0,IF($AF$3=$AO$4,"",IF($C13="TOTAL",SUM($Z$8:Z12),BT13)))),"") -> 440 | AA13: 218 | AB13: =IFERROR(IF(C13="","",IF(AND(BK14="",BR14=""),"",IF($C13="TOTAL",SUM($AB$8:AB12),BK14))),"") ->  | AC13: =IFERROR(IF(C13="","",IF($C13="TOTAL",SUM($AC$8:AC12),ROUND(O13*$AR$7%,0))),"") -> 0 | AD13: =IFERROR(IF(C13="","",IF($C13="TOTAL",SUM($AD$8:AD12),IF($AF$3=$AO$2,SUM(U13,X13,AB13,AC13),SUM(R13,U13,X13,AB13,AC13)))),"") -> 0 | AE13: =IFERROR(IF(C13="","",IF($C13="TOTAL",SUM($AE$8:AE12),SUM(O13-AD13))),"") -> 1510 | AN13: 42 | AO13: 42 | AQ13: 2017-05-01 | AR13: ='Master Sheet'!D11 -> Regular Pay | AS13: 2023-05-01 | AU13: 2023-05-01 | AV13: 2023-05-01 | AW13: 2023-05-01 | AX13: 33800 | AY13: =IF(AW13="","",IF(AW13="TOTAL","",ROUND(AX13*AN13%,0))) -> 14196 | AZ13: 3042 | BB13: 32800 | BC13: 13776 | BD13: 2952 | BE13: 3675 | BH13: =IF(AW13="","",IF(AW13="TOTAL","",IF(BB13="","",SUM(O12)-SUM((BI13-$AR$21)+SUM(U12,X12,AC12))))) -> 1510 | BI13: =IF(AW12="","",IF(AW12="TOTAL","",IF(AND($AR$20=$AR$36,C13=$AR$37),$AR$38,BI12))) -> 3675 | BL13: =IFERROR(IF(AND($AR$16=$AR$17,BJ13="YES"),ROUND(ROUND(D12*3%,0)*10%,0),IF(AND($AR$16=$AR$15,BJ13="YES",$AP$7="NO"),ROUND(ROUND((L12+H12)*3%,0)*10%,0),IF(AND($AR$16=$AR$15,BJ13="YES",$AP$7="YES"),ROUND(ROUND((L12+M12)*3%,0)*10%,0),0))),"") -> 0 | BM13: =IF(AND($AR$16=$AR$17,BJ13="YES"),ROUND(D12*3%,0),IF(AND($AR$16=$AR$15,BJ13="YES",$AP$7="NO"),ROUND((L12+H12)*3%,0),IF(AND($AR$16=$AR$15,BJ13="YES",$AP$7="YES"),ROUND((L12+M12)*3%,0),0))) -> 0 | BR13: 2100 | BT13: 440 | BU13: =IF(AW14="","",IF(AW14="TOTAL","",IF($AR$16=$AR$17,0,IF(AND(AW14>$BT$1,$AF$3=$AO$2,'Master Sheet'!$D$31>0),'Master Sheet'!$D$31,IF(AND(AW14=$BT$1,$AF$3=$AO$2),IF($AR$9<18001,135,IF($AR$9<33501,220,IF($AR$9<54001,330,440))),IF(AND(AW14>$BT$1,$AF$3=$AO$2),IF($AR$9<18001,265,IF($AR$9<33501,440,IF($AR$9<54001,658,875))),"")))))) -> 658
A14: 7 | B14: 7 | C14: 2023-07-01 | D14: =IFERROR(IF($C13="TOTAL","अक्षरें राशि :-",IF($C14="TOTAL",SUM($D$8:D13),IF(AX15="","",AX15))),"") -> 34800 | E14: =IFERROR(IF($C14="TOTAL",SUM($E$8:E13),IF(AY15="","",AY15)),"") -> 14616 | F14: =IFERROR(IF($C14="TOTAL",SUM($F$8:F13),IF(OR(C14=$AP$16,C14=$AP$17,C14=$AP$18,C14=$AP$19,C14=$AP$20,C14=$AP$21,C14=$AP$22,C14=$AP$23,C14=$AP$24),0,IF(AZ15="","",AZ15))),"") -> 3132 | G14: 52548 | H14: =IFERROR(IF($C14="TOTAL",SUM($H$8:H13),IF(BB15="","",BB15)),"") -> 33800 | I14: =IFERROR(IF($C14="TOTAL",SUM($I$8:I13),IF(BC15="","",BC15)),"") -> 14196 | J14: =IFERROR(IF($C14="TOTAL",SUM($J$8:J13),IF(OR(C14=$AP$16,C14=$AP$17,C14=$AP$18,C14=$AP$19,C14=$AP$20,C14=$AP$21,C14=$AP$22,C14=$AP$23,C14=$AP$24),0,IF(BD15="","",BD15))),"") -> 3042 | K14: 51038 | L14: =IFERROR(IF(C14="","",IF(D14="","",IF(H14="","",IF($C14="TOTAL",SUM($L$8:L13),SUM(D14-H14))))),"") -> 1000 | M14: =IFERROR(IF(C14="","",IF(E14="","",IF(I14="","",IF($C14="TOTAL",SUM($M$8:M13),SUM(E14-I14))))),"") -> 420 | N14: =IFERROR(IF(C14="","",IF(F14="","",IF(J14="","",IF($C14="TOTAL",SUM($N$8:N13),SUM(F14-J14))))),"") -> 90 | O14: 1510 | P14: =IFERROR(IF(C14="","",IF($C14="TOTAL",SUM($P$8:P13),IF(AND(C14>$AO$1,$AF$3=$AO$2),BR15,IF($AR$18=$AR$20,SUM(BE15+BM15),ROUND((D14+E14)*10%,0))))),"") -> 2100 | Q14: =IFERROR(IF(C14="","",IF(H14="","",IF(I14="","",IF($C14="TOTAL",SUM($Q$8:Q13),IF(AND(C14>$AO$1,$AF$3=$AO$2),BR15,IF($AR$18=$AR$20,$AR$21,ROUND((H14+I14)*10%,0))))))),"") -> 2100 | R14: 0 | S14: =IFERROR(IF(C14="","",IF($AR$16=$AR$17,0,IF($C14="TOTAL",SUM($S$8:S13),IF($AR$19=$AR$31,0,IF(AND($AR$32=$AR$20,C14=$AR$33),$AR$34,S13))))),"") -> 0 | T14: =IFERROR(IF(C14="","",IF($AR$16=$AR$17,0,IF($C14="TOTAL",SUM($T$8:T13),IF($AR$19=$AR$20,$AR$24,0)))),"") -> 0 | U14: 0 | V14: =IF(C14="","",IF($C14="TOTAL",SUM($V$8:V13),IF(AND($AR$2=$AR$20,C14=$AR$1),ROUND(D14/31*$AS$2,0),IF(C14=$AP$6,ROUND((G14)*1/30,0),IF(C14=$AQ$6,ROUND((G14)*1/31,0),""))))) ->  | W14: =IF(C14="","",IF($C14="TOTAL",SUM($W$8:W13),IF(AND($AR$2=$AR$20,C14=$AR$1),ROUND(H14/31*$AS$2,0),IF(C14=$AP$6,ROUND((K14)*1/30,0),IF(C14=$AQ$6,ROUND((K14)*1/31,0),""))))) ->  | Y14: =IFERROR(IF(C14="","",IF($AR$16=$AR$17,0,IF($AF$3=$AO$4,"",IF($C14="TOTAL",SUM($Y$8:Y13),BU14)))),"") -> 658 | Z14: =IFERROR(IF(C14="","",IF($AR$16=$AR$17,0,IF($AF$3=$AO$4,"",IF($C14="TOTAL",SUM($Z$8:Z13),BT14)))),"") -> 440 | AA14: 218 | AB14: =IFERROR(IF(C14="","",IF(AND(BK15="",BR15=""),"",IF($C14="TOTAL",SUM($AB$8:AB13),BK15))),"") ->  | AC14: =IFERROR(IF(C14="","",IF($C14="TOTAL",SUM($AC$8:AC13),ROUND(O14*$AR$7%,0))),"") -> 0 | AD14: =IFERROR(IF(C14="","",IF($C14="TOTAL",SUM($AD$8:AD13),IF($AF$3=$AO$2,SUM(U14,X14,AB14,AC14),SUM(R14,U14,X14,AB14,AC14)))),"") -> 0 | AE14: =IFERROR(IF(C14="","",IF($C14="TOTAL",SUM($AE$8:AE13),SUM(O14-AD14))),"") -> 1510 | AN14: 42 | AO14: 42 | AQ14: 2017-06-01 | AR14: ='Master Sheet'!M11 -> 32800 | AS14: 2023-06-01 | AU14: 2023-06-01 | AV14: 2023-06-01 | AW14: 2023-06-01 | AX14: 33800 | AY14: =IF(AW14="","",IF(AW14="TOTAL","",ROUND(AX14*AN14%,0))) -> 14196 | AZ14: 3042 | BB14: 32800 | BC14: 13776 | BD14: 2952 | BE14: 3675 | BH14: 1510 | BI14: 3675 | BL14: 0 | BM14: 0 | BR14: 2100 | BT14: 440 | BU14: =IF(AW15="","",IF(AW15="TOTAL","",IF($AR$16=$AR$17,0,IF(AND(AW15>$BT$1,$AF$3=$AO$2,'Master Sheet'!$D$31>0),'Master Sheet'!$D$31,IF(AND(AW15=$BT$1,$AF$3=$AO$2),IF($AR$9<18001,135,IF($AR$9<33501,220,IF($AR$9<54001,330,440))),IF(AND(AW15>$BT$1,$AF$3=$AO$2),IF($AR$9<18001,265,IF($AR$9<33501,440,IF($AR$9<54001,658,875))),"")))))) -> 658
A15: 8 | B15: 8 | C15: 2023-08-01 | D15: =IFERROR(IF($C14="TOTAL","अक्षरें राशि :-",IF($C15="TOTAL",SUM($D$8:D14),IF(AX16="","",AX16))),"") -> 34800 | E15: =IFERROR(IF($C15="TOTAL",SUM($E$8:E14),IF(AY16="","",AY16)),"") -> 14616 | F15: =IFERROR(IF($C15="TOTAL",SUM($F$8:F14),IF(OR(C15=$AP$16,C15=$AP$17,C15=$AP$18,C15=$AP$19,C15=$AP$20,C15=$AP$21,C15=$AP$22,C15=$AP$23,C15=$AP$24),0,IF(AZ16="","",AZ16))),"") -> 3132 | G15: 52548 | H15: =IFERROR(IF($C15="TOTAL",SUM($H$8:H14),IF(BB16="","",BB16)),"") -> 33800 | I15: =IFERROR(IF($C15="TOTAL",SUM($I$8:I14),IF(BC16="","",BC16)),"") -> 14196 | J15: =IFERROR(IF($C15="TOTAL",SUM($J$8:J14),IF(OR(C15=$AP$16,C15=$AP$17,C15=$AP$18,C15=$AP$19,C15=$AP$20,C15=$AP$21,C15=$AP$22,C15=$AP$23,C15=$AP$24),0,IF(BD16="","",BD16))),"") -> 3042 | K15: 51038 | L15: =IFERROR(IF(C15="","",IF(D15="","",IF(H15="","",IF($C15="TOTAL",SUM($L$8:L14),SUM(D15-H15))))),"") -> 1000 | M15: =IFERROR(IF(C15="","",IF(E15="","",IF(I15="","",IF($C15="TOTAL",SUM($M$8:M14),SUM(E15-I15))))),"") -> 420 | N15: =IFERROR(IF(C15="","",IF(F15="","",IF(J15="","",IF($C15="TOTAL",SUM($N$8:N14),SUM(F15-J15))))),"") -> 90 | O15: 1510 | P15: =IFERROR(IF(C15="","",IF($C15="TOTAL",SUM($P$8:P14),IF(AND(C15>$AO$1,$AF$3=$AO$2),BR16,IF($AR$18=$AR$20,SUM(BE16+BM16),ROUND((D15+E15)*10%,0))))),"") -> 2100 | Q15: =IFERROR(IF(C15="","",IF(H15="","",IF(I15="","",IF($C15="TOTAL",SUM($Q$8:Q14),IF(AND(C15>$AO$1,$AF$3=$AO$2),BR16,IF($AR$18=$AR$20,$AR$21,ROUND((H15+I15)*10%,0))))))),"") -> 2100 | R15: 0 | S15: =IFERROR(IF(C15="","",IF($AR$16=$AR$17,0,IF($C15="TOTAL",SUM($S$8:S14),IF($AR$19=$AR$31,0,IF(AND($AR$32=$AR$20,C15=$AR$33),$AR$34,S14))))),"") -> 0 | T15: =IFERROR(IF(C15="","",IF($AR$16=$AR$17,0,IF($C15="TOTAL",SUM($T$8:T14),IF($AR$19=$AR$20,$AR$24,0)))),"") -> 0 | U15: 0 | V15: =IF(C15="","",IF($C15="TOTAL",SUM($V$8:V14),IF(AND($AR$2=$AR$20,C15=$AR$1),ROUND(D15/31*$AS$2,0),IF(C15=$AP$6,ROUND((G15)*1/30,0),IF(C15=$AQ$6,ROUND((G15)*1/31,0),""))))) ->  | W15: =IF(C15="","",IF($C15="TOTAL",SUM($W$8:W14),IF(AND($AR$2=$AR$20,C15=$AR$1),ROUND(H15/31*$AS$2,0),IF(C15=$AP$6,ROUND((K15)*1/30,0),IF(C15=$AQ$6,ROUND((K15)*1/31,0),""))))) ->  | Y15: =IFERROR(IF(C15="","",IF($AR$16=$AR$17,0,IF($AF$3=$AO$4,"",IF($C15="TOTAL",SUM($Y$8:Y14),BU15)))),"") -> 658 | Z15: =IFERROR(IF(C15="","",IF($AR$16=$AR$17,0,IF($AF$3=$AO$4,"",IF($C15="TOTAL",SUM($Z$8:Z14),BT15)))),"") -> 440 | AA15: 218 | AB15: =IFERROR(IF(C15="","",IF(AND(BK16="",BR16=""),"",IF($C15="TOTAL",SUM($AB$8:AB14),BK16))),"") ->  | AC15: =IFERROR(IF(C15="","",IF($C15="TOTAL",SUM($AC$8:AC14),ROUND(O15*$AR$7%,0))),"") -> 0 | AD15: =IFERROR(IF(C15="","",IF($C15="TOTAL",SUM($AD$8:AD14),IF($AF$3=$AO$2,SUM(U15,X15,AB15,AC15),SUM(R15,U15,X15,AB15,AC15)))),"") -> 0 | AE15: =IFERROR(IF(C15="","",IF($C15="TOTAL",SUM($AE$8:AE14),SUM(O15-AD15))),"") -> 1510 | AN15: 42 | AO15: 42 | AQ15: 2017-07-01 | AR15: Regular Pay | AS15: 2023-07-01 | AU15: 2023-07-01 | AV15: 2023-07-01 | AW15: 2023-07-01 | AX15: 34800 | AY15: 14616 | AZ15: 3132 | BB15: 33800 | BC15: 14196 | BD15: 3042 | BE15: 3675 | BH15: 1510 | BI15: 3675 | BL15: 0 | BM15: 0 | BR15: 2100 | BT15: 440 | BU15: =IF(AW16="","",IF(AW16="TOTAL","",IF($AR$16=$AR$17,0,IF(AND(AW16>$BT$1,$AF$3=$AO$2,'Master Sheet'!$D$31>0),'Master Sheet'!$D$31,IF(AND(AW16=$BT$1,$AF$3=$AO$2),IF($AR$9<18001,135,IF($AR$9<33501,220,IF($AR$9<54001,330,440))),IF(AND(AW16>$BT$1,$AF$3=$AO$2),IF($AR$9<18001,265,IF($AR$9<33501,440,IF($AR$9<54001,658,875))),"")))))) -> 658
A16: 9 | B16: 9 | C16: 2023-09-01 | D16: =IFERROR(IF($C15="TOTAL","अक्षरें राशि :-",IF($C16="TOTAL",SUM($D$8:D15),IF(AX17="","",AX17))),"") -> 34800 | E16: =IFERROR(IF($C16="TOTAL",SUM($E$8:E15),IF(AY17="","",AY17)),"") -> 14616 | F16: =IFERROR(IF($C16="TOTAL",SUM($F$8:F15),IF(OR(C16=$AP$16,C16=$AP$17,C16=$AP$18,C16=$AP$19,C16=$AP$20,C16=$AP$21,C16=$AP$22,C16=$AP$23,C16=$AP$24),0,IF(AZ17="","",AZ17))),"") -> 3132 | G16: 52548 | H16: =IFERROR(IF($C16="TOTAL",SUM($H$8:H15),IF(BB17="","",BB17)),"") -> 33800 | I16: =IFERROR(IF($C16="TOTAL",SUM($I$8:I15),IF(BC17="","",BC17)),"") -> 14196 | J16: =IFERROR(IF($C16="TOTAL",SUM($J$8:J15),IF(OR(C16=$AP$16,C16=$AP$17,C16=$AP$18,C16=$AP$19,C16=$AP$20,C16=$AP$21,C16=$AP$22,C16=$AP$23,C16=$AP$24),0,IF(BD17="","",BD17))),"") -> 3042 | K16: 51038 | L16: =IFERROR(IF(C16="","",IF(D16="","",IF(H16="","",IF($C16="TOTAL",SUM($L$8:L15),SUM(D16-H16))))),"") -> 1000 | M16: =IFERROR(IF(C16="","",IF(E16="","",IF(I16="","",IF($C16="TOTAL",SUM($M$8:M15),SUM(E16-I16))))),"") -> 420 | N16: =IFERROR(IF(C16="","",IF(F16="","",IF(J16="","",IF($C16="TOTAL",SUM($N$8:N15),SUM(F16-J16))))),"") -> 90 | O16: 1510 | P16: =IFERROR(IF(C16="","",IF($C16="TOTAL",SUM($P$8:P15),IF(AND(C16>$AO$1,$AF$3=$AO$2),BR17,IF($AR$18=$AR$20,SUM(BE17+BM17),ROUND((D16+E16)*10%,0))))),"") -> 2100 | Q16: =IFERROR(IF(C16="","",IF(H16="","",IF(I16="","",IF($C16="TOTAL",SUM($Q$8:Q15),IF(AND(C16>$AO$1,$AF$3=$AO$2),BR17,IF($AR$18=$AR$20,$AR$21,ROUND((H16+I16)*10%,0))))))),"") -> 2100 | R16: 0 | S16: =IFERROR(IF(C16="","",IF($AR$16=$AR$17,0,IF($C16="TOTAL",SUM($S$8:S15),IF($AR$19=$AR$31,0,IF(AND($AR$32=$AR$20,C16=$AR$33),$AR$34,S15))))),"") -> 0 | T16: =IFERROR(IF(C16="","",IF($AR$16=$AR$17,0,IF($C16="TOTAL",SUM($T$8:T15),IF($AR$19=$AR$20,$AR$24,0)))),"") -> 0 | U16: 0 | V16: =IF(C16="","",IF($C16="TOTAL",SUM($V$8:V15),IF(AND($AR$2=$AR$20,C16=$AR$1),ROUND(D16/31*$AS$2,0),IF(C16=$AP$6,ROUND((G16)*1/30,0),IF(C16=$AQ$6,ROUND((G16)*1/31,0),""))))) ->  | W16: =IF(C16="","",IF($C16="TOTAL",SUM($W$8:W15),IF(AND($AR$2=$AR$20,C16=$AR$1),ROUND(H16/31*$AS$2,0),IF(C16=$AP$6,ROUND((K16)*1/30,0),IF(C16=$AQ$6,ROUND((K16)*1/31,0),""))))) ->  | Y16: =IFERROR(IF(C16="","",IF($AR$16=$AR$17,0,IF($AF$3=$AO$4,"",IF($C16="TOTAL",SUM($Y$8:Y15),BU16)))),"") -> 658 | Z16: =IFERROR(IF(C16="","",IF($AR$16=$AR$17,0,IF($AF$3=$AO$4,"",IF($C16="TOTAL",SUM($Z$8:Z15),BT16)))),"") -> 440 | AA16: 218 | AB16: =IFERROR(IF(C16="","",IF(AND(BK17="",BR17=""),"",IF($C16="TOTAL",SUM($AB$8:AB15),BK17))),"") ->  | AC16: =IFERROR(IF(C16="","",IF($C16="TOTAL",SUM($AC$8:AC15),ROUND(O16*$AR$7%,0))),"") -> 0 | AD16: =IFERROR(IF(C16="","",IF($C16="TOTAL",SUM($AD$8:AD15),IF($AF$3=$AO$2,SUM(U16,X16,AB16,AC16),SUM(R16,U16,X16,AB16,AC16)))),"") -> 0 | AE16: =IFERROR(IF(C16="","",IF($C16="TOTAL",SUM($AE$8:AE15),SUM(O16-AD16))),"") -> 1510 | AN16: 42 | AO16: 42 | AP16: 2017-01-01 | AQ16: 2017-08-01 | AR16: ='Master Sheet'!D11 -> Regular Pay | AS16: 2023-08-01 | AU16: 2023-08-01 | AV16: 2023-08-01 | AW16: 2023-08-01 | AX16: 34800 | AY16: 14616 | AZ16: 3132 | BB16: 33800 | BC16: 14196 | BD16: 3042 | BE16: 3675 | BH16: 1510 | BI16: 3675 | BL16: 0 | BM16: 0 | BR16: 2100 | BT16: 440 | BU16: =IF(AW17="","",IF(AW17="TOTAL","",IF($AR$16=$AR$17,0,IF(AND(AW17>$BT$1,$AF$3=$AO$2,'Master Sheet'!$D$31>0),'Master Sheet'!$D$31,IF(AND(AW17=$BT$1,$AF$3=$AO$2),IF($AR$9<18001,135,IF($AR$9<33501,220,IF($AR$9<54001,330,440))),IF(AND(AW17>$BT$1,$AF$3=$AO$2),IF($AR$9<18001,265,IF($AR$9<33501,440,IF($AR$9<54001,658,875))),"")))))) -> 658
A17: 10 | B17: 10 | C17: 2023-10-01 | D17: =IFERROR(IF($C16="TOTAL","अक्षरें राशि :-",IF($C17="TOTAL",SUM($D$8:D16),IF(AX18="","",AX18))),"") -> 34800 | E17: =IFERROR(IF($C17="TOTAL",SUM($E$8:E16),IF(AY18="","",AY18)),"") -> 14616 | F17: =IFERROR(IF($C17="TOTAL",SUM($F$8:F16),IF(OR(C17=$AP$16,C17=$AP$17,C17=$AP$18,C17=$AP$19,C17=$AP$20,C17=$AP$21,C17=$AP$22,C17=$AP$23,C17=$AP$24),0,IF(AZ18="","",AZ18))),"") -> 3132 | G17: 52548 | H17: =IFERROR(IF($C17="TOTAL",SUM($H$8:H16),IF(BB18="","",BB18)),"") -> 33800 | I17: =IFERROR(IF($C17="TOTAL",SUM($I$8:I16),IF(BC18="","",BC18)),"") -> 14196 | J17: =IFERROR(IF($C17="TOTAL",SUM($J$8:J16),IF(OR(C17=$AP$16,C17=$AP$17,C17=$AP$18,C17=$AP$19,C17=$AP$20,C17=$AP$21,C17=$AP$22,C17=$AP$23,C17=$AP$24),0,IF(BD18="","",BD18))),"") -> 3042 | K17: 51038 | L17: =IFERROR(IF(C17="","",IF(D17="","",IF(H17="","",IF($C17="TOTAL",SUM($L$8:L16),SUM(D17-H17))))),"") -> 1000 | M17: =IFERROR(IF(C17="","",IF(E17="","",IF(I17="","",IF($C17="TOTAL",SUM($M$8:M16),SUM(E17-I17))))),"") -> 420 | N17: =IFERROR(IF(C17="","",IF(F17="","",IF(J17="","",IF($C17="TOTAL",SUM($N$8:N16),SUM(F17-J17))))),"") -> 90 | O17: 1510 | P17: =IFERROR(IF(C17="","",IF($C17="TOTAL",SUM($P$8:P16),IF(AND(C17>$AO$1,$AF$3=$AO$2),BR18,IF($AR$18=$AR$20,SUM(BE18+BM18),ROUND((D17+E17)*10%,0))))),"") -> 2100 | Q17: =IFERROR(IF(C17="","",IF(H17="","",IF(I17="","",IF($C17="TOTAL",SUM($Q$8:Q16),IF(AND(C17>$AO$1,$AF$3=$AO$2),BR18,IF($AR$18=$AR$20,$AR$21,ROUND((H17+I17)*10%,0))))))),"") -> 2100 | R17: 0 | S17: =IFERROR(IF(C17="","",IF($AR$16=$AR$17,0,IF($C17="TOTAL",SUM($S$8:S16),IF($AR$19=$AR$31,0,IF(AND($AR$32=$AR$20,C17=$AR$33),$AR$34,S16))))),"") -> 0 | T17: =IFERROR(IF(C17="","",IF($AR$16=$AR$17,0,IF($C17="TOTAL",SUM($T$8:T16),IF($AR$19=$AR$20,$AR$24,0)))),"") -> 0 | U17: 0 | V17: =IF(C17="","",IF($C17="TOTAL",SUM($V$8:V16),IF(AND($AR$2=$AR$20,C17=$AR$1),ROUND(D17/31*$AS$2,0),IF(C17=$AP$6,ROUND((G17)*1/30,0),IF(C17=$AQ$6,ROUND((G17)*1/31,0),""))))) ->  | W17: =IF(C17="","",IF($C17="TOTAL",SUM($W$8:W16),IF(AND($AR$2=$AR$20,C17=$AR$1),ROUND(H17/31*$AS$2,0),IF(C17=$AP$6,ROUND((K17)*1/30,0),IF(C17=$AQ$6,ROUND((K17)*1/31,0),""))))) ->  | Y17: =IFERROR(IF(C17="","",IF($AR$16=$AR$17,0,IF($AF$3=$AO$4,"",IF($C17="TOTAL",SUM($Y$8:Y16),BU17)))),"") -> 658 | Z17: =IFERROR(IF(C17="","",IF($AR$16=$AR$17,0,IF($AF$3=$AO$4,"",IF($C17="TOTAL",SUM($Z$8:Z16),BT17)))),"") -> 440 | AA17: 218 | AB17: =IFERROR(IF(C17="","",IF(AND(BK18="",BR18=""),"",IF($C17="TOTAL",SUM($AB$8:AB16),BK18))),"") ->  | AC17: =IFERROR(IF(C17="","",IF($C17="TOTAL",SUM($AC$8:AC16),ROUND(O17*$AR$7%,0))),"") -> 0 | AD17: =IFERROR(IF(C17="","",IF($C17="TOTAL",SUM($AD$8:AD16),IF($AF$3=$AO$2,SUM(U17,X17,AB17,AC17),SUM(R17,U17,X17,AB17,AC17)))),"") -> 0 | AE17: =IFERROR(IF(C17="","",IF($C17="TOTAL",SUM($AE$8:AE16),SUM(O17-AD17))),"") -> 1510 | AN17: 42 | AO17: 42 | AP17: 2017-02-01 | AQ17: 2017-09-01 | AR17: Fix Pay | AS17: 2023-09-01 | AU17: 2023-09-01 | AV17: 2023-09-01 | AW17: 2023-09-01 | AX17: 34800 | AY17: 14616 | AZ17: 3132 | BB17: 33800 | BC17: 14196 | BD17: 3042 | BE17: 3675 | BH17: 1510 | BI17: 3675 | BL17: 0 | BM17: 0 | BR17: 2100 | BT17: 440 | BU17: =IF(AW18="","",IF(AW18="TOTAL","",IF($AR$16=$AR$17,0,IF(AND(AW18>$BT$1,$AF$3=$AO$2,'Master Sheet'!$D$31>0),'Master Sheet'!$D$31,IF(AND(AW18=$BT$1,$AF$3=$AO$2),IF($AR$9<18001,135,IF($AR$9<33501,220,IF($AR$9<54001,330,440))),IF(AND(AW18>$BT$1,$AF$3=$AO$2),IF($AR$9<18001,265,IF($AR$9<33501,440,IF($AR$9<54001,658,875))),"")))))) -> 658
A18: 11 | B18: 11 | C18: 2023-11-01 | D18: =IFERROR(IF($C17="TOTAL","अक्षरें राशि :-",IF($C18="TOTAL",SUM($D$8:D17),IF(AX19="","",AX19))),"") -> 34800 | E18: =IFERROR(IF($C18="TOTAL",SUM($E$8:E17),IF(AY19="","",AY19)),"") -> 14616 | F18: =IFERROR(IF($C18="TOTAL",SUM($F$8:F17),IF(OR(C18=$AP$16,C18=$AP$17,C18=$AP$18,C18=$AP$19,C18=$AP$20,C18=$AP$21,C18=$AP$22,C18=$AP$23,C18=$AP$24),0,IF(AZ19="","",AZ19))),"") -> 3132 | G18: 52548 | H18: =IFERROR(IF($C18="TOTAL",SUM($H$8:H17),IF(BB19="","",BB19)),"") -> 33800 | I18: =IFERROR(IF($C18="TOTAL",SUM($I$8:I17),IF(BC19="","",BC19)),"") -> 14196 | J18: =IFERROR(IF($C18="TOTAL",SUM($J$8:J17),IF(OR(C18=$AP$16,C18=$AP$17,C18=$AP$18,C18=$AP$19,C18=$AP$20,C18=$AP$21,C18=$AP$22,C18=$AP$23,C18=$AP$24),0,IF(BD19="","",BD19))),"") -> 3042 | K18: 51038 | L18: =IFERROR(IF(C18="","",IF(D18="","",IF(H18="","",IF($C18="TOTAL",SUM($L$8:L17),SUM(D18-H18))))),"") -> 1000 | M18: =IFERROR(IF(C18="","",IF(E18="","",IF(I18="","",IF($C18="TOTAL",SUM($M$8:M17),SUM(E18-I18))))),"") -> 420 | N18: =IFERROR(IF(C18="","",IF(F18="","",IF(J18="","",IF($C18="TOTAL",SUM($N$8:N17),SUM(F18-J18))))),"") -> 90 | O18: 1510 | P18: =IFERROR(IF(C18="","",IF($C18="TOTAL",SUM($P$8:P17),IF(AND(C18>$AO$1,$AF$3=$AO$2),BR19,IF($AR$18=$AR$20,SUM(BE19+BM19),ROUND((D18+E18)*10%,0))))),"") -> 2100 | Q18: =IFERROR(IF(C18="","",IF(H18="","",IF(I18="","",IF($C18="TOTAL",SUM($Q$8:Q17),IF(AND(C18>$AO$1,$AF$3=$AO$2),BR19,IF($AR$18=$AR$20,$AR$21,ROUND((H18+I18)*10%,0))))))),"") -> 2100 | R18: 0 | S18: =IFERROR(IF(C18="","",IF($AR$16=$AR$17,0,IF($C18="TOTAL",SUM($S$8:S17),IF($AR$19=$AR$31,0,IF(AND($AR$32=$AR$20,C18=$AR$33),$AR$34,S17))))),"") -> 0 | T18: =IFERROR(IF(C18="","",IF($AR$16=$AR$17,0,IF($C18="TOTAL",SUM($T$8:T17),IF($AR$19=$AR$20,$AR$24,0)))),"") -> 0 | U18: 0 | V18: =IF(C18="","",IF($C18="TOTAL",SUM($V$8:V17),IF(AND($AR$2=$AR$20,C18=$AR$1),ROUND(D18/31*$AS$2,0),IF(C18=$AP$6,ROUND((G18)*1/30,0),IF(C18=$AQ$6,ROUND((G18)*1/31,0),""))))) ->  | W18: =IF(C18="","",IF($C18="TOTAL",SUM($W$8:W17),IF(AND($AR$2=$AR$20,C18=$AR$1),ROUND(H18/31*$AS$2,0),IF(C18=$AP$6,ROUND((K18)*1/30,0),IF(C18=$AQ$6,ROUND((K18)*1/31,0),""))))) ->  | Y18: =IFERROR(IF(C18="","",IF($AR$16=$AR$17,0,IF($AF$3=$AO$4,"",IF($C18="TOTAL",SUM($Y$8:Y17),BU18)))),"") -> 658 | Z18: =IFERROR(IF(C18="","",IF($AR$16=$AR$17,0,IF($AF$3=$AO$4,"",IF($C18="TOTAL",SUM($Z$8:Z17),BT18)))),"") -> 440 | AA18: 218 | AB18: =IFERROR(IF(C18="","",IF(AND(BK19="",BR19=""),"",IF($C18="TOTAL",SUM($AB$8:AB17),BK19))),"") ->  | AC18: =IFERROR(IF(C18="","",IF($C18="TOTAL",SUM($AC$8:AC17),ROUND(O18*$AR$7%,0))),"") -> 0 | AD18: =IFERROR(IF(C18="","",IF($C18="TOTAL",SUM($AD$8:AD17),IF($AF$3=$AO$2,SUM(U18,X18,AB18,AC18),SUM(R18,U18,X18,AB18,AC18)))),"") -> 0 | AE18: =IFERROR(IF(C18="","",IF($C18="TOTAL",SUM($AE$8:AE17),SUM(O18-AD18))),"") -> 1510 | AN18: 42 | AO18: 42 | AP18: 2017-03-01 | AQ18: 2017-10-01 | AR18: ='Master Sheet'!D21 -> NO | AS18: 2023-10-01 | AU18: 2023-10-01 | AV18: 2023-10-01 | AW18: 2023-10-01 | AX18: 34800 | AY18: 14616 | AZ18: 3132 | BB18: 33800 | BC18: 14196 | BD18: 3042 | BE18: 3675 | BH18: 1510 | BI18: 3675 | BK18: =IF(BJ18="","",IF($AR$16=$AR$17,ROUND((D17)*3%,0),IF(OR(AW18=$AQ$63,AW18=$AQ$64,AW18=$AQ$65),SUM(ROUND((D17-H17)*3%,0)),IF(OR(AW18=$AQ$69,AW18=$AQ$70,AW18=$AQ$71),SUM(ROUND((D17-H17)*3%,0)),"")))) ->  | BL18: 0 | BM18: 0 | BR18: 2100 | BT18: 440 | BU18: =IF(AW19="","",IF(AW19="TOTAL","",IF($AR$16=$AR$17,0,IF(AND(AW19>$BT$1,$AF$3=$AO$2,'Master Sheet'!$D$31>0),'Master Sheet'!$D$31,IF(AND(AW19=$BT$1,$AF$3=$AO$2),IF($AR$9<18001,135,IF($AR$9<33501,220,IF($AR$9<54001,330,440))),IF(AND(AW19>$BT$1,$AF$3=$AO$2),IF($AR$9<18001,265,IF($AR$9<33501,440,IF($AR$9<54001,658,875))),"")))))) -> 658
C19: TOTAL | D19: =IFERROR(IF($C18="TOTAL","अक्षरें राशि :-",IF($C19="TOTAL",SUM($D$8:D18),IF(AX20="","",AX20))),"") -> 356084 | E19: =IFERROR(IF($C19="TOTAL",SUM($E$8:E18),IF(AY20="","",AY20)),"") -> 149555 | F19: =IFERROR(IF($C19="TOTAL",SUM($F$8:F18),IF(OR(C19=$AP$16,C19=$AP$17,C19=$AP$18,C19=$AP$19,C19=$AP$20,C19=$AP$21,C19=$AP$22,C19=$AP$23,C19=$AP$24),0,IF(AZ20="","",AZ20))),"") -> 32048 | G19: 537687 | H19: =IFERROR(IF($C19="TOTAL",SUM($H$8:H18),IF(BB20="","",BB20)),"") -> 345697 | I19: =IFERROR(IF($C19="TOTAL",SUM($I$8:I18),IF(BC20="","",BC20)),"") -> 145193 | J19: =IFERROR(IF($C19="TOTAL",SUM($J$8:J18),IF(OR(C19=$AP$16,C19=$AP$17,C19=$AP$18,C19=$AP$19,C19=$AP$20,C19=$AP$21,C19=$AP$22,C19=$AP$23,C19=$AP$24),0,IF(BD20="","",BD20))),"") -> 31113 | K19: 522003 | L19: =IFERROR(IF(C19="","",IF(D19="","",IF(H19="","",IF($C19="TOTAL",SUM($L$8:L18),SUM(D19-H19))))),"") -> 10387 | M19: =IFERROR(IF(C19="","",IF(E19="","",IF(I19="","",IF($C19="TOTAL",SUM($M$8:M18),SUM(E19-I19))))),"") -> 4362 | N19: =IFERROR(IF(C19="","",IF(F19="","",IF(J19="","",IF($C19="TOTAL",SUM($N$8:N18),SUM(F19-J19))))),"") -> 935 | O19: 15684 | P19: =IFERROR(IF(C19="","",IF($C19="TOTAL",SUM($P$8:P18),IF(AND(C19>$AO$1,$AF$3=$AO$2),BR20,IF($AR$18=$AR$20,SUM(BE20+BM20),ROUND((D19+E19)*10%,0))))),"") -> 23100 | Q19: =IFERROR(IF(C19="","",IF(H19="","",IF(I19="","",IF($C19="TOTAL",SUM($Q$8:Q18),IF(AND(C19>$AO$1,$AF$3=$AO$2),BR20,IF($AR$18=$AR$20,$AR$21,ROUND((H19+I19)*10%,0))))))),"") -> 23100 | R19: 0 | S19: =IFERROR(IF(C19="","",IF($AR$16=$AR$17,0,IF($C19="TOTAL",SUM($S$8:S18),IF($AR$19=$AR$31,0,IF(AND($AR$32=$AR$20,C19=$AR$33),$AR$34,S18))))),"") -> 0 | T19: =IFERROR(IF(C19="","",IF($AR$16=$AR$17,0,IF($C19="TOTAL",SUM($T$8:T18),IF($AR$19=$AR$20,$AR$24,0)))),"") -> 0 | U19: 0 | V19: =IF(C19="","",IF($C19="TOTAL",SUM($V$8:V18),IF(AND($AR$2=$AR$20,C19=$AR$1),ROUND(D19/31*$AS$2,0),IF(C19=$AP$6,ROUND((G19)*1/30,0),IF(C19=$AQ$6,ROUND((G19)*1/31,0),""))))) -> 0 | W19: =IF(C19="","",IF($C19="TOTAL",SUM($W$8:W18),IF(AND($AR$2=$AR$20,C19=$AR$1),ROUND(H19/31*$AS$2,0),IF(C19=$AP$6,ROUND((K19)*1/30,0),IF(C19=$AQ$6,ROUND((K19)*1/31,0),""))))) -> 0 | X19: 0 | Y19: =IFERROR(IF(C19="","",IF($AR$16=$AR$17,0,IF($AF$3=$AO$4,"",IF($C19="TOTAL",SUM($Y$8:Y18),BU19)))),"") -> 7238 | Z19: =IFERROR(IF(C19="","",IF($AR$16=$AR$17,0,IF($AF$3=$AO$4,"",IF($C19="TOTAL",SUM($Z$8:Z18),BT19)))),"") -> 4840 | AA19: 2398 | AB19: =IFERROR(IF(C19="","",IF(AND(BK20="",BR20=""),"",IF($C19="TOTAL",SUM($AB$8:AB18),BK20))),"") ->  | AC19: =IFERROR(IF(C19="","",IF($C19="TOTAL",SUM($AC$8:AC18),ROUND(O19*$AR$7%,0))),"") -> 0 | AD19: =IFERROR(IF(C19="","",IF($C19="TOTAL",SUM($AD$8:AD18),IF($AF$3=$AO$2,SUM(U19,X19,AB19,AC19),SUM(R19,U19,X19,AB19,AC19)))),"") -> 0 | AE19: =IFERROR(IF(C19="","",IF($C19="TOTAL",SUM($AE$8:AE18),SUM(O19-AD19))),"") -> 15684 | AN19: 42 | AO19: 42 | AP19: 2017-04-01 | AQ19: 2017-11-01 | AR19: ='Master Sheet'!D17 -> NO | AS19: 2023-11-01 | AU19: 2023-11-01 | AV19: 2023-11-01 | AW19: 2023-11-01 | AX19: 34800 | AY19: 14616 | AZ19: 3132 | BB19: 33800 | BC19: 14196 | BD19: 3042 | BE19: 3675 | BH19: 1510 | BI19: 3675 | BL19: 0 | BM19: 0 | BR19: 2100 | BU19: =IF(AW20="","",IF(AW20="TOTAL","",IF($AR$16=$AR$17,0,IF(AND(AW20>$BT$1,$AF$3=$AO$2,'Master Sheet'!$D$31>0),'Master Sheet'!$D$31,IF(AND(AW20=$BT$1,$AF$3=$AO$2),IF($AR$9<18001,135,IF($AR$9<33501,220,IF($AR$9<54001,330,440))),IF(AND(AW20>$BT$1,$AF$3=$AO$2),IF($AR$9<18001,265,IF($AR$9<33501,440,IF($AR$9<54001,658,875))),"")))))) -> 
D20: =IFERROR(IF($C19="TOTAL","अक्षरें राशि :-",IF($C20="TOTAL",SUM($D$8:D19),IF(AX21="","",AX21))),"") -> अक्षरें राशि :- | E20: =IFERROR(IF($C20="TOTAL",SUM($E$8:E19),IF(AY21="","",AY21)),"") ->  | F20: =IFERROR(IF($C20="TOTAL",SUM($F$8:F19),IF(OR(C20=$AP$16,C20=$AP$17,C20=$AP$18,C20=$AP$19,C20=$AP$20,C20=$AP$21,C20=$AP$22,C20=$AP$23,C20=$AP$24),0,IF(AZ21="","",AZ21))),"") ->  | H20: =IFERROR(IF($C20="TOTAL",SUM($H$8:H19),IF(BB21="","",BB21)),"") ->  | I20: =IFERROR(IF($C20="TOTAL",SUM($I$8:I19),IF(BC21="","",BC21)),"") ->  | J20: =IFERROR(IF($C20="TOTAL",SUM($J$8:J19),IF(OR(C20=$AP$16,C20=$AP$17,C20=$AP$18,C20=$AP$19,C20=$AP$20,C20=$AP$21,C20=$AP$22,C20=$AP$23,C20=$AP$24),0,IF(BD21="","",BD21))),"") ->  | L20: =IFERROR(IF(C20="","",IF(D20="","",IF(H20="","",IF($C20="TOTAL",SUM($L$8:L19),SUM(D20-H20))))),"") ->  | M20: =IFERROR(IF(C20="","",IF(E20="","",IF(I20="","",IF($C20="TOTAL",SUM($M$8:M19),SUM(E20-I20))))),"") ->  | N20: =IFERROR(IF(C20="","",IF(F20="","",IF(J20="","",IF($C20="TOTAL",SUM($N$8:N19),SUM(F20-J20))))),"") ->  | P20: =IFERROR(IF(C20="","",IF($C20="TOTAL",SUM($P$8:P19),IF(AND(C20>$AO$1,$AF$3=$AO$2),BR21,IF($AR$18=$AR$20,SUM(BE21+BM21),ROUND((D20+E20)*10%,0))))),"") ->  | Q20: =IFERROR(IF(C20="","",IF(H20="","",IF(I20="","",IF($C20="TOTAL",SUM($Q$8:Q19),IF(AND(C20>$AO$1,$AF$3=$AO$2),BR21,IF($AR$18=$AR$20,$AR$21,ROUND((H20+I20)*10%,0))))))),"") ->  | S20: =IFERROR(IF(C20="","",IF($AR$16=$AR$17,0,IF($C20="TOTAL",SUM($S$8:S19),IF($AR$19=$AR$31,0,IF(AND($AR$32=$AR$20,C20=$AR$33),$AR$34,S19))))),"") ->  | T20: =IFERROR(IF(C20="","",IF($AR$16=$AR$17,0,IF($C20="TOTAL",SUM($T$8:T19),IF($AR$19=$AR$20,$AR$24,0)))),"") ->  | V20: =IF(C20="","",IF($C20="TOTAL",SUM($V$8:V19),IF(AND($AR$2=$AR$20,C20=$AR$1),ROUND(D20/31*$AS$2,0),IF(C20=$AP$6,ROUND((G20)*1/30,0),IF(C20=$AQ$6,ROUND((G20)*1/31,0),""))))) ->  | W20: =IF(C20="","",IF($C20="TOTAL",SUM($W$8:W19),IF(AND($AR$2=$AR$20,C20=$AR$1),ROUND(H20/31*$AS$2,0),IF(C20=$AP$6,ROUND((K20)*1/30,0),IF(C20=$AQ$6,ROUND((K20)*1/31,0),""))))) ->  | Y20: =IFERROR(IF(C20="","",IF($AR$16=$AR$17,0,IF($AF$3=$AO$4,"",IF($C20="TOTAL",SUM($Y$8:Y19),BU20)))),"") ->  | Z20: =IFERROR(IF(C20="","",IF($AR$16=$AR$17,0,IF($AF$3=$AO$4,"",IF($C20="TOTAL",SUM($Z$8:Z19),BT20)))),"") ->  | AB20: =IFERROR(IF(C20="","",IF(AND(BK21="",BR21=""),"",IF($C20="TOTAL",SUM($AB$8:AB19),BK21))),"") ->  | AC20: =IFERROR(IF(C20="","",IF($C20="TOTAL",SUM($AC$8:AC19),ROUND(O20*$AR$7%,0))),"") ->  | AD20: =IFERROR(IF(C20="","",IF($C20="TOTAL",SUM($AD$8:AD19),IF($AF$3=$AO$2,SUM(U20,X20,AB20,AC20),SUM(R20,U20,X20,AB20,AC20)))),"") ->  | AE20: =IFERROR(IF(C20="","",IF($C20="TOTAL",SUM($AE$8:AE19),SUM(O20-AD20))),"") ->  | AN20: 42 | AO20: 42 | AP20: 2017-05-01 | AQ20: 2017-12-01 | AR20: YES | AS20: =IF(AND($AR$6>$AS$6),"",DATE(YEAR(AS19),MONTH(AS19)+1,DAY(AS19))) -> 2023-12-01 | AU20: 2023-12-01 | AV20: 2023-12-01 | AW20: TOTAL | AX20: 34800 | BI20: 3675 | BL20: 0 | BM20: 0 | BU20: =IF(AW21="","",IF(AW21="TOTAL","",IF($AR$16=$AR$17,0,IF(AND(AW21>$BT$1,$AF$3=$AO$2,'Master Sheet'!$D$31>0),'Master Sheet'!$D$31,IF(AND(AW21=$BT$1,$AF$3=$AO$2),IF($AR$9<18001,135,IF($AR$9<33501,220,IF($AR$9<54001,330,440))),IF(AND(AW21>$BT$1,$AF$3=$AO$2),IF($AR$9<18001,265,IF($AR$9<33501,440,IF($AR$9<54001,658,875))),"")))))) -> 
D21: =IFERROR(IF($C20="TOTAL","अक्षरें राशि :-",IF($C21="TOTAL",SUM($D$8:D20),IF(AX22="","",AX22))),"") ->  | E21: =IFERROR(IF($C21="TOTAL",SUM($E$8:E20),IF(AY22="","",AY22)),"") ->  | F21: =IFERROR(IF($C21="TOTAL",SUM($F$8:F20),IF(OR(C21=$AP$16,C21=$AP$17,C21=$AP$18,C21=$AP$19,C21=$AP$20,C21=$AP$21,C21=$AP$22,C21=$AP$23,C21=$AP$24),0,IF(AZ22="","",AZ22))),"") ->  | H21: =IFERROR(IF($C21="TOTAL",SUM($H$8:H20),IF(BB22="","",BB22)),"") ->  | I21: =IFERROR(IF($C21="TOTAL",SUM($I$8:I20),IF(BC22="","",BC22)),"") ->  | J21: =IFERROR(IF($C21="TOTAL",SUM($J$8:J20),IF(OR(C21=$AP$16,C21=$AP$17,C21=$AP$18,C21=$AP$19,C21=$AP$20,C21=$AP$21,C21=$AP$22,C21=$AP$23,C21=$AP$24),0,IF(BD22="","",BD22))),"") ->  | L21: =IFERROR(IF(C21="","",IF(D21="","",IF(H21="","",IF($C21="TOTAL",SUM($L$8:L20),SUM(D21-H21))))),"") ->  | M21: =IFERROR(IF(C21="","",IF(E21="","",IF(I21="","",IF($C21="TOTAL",SUM($M$8:M20),SUM(E21-I21))))),"") ->  | N21: =IFERROR(IF(C21="","",IF(F21="","",IF(J21="","",IF($C21="TOTAL",SUM($N$8:N20),SUM(F21-J21))))),"") ->  | P21: =IFERROR(IF(C21="","",IF($C21="TOTAL",SUM($P$8:P20),IF(AND(C21>$AO$1,$AF$3=$AO$2),BR22,IF($AR$18=$AR$20,SUM(BE22+BM22),ROUND((D21+E21)*10%,0))))),"") ->  | Q21: =IFERROR(IF(C21="","",IF(H21="","",IF(I21="","",IF($C21="TOTAL",SUM($Q$8:Q20),IF(AND(C21>$AO$1,$AF$3=$AO$2),BR22,IF($AR$18=$AR$20,$AR$21,ROUND((H21+I21)*10%,0))))))),"") ->  | S21: =IFERROR(IF(C21="","",IF($AR$16=$AR$17,0,IF($C21="TOTAL",SUM($S$8:S20),IF($AR$19=$AR$31,0,IF(AND($AR$32=$AR$20,C21=$AR$33),$AR$34,S20))))),"") ->  | T21: =IFERROR(IF(C21="","",IF($AR$16=$AR$17,0,IF($C21="TOTAL",SUM($T$8:T20),IF($AR$19=$AR$20,$AR$24,0)))),"") ->  | V21: =IF(C21="","",IF($C21="TOTAL",SUM($V$8:V20),IF(AND($AR$2=$AR$20,C21=$AR$1),ROUND(D21/31*$AS$2,0),IF(C21=$AP$6,ROUND((G21)*1/30,0),IF(C21=$AQ$6,ROUND((G21)*1/31,0),""))))) ->  | W21: =IF(C21="","",IF($C21="TOTAL",SUM($W$8:W20),IF(AND($AR$2=$AR$20,C21=$AR$1),ROUND(H21/31*$AS$2,0),IF(C21=$AP$6,ROUND((K21)*1/30,0),IF(C21=$AQ$6,ROUND((K21)*1/31,0),""))))) ->  | Y21: =IFERROR(IF(C21="","",IF($AR$16=$AR$17,0,IF($AF$3=$AO$4,"",IF($C21="TOTAL",SUM($Y$8:Y20),BU21)))),"") ->  | Z21: =IFERROR(IF(C21="","",IF($AR$16=$AR$17,0,IF($AF$3=$AO$4,"",IF($C21="TOTAL",SUM($Z$8:Z20),BT21)))),"") ->  | AB21: =IFERROR(IF(C21="","",IF(AND(BK22="",BR22=""),"",IF($C21="TOTAL",SUM($AB$8:AB20),BK22))),"") ->  | AC21: =IFERROR(IF(C21="","",IF($C21="TOTAL",SUM($AC$8:AC20),ROUND(O21*$AR$7%,0))),"") ->  | AD21: =IFERROR(IF(C21="","",IF($C21="TOTAL",SUM($AD$8:AD20),IF($AF$3=$AO$2,SUM(U21,X21,AB21,AC21),SUM(R21,U21,X21,AB21,AC21)))),"") ->  | AE21: =IFERROR(IF(C21="","",IF($C21="TOTAL",SUM($AE$8:AE20),SUM(O21-AD21))),"") ->  | AN21: 42 | AO21: 42 | AP21: 2017-06-01 | AQ21: 2018-01-01 | AR21: ='Master Sheet'!I21 -> 3675 | AS21: 2024-01-01 | BL21: 0 | BM21: 0 | BU21: =IF(AW22="","",IF(AW22="TOTAL","",IF($AR$16=$AR$17,0,IF(AND(AW22>$BT$1,$AF$3=$AO$2,'Master Sheet'!$D$31>0),'Master Sheet'!$D$31,IF(AND(AW22=$BT$1,$AF$3=$AO$2),IF($AR$9<18001,135,IF($AR$9<33501,220,IF($AR$9<54001,330,440))),IF(AND(AW22>$BT$1,$AF$3=$AO$2),IF($AR$9<18001,265,IF($AR$9<33501,440,IF($AR$9<54001,658,875))),"")))))) -> 
D22: =IFERROR(IF($C21="TOTAL","अक्षरें राशि :-",IF($C22="TOTAL",SUM($D$8:D21),IF(AX23="","",AX23))),"") ->  | E22: =IFERROR(IF($C22="TOTAL",SUM($E$8:E21),IF(AY23="","",AY23)),"") ->  | F22: =IFERROR(IF($C22="TOTAL",SUM($F$8:F21),IF(OR(C22=$AP$16,C22=$AP$17,C22=$AP$18,C22=$AP$19,C22=$AP$20,C22=$AP$21,C22=$AP$22,C22=$AP$23,C22=$AP$24),0,IF(AZ23="","",AZ23))),"") ->  | H22: =IFERROR(IF($C22="TOTAL",SUM($H$8:H21),IF(BB23="","",BB23)),"") ->  | I22: =IFERROR(IF($C22="TOTAL",SUM($I$8:I21),IF(BC23="","",BC23)),"") ->  | J22: =IFERROR(IF($C22="TOTAL",SUM($J$8:J21),IF(OR(C22=$AP$16,C22=$AP$17,C22=$AP$18,C22=$AP$19,C22=$AP$20,C22=$AP$21,C22=$AP$22,C22=$AP$23,C22=$AP$24),0,IF(BD23="","",BD23))),"") ->  | L22: =IFERROR(IF(C22="","",IF(D22="","",IF(H22="","",IF($C22="TOTAL",SUM($L$8:L21),SUM(D22-H22))))),"") ->  | M22: =IFERROR(IF(C22="","",IF(E22="","",IF(I22="","",IF($C22="TOTAL",SUM($M$8:M21),SUM(E22-I22))))),"") ->  | N22: =IFERROR(IF(C22="","",IF(F22="","",IF(J22="","",IF($C22="TOTAL",SUM($N$8:N21),SUM(F22-J22))))),"") ->  | P22: =IFERROR(IF(C22="","",IF($C22="TOTAL",SUM($P$8:P21),IF(AND(C22>$AO$1,$AF$3=$AO$2),BR23,IF($AR$18=$AR$20,SUM(BE23+BM23),ROUND((D22+E22)*10%,0))))),"") ->  | Q22: =IFERROR(IF(C22="","",IF(H22="","",IF(I22="","",IF($C22="TOTAL",SUM($Q$8:Q21),IF(AND(C22>$AO$1,$AF$3=$AO$2),BR23,IF($AR$18=$AR$20,$AR$21,ROUND((H22+I22)*10%,0))))))),"") ->  | S22: =IFERROR(IF(C22="","",IF($AR$16=$AR$17,0,IF($C22="TOTAL",SUM($S$8:S21),IF($AR$19=$AR$31,0,IF(AND($AR$32=$AR$20,C22=$AR$33),$AR$34,S21))))),"") ->  | T22: =IFERROR(IF(C22="","",IF($AR$16=$AR$17,0,IF($C22="TOTAL",SUM($T$8:T21),IF($AR$19=$AR$20,$AR$24,0)))),"") ->  | V22: =IF(C22="","",IF($C22="TOTAL",SUM($V$8:V21),IF(AND($AR$2=$AR$20,C22=$AR$1),ROUND(D22/31*$AS$2,0),IF(C22=$AP$6,ROUND((G22)*1/30,0),IF(C22=$AQ$6,ROUND((G22)*1/31,0),""))))) ->  | W22: =IF(C22="","",IF($C22="TOTAL",SUM($W$8:W21),IF(AND($AR$2=$AR$20,C22=$AR$1),ROUND(H22/31*$AS$2,0),IF(C22=$AP$6,ROUND((K22)*1/30,0),IF(C22=$AQ$6,ROUND((K22)*1/31,0),""))))) ->  | Y22: =IFERROR(IF(C22="","",IF($AR$16=$AR$17,0,IF($AF$3=$AO$4,"",IF($C22="TOTAL",SUM($Y$8:Y21),BU22)))),"") ->  | Z22: =IFERROR(IF(C22="","",IF($AR$16=$AR$17,0,IF($AF$3=$AO$4,"",IF($C22="TOTAL",SUM($Z$8:Z21),BT22)))),"") ->  | AB22: =IFERROR(IF(C22="","",IF(AND(BK23="",BR23=""),"",IF($C22="TOTAL",SUM($AB$8:AB21),BK23))),"") ->  | AC22: =IFERROR(IF(C22="","",IF($C22="TOTAL",SUM($AC$8:AC21),ROUND(O22*$AR$7%,0))),"") ->  | AD22: =IFERROR(IF(C22="","",IF($C22="TOTAL",SUM($AD$8:AD21),IF($AF$3=$AO$2,SUM(U22,X22,AB22,AC22),SUM(R22,U22,X22,AB22,AC22)))),"") ->  | AE22: =IFERROR(IF(C22="","",IF($C22="TOTAL",SUM($AE$8:AE21),SUM(O22-AD22))),"") ->  | AN22: 42 | AO22: 42 | AP22: 2017-07-01 | AQ22: 2018-02-01 | AR22: ='Master Sheet'!M21 -> 3675 | AS22: 2024-02-01 | BL22: 0 | BM22: 0 | BU22: =IF(AW23="","",IF(AW23="TOTAL","",IF($AR$16=$AR$17,0,IF(AND(AW23>$BT$1,$AF$3=$AO$2,'Master Sheet'!$D$31>0),'Master Sheet'!$D$31,IF(AND(AW23=$BT$1,$AF$3=$AO$2),IF($AR$9<18001,135,IF($AR$9<33501,220,IF($AR$9<54001,330,440))),IF(AND(AW23>$BT$1,$AF$3=$AO$2),IF($AR$9<18001,265,IF($AR$9<33501,440,IF($AR$9<54001,658,875))),"")))))) -> 
D23: =IFERROR(IF($C22="TOTAL","अक्षरें राशि :-",IF($C23="TOTAL",SUM($D$8:D22),IF(AX24="","",AX24))),"") ->  | E23: =IFERROR(IF($C23="TOTAL",SUM($E$8:E22),IF(AY24="","",AY24)),"") ->  | F23: =IFERROR(IF($C23="TOTAL",SUM($F$8:F22),IF(OR(C23=$AP$16,C23=$AP$17,C23=$AP$18,C23=$AP$19,C23=$AP$20,C23=$AP$21,C23=$AP$22,C23=$AP$23,C23=$AP$24),0,IF(AZ24="","",AZ24))),"") ->  | H23: =IFERROR(IF($C23="TOTAL",SUM($H$8:H22),IF(BB24="","",BB24)),"") ->  | I23: =IFERROR(IF($C23="TOTAL",SUM($I$8:I22),IF(BC24="","",BC24)),"") ->  | J23: =IFERROR(IF($C23="TOTAL",SUM($J$8:J22),IF(OR(C23=$AP$16,C23=$AP$17,C23=$AP$18,C23=$AP$19,C23=$AP$20,C23=$AP$21,C23=$AP$22,C23=$AP$23,C23=$AP$24),0,IF(BD24="","",BD24))),"") ->  | L23: =IFERROR(IF(C23="","",IF(D23="","",IF(H23="","",IF($C23="TOTAL",SUM($L$8:L22),SUM(D23-H23))))),"") ->  | M23: =IFERROR(IF(C23="","",IF(E23="","",IF(I23="","",IF($C23="TOTAL",SUM($M$8:M22),SUM(E23-I23))))),"") ->  | N23: =IFERROR(IF(C23="","",IF(F23="","",IF(J23="","",IF($C23="TOTAL",SUM($N$8:N22),SUM(F23-J23))))),"") ->  | P23: =IFERROR(IF(C23="","",IF($C23="TOTAL",SUM($P$8:P22),IF(AND(C23>$AO$1,$AF$3=$AO$2),BR24,IF($AR$18=$AR$20,SUM(BE24+BM24),ROUND((D23+E23)*10%,0))))),"") ->  | Q23: =IFERROR(IF(C23="","",IF(H23="","",IF(I23="","",IF($C23="TOTAL",SUM($Q$8:Q22),IF(AND(C23>$AO$1,$AF$3=$AO$2),BR24,IF($AR$18=$AR$20,$AR$21,ROUND((H23+I23)*10%,0))))))),"") ->  | S23: =IFERROR(IF(C23="","",IF($AR$16=$AR$17,0,IF($C23="TOTAL",SUM($S$8:S22),IF($AR$19=$AR$31,0,IF(AND($AR$32=$AR$20,C23=$AR$33),$AR$34,S22))))),"") ->  | T23: =IFERROR(IF(C23="","",IF($AR$16=$AR$17,0,IF($C23="TOTAL",SUM($T$8:T22),IF($AR$19=$AR$20,$AR$24,0)))),"") ->  | V23: =IF(C23="","",IF($C23="TOTAL",SUM($V$8:V22),IF(AND($AR$2=$AR$20,C23=$AR$1),ROUND(D23/31*$AS$2,0),IF(C23=$AP$6,ROUND((G23)*1/30,0),IF(C23=$AQ$6,ROUND((G23)*1/31,0),""))))) ->  | W23: =IF(C23="","",IF($C23="TOTAL",SUM($W$8:W22),IF(AND($AR$2=$AR$20,C23=$AR$1),ROUND(H23/31*$AS$2,0),IF(C23=$AP$6,ROUND((K23)*1/30,0),IF(C23=$AQ$6,ROUND((K23)*1/31,0),""))))) ->  | Y23: =IFERROR(IF(C23="","",IF($AR$16=$AR$17,0,IF($AF$3=$AO$4,"",IF($C23="TOTAL",SUM($Y$8:Y22),BU23)))),"") ->  | Z23: =IFERROR(IF(C23="","",IF($AR$16=$AR$17,0,IF($AF$3=$AO$4,"",IF($C23="TOTAL",SUM($Z$8:Z22),BT23)))),"") ->  | AB23: =IFERROR(IF(C23="","",IF(AND(BK24="",BR24=""),"",IF($C23="TOTAL",SUM($AB$8:AB22),BK24))),"") ->  | AC23: =IFERROR(IF(C23="","",IF($C23="TOTAL",SUM($AC$8:AC22),ROUND(O23*$AR$7%,0))),"") ->  | AD23: =IFERROR(IF(C23="","",IF($C23="TOTAL",SUM($AD$8:AD22),IF($AF$3=$AO$2,SUM(U23,X23,AB23,AC23),SUM(R23,U23,X23,AB23,AC23)))),"") ->  | AE23: =IFERROR(IF(C23="","",IF($C23="TOTAL",SUM($AE$8:AE22),SUM(O23-AD23))),"") ->  | AN23: 42 | AO23: 42 | AP23: 2017-08-01 | AQ23: 2018-03-01 | AS23: 2024-03-01 | BL23: 0 | BM23: 0 | BU23: =IF(AW24="","",IF(AW24="TOTAL","",IF($AR$16=$AR$17,0,IF(AND(AW24>$BT$1,$AF$3=$AO$2,'Master Sheet'!$D$31>0),'Master Sheet'!$D$31,IF(AND(AW24=$BT$1,$AF$3=$AO$2),IF($AR$9<18001,135,IF($AR$9<33501,220,IF($AR$9<54001,330,440))),IF(AND(AW24>$BT$1,$AF$3=$AO$2),IF($AR$9<18001,265,IF($AR$9<33501,440,IF($AR$9<54001,658,875))),"")))))) -> 
D24: =IFERROR(IF($C23="TOTAL","अक्षरें राशि :-",IF($C24="TOTAL",SUM($D$8:D23),IF(AX25="","",AX25))),"") ->  | E24: =IFERROR(IF($C24="TOTAL",SUM($E$8:E23),IF(AY25="","",AY25)),"") ->  | F24: =IFERROR(IF($C24="TOTAL",SUM($F$8:F23),IF(OR(C24=$AP$16,C24=$AP$17,C24=$AP$18,C24=$AP$19,C24=$AP$20,C24=$AP$21,C24=$AP$22,C24=$AP$23,C24=$AP$24),0,IF(AZ25="","",AZ25))),"") ->  | H24: =IFERROR(IF($C24="TOTAL",SUM($H$8:H23),IF(BB25="","",BB25)),"") ->  | I24: =IFERROR(IF($C24="TOTAL",SUM($I$8:I23),IF(BC25="","",BC25)),"") ->  | J24: =IFERROR(IF($C24="TOTAL",SUM($J$8:J23),IF(OR(C24=$AP$16,C24=$AP$17,C24=$AP$18,C24=$AP$19,C24=$AP$20,C24=$AP$21,C24=$AP$22,C24=$AP$23,C24=$AP$24),0,IF(BD25="","",BD25))),"") ->  | L24: =IFERROR(IF(C24="","",IF(D24="","",IF(H24="","",IF($C24="TOTAL",SUM($L$8:L23),SUM(D24-H24))))),"") ->  | M24: =IFERROR(IF(C24="","",IF(E24="","",IF(I24="","",IF($C24="TOTAL",SUM($M$8:M23),SUM(E24-I24))))),"") ->  | N24: =IFERROR(IF(C24="","",IF(F24="","",IF(J24="","",IF($C24="TOTAL",SUM($N$8:N23),SUM(F24-J24))))),"") ->  | P24: =IFERROR(IF(C24="","",IF($C24="TOTAL",SUM($P$8:P23),IF(AND(C24>$AO$1,$AF$3=$AO$2),BR25,IF($AR$18=$AR$20,SUM(BE25+BM25),ROUND((D24+E24)*10%,0))))),"") ->  | Q24: =IFERROR(IF(C24="","",IF(H24="","",IF(I24="","",IF($C24="TOTAL",SUM($Q$8:Q23),IF(AND(C24>$AO$1,$AF$3=$AO$2),BR25,IF($AR$18=$AR$20,$AR$21,ROUND((H24+I24)*10%,0))))))),"") ->  | S24: =IFERROR(IF(C24="","",IF($AR$16=$AR$17,0,IF($C24="TOTAL",SUM($S$8:S23),IF($AR$19=$AR$31,0,IF(AND($AR$32=$AR$20,C24=$AR$33),$AR$34,S23))))),"") ->  | T24: =IFERROR(IF(C24="","",IF($AR$16=$AR$17,0,IF($C24="TOTAL",SUM($T$8:T23),IF($AR$19=$AR$20,$AR$24,0)))),"") ->  | V24: =IF(C24="","",IF($C24="TOTAL",SUM($V$8:V23),IF(AND($AR$2=$AR$20,C24=$AR$1),ROUND(D24/31*$AS$2,0),IF(C24=$AP$6,ROUND((G24)*1/30,0),IF(C24=$AQ$6,ROUND((G24)*1/31,0),""))))) ->  | W24: =IF(C24="","",IF($C24="TOTAL",SUM($W$8:W23),IF(AND($AR$2=$AR$20,C24=$AR$1),ROUND(H24/31*$AS$2,0),IF(C24=$AP$6,ROUND((K24)*1/30,0),IF(C24=$AQ$6,ROUND((K24)*1/31,0),""))))) ->  | Y24: =IFERROR(IF(C24="","",IF($AR$16=$AR$17,0,IF($AF$3=$AO$4,"",IF($C24="TOTAL",SUM($Y$8:Y23),BU24)))),"") ->  | Z24: =IFERROR(IF(C24="","",IF($AR$16=$AR$17,0,IF($AF$3=$AO$4,"",IF($C24="TOTAL",SUM($Z$8:Z23),BT24)))),"") ->  | AB24: =IFERROR(IF(C24="","",IF(AND(BK25="",BR25=""),"",IF($C24="TOTAL",SUM($AB$8:AB23),BK25))),"") ->  | AC24: =IFERROR(IF(C24="","",IF($C24="TOTAL",SUM($AC$8:AC23),ROUND(O24*$AR$7%,0))),"") ->  | AD24: =IFERROR(IF(C24="","",IF($C24="TOTAL",SUM($AD$8:AD23),IF($AF$3=$AO$2,SUM(U24,X24,AB24,AC24),SUM(R24,U24,X24,AB24,AC24)))),"") ->  | AE24: =IFERROR(IF(C24="","",IF($C24="TOTAL",SUM($AE$8:AE23),SUM(O24-AD24))),"") ->  | AN24: 42 | AO24: 42 | AP24: 2017-09-01 | AQ24: 2018-04-01 | AR24: ='Master Sheet'!I17 -> 2100 | AS24: 2024-04-01 | BL24: 0 | BM24: 0 | BU24: =IF(AW25="","",IF(AW25="TOTAL","",IF($AR$16=$AR$17,0,IF(AND(AW25>$BT$1,$AF$3=$AO$2,'Master Sheet'!$D$31>0),'Master Sheet'!$D$31,IF(AND(AW25=$BT$1,$AF$3=$AO$2),IF($AR$9<18001,135,IF($AR$9<33501,220,IF($AR$9<54001,330,440))),IF(AND(AW25>$BT$1,$AF$3=$AO$2),IF($AR$9<18001,265,IF($AR$9<33501,440,IF($AR$9<54001,658,875))),"")))))) -> 
A25: =IF(C25="TOTAL","",IF(B24="","",IF(LEN(C25)>=2,B24+1,0))) ->  | D25: =IFERROR(IF($C24="TOTAL","अक्षरें राशि :-",IF($C25="TOTAL",SUM($D$8:D24),IF(AX26="","",AX26))),"") ->  | E25: =IFERROR(IF($C25="TOTAL",SUM($E$8:E24),IF(AY26="","",AY26)),"") ->  | F25: =IFERROR(IF($C25="TOTAL",SUM($F$8:F24),IF(OR(C25=$AP$16,C25=$AP$17,C25=$AP$18,C25=$AP$19,C25=$AP$20,C25=$AP$21,C25=$AP$22,C25=$AP$23,C25=$AP$24),0,IF(AZ26="","",AZ26))),"") ->  | H25: =IFERROR(IF($C25="TOTAL",SUM($H$8:H24),IF(BB26="","",BB26)),"") ->  | I25: =IFERROR(IF($C25="TOTAL",SUM($I$8:I24),IF(BC26="","",BC26)),"") ->  | J25: =IFERROR(IF($C25="TOTAL",SUM($J$8:J24),IF(OR(C25=$AP$16,C25=$AP$17,C25=$AP$18,C25=$AP$19,C25=$AP$20,C25=$AP$21,C25=$AP$22,C25=$AP$23,C25=$AP$24),0,IF(BD26="","",BD26))),"") ->  | L25: =IFERROR(IF(C25="","",IF(D25="","",IF(H25="","",IF($C25="TOTAL",SUM($L$8:L24),SUM(D25-H25))))),"") ->  | M25: =IFERROR(IF(C25="","",IF(E25="","",IF(I25="","",IF($C25="TOTAL",SUM($M$8:M24),SUM(E25-I25))))),"") ->  | N25: =IFERROR(IF(C25="","",IF(F25="","",IF(J25="","",IF($C25="TOTAL",SUM($N$8:N24),SUM(F25-J25))))),"") ->  | P25: =IFERROR(IF(C25="","",IF($C25="TOTAL",SUM($P$8:P24),IF(AND(C25>$AO$1,$AF$3=$AO$2),BR26,IF($AR$18=$AR$20,SUM(BE26+BM26),ROUND((D25+E25)*10%,0))))),"") ->  | Q25: =IFERROR(IF(C25="","",IF(H25="","",IF(I25="","",IF($C25="TOTAL",SUM($Q$8:Q24),IF(AND(C25>$AO$1,$AF$3=$AO$2),BR26,IF($AR$18=$AR$20,$AR$21,ROUND((H25+I25)*10%,0))))))),"") ->  | S25: =IFERROR(IF(C25="","",IF($AR$16=$AR$17,0,IF($C25="TOTAL",SUM($S$8:S24),IF($AR$19=$AR$31,0,IF(AND($AR$32=$AR$20,C25=$AR$33),$AR$34,S24))))),"") ->  | T25: =IFERROR(IF(C25="","",IF($AR$16=$AR$17,0,IF($C25="TOTAL",SUM($T$8:T24),IF($AR$19=$AR$20,$AR$24,0)))),"") ->  | V25: =IF(C25="","",IF($C25="TOTAL",SUM($V$8:V24),IF(AND($AR$2=$AR$20,C25=$AR$1),ROUND(D25/31*$AS$2,0),IF(C25=$AP$6,ROUND((G25)*1/30,0),IF(C25=$AQ$6,ROUND((G25)*1/31,0),""))))) ->  | W25: =IF(C25="","",IF($C25="TOTAL",SUM($W$8:W24),IF(AND($AR$2=$AR$20,C25=$AR$1),ROUND(H25/31*$AS$2,0),IF(C25=$AP$6,ROUND((K25)*1/30,0),IF(C25=$AQ$6,ROUND((K25)*1/31,0),""))))) ->  | Y25: =IFERROR(IF(C25="","",IF($AR$16=$AR$17,0,IF($AF$3=$AO$4,"",IF($C25="TOTAL",SUM($Y$8:Y24),BU25)))),"") ->  | Z25: =IFERROR(IF(C25="","",IF($AR$16=$AR$17,0,IF($AF$3=$AO$4,"",IF($C25="TOTAL",SUM($Z$8:Z24),BT25)))),"") ->  | AB25: =IFERROR(IF(C25="","",IF(AND(BK26="",BR26=""),"",IF($C25="TOTAL",SUM($AB$8:AB24),BK26))),"") ->  | AC25: =IFERROR(IF(C25="","",IF($C25="TOTAL",SUM($AC$8:AC24),ROUND(O25*$AR$7%,0))),"") ->  | AD25: =IFERROR(IF(C25="","",IF($C25="TOTAL",SUM($AD$8:AD24),IF($AF$3=$AO$2,SUM(U25,X25,AB25,AC25),SUM(R25,U25,X25,AB25,AC25)))),"") ->  | AE25: =IFERROR(IF(C25="","",IF($C25="TOTAL",SUM($AE$8:AE24),SUM(O25-AD25))),"") ->  | AN25: 42 | AO25: 42 | AQ25: 2018-05-01 | AR25: ='Master Sheet'!M17 -> 2100 | AS25: 2024-05-01 | BL25: 0 | BM25: 0 | BU25: =IF(AW26="","",IF(AW26="TOTAL","",IF($AR$16=$AR$17,0,IF(AND(AW26>$BT$1,$AF$3=$AO$2,'Master Sheet'!$D$31>0),'Master Sheet'!$D$31,IF(AND(AW26=$BT$1,$AF$3=$AO$2),IF($AR$9<18001,135,IF($AR$9<33501,220,IF($AR$9<54001,330,440))),IF(AND(AW26>$BT$1,$AF$3=$AO$2),IF($AR$9<18001,265,IF($AR$9<33501,440,IF($AR$9<54001,658,875))),"")))))) -> 
A26: =IF(C26="TOTAL","",IF(B25="","",IF(LEN(C26)>=2,B25+1,0))) ->  | D26: =IFERROR(IF($C25="TOTAL","अक्षरें राशि :-",IF($C26="TOTAL",SUM($D$8:D25),IF(AX27="","",AX27))),"") ->  | E26: =IFERROR(IF($C26="TOTAL",SUM($E$8:E25),IF(AY27="","",AY27)),"") ->  | F26: =IFERROR(IF($C26="TOTAL",SUM($F$8:F25),IF(OR(C26=$AP$16,C26=$AP$17,C26=$AP$18,C26=$AP$19,C26=$AP$20,C26=$AP$21,C26=$AP$22,C26=$AP$23,C26=$AP$24),0,IF(AZ27="","",AZ27))),"") ->  | H26: =IFERROR(IF($C26="TOTAL",SUM($H$8:H25),IF(BB27="","",BB27)),"") ->  | I26: =IFERROR(IF($C26="TOTAL",SUM($I$8:I25),IF(BC27="","",BC27)),"") ->  | J26: =IFERROR(IF($C26="TOTAL",SUM($J$8:J25),IF(OR(C26=$AP$16,C26=$AP$17,C26=$AP$18,C26=$AP$19,C26=$AP$20,C26=$AP$21,C26=$AP$22,C26=$AP$23,C26=$AP$24),0,IF(BD27="","",BD27))),"") ->  | L26: =IFERROR(IF(C26="","",IF(D26="","",IF(H26="","",IF($C26="TOTAL",SUM($L$8:L25),SUM(D26-H26))))),"") ->  | M26: =IFERROR(IF(C26="","",IF(E26="","",IF(I26="","",IF($C26="TOTAL",SUM($M$8:M25),SUM(E26-I26))))),"") ->  | N26: =IFERROR(IF(C26="","",IF(F26="","",IF(J26="","",IF($C26="TOTAL",SUM($N$8:N25),SUM(F26-J26))))),"") ->  | P26: =IFERROR(IF(C26="","",IF($C26="TOTAL",SUM($P$8:P25),IF(AND(C26>$AO$1,$AF$3=$AO$2),BR27,IF($AR$18=$AR$20,SUM(BE27+BM27),ROUND((D26+E26)*10%,0))))),"") ->  | Q26: =IFERROR(IF(C26="","",IF(H26="","",IF(I26="","",IF($C26="TOTAL",SUM($Q$8:Q25),IF(AND(C26>$AO$1,$AF$3=$AO$2),BR27,IF($AR$18=$AR$20,$AR$21,ROUND((H26+I26)*10%,0))))))),"") ->  | S26: =IFERROR(IF(C26="","",IF($AR$16=$AR$17,0,IF($C26="TOTAL",SUM($S$8:S25),IF($AR$19=$AR$31,0,IF(AND($AR$32=$AR$20,C26=$AR$33),$AR$34,S25))))),"") ->  | T26: =IFERROR(IF(C26="","",IF($AR$16=$AR$17,0,IF($C26="TOTAL",SUM($T$8:T25),IF($AR$19=$AR$20,$AR$24,0)))),"") ->  | V26: =IF(C26="","",IF($C26="TOTAL",SUM($V$8:V25),IF(AND($AR$2=$AR$20,C26=$AR$1),ROUND(D26/31*$AS$2,0),IF(C26=$AP$6,ROUND((G26)*1/30,0),IF(C26=$AQ$6,ROUND((G26)*1/31,0),""))))) ->  | W26: =IF(C26="","",IF($C26="TOTAL",SUM($W$8:W25),IF(AND($AR$2=$AR$20,C26=$AR$1),ROUND(H26/31*$AS$2,0),IF(C26=$AP$6,ROUND((K26)*1/30,0),IF(C26=$AQ$6,ROUND((K26)*1/31,0),""))))) ->  | Y26: =IFERROR(IF(C26="","",IF($AR$16=$AR$17,0,IF($AF$3=$AO$4,"",IF($C26="TOTAL",SUM($Y$8:Y25),BU26)))),"") ->  | Z26: =IFERROR(IF(C26="","",IF($AR$16=$AR$17,0,IF($AF$3=$AO$4,"",IF($C26="TOTAL",SUM($Z$8:Z25),BT26)))),"") ->  | AB26: =IFERROR(IF(C26="","",IF(AND(BK27="",BR27=""),"",IF($C26="TOTAL",SUM($AB$8:AB25),BK27))),"") ->  | AC26: =IFERROR(IF(C26="","",IF($C26="TOTAL",SUM($AC$8:AC25),ROUND(O26*$AR$7%,0))),"") ->  | AD26: =IFERROR(IF(C26="","",IF($C26="TOTAL",SUM($AD$8:AD25),IF($AF$3=$AO$2,SUM(U26,X26,AB26,AC26),SUM(R26,U26,X26,AB26,AC26)))),"") ->  | AE26: =IFERROR(IF(C26="","",IF($C26="TOTAL",SUM($AE$8:AE25),SUM(O26-AD26))),"") ->  | AN26: 42 | AO26: 42 | AQ26: 2018-06-01 | AR26: ='Master Sheet'!I15 -> NO | AS26: 2024-06-01 | AW26: =IFERROR(IF(AV26="","",IF(DATE(YEAR(AV26),MONTH(AV26),DAY(AV26))=DATE(YEAR($AS$6),MONTH($AS$6)+1,DAY($AS$6)),"TOTAL",IF(AV26>$AS$6,"",AV26))),"") ->  | BL26: 0 | BM26: 0 | BU26: =IF(AW27="","",IF(AW27="TOTAL","",IF($AR$16=$AR$17,0,IF(AND(AW27>$BT$1,$AF$3=$AO$2,'Master Sheet'!$D$31>0),'Master Sheet'!$D$31,IF(AND(AW27=$BT$1,$AF$3=$AO$2),IF($AR$9<18001,135,IF($AR$9<33501,220,IF($AR$9<54001,330,440))),IF(AND(AW27>$BT$1,$AF$3=$AO$2),IF($AR$9<18001,265,IF($AR$9<33501,440,IF($AR$9<54001,658,875))),"")))))) -> 
D27: =IFERROR(IF($C26="TOTAL","अक्षरें राशि :-",IF($C27="TOTAL",SUM($D$8:D26),IF(AX28="","",AX28))),"") ->  | E27: =IFERROR(IF($C27="TOTAL",SUM($E$8:E26),IF(AY28="","",AY28)),"") ->  | F27: =IFERROR(IF($C27="TOTAL",SUM($F$8:F26),IF(OR(C27=$AP$16,C27=$AP$17,C27=$AP$18,C27=$AP$19,C27=$AP$20,C27=$AP$21,C27=$AP$22,C27=$AP$23,C27=$AP$24),0,IF(AZ28="","",AZ28))),"") ->  | H27: =IFERROR(IF($C27="TOTAL",SUM($H$8:H26),IF(BB28="","",BB28)),"") ->  | I27: =IFERROR(IF($C27="TOTAL",SUM($I$8:I26),IF(BC28="","",BC28)),"") ->  | J27: =IFERROR(IF($C27="TOTAL",SUM($J$8:J26),IF(OR(C27=$AP$16,C27=$AP$17,C27=$AP$18,C27=$AP$19,C27=$AP$20,C27=$AP$21,C27=$AP$22,C27=$AP$23,C27=$AP$24),0,IF(BD28="","",BD28))),"") ->  | L27: =IFERROR(IF(C27="","",IF(D27="","",IF(H27="","",IF($C27="TOTAL",SUM($L$8:L26),SUM(D27-H27))))),"") ->  | M27: =IFERROR(IF(C27="","",IF(E27="","",IF(I27="","",IF($C27="TOTAL",SUM($M$8:M26),SUM(E27-I27))))),"") ->  | N27: =IFERROR(IF(C27="","",IF(F27="","",IF(J27="","",IF($C27="TOTAL",SUM($N$8:N26),SUM(F27-J27))))),"") ->  | P27: =IFERROR(IF(C27="","",IF($C27="TOTAL",SUM($P$8:P26),IF(AND(C27>$AO$1,$AF$3=$AO$2),BR28,IF($AR$18=$AR$20,SUM(BE28+BM28),ROUND((D27+E27)*10%,0))))),"") ->  | Q27: =IFERROR(IF(C27="","",IF(H27="","",IF(I27="","",IF($C27="TOTAL",SUM($Q$8:Q26),IF(AND(C27>$AO$1,$AF$3=$AO$2),BR28,IF($AR$18=$AR$20,$AR$21,ROUND((H27+I27)*10%,0))))))),"") ->  | S27: =IFERROR(IF(C27="","",IF($AR$16=$AR$17,0,IF($C27="TOTAL",SUM($S$8:S26),IF($AR$19=$AR$31,0,IF(AND($AR$32=$AR$20,C27=$AR$33),$AR$34,S26))))),"") ->  | T27: =IFERROR(IF(C27="","",IF($AR$16=$AR$17,0,IF($C27="TOTAL",SUM($T$8:T26),IF($AR$19=$AR$20,$AR$24,0)))),"") ->  | V27: =IF(C27="","",IF($C27="TOTAL",SUM($V$8:V26),IF(AND($AR$2=$AR$20,C27=$AR$1),ROUND(D27/31*$AS$2,0),IF(C27=$AP$6,ROUND((G27)*1/30,0),IF(C27=$AQ$6,ROUND((G27)*1/31,0),""))))) ->  | W27: =IF(C27="","",IF($C27="TOTAL",SUM($W$8:W26),IF(AND($AR$2=$AR$20,C27=$AR$1),ROUND(H27/31*$AS$2,0),IF(C27=$AP$6,ROUND((K27)*1/30,0),IF(C27=$AQ$6,ROUND((K27)*1/31,0),""))))) ->  | Y27: =IFERROR(IF(C27="","",IF($AR$16=$AR$17,0,IF($AF$3=$AO$4,"",IF($C27="TOTAL",SUM($Y$8:Y26),BU27)))),"") ->  | Z27: =IFERROR(IF(C27="","",IF($AR$16=$AR$17,0,IF($AF$3=$AO$4,"",IF($C27="TOTAL",SUM($Z$8:Z26),BT27)))),"") ->  | AB27: =IFERROR(IF(C27="","",IF(AND(BK28="",BR28=""),"",IF($C27="TOTAL",SUM($AB$8:AB26),BK28))),"") ->  | AC27: =IFERROR(IF(C27="","",IF($C27="TOTAL",SUM($AC$8:AC26),ROUND(O27*$AR$7%,0))),"") ->  | AD27: =IFERROR(IF(C27="","",IF($C27="TOTAL",SUM($AD$8:AD26),IF($AF$3=$AO$2,SUM(U27,X27,AB27,AC27),SUM(R27,U27,X27,AB27,AC27)))),"") ->  | AE27: =IFERROR(IF(C27="","",IF($C27="TOTAL",SUM($AE$8:AE26),SUM(O27-AD27))),"") ->  | AN27: 42 | AO27: 42 | AQ27: 2018-07-01 | AR27: ='Master Sheet'!M15 -> 30500 | AS27: 2024-07-01 | BL27: 0 | BM27: 0 | BU27: =IF(AW28="","",IF(AW28="TOTAL","",IF($AR$16=$AR$17,0,IF(AND(AW28>$BT$1,$AF$3=$AO$2,'Master Sheet'!$D$31>0),'Master Sheet'!$D$31,IF(AND(AW28=$BT$1,$AF$3=$AO$2),IF($AR$9<18001,135,IF($AR$9<33501,220,IF($AR$9<54001,330,440))),IF(AND(AW28>$BT$1,$AF$3=$AO$2),IF($AR$9<18001,265,IF($AR$9<33501,440,IF($AR$9<54001,658,875))),"")))))) -> 
D28: =IFERROR(IF($C27="TOTAL","अक्षरें राशि :-",IF($C28="TOTAL",SUM($D$8:D27),IF(AX29="","",AX29))),"") ->  | E28: =IFERROR(IF($C28="TOTAL",SUM($E$8:E27),IF(AY29="","",AY29)),"") ->  | F28: =IFERROR(IF($C28="TOTAL",SUM($F$8:F27),IF(OR(C28=$AP$16,C28=$AP$17,C28=$AP$18,C28=$AP$19,C28=$AP$20,C28=$AP$21,C28=$AP$22,C28=$AP$23,C28=$AP$24),0,IF(AZ29="","",AZ29))),"") ->  | H28: =IFERROR(IF($C28="TOTAL",SUM($H$8:H27),IF(BB29="","",BB29)),"") ->  | I28: =IFERROR(IF($C28="TOTAL",SUM($I$8:I27),IF(BC29="","",BC29)),"") ->  | J28: =IFERROR(IF($C28="TOTAL",SUM($J$8:J27),IF(OR(C28=$AP$16,C28=$AP$17,C28=$AP$18,C28=$AP$19,C28=$AP$20,C28=$AP$21,C28=$AP$22,C28=$AP$23,C28=$AP$24),0,IF(BD29="","",BD29))),"") ->  | L28: =IFERROR(IF(C28="","",IF(D28="","",IF(H28="","",IF($C28="TOTAL",SUM($L$8:L27),SUM(D28-H28))))),"") ->  | M28: =IFERROR(IF(C28="","",IF(E28="","",IF(I28="","",IF($C28="TOTAL",SUM($M$8:M27),SUM(E28-I28))))),"") ->  | N28: =IFERROR(IF(C28="","",IF(F28="","",IF(J28="","",IF($C28="TOTAL",SUM($N$8:N27),SUM(F28-J28))))),"") ->  | P28: =IFERROR(IF(C28="","",IF($C28="TOTAL",SUM($P$8:P27),IF(AND(C28>$AO$1,$AF$3=$AO$2),BR29,IF($AR$18=$AR$20,SUM(BE29+BM29),ROUND((D28+E28)*10%,0))))),"") ->  | Q28: =IFERROR(IF(C28="","",IF(H28="","",IF(I28="","",IF($C28="TOTAL",SUM($Q$8:Q27),IF(AND(C28>$AO$1,$AF$3=$AO$2),BR29,IF($AR$18=$AR$20,$AR$21,ROUND((H28+I28)*10%,0))))))),"") ->  | S28: =IFERROR(IF(C28="","",IF($AR$16=$AR$17,0,IF($C28="TOTAL",SUM($S$8:S27),IF($AR$19=$AR$31,0,IF(AND($AR$32=$AR$20,C28=$AR$33),$AR$34,S27))))),"") ->  | T28: =IFERROR(IF(C28="","",IF($AR$16=$AR$17,0,IF($C28="TOTAL",SUM($T$8:T27),IF($AR$19=$AR$20,$AR$24,0)))),"") ->  | V28: =IF(C28="","",IF($C28="TOTAL",SUM($V$8:V27),IF(AND($AR$2=$AR$20,C28=$AR$1),ROUND(D28/31*$AS$2,0),IF(C28=$AP$6,ROUND((G28)*1/30,0),IF(C28=$AQ$6,ROUND((G28)*1/31,0),""))))) ->  | W28: =IF(C28="","",IF($C28="TOTAL",SUM($W$8:W27),IF(AND($AR$2=$AR$20,C28=$AR$1),ROUND(H28/31*$AS$2,0),IF(C28=$AP$6,ROUND((K28)*1/30,0),IF(C28=$AQ$6,ROUND((K28)*1/31,0),""))))) ->  | Y28: =IFERROR(IF(C28="","",IF($AR$16=$AR$17,0,IF($AF$3=$AO$4,"",IF($C28="TOTAL",SUM($Y$8:Y27),BU28)))),"") ->  | Z28: =IFERROR(IF(C28="","",IF($AR$16=$AR$17,0,IF($AF$3=$AO$4,"",IF($C28="TOTAL",SUM($Z$8:Z27),BT28)))),"") ->  | AB28: =IFERROR(IF(C28="","",IF(AND(BK29="",BR29=""),"",IF($C28="TOTAL",SUM($AB$8:AB27),BK29))),"") ->  | AC28: =IFERROR(IF(C28="","",IF($C28="TOTAL",SUM($AC$8:AC27),ROUND(O28*$AR$7%,0))),"") ->  | AD28: =IFERROR(IF(C28="","",IF($C28="TOTAL",SUM($AD$8:AD27),IF($AF$3=$AO$2,SUM(U28,X28,AB28,AC28),SUM(R28,U28,X28,AB28,AC28)))),"") ->  | AE28: =IFERROR(IF(C28="","",IF($C28="TOTAL",SUM($AE$8:AE27),SUM(O28-AD28))),"") ->  | AN28: 42 | AO28: 42 | AQ28: 2018-08-01 | AR28: ='Master Sheet'!D25 -> NO | AS28: 2024-08-01 | BL28: 0 | BM28: 0 | BU28: =IF(AW29="","",IF(AW29="TOTAL","",IF($AR$16=$AR$17,0,IF(AND(AW29>$BT$1,$AF$3=$AO$2,'Master Sheet'!$D$31>0),'Master Sheet'!$D$31,IF(AND(AW29=$BT$1,$AF$3=$AO$2),IF($AR$9<18001,135,IF($AR$9<33501,220,IF($AR$9<54001,330,440))),IF(AND(AW29>$BT$1,$AF$3=$AO$2),IF($AR$9<18001,265,IF($AR$9<33501,440,IF($AR$9<54001,658,875))),"")))))) -> 
D29: =IFERROR(IF($C28="TOTAL","अक्षरें राशि :-",IF($C29="TOTAL",SUM($D$8:D28),IF(AX30="","",AX30))),"") ->  | E29: =IFERROR(IF($C29="TOTAL",SUM($E$8:E28),IF(AY30="","",AY30)),"") ->  | F29: =IFERROR(IF($C29="TOTAL",SUM($F$8:F28),IF(OR(C29=$AP$16,C29=$AP$17,C29=$AP$18,C29=$AP$19,C29=$AP$20,C29=$AP$21,C29=$AP$22,C29=$AP$23,C29=$AP$24),0,IF(AZ30="","",AZ30))),"") ->  | H29: =IFERROR(IF($C29="TOTAL",SUM($H$8:H28),IF(BB30="","",BB30)),"") ->  | I29: =IFERROR(IF($C29="TOTAL",SUM($I$8:I28),IF(BC30="","",BC30)),"") ->  | J29: =IFERROR(IF($C29="TOTAL",SUM($J$8:J28),IF(OR(C29=$AP$16,C29=$AP$17,C29=$AP$18,C29=$AP$19,C29=$AP$20,C29=$AP$21,C29=$AP$22,C29=$AP$23,C29=$AP$24),0,IF(BD30="","",BD30))),"") ->  | L29: =IFERROR(IF(C29="","",IF(D29="","",IF(H29="","",IF($C29="TOTAL",SUM($L$8:L28),SUM(D29-H29))))),"") ->  | M29: =IFERROR(IF(C29="","",IF(E29="","",IF(I29="","",IF($C29="TOTAL",SUM($M$8:M28),SUM(E29-I29))))),"") ->  | N29: =IFERROR(IF(C29="","",IF(F29="","",IF(J29="","",IF($C29="TOTAL",SUM($N$8:N28),SUM(F29-J29))))),"") ->  | P29: =IFERROR(IF(C29="","",IF($C29="TOTAL",SUM($P$8:P28),IF(AND(C29>$AO$1,$AF$3=$AO$2),BR30,IF($AR$18=$AR$20,SUM(BE30+BM30),ROUND((D29+E29)*10%,0))))),"") ->  | Q29: =IFERROR(IF(C29="","",IF(H29="","",IF(I29="","",IF($C29="TOTAL",SUM($Q$8:Q28),IF(AND(C29>$AO$1,$AF$3=$AO$2),BR30,IF($AR$18=$AR$20,$AR$21,ROUND((H29+I29)*10%,0))))))),"") ->  | S29: =IFERROR(IF(C29="","",IF($AR$16=$AR$17,0,IF($C29="TOTAL",SUM($S$8:S28),IF($AR$19=$AR$31,0,IF(AND($AR$32=$AR$20,C29=$AR$33),$AR$34,S28))))),"") ->  | T29: =IFERROR(IF(C29="","",IF($AR$16=$AR$17,0,IF($C29="TOTAL",SUM($T$8:T28),IF($AR$19=$AR$20,$AR$24,0)))),"") ->  | V29: =IF(C29="","",IF($C29="TOTAL",SUM($V$8:V28),IF(AND($AR$2=$AR$20,C29=$AR$1),ROUND(D29/31*$AS$2,0),IF(C29=$AP$6,ROUND((G29)*1/30,0),IF(C29=$AQ$6,ROUND((G29)*1/31,0),""))))) ->  | W29: =IF(C29="","",IF($C29="TOTAL",SUM($W$8:W28),IF(AND($AR$2=$AR$20,C29=$AR$1),ROUND(H29/31*$AS$2,0),IF(C29=$AP$6,ROUND((K29)*1/30,0),IF(C29=$AQ$6,ROUND((K29)*1/31,0),""))))) ->  | Y29: =IFERROR(IF(C29="","",IF($AR$16=$AR$17,0,IF($AF$3=$AO$4,"",IF($C29="TOTAL",SUM($Y$8:Y28),BU29)))),"") ->  | Z29: =IFERROR(IF(C29="","",IF($AR$16=$AR$17,0,IF($AF$3=$AO$4,"",IF($C29="TOTAL",SUM($Z$8:Z28),BT29)))),"") ->  | AB29: =IFERROR(IF(C29="","",IF(AND(BK30="",BR30=""),"",IF($C29="TOTAL",SUM($AB$8:AB28),BK30))),"") ->  | AC29: =IFERROR(IF(C29="","",IF($C29="TOTAL",SUM($AC$8:AC28),ROUND(O29*$AR$7%,0))),"") ->  | AD29: =IFERROR(IF(C29="","",IF($C29="TOTAL",SUM($AD$8:AD28),IF($AF$3=$AO$2,SUM(U29,X29,AB29,AC29),SUM(R29,U29,X29,AB29,AC29)))),"") ->  | AE29: =IFERROR(IF(C29="","",IF($C29="TOTAL",SUM($AE$8:AE28),SUM(O29-AD29))),"") ->  | AN29: 42 | AO29: 42 | AQ29: 2018-09-01 | AR29: ='Master Sheet'!M25 -> 41100 | AS29: 2024-09-01 | BL29: 0 | BM29: 0 | BU29: =IF(AW30="","",IF(AW30="TOTAL","",IF($AR$16=$AR$17,0,IF(AND(AW30>$BT$1,$AF$3=$AO$2,'Master Sheet'!$D$31>0),'Master Sheet'!$D$31,IF(AND(AW30=$BT$1,$AF$3=$AO$2),IF($AR$9<18001,135,IF($AR$9<33501,220,IF($AR$9<54001,330,440))),IF(AND(AW30>$BT$1,$AF$3=$AO$2),IF($AR$9<18001,265,IF($AR$9<33501,440,IF($AR$9<54001,658,875))),"")))))) -> 
D30: =IFERROR(IF($C29="TOTAL","अक्षरें राशि :-",IF($C30="TOTAL",SUM($D$8:D29),IF(AX31="","",AX31))),"") ->  | E30: =IFERROR(IF($C30="TOTAL",SUM($E$8:E29),IF(AY31="","",AY31)),"") ->  | F30: =IFERROR(IF($C30="TOTAL",SUM($F$8:F29),IF(OR(C30=$AP$16,C30=$AP$17,C30=$AP$18,C30=$AP$19,C30=$AP$20,C30=$AP$21,C30=$AP$22,C30=$AP$23,C30=$AP$24),0,IF(AZ31="","",AZ31))),"") ->  | H30: =IFERROR(IF($C30="TOTAL",SUM($H$8:H29),IF(BB31="","",BB31)),"") ->  | I30: =IFERROR(IF($C30="TOTAL",SUM($I$8:I29),IF(BC31="","",BC31)),"") ->  | J30: =IFERROR(IF($C30="TOTAL",SUM($J$8:J29),IF(OR(C30=$AP$16,C30=$AP$17,C30=$AP$18,C30=$AP$19,C30=$AP$20,C30=$AP$21,C30=$AP$22,C30=$AP$23,C30=$AP$24),0,IF(BD31="","",BD31))),"") ->  | L30: =IFERROR(IF(C30="","",IF(D30="","",IF(H30="","",IF($C30="TOTAL",SUM($L$8:L29),SUM(D30-H30))))),"") ->  | M30: =IFERROR(IF(C30="","",IF(E30="","",IF(I30="","",IF($C30="TOTAL",SUM($M$8:M29),SUM(E30-I30))))),"") ->  | N30: =IFERROR(IF(C30="","",IF(F30="","",IF(J30="","",IF($C30="TOTAL",SUM($N$8:N29),SUM(F30-J30))))),"") ->  | P30: =IFERROR(IF(C30="","",IF($C30="TOTAL",SUM($P$8:P29),IF(AND(C30>$AO$1,$AF$3=$AO$2),BR31,IF($AR$18=$AR$20,SUM(BE31+BM31),ROUND((D30+E30)*10%,0))))),"") ->  | Q30: =IFERROR(IF(C30="","",IF(H30="","",IF(I30="","",IF($C30="TOTAL",SUM($Q$8:Q29),IF(AND(C30>$AO$1,$AF$3=$AO$2),BR31,IF($AR$18=$AR$20,$AR$21,ROUND((H30+I30)*10%,0))))))),"") ->  | S30: =IFERROR(IF(C30="","",IF($AR$16=$AR$17,0,IF($C30="TOTAL",SUM($S$8:S29),IF($AR$19=$AR$31,0,IF(AND($AR$32=$AR$20,C30=$AR$33),$AR$34,S29))))),"") ->  | T30: =IFERROR(IF(C30="","",IF($AR$16=$AR$17,0,IF($C30="TOTAL",SUM($T$8:T29),IF($AR$19=$AR$20,$AR$24,0)))),"") ->  | V30: =IF(C30="","",IF($C30="TOTAL",SUM($V$8:V29),IF(AND($AR$2=$AR$20,C30=$AR$1),ROUND(D30/31*$AS$2,0),IF(C30=$AP$6,ROUND((G30)*1/30,0),IF(C30=$AQ$6,ROUND((G30)*1/31,0),""))))) ->  | W30: =IF(C30="","",IF($C30="TOTAL",SUM($W$8:W29),IF(AND($AR$2=$AR$20,C30=$AR$1),ROUND(H30/31*$AS$2,0),IF(C30=$AP$6,ROUND((K30)*1/30,0),IF(C30=$AQ$6,ROUND((K30)*1/31,0),""))))) ->  | Y30: =IFERROR(IF(C30="","",IF($AR$16=$AR$17,0,IF($AF$3=$AO$4,"",IF($C30="TOTAL",SUM($Y$8:Y29),BU30)))),"") ->  | Z30: =IFERROR(IF(C30="","",IF($AR$16=$AR$17,0,IF($AF$3=$AO$4,"",IF($C30="TOTAL",SUM($Z$8:Z29),BT30)))),"") ->  | AB30: =IFERROR(IF(C30="","",IF(AND(BK31="",BR31=""),"",IF($C30="TOTAL",SUM($AB$8:AB29),BK31))),"") ->  | AC30: =IFERROR(IF(C30="","",IF($C30="TOTAL",SUM($AC$8:AC29),ROUND(O30*$AR$7%,0))),"") ->  | AD30: =IFERROR(IF(C30="","",IF($C30="TOTAL",SUM($AD$8:AD29),IF($AF$3=$AO$2,SUM(U30,X30,AB30,AC30),SUM(R30,U30,X30,AB30,AC30)))),"") ->  | AE30: =IFERROR(IF(C30="","",IF($C30="TOTAL",SUM($AE$8:AE29),SUM(O30-AD30))),"") ->  | AN30: 42 | AO30: 42 | AQ30: 2018-10-01 | AR30: ='Master Sheet'!I25 -> 2021-04-01 | AS30: 2024-10-01 | BL30: 0 | BM30: 0 | BU30: =IF(AW31="","",IF(AW31="TOTAL","",IF($AR$16=$AR$17,0,IF(AND(AW31>$BT$1,$AF$3=$AO$2,'Master Sheet'!$D$31>0),'Master Sheet'!$D$31,IF(AND(AW31=$BT$1,$AF$3=$AO$2),IF($AR$9<18001,135,IF($AR$9<33501,220,IF($AR$9<54001,330,440))),IF(AND(AW31>$BT$1,$AF$3=$AO$2),IF($AR$9<18001,265,IF($AR$9<33501,440,IF($AR$9<54001,658,875))),"")))))) -> 
D31: =IFERROR(IF($C30="TOTAL","अक्षरें राशि :-",IF($C31="TOTAL",SUM($D$8:D30),IF(AX32="","",AX32))),"") ->  | E31: =IFERROR(IF($C31="TOTAL",SUM($E$8:E30),IF(AY32="","",AY32)),"") ->  | F31: =IFERROR(IF($C31="TOTAL",SUM($F$8:F30),IF(OR(C31=$AP$16,C31=$AP$17,C31=$AP$18,C31=$AP$19,C31=$AP$20,C31=$AP$21,C31=$AP$22,C31=$AP$23,C31=$AP$24),0,IF(AZ32="","",AZ32))),"") ->  | H31: =IFERROR(IF($C31="TOTAL",SUM($H$8:H30),IF(BB32="","",BB32)),"") ->  | I31: =IFERROR(IF($C31="TOTAL",SUM($I$8:I30),IF(BC32="","",BC32)),"") ->  | J31: =IFERROR(IF($C31="TOTAL",SUM($J$8:J30),IF(OR(C31=$AP$16,C31=$AP$17,C31=$AP$18,C31=$AP$19,C31=$AP$20,C31=$AP$21,C31=$AP$22,C31=$AP$23,C31=$AP$24),0,IF(BD32="","",BD32))),"") ->  | L31: =IFERROR(IF(C31="","",IF(D31="","",IF(H31="","",IF($C31="TOTAL",SUM($L$8:L30),SUM(D31-H31))))),"") ->  | M31: =IFERROR(IF(C31="","",IF(E31="","",IF(I31="","",IF($C31="TOTAL",SUM($M$8:M30),SUM(E31-I31))))),"") ->  | N31: =IFERROR(IF(C31="","",IF(F31="","",IF(J31="","",IF($C31="TOTAL",SUM($N$8:N30),SUM(F31-J31))))),"") ->  | P31: =IFERROR(IF(C31="","",IF($C31="TOTAL",SUM($P$8:P30),IF(AND(C31>$AO$1,$AF$3=$AO$2),BR32,IF($AR$18=$AR$20,SUM(BE32+BM32),ROUND((D31+E31)*10%,0))))),"") ->  | Q31: =IFERROR(IF(C31="","",IF(H31="","",IF(I31="","",IF($C31="TOTAL",SUM($Q$8:Q30),IF(AND(C31>$AO$1,$AF$3=$AO$2),BR32,IF($AR$18=$AR$20,$AR$21,ROUND((H31+I31)*10%,0))))))),"") ->  | S31: =IFERROR(IF(C31="","",IF($AR$16=$AR$17,0,IF($C31="TOTAL",SUM($S$8:S30),IF($AR$19=$AR$31,0,IF(AND($AR$32=$AR$20,C31=$AR$33),$AR$34,S30))))),"") ->  | T31: =IFERROR(IF(C31="","",IF($AR$16=$AR$17,0,IF($C31="TOTAL",SUM($T$8:T30),IF($AR$19=$AR$20,$AR$24,0)))),"") ->  | V31: =IF(C31="","",IF($C31="TOTAL",SUM($V$8:V30),IF(AND($AR$2=$AR$20,C31=$AR$1),ROUND(D31/31*$AS$2,0),IF(C31=$AP$6,ROUND((G31)*1/30,0),IF(C31=$AQ$6,ROUND((G31)*1/31,0),""))))) ->  | W31: =IF(C31="","",IF($C31="TOTAL",SUM($W$8:W30),IF(AND($AR$2=$AR$20,C31=$AR$1),ROUND(H31/31*$AS$2,0),IF(C31=$AP$6,ROUND((K31)*1/30,0),IF(C31=$AQ$6,ROUND((K31)*1/31,0),""))))) ->  | Y31: =IFERROR(IF(C31="","",IF($AR$16=$AR$17,0,IF($AF$3=$AO$4,"",IF($C31="TOTAL",SUM($Y$8:Y30),BU31)))),"") ->  | Z31: =IFERROR(IF(C31="","",IF($AR$16=$AR$17,0,IF($AF$3=$AO$4,"",IF($C31="TOTAL",SUM($Z$8:Z30),BT31)))),"") ->  | AB31: =IFERROR(IF(C31="","",IF(AND(BK32="",BR32=""),"",IF($C31="TOTAL",SUM($AB$8:AB30),BK32))),"") ->  | AC31: =IFERROR(IF(C31="","",IF($C31="TOTAL",SUM($AC$8:AC30),ROUND(O31*$AR$7%,0))),"") ->  | AD31: =IFERROR(IF(C31="","",IF($C31="TOTAL",SUM($AD$8:AD30),IF($AF$3=$AO$2,SUM(U31,X31,AB31,AC31),SUM(R31,U31,X31,AB31,AC31)))),"") ->  | AE31: =IFERROR(IF(C31="","",IF($C31="TOTAL",SUM($AE$8:AE30),SUM(O31-AD31))),"") ->  | AN31: 42 | AO31: 42 | AQ31: 2018-11-01 | AR31: NO | AS31: 2024-11-01 | BL31: 0 | BM31: 0 | BU31: =IF(AW32="","",IF(AW32="TOTAL","",IF($AR$16=$AR$17,0,IF(AND(AW32>$BT$1,$AF$3=$AO$2,'Master Sheet'!$D$31>0),'Master Sheet'!$D$31,IF(AND(AW32=$BT$1,$AF$3=$AO$2),IF($AR$9<18001,135,IF($AR$9<33501,220,IF($AR$9<54001,330,440))),IF(AND(AW32>$BT$1,$AF$3=$AO$2),IF($AR$9<18001,265,IF($AR$9<33501,440,IF($AR$9<54001,658,875))),"")))))) -> 
D32: =IFERROR(IF($C31="TOTAL","अक्षरें राशि :-",IF($C32="TOTAL",SUM($D$8:D31),IF(AX33="","",AX33))),"") ->  | E32: =IFERROR(IF($C32="TOTAL",SUM($E$8:E31),IF(AY33="","",AY33)),"") ->  | F32: =IFERROR(IF($C32="TOTAL",SUM($F$8:F31),IF(OR(C32=$AP$16,C32=$AP$17,C32=$AP$18,C32=$AP$19,C32=$AP$20,C32=$AP$21,C32=$AP$22,C32=$AP$23,C32=$AP$24),0,IF(AZ33="","",AZ33))),"") ->  | H32: =IFERROR(IF($C32="TOTAL",SUM($H$8:H31),IF(BB33="","",BB33)),"") ->  | I32: =IFERROR(IF($C32="TOTAL",SUM($I$8:I31),IF(BC33="","",BC33)),"") ->  | J32: =IFERROR(IF($C32="TOTAL",SUM($J$8:J31),IF(OR(C32=$AP$16,C32=$AP$17,C32=$AP$18,C32=$AP$19,C32=$AP$20,C32=$AP$21,C32=$AP$22,C32=$AP$23,C32=$AP$24),0,IF(BD33="","",BD33))),"") ->  | L32: =IFERROR(IF(C32="","",IF(D32="","",IF(H32="","",IF($C32="TOTAL",SUM($L$8:L31),SUM(D32-H32))))),"") ->  | M32: =IFERROR(IF(C32="","",IF(E32="","",IF(I32="","",IF($C32="TOTAL",SUM($M$8:M31),SUM(E32-I32))))),"") ->  | N32: =IFERROR(IF(C32="","",IF(F32="","",IF(J32="","",IF($C32="TOTAL",SUM($N$8:N31),SUM(F32-J32))))),"") ->  | P32: =IFERROR(IF(C32="","",IF($C32="TOTAL",SUM($P$8:P31),IF(AND(C32>$AO$1,$AF$3=$AO$2),BR33,IF($AR$18=$AR$20,SUM(BE33+BM33),ROUND((D32+E32)*10%,0))))),"") ->  | Q32: =IFERROR(IF(C32="","",IF(H32="","",IF(I32="","",IF($C32="TOTAL",SUM($Q$8:Q31),IF(AND(C32>$AO$1,$AF$3=$AO$2),BR33,IF($AR$18=$AR$20,$AR$21,ROUND((H32+I32)*10%,0))))))),"") ->  | S32: =IFERROR(IF(C32="","",IF($AR$16=$AR$17,0,IF($C32="TOTAL",SUM($S$8:S31),IF($AR$19=$AR$31,0,IF(AND($AR$32=$AR$20,C32=$AR$33),$AR$34,S31))))),"") ->  | T32: =IFERROR(IF(C32="","",IF($AR$16=$AR$17,0,IF($C32="TOTAL",SUM($T$8:T31),IF($AR$19=$AR$20,$AR$24,0)))),"") ->  | V32: =IF(C32="","",IF($C32="TOTAL",SUM($V$8:V31),IF(AND($AR$2=$AR$20,C32=$AR$1),ROUND(D32/31*$AS$2,0),IF(C32=$AP$6,ROUND((G32)*1/30,0),IF(C32=$AQ$6,ROUND((G32)*1/31,0),""))))) ->  | W32: =IF(C32="","",IF($C32="TOTAL",SUM($W$8:W31),IF(AND($AR$2=$AR$20,C32=$AR$1),ROUND(H32/31*$AS$2,0),IF(C32=$AP$6,ROUND((K32)*1/30,0),IF(C32=$AQ$6,ROUND((K32)*1/31,0),""))))) ->  | Y32: =IFERROR(IF(C32="","",IF($AR$16=$AR$17,0,IF($AF$3=$AO$4,"",IF($C32="TOTAL",SUM($Y$8:Y31),BU32)))),"") ->  | Z32: =IFERROR(IF(C32="","",IF($AR$16=$AR$17,0,IF($AF$3=$AO$4,"",IF($C32="TOTAL",SUM($Z$8:Z31),BT32)))),"") ->  | AB32: =IFERROR(IF(C32="","",IF(AND(BK33="",BR33=""),"",IF($C32="TOTAL",SUM($AB$8:AB31),BK33))),"") ->  | AC32: =IFERROR(IF(C32="","",IF($C32="TOTAL",SUM($AC$8:AC31),ROUND(O32*$AR$7%,0))),"") ->  | AD32: =IFERROR(IF(C32="","",IF($C32="TOTAL",SUM($AD$8:AD31),IF($AF$3=$AO$2,SUM(U32,X32,AB32,AC32),SUM(R32,U32,X32,AB32,AC32)))),"") ->  | AE32: =IFERROR(IF(C32="","",IF($C32="TOTAL",SUM($AE$8:AE31),SUM(O32-AD32))),"") ->  | AN32: 42 | AO32: 42 | AQ32: 2018-12-01 | AR32: ='Master Sheet'!D19 -> NO | AS32: 2024-12-01 | BL32: 0 | BM32: 0 | BU32: =IF(AW33="","",IF(AW33="TOTAL","",IF($AR$16=$AR$17,0,IF(AND(AW33>$BT$1,$AF$3=$AO$2,'Master Sheet'!$D$31>0),'Master Sheet'!$D$31,IF(AND(AW33=$BT$1,$AF$3=$AO$2),IF($AR$9<18001,135,IF($AR$9<33501,220,IF($AR$9<54001,330,440))),IF(AND(AW33>$BT$1,$AF$3=$AO$2),IF($AR$9<18001,265,IF($AR$9<33501,440,IF($AR$9<54001,658,875))),"")))))) -> 
D33: =IFERROR(IF($C32="TOTAL","अक्षरें राशि :-",IF($C33="TOTAL",SUM($D$8:D32),IF(AX34="","",AX34))),"") ->  | E33: =IFERROR(IF($C33="TOTAL",SUM($E$8:E32),IF(AY34="","",AY34)),"") ->  | F33: =IFERROR(IF($C33="TOTAL",SUM($F$8:F32),IF(OR(C33=$AP$16,C33=$AP$17,C33=$AP$18,C33=$AP$19,C33=$AP$20,C33=$AP$21,C33=$AP$22,C33=$AP$23,C33=$AP$24),0,IF(AZ34="","",AZ34))),"") ->  | H33: =IFERROR(IF($C33="TOTAL",SUM($H$8:H32),IF(BB34="","",BB34)),"") ->  | I33: =IFERROR(IF($C33="TOTAL",SUM($I$8:I32),IF(BC34="","",BC34)),"") ->  | J33: =IFERROR(IF($C33="TOTAL",SUM($J$8:J32),IF(OR(C33=$AP$16,C33=$AP$17,C33=$AP$18,C33=$AP$19,C33=$AP$20,C33=$AP$21,C33=$AP$22,C33=$AP$23,C33=$AP$24),0,IF(BD34="","",BD34))),"") ->  | L33: =IFERROR(IF(C33="","",IF(D33="","",IF(H33="","",IF($C33="TOTAL",SUM($L$8:L32),SUM(D33-H33))))),"") ->  | M33: =IFERROR(IF(C33="","",IF(E33="","",IF(I33="","",IF($C33="TOTAL",SUM($M$8:M32),SUM(E33-I33))))),"") ->  | N33: =IFERROR(IF(C33="","",IF(F33="","",IF(J33="","",IF($C33="TOTAL",SUM($N$8:N32),SUM(F33-J33))))),"") ->  | P33: =IFERROR(IF(C33="","",IF($C33="TOTAL",SUM($P$8:P32),IF(AND(C33>$AO$1,$AF$3=$AO$2),BR34,IF($AR$18=$AR$20,SUM(BE34+BM34),ROUND((D33+E33)*10%,0))))),"") ->  | Q33: =IFERROR(IF(C33="","",IF(H33="","",IF(I33="","",IF($C33="TOTAL",SUM($Q$8:Q32),IF(AND(C33>$AO$1,$AF$3=$AO$2),BR34,IF($AR$18=$AR$20,$AR$21,ROUND((H33+I33)*10%,0))))))),"") ->  | S33: =IFERROR(IF(C33="","",IF($AR$16=$AR$17,0,IF($C33="TOTAL",SUM($S$8:S32),IF($AR$19=$AR$31,0,IF(AND($AR$32=$AR$20,C33=$AR$33),$AR$34,S32))))),"") ->  | T33: =IFERROR(IF(C33="","",IF($AR$16=$AR$17,0,IF($C33="TOTAL",SUM($T$8:T32),IF($AR$19=$AR$20,$AR$24,0)))),"") ->  | V33: =IF(C33="","",IF($C33="TOTAL",SUM($V$8:V32),IF(AND($AR$2=$AR$20,C33=$AR$1),ROUND(D33/31*$AS$2,0),IF(C33=$AP$6,ROUND((G33)*1/30,0),IF(C33=$AQ$6,ROUND((G33)*1/31,0),""))))) ->  | W33: =IF(C33="","",IF($C33="TOTAL",SUM($W$8:W32),IF(AND($AR$2=$AR$20,C33=$AR$1),ROUND(H33/31*$AS$2,0),IF(C33=$AP$6,ROUND((K33)*1/30,0),IF(C33=$AQ$6,ROUND((K33)*1/31,0),""))))) ->  | Y33: =IFERROR(IF(C33="","",IF($AR$16=$AR$17,0,IF($AF$3=$AO$4,"",IF($C33="TOTAL",SUM($Y$8:Y32),BU33)))),"") ->  | Z33: =IFERROR(IF(C33="","",IF($AR$16=$AR$17,0,IF($AF$3=$AO$4,"",IF($C33="TOTAL",SUM($Z$8:Z32),BT33)))),"") ->  | AB33: =IFERROR(IF(C33="","",IF(AND(BK34="",BR34=""),"",IF($C33="TOTAL",SUM($AB$8:AB32),BK34))),"") ->  | AC33: =IFERROR(IF(C33="","",IF($C33="TOTAL",SUM($AC$8:AC32),ROUND(O33*$AR$7%,0))),"") ->  | AD33: =IFERROR(IF(C33="","",IF($C33="TOTAL",SUM($AD$8:AD32),IF($AF$3=$AO$2,SUM(U33,X33,AB33,AC33),SUM(R33,U33,X33,AB33,AC33)))),"") ->  | AE33: =IFERROR(IF(C33="","",IF($C33="TOTAL",SUM($AE$8:AE32),SUM(O33-AD33))),"") ->  | AN33: 42 | AO33: 42 | AQ33: 2019-01-01 | AR33: ='Master Sheet'!I19 -> 43525 | AS33: 2025-01-01 | BL33: 0 | BM33: 0 | BU33: =IF(AW34="","",IF(AW34="TOTAL","",IF($AR$16=$AR$17,0,IF(AND(AW34>$BT$1,$AF$3=$AO$2,'Master Sheet'!$D$31>0),'Master Sheet'!$D$31,IF(AND(AW34=$BT$1,$AF$3=$AO$2),IF($AR$9<18001,135,IF($AR$9<33501,220,IF($AR$9<54001,330,440))),IF(AND(AW34>$BT$1,$AF$3=$AO$2),IF($AR$9<18001,265,IF($AR$9<33501,440,IF($AR$9<54001,658,875))),"")))))) -> 
D34: =IFERROR(IF($C33="TOTAL","अक्षरें राशि :-",IF($C34="TOTAL",SUM($D$8:D33),IF(AX35="","",AX35))),"") ->  | E34: =IFERROR(IF($C34="TOTAL",SUM($E$8:E33),IF(AY35="","",AY35)),"") ->  | F34: =IFERROR(IF($C34="TOTAL",SUM($F$8:F33),IF(OR(C34=$AP$16,C34=$AP$17,C34=$AP$18,C34=$AP$19,C34=$AP$20,C34=$AP$21,C34=$AP$22,C34=$AP$23,C34=$AP$24),0,IF(AZ35="","",AZ35))),"") ->  | H34: =IFERROR(IF($C34="TOTAL",SUM($H$8:H33),IF(BB35="","",BB35)),"") ->  | I34: =IFERROR(IF($C34="TOTAL",SUM($I$8:I33),IF(BC35="","",BC35)),"") ->  | J34: =IFERROR(IF($C34="TOTAL",SUM($J$8:J33),IF(OR(C34=$AP$16,C34=$AP$17,C34=$AP$18,C34=$AP$19,C34=$AP$20,C34=$AP$21,C34=$AP$22,C34=$AP$23,C34=$AP$24),0,IF(BD35="","",BD35))),"") ->  | L34: =IFERROR(IF(C34="","",IF(D34="","",IF(H34="","",IF($C34="TOTAL",SUM($L$8:L33),SUM(D34-H34))))),"") ->  | M34: =IFERROR(IF(C34="","",IF(E34="","",IF(I34="","",IF($C34="TOTAL",SUM($M$8:M33),SUM(E34-I34))))),"") ->  | N34: =IFERROR(IF(C34="","",IF(F34="","",IF(J34="","",IF($C34="TOTAL",SUM($N$8:N33),SUM(F34-J34))))),"") ->  | P34: =IFERROR(IF(C34="","",IF($C34="TOTAL",SUM($P$8:P33),IF(AND(C34>$AO$1,$AF$3=$AO$2),BR35,IF($AR$18=$AR$20,SUM(BE35+BM35),ROUND((D34+E34)*10%,0))))),"") ->  | Q34: =IFERROR(IF(C34="","",IF(H34="","",IF(I34="","",IF($C34="TOTAL",SUM($Q$8:Q33),IF(AND(C34>$AO$1,$AF$3=$AO$2),BR35,IF($AR$18=$AR$20,$AR$21,ROUND((H34+I34)*10%,0))))))),"") ->  | S34: =IFERROR(IF(C34="","",IF($AR$16=$AR$17,0,IF($C34="TOTAL",SUM($S$8:S33),IF($AR$19=$AR$31,0,IF(AND($AR$32=$AR$20,C34=$AR$33),$AR$34,S33))))),"") ->  | T34: =IFERROR(IF(C34="","",IF($AR$16=$AR$17,0,IF($C34="TOTAL",SUM($T$8:T33),IF($AR$19=$AR$20,$AR$24,0)))),"") ->  | V34: =IF(C34="","",IF($C34="TOTAL",SUM($V$8:V33),IF(AND($AR$2=$AR$20,C34=$AR$1),ROUND(D34/31*$AS$2,0),IF(C34=$AP$6,ROUND((G34)*1/30,0),IF(C34=$AQ$6,ROUND((G34)*1/31,0),""))))) ->  | W34: =IF(C34="","",IF($C34="TOTAL",SUM($W$8:W33),IF(AND($AR$2=$AR$20,C34=$AR$1),ROUND(H34/31*$AS$2,0),IF(C34=$AP$6,ROUND((K34)*1/30,0),IF(C34=$AQ$6,ROUND((K34)*1/31,0),""))))) ->  | Y34: =IFERROR(IF(C34="","",IF($AR$16=$AR$17,0,IF($AF$3=$AO$4,"",IF($C34="TOTAL",SUM($Y$8:Y33),BU34)))),"") ->  | Z34: =IFERROR(IF(C34="","",IF($AR$16=$AR$17,0,IF($AF$3=$AO$4,"",IF($C34="TOTAL",SUM($Z$8:Z33),BT34)))),"") ->  | AB34: =IFERROR(IF(C34="","",IF(AND(BK35="",BR35=""),"",IF($C34="TOTAL",SUM($AB$8:AB33),BK35))),"") ->  | AC34: =IFERROR(IF(C34="","",IF($C34="TOTAL",SUM($AC$8:AC33),ROUND(O34*$AR$7%,0))),"") ->  | AD34: =IFERROR(IF(C34="","",IF($C34="TOTAL",SUM($AD$8:AD33),IF($AF$3=$AO$2,SUM(U34,X34,AB34,AC34),SUM(R34,U34,X34,AB34,AC34)))),"") ->  | AE34: =IFERROR(IF(C34="","",IF($C34="TOTAL",SUM($AE$8:AE33),SUM(O34-AD34))),"") ->  | AN34: 42 | AO34: 42 | AQ34: 2019-02-01 | AR34: ='Master Sheet'!M19 -> 3000 | AS34: 2025-02-01 | BL34: 0 | BM34: 0 | BU34: =IF(AW35="","",IF(AW35="TOTAL","",IF($AR$16=$AR$17,0,IF(AND(AW35>$BT$1,$AF$3=$AO$2,'Master Sheet'!$D$31>0),'Master Sheet'!$D$31,IF(AND(AW35=$BT$1,$AF$3=$AO$2),IF($AR$9<18001,135,IF($AR$9<33501,220,IF($AR$9<54001,330,440))),IF(AND(AW35>$BT$1,$AF$3=$AO$2),IF($AR$9<18001,265,IF($AR$9<33501,440,IF($AR$9<54001,658,875))),"")))))) -> 
D35: =IFERROR(IF($C34="TOTAL","अक्षरें राशि :-",IF($C35="TOTAL",SUM($D$8:D34),IF(AX36="","",AX36))),"") ->  | E35: =IFERROR(IF($C35="TOTAL",SUM($E$8:E34),IF(AY36="","",AY36)),"") ->  | F35: =IFERROR(IF($C35="TOTAL",SUM($F$8:F34),IF(OR(C35=$AP$16,C35=$AP$17,C35=$AP$18,C35=$AP$19,C35=$AP$20,C35=$AP$21,C35=$AP$22,C35=$AP$23,C35=$AP$24),0,IF(AZ36="","",AZ36))),"") ->  | H35: =IFERROR(IF($C35="TOTAL",SUM($H$8:H34),IF(BB36="","",BB36)),"") ->  | I35: =IFERROR(IF($C35="TOTAL",SUM($I$8:I34),IF(BC36="","",BC36)),"") ->  | J35: =IFERROR(IF($C35="TOTAL",SUM($J$8:J34),IF(OR(C35=$AP$16,C35=$AP$17,C35=$AP$18,C35=$AP$19,C35=$AP$20,C35=$AP$21,C35=$AP$22,C35=$AP$23,C35=$AP$24),0,IF(BD36="","",BD36))),"") ->  | L35: =IFERROR(IF(C35="","",IF(D35="","",IF(H35="","",IF($C35="TOTAL",SUM($L$8:L34),SUM(D35-H35))))),"") ->  | M35: =IFERROR(IF(C35="","",IF(E35="","",IF(I35="","",IF($C35="TOTAL",SUM($M$8:M34),SUM(E35-I35))))),"") ->  | N35: =IFERROR(IF(C35="","",IF(F35="","",IF(J35="","",IF($C35="TOTAL",SUM($N$8:N34),SUM(F35-J35))))),"") ->  | P35: =IFERROR(IF(C35="","",IF($C35="TOTAL",SUM($P$8:P34),IF(AND(C35>$AO$1,$AF$3=$AO$2),BR36,IF($AR$18=$AR$20,SUM(BE36+BM36),ROUND((D35+E35)*10%,0))))),"") ->  | Q35: =IFERROR(IF(C35="","",IF(H35="","",IF(I35="","",IF($C35="TOTAL",SUM($Q$8:Q34),IF(AND(C35>$AO$1,$AF$3=$AO$2),BR36,IF($AR$18=$AR$20,$AR$21,ROUND((H35+I35)*10%,0))))))),"") ->  | S35: =IFERROR(IF(C35="","",IF($AR$16=$AR$17,0,IF($C35="TOTAL",SUM($S$8:S34),IF($AR$19=$AR$31,0,IF(AND($AR$32=$AR$20,C35=$AR$33),$AR$34,S34))))),"") ->  | T35: =IFERROR(IF(C35="","",IF($AR$16=$AR$17,0,IF($C35="TOTAL",SUM($T$8:T34),IF($AR$19=$AR$20,$AR$24,0)))),"") ->  | V35: =IF(C35="","",IF($C35="TOTAL",SUM($V$8:V34),IF(AND($AR$2=$AR$20,C35=$AR$1),ROUND(D35/31*$AS$2,0),IF(C35=$AP$6,ROUND((G35)*1/30,0),IF(C35=$AQ$6,ROUND((G35)*1/31,0),""))))) ->  | W35: =IF(C35="","",IF($C35="TOTAL",SUM($W$8:W34),IF(AND($AR$2=$AR$20,C35=$AR$1),ROUND(H35/31*$AS$2,0),IF(C35=$AP$6,ROUND((K35)*1/30,0),IF(C35=$AQ$6,ROUND((K35)*1/31,0),""))))) ->  | Y35: =IFERROR(IF(C35="","",IF($AR$16=$AR$17,0,IF($AF$3=$AO$4,"",IF($C35="TOTAL",SUM($Y$8:Y34),BU35)))),"") ->  | Z35: =IFERROR(IF(C35="","",IF($AR$16=$AR$17,0,IF($AF$3=$AO$4,"",IF($C35="TOTAL",SUM($Z$8:Z34),BT35)))),"") ->  | AB35: =IFERROR(IF(C35="","",IF(AND(BK36="",BR36=""),"",IF($C35="TOTAL",SUM($AB$8:AB34),BK36))),"") ->  | AC35: =IFERROR(IF(C35="","",IF($C35="TOTAL",SUM($AC$8:AC34),ROUND(O35*$AR$7%,0))),"") ->  | AD35: =IFERROR(IF(C35="","",IF($C35="TOTAL",SUM($AD$8:AD34),IF($AF$3=$AO$2,SUM(U35,X35,AB35,AC35),SUM(R35,U35,X35,AB35,AC35)))),"") ->  | AE35: =IFERROR(IF(C35="","",IF($C35="TOTAL",SUM($AE$8:AE34),SUM(O35-AD35))),"") ->  | AN35: 42 | AO35: 42 | AQ35: 2019-03-01 | AS35: 2025-03-01 | BL35: 0 | BM35: 0 | BU35: =IF(AW36="","",IF(AW36="TOTAL","",IF($AR$16=$AR$17,0,IF(AND(AW36>$BT$1,$AF$3=$AO$2,'Master Sheet'!$D$31>0),'Master Sheet'!$D$31,IF(AND(AW36=$BT$1,$AF$3=$AO$2),IF($AR$9<18001,135,IF($AR$9<33501,220,IF($AR$9<54001,330,440))),IF(AND(AW36>$BT$1,$AF$3=$AO$2),IF($AR$9<18001,265,IF($AR$9<33501,440,IF($AR$9<54001,658,875))),"")))))) -> 
D36: =IFERROR(IF($C35="TOTAL","अक्षरें राशि :-",IF($C36="TOTAL",SUM($D$8:D35),IF(AX37="","",AX37))),"") ->  | E36: =IFERROR(IF($C36="TOTAL",SUM($E$8:E35),IF(AY37="","",AY37)),"") ->  | F36: =IFERROR(IF($C36="TOTAL",SUM($F$8:F35),IF(OR(C36=$AP$16,C36=$AP$17,C36=$AP$18,C36=$AP$19,C36=$AP$20,C36=$AP$21,C36=$AP$22,C36=$AP$23,C36=$AP$24),0,IF(AZ37="","",AZ37))),"") ->  | H36: =IFERROR(IF($C36="TOTAL",SUM($H$8:H35),IF(BB37="","",BB37)),"") ->  | I36: =IFERROR(IF($C36="TOTAL",SUM($I$8:I35),IF(BC37="","",BC37)),"") ->  | J36: =IFERROR(IF($C36="TOTAL",SUM($J$8:J35),IF(OR(C36=$AP$16,C36=$AP$17,C36=$AP$18,C36=$AP$19,C36=$AP$20,C36=$AP$21,C36=$AP$22,C36=$AP$23,C36=$AP$24),0,IF(BD37="","",BD37))),"") ->  | L36: =IFERROR(IF(C36="","",IF(D36="","",IF(H36="","",IF($C36="TOTAL",SUM($L$8:L35),SUM(D36-H36))))),"") ->  | M36: =IFERROR(IF(C36="","",IF(E36="","",IF(I36="","",IF($C36="TOTAL",SUM($M$8:M35),SUM(E36-I36))))),"") ->  | N36: =IFERROR(IF(C36="","",IF(F36="","",IF(J36="","",IF($C36="TOTAL",SUM($N$8:N35),SUM(F36-J36))))),"") ->  | P36: =IFERROR(IF(C36="","",IF($C36="TOTAL",SUM($P$8:P35),IF(AND(C36>$AO$1,$AF$3=$AO$2),BR37,IF($AR$18=$AR$20,SUM(BE37+BM37),ROUND((D36+E36)*10%,0))))),"") ->  | Q36: =IFERROR(IF(C36="","",IF(H36="","",IF(I36="","",IF($C36="TOTAL",SUM($Q$8:Q35),IF(AND(C36>$AO$1,$AF$3=$AO$2),BR37,IF($AR$18=$AR$20,$AR$21,ROUND((H36+I36)*10%,0))))))),"") ->  | S36: =IFERROR(IF(C36="","",IF($AR$16=$AR$17,0,IF($C36="TOTAL",SUM($S$8:S35),IF($AR$19=$AR$31,0,IF(AND($AR$32=$AR$20,C36=$AR$33),$AR$34,S35))))),"") ->  | T36: =IFERROR(IF(C36="","",IF($AR$16=$AR$17,0,IF($C36="TOTAL",SUM($T$8:T35),IF($AR$19=$AR$20,$AR$24,0)))),"") ->  | V36: =IF(C36="","",IF($C36="TOTAL",SUM($V$8:V35),IF(AND($AR$2=$AR$20,C36=$AR$1),ROUND(D36/31*$AS$2,0),IF(C36=$AP$6,ROUND((G36)*1/30,0),IF(C36=$AQ$6,ROUND((G36)*1/31,0),""))))) ->  | W36: =IF(C36="","",IF($C36="TOTAL",SUM($W$8:W35),IF(AND($AR$2=$AR$20,C36=$AR$1),ROUND(H36/31*$AS$2,0),IF(C36=$AP$6,ROUND((K36)*1/30,0),IF(C36=$AQ$6,ROUND((K36)*1/31,0),""))))) ->  | Y36: =IFERROR(IF(C36="","",IF($AR$16=$AR$17,0,IF($AF$3=$AO$4,"",IF($C36="TOTAL",SUM($Y$8:Y35),BU36)))),"") ->  | Z36: =IFERROR(IF(C36="","",IF($AR$16=$AR$17,0,IF($AF$3=$AO$4,"",IF($C36="TOTAL",SUM($Z$8:Z35),BT36)))),"") ->  | AB36: =IFERROR(IF(C36="","",IF(AND(BK37="",BR37=""),"",IF($C36="TOTAL",SUM($AB$8:AB35),BK37))),"") ->  | AC36: =IFERROR(IF(C36="","",IF($C36="TOTAL",SUM($AC$8:AC35),ROUND(O36*$AR$7%,0))),"") ->  | AD36: =IFERROR(IF(C36="","",IF($C36="TOTAL",SUM($AD$8:AD35),IF($AF$3=$AO$2,SUM(U36,X36,AB36,AC36),SUM(R36,U36,X36,AB36,AC36)))),"") ->  | AE36: =IFERROR(IF(C36="","",IF($C36="TOTAL",SUM($AE$8:AE35),SUM(O36-AD36))),"") ->  | AN36: 42 | AO36: 42 | AQ36: 2019-04-01 | AR36: ='Master Sheet'!D23 -> NO | AS36: 2025-04-01 | BL36: 0 | BM36: 0 | BU36: =IF(AW37="","",IF(AW37="TOTAL","",IF($AR$16=$AR$17,0,IF(AND(AW37>$BT$1,$AF$3=$AO$2,'Master Sheet'!$D$31>0),'Master Sheet'!$D$31,IF(AND(AW37=$BT$1,$AF$3=$AO$2),IF($AR$9<18001,135,IF($AR$9<33501,220,IF($AR$9<54001,330,440))),IF(AND(AW37>$BT$1,$AF$3=$AO$2),IF($AR$9<18001,265,IF($AR$9<33501,440,IF($AR$9<54001,658,875))),"")))))) -> 
D37: =IFERROR(IF($C36="TOTAL","अक्षरें राशि :-",IF($C37="TOTAL",SUM($D$8:D36),IF(AX38="","",AX38))),"") ->  | E37: =IFERROR(IF($C37="TOTAL",SUM($E$8:E36),IF(AY38="","",AY38)),"") ->  | F37: =IFERROR(IF($C37="TOTAL",SUM($F$8:F36),IF(OR(C37=$AP$16,C37=$AP$17,C37=$AP$18,C37=$AP$19,C37=$AP$20,C37=$AP$21,C37=$AP$22,C37=$AP$23,C37=$AP$24),0,IF(AZ38="","",AZ38))),"") ->  | H37: =IFERROR(IF($C37="TOTAL",SUM($H$8:H36),IF(BB38="","",BB38)),"") ->  | I37: =IFERROR(IF($C37="TOTAL",SUM($I$8:I36),IF(BC38="","",BC38)),"") ->  | J37: =IFERROR(IF($C37="TOTAL",SUM($J$8:J36),IF(OR(C37=$AP$16,C37=$AP$17,C37=$AP$18,C37=$AP$19,C37=$AP$20,C37=$AP$21,C37=$AP$22,C37=$AP$23,C37=$AP$24),0,IF(BD38="","",BD38))),"") ->  | L37: =IFERROR(IF(C37="","",IF(D37="","",IF(H37="","",IF($C37="TOTAL",SUM($L$8:L36),SUM(D37-H37))))),"") ->  | M37: =IFERROR(IF(C37="","",IF(E37="","",IF(I37="","",IF($C37="TOTAL",SUM($M$8:M36),SUM(E37-I37))))),"") ->  | N37: =IFERROR(IF(C37="","",IF(F37="","",IF(J37="","",IF($C37="TOTAL",SUM($N$8:N36),SUM(F37-J37))))),"") ->  | P37: =IFERROR(IF(C37="","",IF($C37="TOTAL",SUM($P$8:P36),IF(AND(C37>$AO$1,$AF$3=$AO$2),BR38,IF($AR$18=$AR$20,SUM(BE38+BM38),ROUND((D37+E37)*10%,0))))),"") ->  | Q37: =IFERROR(IF(C37="","",IF(H37="","",IF(I37="","",IF($C37="TOTAL",SUM($Q$8:Q36),IF(AND(C37>$AO$1,$AF$3=$AO$2),BR38,IF($AR$18=$AR$20,$AR$21,ROUND((H37+I37)*10%,0))))))),"") ->  | S37: =IFERROR(IF(C37="","",IF($AR$16=$AR$17,0,IF($C37="TOTAL",SUM($S$8:S36),IF($AR$19=$AR$31,0,IF(AND($AR$32=$AR$20,C37=$AR$33),$AR$34,S36))))),"") ->  | T37: =IFERROR(IF(C37="","",IF($AR$16=$AR$17,0,IF($C37="TOTAL",SUM($T$8:T36),IF($AR$19=$AR$20,$AR$24,0)))),"") ->  | V37: =IF(C37="","",IF($C37="TOTAL",SUM($V$8:V36),IF(AND($AR$2=$AR$20,C37=$AR$1),ROUND(D37/31*$AS$2,0),IF(C37=$AP$6,ROUND((G37)*1/30,0),IF(C37=$AQ$6,ROUND((G37)*1/31,0),""))))) ->  | W37: =IF(C37="","",IF($C37="TOTAL",SUM($W$8:W36),IF(AND($AR$2=$AR$20,C37=$AR$1),ROUND(H37/31*$AS$2,0),IF(C37=$AP$6,ROUND((K37)*1/30,0),IF(C37=$AQ$6,ROUND((K37)*1/31,0),""))))) ->  | Y37: =IFERROR(IF(C37="","",IF($AR$16=$AR$17,0,IF($AF$3=$AO$4,"",IF($C37="TOTAL",SUM($Y$8:Y36),BU37)))),"") ->  | Z37: =IFERROR(IF(C37="","",IF($AR$16=$AR$17,0,IF($AF$3=$AO$4,"",IF($C37="TOTAL",SUM($Z$8:Z36),BT37)))),"") ->  | AB37: =IFERROR(IF(C37="","",IF(AND(BK38="",BR38=""),"",IF($C37="TOTAL",SUM($AB$8:AB36),BK38))),"") ->  | AC37: =IFERROR(IF(C37="","",IF($C37="TOTAL",SUM($AC$8:AC36),ROUND(O37*$AR$7%,0))),"") ->  | AD37: =IFERROR(IF(C37="","",IF($C37="TOTAL",SUM($AD$8:AD36),IF($AF$3=$AO$2,SUM(U37,X37,AB37,AC37),SUM(R37,U37,X37,AB37,AC37)))),"") ->  | AE37: =IFERROR(IF(C37="","",IF($C37="TOTAL",SUM($AE$8:AE36),SUM(O37-AD37))),"") ->  | AN37: 42 | AO37: 42 | AQ37: 2019-05-01 | AR37: ='Master Sheet'!I23 -> 44287 | AS37: 2025-05-01 | BL37: 0 | BM37: 0 | BU37: =IF(AW38="","",IF(AW38="TOTAL","",IF($AR$16=$AR$17,0,IF(AND(AW38>$BT$1,$AF$3=$AO$2,'Master Sheet'!$D$31>0),'Master Sheet'!$D$31,IF(AND(AW38=$BT$1,$AF$3=$AO$2),IF($AR$9<18001,135,IF($AR$9<33501,220,IF($AR$9<54001,330,440))),IF(AND(AW38>$BT$1,$AF$3=$AO$2),IF($AR$9<18001,265,IF($AR$9<33501,440,IF($AR$9<54001,658,875))),"")))))) -> 
D38: =IFERROR(IF($C37="TOTAL","अक्षरें राशि :-",IF($C38="TOTAL",SUM($D$8:D37),IF(AX39="","",AX39))),"") ->  | E38: =IFERROR(IF($C38="TOTAL",SUM($E$8:E37),IF(AY39="","",AY39)),"") ->  | F38: =IFERROR(IF($C38="TOTAL",SUM($F$8:F37),IF(OR(C38=$AP$16,C38=$AP$17,C38=$AP$18,C38=$AP$19,C38=$AP$20,C38=$AP$21,C38=$AP$22,C38=$AP$23,C38=$AP$24),0,IF(AZ39="","",AZ39))),"") ->  | H38: =IFERROR(IF($C38="TOTAL",SUM($H$8:H37),IF(BB39="","",BB39)),"") ->  | I38: =IFERROR(IF($C38="TOTAL",SUM($I$8:I37),IF(BC39="","",BC39)),"") ->  | J38: =IFERROR(IF($C38="TOTAL",SUM($J$8:J37),IF(OR(C38=$AP$16,C38=$AP$17,C38=$AP$18,C38=$AP$19,C38=$AP$20,C38=$AP$21,C38=$AP$22,C38=$AP$23,C38=$AP$24),0,IF(BD39="","",BD39))),"") ->  | L38: =IFERROR(IF(C38="","",IF(D38="","",IF(H38="","",IF($C38="TOTAL",SUM($L$8:L37),SUM(D38-H38))))),"") ->  | M38: =IFERROR(IF(C38="","",IF(E38="","",IF(I38="","",IF($C38="TOTAL",SUM($M$8:M37),SUM(E38-I38))))),"") ->  | N38: =IFERROR(IF(C38="","",IF(F38="","",IF(J38="","",IF($C38="TOTAL",SUM($N$8:N37),SUM(F38-J38))))),"") ->  | P38: =IFERROR(IF(C38="","",IF($C38="TOTAL",SUM($P$8:P37),IF(AND(C38>$AO$1,$AF$3=$AO$2),BR39,IF($AR$18=$AR$20,SUM(BE39+BM39),ROUND((D38+E38)*10%,0))))),"") ->  | Q38: =IFERROR(IF(C38="","",IF(H38="","",IF(I38="","",IF($C38="TOTAL",SUM($Q$8:Q37),IF(AND(C38>$AO$1,$AF$3=$AO$2),BR39,IF($AR$18=$AR$20,$AR$21,ROUND((H38+I38)*10%,0))))))),"") ->  | S38: =IFERROR(IF(C38="","",IF($AR$16=$AR$17,0,IF($C38="TOTAL",SUM($S$8:S37),IF($AR$19=$AR$31,0,IF(AND($AR$32=$AR$20,C38=$AR$33),$AR$34,S37))))),"") ->  | T38: =IFERROR(IF(C38="","",IF($AR$16=$AR$17,0,IF($C38="TOTAL",SUM($T$8:T37),IF($AR$19=$AR$20,$AR$24,0)))),"") ->  | V38: =IF(C38="","",IF($C38="TOTAL",SUM($V$8:V37),IF(AND($AR$2=$AR$20,C38=$AR$1),ROUND(D38/31*$AS$2,0),IF(C38=$AP$6,ROUND((G38)*1/30,0),IF(C38=$AQ$6,ROUND((G38)*1/31,0),""))))) ->  | W38: =IF(C38="","",IF($C38="TOTAL",SUM($W$8:W37),IF(AND($AR$2=$AR$20,C38=$AR$1),ROUND(H38/31*$AS$2,0),IF(C38=$AP$6,ROUND((K38)*1/30,0),IF(C38=$AQ$6,ROUND((K38)*1/31,0),""))))) ->  | Y38: =IFERROR(IF(C38="","",IF($AR$16=$AR$17,0,IF($AF$3=$AO$4,"",IF($C38="TOTAL",SUM($Y$8:Y37),BU38)))),"") ->  | Z38: =IFERROR(IF(C38="","",IF($AR$16=$AR$17,0,IF($AF$3=$AO$4,"",IF($C38="TOTAL",SUM($Z$8:Z37),BT38)))),"") ->  | AB38: =IFERROR(IF(C38="","",IF(AND(BK39="",BR39=""),"",IF($C38="TOTAL",SUM($AB$8:AB37),BK39))),"") ->  | AC38: =IFERROR(IF(C38="","",IF($C38="TOTAL",SUM($AC$8:AC37),ROUND(O38*$AR$7%,0))),"") ->  | AD38: =IFERROR(IF(C38="","",IF($C38="TOTAL",SUM($AD$8:AD37),IF($AF$3=$AO$2,SUM(U38,X38,AB38,AC38),SUM(R38,U38,X38,AB38,AC38)))),"") ->  | AE38: =IFERROR(IF(C38="","",IF($C38="TOTAL",SUM($AE$8:AE37),SUM(O38-AD38))),"") ->  | AN38: 42 | AO38: 42 | AQ38: 2019-06-01 | AR38: ='Master Sheet'!M23 -> 5000 | AS38: 2025-06-01 | BL38: 0 | BM38: 0 | BU38: =IF(AW39="","",IF(AW39="TOTAL","",IF($AR$16=$AR$17,0,IF(AND(AW39>$BT$1,$AF$3=$AO$2,'Master Sheet'!$D$31>0),'Master Sheet'!$D$31,IF(AND(AW39=$BT$1,$AF$3=$AO$2),IF($AR$9<18001,135,IF($AR$9<33501,220,IF($AR$9<54001,330,440))),IF(AND(AW39>$BT$1,$AF$3=$AO$2),IF($AR$9<18001,265,IF($AR$9<33501,440,IF($AR$9<54001,658,875))),"")))))) -> 
D39: =IFERROR(IF($C38="TOTAL","अक्षरें राशि :-",IF($C39="TOTAL",SUM($D$8:D38),IF(AX40="","",AX40))),"") ->  | E39: =IFERROR(IF($C39="TOTAL",SUM($E$8:E38),IF(AY40="","",AY40)),"") ->  | F39: =IFERROR(IF($C39="TOTAL",SUM($F$8:F38),IF(OR(C39=$AP$16,C39=$AP$17,C39=$AP$18,C39=$AP$19,C39=$AP$20,C39=$AP$21,C39=$AP$22,C39=$AP$23,C39=$AP$24),0,IF(AZ40="","",AZ40))),"") ->  | H39: =IFERROR(IF($C39="TOTAL",SUM($H$8:H38),IF(BB40="","",BB40)),"") ->  | I39: =IFERROR(IF($C39="TOTAL",SUM($I$8:I38),IF(BC40="","",BC40)),"") ->  | J39: =IFERROR(IF($C39="TOTAL",SUM($J$8:J38),IF(OR(C39=$AP$16,C39=$AP$17,C39=$AP$18,C39=$AP$19,C39=$AP$20,C39=$AP$21,C39=$AP$22,C39=$AP$23,C39=$AP$24),0,IF(BD40="","",BD40))),"") ->  | L39: =IFERROR(IF(C39="","",IF(D39="","",IF(H39="","",IF($C39="TOTAL",SUM($L$8:L38),SUM(D39-H39))))),"") ->  | M39: =IFERROR(IF(C39="","",IF(E39="","",IF(I39="","",IF($C39="TOTAL",SUM($M$8:M38),SUM(E39-I39))))),"") ->  | N39: =IFERROR(IF(C39="","",IF(F39="","",IF(J39="","",IF($C39="TOTAL",SUM($N$8:N38),SUM(F39-J39))))),"") ->  | P39: =IFERROR(IF(C39="","",IF($C39="TOTAL",SUM($P$8:P38),IF(AND(C39>$AO$1,$AF$3=$AO$2),BR40,IF($AR$18=$AR$20,SUM(BE40+BM40),ROUND((D39+E39)*10%,0))))),"") ->  | Q39: =IFERROR(IF(C39="","",IF(H39="","",IF(I39="","",IF($C39="TOTAL",SUM($Q$8:Q38),IF(AND(C39>$AO$1,$AF$3=$AO$2),BR40,IF($AR$18=$AR$20,$AR$21,ROUND((H39+I39)*10%,0))))))),"") ->  | S39: =IFERROR(IF(C39="","",IF($AR$16=$AR$17,0,IF($C39="TOTAL",SUM($S$8:S38),IF($AR$19=$AR$31,0,IF(AND($AR$32=$AR$20,C39=$AR$33),$AR$34,S38))))),"") ->  | T39: =IFERROR(IF(C39="","",IF($AR$16=$AR$17,0,IF($C39="TOTAL",SUM($T$8:T38),IF($AR$19=$AR$20,$AR$24,0)))),"") ->  | V39: =IF(C39="","",IF($C39="TOTAL",SUM($V$8:V38),IF(AND($AR$2=$AR$20,C39=$AR$1),ROUND(D39/31*$AS$2,0),IF(C39=$AP$6,ROUND((G39)*1/30,0),IF(C39=$AQ$6,ROUND((G39)*1/31,0),""))))) ->  | W39: =IF(C39="","",IF($C39="TOTAL",SUM($W$8:W38),IF(AND($AR$2=$AR$20,C39=$AR$1),ROUND(H39/31*$AS$2,0),IF(C39=$AP$6,ROUND((K39)*1/30,0),IF(C39=$AQ$6,ROUND((K39)*1/31,0),""))))) ->  | Y39: =IFERROR(IF(C39="","",IF($AR$16=$AR$17,0,IF($AF$3=$AO$4,"",IF($C39="TOTAL",SUM($Y$8:Y38),BU39)))),"") ->  | Z39: =IFERROR(IF(C39="","",IF($AR$16=$AR$17,0,IF($AF$3=$AO$4,"",IF($C39="TOTAL",SUM($Z$8:Z38),BT39)))),"") ->  | AB39: =IFERROR(IF(C39="","",IF(AND(BK40="",BR40=""),"",IF($C39="TOTAL",SUM($AB$8:AB38),BK40))),"") ->  | AC39: =IFERROR(IF(C39="","",IF($C39="TOTAL",SUM($AC$8:AC38),ROUND(O39*$AR$7%,0))),"") ->  | AD39: =IFERROR(IF(C39="","",IF($C39="TOTAL",SUM($AD$8:AD38),IF($AF$3=$AO$2,SUM(U39,X39,AB39,AC39),SUM(R39,U39,X39,AB39,AC39)))),"") ->  | AE39: =IFERROR(IF(C39="","",IF($C39="TOTAL",SUM($AE$8:AE38),SUM(O39-AD39))),"") ->  | AN39: 42 | AO39: 42 | AQ39: 2019-07-01 | AS39: 2025-07-01 | BC39: =IF(AW39="","",IF(AW39="TOTAL","",IF(BB39="","",IF($AR$16=$AR$17,0,ROUND(BB39*AO39%,0))))) ->  | BL39: 0 | BM39: 0 | BU39: =IF(AW40="","",IF(AW40="TOTAL","",IF($AR$16=$AR$17,0,IF(AND(AW40>$BT$1,$AF$3=$AO$2,'Master Sheet'!$D$31>0),'Master Sheet'!$D$31,IF(AND(AW40=$BT$1,$AF$3=$AO$2),IF($AR$9<18001,135,IF($AR$9<33501,220,IF($AR$9<54001,330,440))),IF(AND(AW40>$BT$1,$AF$3=$AO$2),IF($AR$9<18001,265,IF($AR$9<33501,440,IF($AR$9<54001,658,875))),"")))))) -> 
D40: =IFERROR(IF($C39="TOTAL","अक्षरें राशि :-",IF($C40="TOTAL",SUM($D$8:D39),IF(AX41="","",AX41))),"") ->  | E40: =IFERROR(IF($C40="TOTAL",SUM($E$8:E39),IF(AY41="","",AY41)),"") ->  | F40: =IFERROR(IF($C40="TOTAL",SUM($F$8:F39),IF(OR(C40=$AP$16,C40=$AP$17,C40=$AP$18,C40=$AP$19,C40=$AP$20,C40=$AP$21,C40=$AP$22,C40=$AP$23,C40=$AP$24),0,IF(AZ41="","",AZ41))),"") ->  | H40: =IFERROR(IF($C40="TOTAL",SUM($H$8:H39),IF(BB41="","",BB41)),"") ->  | I40: =IFERROR(IF($C40="TOTAL",SUM($I$8:I39),IF(BC41="","",BC41)),"") ->  | J40: =IFERROR(IF($C40="TOTAL",SUM($J$8:J39),IF(OR(C40=$AP$16,C40=$AP$17,C40=$AP$18,C40=$AP$19,C40=$AP$20,C40=$AP$21,C40=$AP$22,C40=$AP$23,C40=$AP$24),0,IF(BD41="","",BD41))),"") ->  | L40: =IFERROR(IF(C40="","",IF(D40="","",IF(H40="","",IF($C40="TOTAL",SUM($L$8:L39),SUM(D40-H40))))),"") ->  | M40: =IFERROR(IF(C40="","",IF(E40="","",IF(I40="","",IF($C40="TOTAL",SUM($M$8:M39),SUM(E40-I40))))),"") ->  | N40: =IFERROR(IF(C40="","",IF(F40="","",IF(J40="","",IF($C40="TOTAL",SUM($N$8:N39),SUM(F40-J40))))),"") ->  | P40: =IFERROR(IF(C40="","",IF($C40="TOTAL",SUM($P$8:P39),IF(AND(C40>$AO$1,$AF$3=$AO$2),BR41,IF($AR$18=$AR$20,SUM(BE41+BM41),ROUND((D40+E40)*10%,0))))),"") ->  | Q40: =IFERROR(IF(C40="","",IF(H40="","",IF(I40="","",IF($C40="TOTAL",SUM($Q$8:Q39),IF(AND(C40>$AO$1,$AF$3=$AO$2),BR41,IF($AR$18=$AR$20,$AR$21,ROUND((H40+I40)*10%,0))))))),"") ->  | S40: =IFERROR(IF(C40="","",IF($AR$16=$AR$17,0,IF($C40="TOTAL",SUM($S$8:S39),IF($AR$19=$AR$31,0,IF(AND($AR$32=$AR$20,C40=$AR$33),$AR$34,S39))))),"") ->  | T40: =IFERROR(IF(C40="","",IF($AR$16=$AR$17,0,IF($C40="TOTAL",SUM($T$8:T39),IF($AR$19=$AR$20,$AR$24,0)))),"") ->  | V40: =IF(C40="","",IF($C40="TOTAL",SUM($V$8:V39),IF(AND($AR$2=$AR$20,C40=$AR$1),ROUND(D40/31*$AS$2,0),IF(C40=$AP$6,ROUND((G40)*1/30,0),IF(C40=$AQ$6,ROUND((G40)*1/31,0),""))))) ->  | W40: =IF(C40="","",IF($C40="TOTAL",SUM($W$8:W39),IF(AND($AR$2=$AR$20,C40=$AR$1),ROUND(H40/31*$AS$2,0),IF(C40=$AP$6,ROUND((K40)*1/30,0),IF(C40=$AQ$6,ROUND((K40)*1/31,0),""))))) ->  | Y40: =IFERROR(IF(C40="","",IF($AR$16=$AR$17,0,IF($AF$3=$AO$4,"",IF($C40="TOTAL",SUM($Y$8:Y39),BU40)))),"") ->  | Z40: =IFERROR(IF(C40="","",IF($AR$16=$AR$17,0,IF($AF$3=$AO$4,"",IF($C40="TOTAL",SUM($Z$8:Z39),BT40)))),"") ->  | AB40: =IFERROR(IF(C40="","",IF(AND(BK41="",BR41=""),"",IF($C40="TOTAL",SUM($AB$8:AB39),BK41))),"") ->  | AC40: =IFERROR(IF(C40="","",IF($C40="TOTAL",SUM($AC$8:AC39),ROUND(O40*$AR$7%,0))),"") ->  | AD40: =IFERROR(IF(C40="","",IF($C40="TOTAL",SUM($AD$8:AD39),IF($AF$3=$AO$2,SUM(U40,X40,AB40,AC40),SUM(R40,U40,X40,AB40,AC40)))),"") ->  | AE40: =IFERROR(IF(C40="","",IF($C40="TOTAL",SUM($AE$8:AE39),SUM(O40-AD40))),"") ->  | AN40: 42 | AO40: 42 | AQ40: 2019-08-01 | AS40: 2025-08-01 | BL40: 0 | BM40: 0 | BU40: =IF(AW41="","",IF(AW41="TOTAL","",IF($AR$16=$AR$17,0,IF(AND(AW41>$BT$1,$AF$3=$AO$2,'Master Sheet'!$D$31>0),'Master Sheet'!$D$31,IF(AND(AW41=$BT$1,$AF$3=$AO$2),IF($AR$9<18001,135,IF($AR$9<33501,220,IF($AR$9<54001,330,440))),IF(AND(AW41>$BT$1,$AF$3=$AO$2),IF($AR$9<18001,265,IF($AR$9<33501,440,IF($AR$9<54001,658,875))),"")))))) -> 
D41: =IFERROR(IF($C40="TOTAL","अक्षरें राशि :-",IF($C41="TOTAL",SUM($D$8:D40),IF(AX42="","",AX42))),"") ->  | E41: =IFERROR(IF($C41="TOTAL",SUM($E$8:E40),IF(AY42="","",AY42)),"") ->  | F41: =IFERROR(IF($C41="TOTAL",SUM($F$8:F40),IF(OR(C41=$AP$16,C41=$AP$17,C41=$AP$18,C41=$AP$19,C41=$AP$20,C41=$AP$21,C41=$AP$22,C41=$AP$23,C41=$AP$24),0,IF(AZ42="","",AZ42))),"") ->  | H41: =IFERROR(IF($C41="TOTAL",SUM($H$8:H40),IF(BB42="","",BB42)),"") ->  | I41: =IFERROR(IF($C41="TOTAL",SUM($I$8:I40),IF(BC42="","",BC42)),"") ->  | J41: =IFERROR(IF($C41="TOTAL",SUM($J$8:J40),IF(OR(C41=$AP$16,C41=$AP$17,C41=$AP$18,C41=$AP$19,C41=$AP$20,C41=$AP$21,C41=$AP$22,C41=$AP$23,C41=$AP$24),0,IF(BD42="","",BD42))),"") ->  | L41: =IFERROR(IF(C41="","",IF(D41="","",IF(H41="","",IF($C41="TOTAL",SUM($L$8:L40),SUM(D41-H41))))),"") ->  | M41: =IFERROR(IF(C41="","",IF(E41="","",IF(I41="","",IF($C41="TOTAL",SUM($M$8:M40),SUM(E41-I41))))),"") ->  | N41: =IFERROR(IF(C41="","",IF(F41="","",IF(J41="","",IF($C41="TOTAL",SUM($N$8:N40),SUM(F41-J41))))),"") ->  | P41: =IFERROR(IF(C41="","",IF($C41="TOTAL",SUM($P$8:P40),IF(AND(C41>$AO$1,$AF$3=$AO$2),BR42,IF($AR$18=$AR$20,SUM(BE42+BM42),ROUND((D41+E41)*10%,0))))),"") ->  | Q41: =IFERROR(IF(C41="","",IF(H41="","",IF(I41="","",IF($C41="TOTAL",SUM($Q$8:Q40),IF(AND(C41>$AO$1,$AF$3=$AO$2),BR42,IF($AR$18=$AR$20,$AR$21,ROUND((H41+I41)*10%,0))))))),"") ->  | S41: =IFERROR(IF(C41="","",IF($AR$16=$AR$17,0,IF($C41="TOTAL",SUM($S$8:S40),IF($AR$19=$AR$31,0,IF(AND($AR$32=$AR$20,C41=$AR$33),$AR$34,S40))))),"") ->  | T41: =IFERROR(IF(C41="","",IF($AR$16=$AR$17,0,IF($C41="TOTAL",SUM($T$8:T40),IF($AR$19=$AR$20,$AR$24,0)))),"") ->  | V41: =IF(C41="","",IF($C41="TOTAL",SUM($V$8:V40),IF(AND($AR$2=$AR$20,C41=$AR$1),ROUND(D41/31*$AS$2,0),IF(C41=$AP$6,ROUND((G41)*1/30,0),IF(C41=$AQ$6,ROUND((G41)*1/31,0),""))))) ->  | W41: =IF(C41="","",IF($C41="TOTAL",SUM($W$8:W40),IF(AND($AR$2=$AR$20,C41=$AR$1),ROUND(H41/31*$AS$2,0),IF(C41=$AP$6,ROUND((K41)*1/30,0),IF(C41=$AQ$6,ROUND((K41)*1/31,0),""))))) ->  | Y41: =IFERROR(IF(C41="","",IF($AR$16=$AR$17,0,IF($AF$3=$AO$4,"",IF($C41="TOTAL",SUM($Y$8:Y40),BU41)))),"") ->  | Z41: =IFERROR(IF(C41="","",IF($AR$16=$AR$17,0,IF($AF$3=$AO$4,"",IF($C41="TOTAL",SUM($Z$8:Z40),BT41)))),"") ->  | AB41: =IFERROR(IF(C41="","",IF(AND(BK42="",BR42=""),"",IF($C41="TOTAL",SUM($AB$8:AB40),BK42))),"") ->  | AC41: =IFERROR(IF(C41="","",IF($C41="TOTAL",SUM($AC$8:AC40),ROUND(O41*$AR$7%,0))),"") ->  | AD41: =IFERROR(IF(C41="","",IF($C41="TOTAL",SUM($AD$8:AD40),IF($AF$3=$AO$2,SUM(U41,X41,AB41,AC41),SUM(R41,U41,X41,AB41,AC41)))),"") ->  | AE41: =IFERROR(IF(C41="","",IF($C41="TOTAL",SUM($AE$8:AE40),SUM(O41-AD41))),"") ->  | AN41: 42 | AO41: 42 | AQ41: 2019-09-01 | AS41: 2025-09-01 | BL41: 0 | BM41: 0 | BU41: =IF(AW42="","",IF(AW42="TOTAL","",IF($AR$16=$AR$17,0,IF(AND(AW42>$BT$1,$AF$3=$AO$2,'Master Sheet'!$D$31>0),'Master Sheet'!$D$31,IF(AND(AW42=$BT$1,$AF$3=$AO$2),IF($AR$9<18001,135,IF($AR$9<33501,220,IF($AR$9<54001,330,440))),IF(AND(AW42>$BT$1,$AF$3=$AO$2),IF($AR$9<18001,265,IF($AR$9<33501,440,IF($AR$9<54001,658,875))),"")))))) -> 
D42: =IFERROR(IF($C41="TOTAL","अक्षरें राशि :-",IF($C42="TOTAL",SUM($D$8:D41),IF(AX43="","",AX43))),"") ->  | E42: =IFERROR(IF($C42="TOTAL",SUM($E$8:E41),IF(AY43="","",AY43)),"") ->  | F42: =IFERROR(IF($C42="TOTAL",SUM($F$8:F41),IF(OR(C42=$AP$16,C42=$AP$17,C42=$AP$18,C42=$AP$19,C42=$AP$20,C42=$AP$21,C42=$AP$22,C42=$AP$23,C42=$AP$24),0,IF(AZ43="","",AZ43))),"") ->  | H42: =IFERROR(IF($C42="TOTAL",SUM($H$8:H41),IF(BB43="","",BB43)),"") ->  | I42: =IFERROR(IF($C42="TOTAL",SUM($I$8:I41),IF(BC43="","",BC43)),"") ->  | J42: =IFERROR(IF($C42="TOTAL",SUM($J$8:J41),IF(OR(C42=$AP$16,C42=$AP$17,C42=$AP$18,C42=$AP$19,C42=$AP$20,C42=$AP$21,C42=$AP$22,C42=$AP$23,C42=$AP$24),0,IF(BD43="","",BD43))),"") ->  | L42: =IFERROR(IF(C42="","",IF(D42="","",IF(H42="","",IF($C42="TOTAL",SUM($L$8:L41),SUM(D42-H42))))),"") ->  | M42: =IFERROR(IF(C42="","",IF(E42="","",IF(I42="","",IF($C42="TOTAL",SUM($M$8:M41),SUM(E42-I42))))),"") ->  | N42: =IFERROR(IF(C42="","",IF(F42="","",IF(J42="","",IF($C42="TOTAL",SUM($N$8:N41),SUM(F42-J42))))),"") ->  | P42: =IFERROR(IF(C42="","",IF($C42="TOTAL",SUM($P$8:P41),IF(AND(C42>$AO$1,$AF$3=$AO$2),BR43,IF($AR$18=$AR$20,SUM(BE43+BM43),ROUND((D42+E42)*10%,0))))),"") ->  | Q42: =IFERROR(IF(C42="","",IF(H42="","",IF(I42="","",IF($C42="TOTAL",SUM($Q$8:Q41),IF(AND(C42>$AO$1,$AF$3=$AO$2),BR43,IF($AR$18=$AR$20,$AR$21,ROUND((H42+I42)*10%,0))))))),"") ->  | S42: =IFERROR(IF(C42="","",IF($AR$16=$AR$17,0,IF($C42="TOTAL",SUM($S$8:S41),IF($AR$19=$AR$31,0,IF(AND($AR$32=$AR$20,C42=$AR$33),$AR$34,S41))))),"") ->  | T42: =IFERROR(IF(C42="","",IF($AR$16=$AR$17,0,IF($C42="TOTAL",SUM($T$8:T41),IF($AR$19=$AR$20,$AR$24,0)))),"") ->  | V42: =IF(C42="","",IF($C42="TOTAL",SUM($V$8:V41),IF(AND($AR$2=$AR$20,C42=$AR$1),ROUND(D42/31*$AS$2,0),IF(C42=$AP$6,ROUND((G42)*1/30,0),IF(C42=$AQ$6,ROUND((G42)*1/31,0),""))))) ->  | W42: =IF(C42="","",IF($C42="TOTAL",SUM($W$8:W41),IF(AND($AR$2=$AR$20,C42=$AR$1),ROUND(H42/31*$AS$2,0),IF(C42=$AP$6,ROUND((K42)*1/30,0),IF(C42=$AQ$6,ROUND((K42)*1/31,0),""))))) ->  | Y42: =IFERROR(IF(C42="","",IF($AR$16=$AR$17,0,IF($AF$3=$AO$4,"",IF($C42="TOTAL",SUM($Y$8:Y41),BU42)))),"") ->  | Z42: =IFERROR(IF(C42="","",IF($AR$16=$AR$17,0,IF($AF$3=$AO$4,"",IF($C42="TOTAL",SUM($Z$8:Z41),BT42)))),"") ->  | AB42: =IFERROR(IF(C42="","",IF(AND(BK43="",BR43=""),"",IF($C42="TOTAL",SUM($AB$8:AB41),BK43))),"") ->  | AC42: =IFERROR(IF(C42="","",IF($C42="TOTAL",SUM($AC$8:AC41),ROUND(O42*$AR$7%,0))),"") ->  | AD42: =IFERROR(IF(C42="","",IF($C42="TOTAL",SUM($AD$8:AD41),IF($AF$3=$AO$2,SUM(U42,X42,AB42,AC42),SUM(R42,U42,X42,AB42,AC42)))),"") ->  | AE42: =IFERROR(IF(C42="","",IF($C42="TOTAL",SUM($AE$8:AE41),SUM(O42-AD42))),"") ->  | AN42: 42 | AO42: 42 | AQ42: 2019-10-01 | AS42: 2025-10-01 | BL42: 0 | BM42: 0 | BU42: =IF(AW43="","",IF(AW43="TOTAL","",IF($AR$16=$AR$17,0,IF(AND(AW43>$BT$1,$AF$3=$AO$2,'Master Sheet'!$D$31>0),'Master Sheet'!$D$31,IF(AND(AW43=$BT$1,$AF$3=$AO$2),IF($AR$9<18001,135,IF($AR$9<33501,220,IF($AR$9<54001,330,440))),IF(AND(AW43>$BT$1,$AF$3=$AO$2),IF($AR$9<18001,265,IF($AR$9<33501,440,IF($AR$9<54001,658,875))),"")))))) -> 
D43: =IFERROR(IF($C42="TOTAL","अक्षरें राशि :-",IF($C43="TOTAL",SUM($D$8:D42),IF(AX44="","",AX44))),"") ->  | E43: =IFERROR(IF($C43="TOTAL",SUM($E$8:E42),IF(AY44="","",AY44)),"") ->  | F43: =IFERROR(IF($C43="TOTAL",SUM($F$8:F42),IF(OR(C43=$AP$16,C43=$AP$17,C43=$AP$18,C43=$AP$19,C43=$AP$20,C43=$AP$21,C43=$AP$22,C43=$AP$23,C43=$AP$24),0,IF(AZ44="","",AZ44))),"") ->  | H43: =IFERROR(IF($C43="TOTAL",SUM($H$8:H42),IF(BB44="","",BB44)),"") ->  | I43: =IFERROR(IF($C43="TOTAL",SUM($I$8:I42),IF(BC44="","",BC44)),"") ->  | J43: =IFERROR(IF($C43="TOTAL",SUM($J$8:J42),IF(OR(C43=$AP$16,C43=$AP$17,C43=$AP$18,C43=$AP$19,C43=$AP$20,C43=$AP$21,C43=$AP$22,C43=$AP$23,C43=$AP$24),0,IF(BD44="","",BD44))),"") ->  | L43: =IFERROR(IF(C43="","",IF(D43="","",IF(H43="","",IF($C43="TOTAL",SUM($L$8:L42),SUM(D43-H43))))),"") ->  | M43: =IFERROR(IF(C43="","",IF(E43="","",IF(I43="","",IF($C43="TOTAL",SUM($M$8:M42),SUM(E43-I43))))),"") ->  | N43: =IFERROR(IF(C43="","",IF(F43="","",IF(J43="","",IF($C43="TOTAL",SUM($N$8:N42),SUM(F43-J43))))),"") ->  | P43: =IFERROR(IF(C43="","",IF($C43="TOTAL",SUM($P$8:P42),IF(AND(C43>$AO$1,$AF$3=$AO$2),BR44,IF($AR$18=$AR$20,SUM(BE44+BM44),ROUND((D43+E43)*10%,0))))),"") ->  | Q43: =IFERROR(IF(C43="","",IF(H43="","",IF(I43="","",IF($C43="TOTAL",SUM($Q$8:Q42),IF(AND(C43>$AO$1,$AF$3=$AO$2),BR44,IF($AR$18=$AR$20,$AR$21,ROUND((H43+I43)*10%,0))))))),"") ->  | S43: =IFERROR(IF(C43="","",IF($AR$16=$AR$17,0,IF($C43="TOTAL",SUM($S$8:S42),IF($AR$19=$AR$31,0,IF(AND($AR$32=$AR$20,C43=$AR$33),$AR$34,S42))))),"") ->  | T43: =IFERROR(IF(C43="","",IF($AR$16=$AR$17,0,IF($C43="TOTAL",SUM($T$8:T42),IF($AR$19=$AR$20,$AR$24,0)))),"") ->  | V43: =IF(C43="","",IF($C43="TOTAL",SUM($V$8:V42),IF(AND($AR$2=$AR$20,C43=$AR$1),ROUND(D43/31*$AS$2,0),IF(C43=$AP$6,ROUND((G43)*1/30,0),IF(C43=$AQ$6,ROUND((G43)*1/31,0),""))))) ->  | W43: =IF(C43="","",IF($C43="TOTAL",SUM($W$8:W42),IF(AND($AR$2=$AR$20,C43=$AR$1),ROUND(H43/31*$AS$2,0),IF(C43=$AP$6,ROUND((K43)*1/30,0),IF(C43=$AQ$6,ROUND((K43)*1/31,0),""))))) ->  | Y43: =IFERROR(IF(C43="","",IF($AR$16=$AR$17,0,IF($AF$3=$AO$4,"",IF($C43="TOTAL",SUM($Y$8:Y42),BU43)))),"") ->  | Z43: =IFERROR(IF(C43="","",IF($AR$16=$AR$17,0,IF($AF$3=$AO$4,"",IF($C43="TOTAL",SUM($Z$8:Z42),BT43)))),"") ->  | AB43: =IFERROR(IF(C43="","",IF(AND(BK44="",BR44=""),"",IF($C43="TOTAL",SUM($AB$8:AB42),BK44))),"") ->  | AC43: =IFERROR(IF(C43="","",IF($C43="TOTAL",SUM($AC$8:AC42),ROUND(O43*$AR$7%,0))),"") ->  | AD43: =IFERROR(IF(C43="","",IF($C43="TOTAL",SUM($AD$8:AD42),IF($AF$3=$AO$2,SUM(U43,X43,AB43,AC43),SUM(R43,U43,X43,AB43,AC43)))),"") ->  | AE43: =IFERROR(IF(C43="","",IF($C43="TOTAL",SUM($AE$8:AE42),SUM(O43-AD43))),"") ->  | AN43: 42 | AO43: 42 | AQ43: 2019-11-01 | AS43: 2025-11-01 | BL43: 0 | BM43: 0 | BU43: =IF(AW44="","",IF(AW44="TOTAL","",IF($AR$16=$AR$17,0,IF(AND(AW44>$BT$1,$AF$3=$AO$2,'Master Sheet'!$D$31>0),'Master Sheet'!$D$31,IF(AND(AW44=$BT$1,$AF$3=$AO$2),IF($AR$9<18001,135,IF($AR$9<33501,220,IF($AR$9<54001,330,440))),IF(AND(AW44>$BT$1,$AF$3=$AO$2),IF($AR$9<18001,265,IF($AR$9<33501,440,IF($AR$9<54001,658,875))),"")))))) -> 
D44: =IFERROR(IF($C43="TOTAL","अक्षरें राशि :-",IF($C44="TOTAL",SUM($D$8:D43),IF(AX45="","",AX45))),"") ->  | E44: =IFERROR(IF($C44="TOTAL",SUM($E$8:E43),IF(AY45="","",AY45)),"") ->  | F44: =IFERROR(IF($C44="TOTAL",SUM($F$8:F43),IF(OR(C44=$AP$16,C44=$AP$17,C44=$AP$18,C44=$AP$19,C44=$AP$20,C44=$AP$21,C44=$AP$22,C44=$AP$23,C44=$AP$24),0,IF(AZ45="","",AZ45))),"") ->  | H44: =IFERROR(IF($C44="TOTAL",SUM($H$8:H43),IF(BB45="","",BB45)),"") ->  | I44: =IFERROR(IF($C44="TOTAL",SUM($I$8:I43),IF(BC45="","",BC45)),"") ->  | J44: =IFERROR(IF($C44="TOTAL",SUM($J$8:J43),IF(OR(C44=$AP$16,C44=$AP$17,C44=$AP$18,C44=$AP$19,C44=$AP$20,C44=$AP$21,C44=$AP$22,C44=$AP$23,C44=$AP$24),0,IF(BD45="","",BD45))),"") ->  | L44: =IFERROR(IF(C44="","",IF(D44="","",IF(H44="","",IF($C44="TOTAL",SUM($L$8:L43),SUM(D44-H44))))),"") ->  | M44: =IFERROR(IF(C44="","",IF(E44="","",IF(I44="","",IF($C44="TOTAL",SUM($M$8:M43),SUM(E44-I44))))),"") ->  | N44: =IFERROR(IF(C44="","",IF(F44="","",IF(J44="","",IF($C44="TOTAL",SUM($N$8:N43),SUM(F44-J44))))),"") ->  | P44: =IFERROR(IF(C44="","",IF($C44="TOTAL",SUM($P$8:P43),IF(AND(C44>$AO$1,$AF$3=$AO$2),BR45,IF($AR$18=$AR$20,SUM(BE45+BM45),ROUND((D44+E44)*10%,0))))),"") ->  | Q44: =IFERROR(IF(C44="","",IF(H44="","",IF(I44="","",IF($C44="TOTAL",SUM($Q$8:Q43),IF(AND(C44>$AO$1,$AF$3=$AO$2),BR45,IF($AR$18=$AR$20,$AR$21,ROUND((H44+I44)*10%,0))))))),"") ->  | S44: =IFERROR(IF(C44="","",IF($AR$16=$AR$17,0,IF($C44="TOTAL",SUM($S$8:S43),IF($AR$19=$AR$31,0,IF(AND($AR$32=$AR$20,C44=$AR$33),$AR$34,S43))))),"") ->  | T44: =IFERROR(IF(C44="","",IF($AR$16=$AR$17,0,IF($C44="TOTAL",SUM($T$8:T43),IF($AR$19=$AR$20,$AR$24,0)))),"") ->  | V44: =IF(C44="","",IF($C44="TOTAL",SUM($V$8:V43),IF(AND($AR$2=$AR$20,C44=$AR$1),ROUND(D44/31*$AS$2,0),IF(C44=$AP$6,ROUND((G44)*1/30,0),IF(C44=$AQ$6,ROUND((G44)*1/31,0),""))))) ->  | W44: =IF(C44="","",IF($C44="TOTAL",SUM($W$8:W43),IF(AND($AR$2=$AR$20,C44=$AR$1),ROUND(H44/31*$AS$2,0),IF(C44=$AP$6,ROUND((K44)*1/30,0),IF(C44=$AQ$6,ROUND((K44)*1/31,0),""))))) ->  | Y44: =IFERROR(IF(C44="","",IF($AR$16=$AR$17,0,IF($AF$3=$AO$4,"",IF($C44="TOTAL",SUM($Y$8:Y43),BU44)))),"") ->  | Z44: =IFERROR(IF(C44="","",IF($AR$16=$AR$17,0,IF($AF$3=$AO$4,"",IF($C44="TOTAL",SUM($Z$8:Z43),BT44)))),"") ->  | AB44: =IFERROR(IF(C44="","",IF(AND(BK45="",BR45=""),"",IF($C44="TOTAL",SUM($AB$8:AB43),BK45))),"") ->  | AC44: =IFERROR(IF(C44="","",IF($C44="TOTAL",SUM($AC$8:AC43),ROUND(O44*$AR$7%,0))),"") ->  | AD44: =IFERROR(IF(C44="","",IF($C44="TOTAL",SUM($AD$8:AD43),IF($AF$3=$AO$2,SUM(U44,X44,AB44,AC44),SUM(R44,U44,X44,AB44,AC44)))),"") ->  | AE44: =IFERROR(IF(C44="","",IF($C44="TOTAL",SUM($AE$8:AE43),SUM(O44-AD44))),"") ->  | AN44: 42 | AO44: 42 | AQ44: 2019-12-01 | AS44: 2025-12-01 | BL44: 0 | BM44: 0 | BU44: =IF(AW45="","",IF(AW45="TOTAL","",IF($AR$16=$AR$17,0,IF(AND(AW45>$BT$1,$AF$3=$AO$2,'Master Sheet'!$D$31>0),'Master Sheet'!$D$31,IF(AND(AW45=$BT$1,$AF$3=$AO$2),IF($AR$9<18001,135,IF($AR$9<33501,220,IF($AR$9<54001,330,440))),IF(AND(AW45>$BT$1,$AF$3=$AO$2),IF($AR$9<18001,265,IF($AR$9<33501,440,IF($AR$9<54001,658,875))),"")))))) -> 
D45: =IFERROR(IF($C44="TOTAL","अक्षरें राशि :-",IF($C45="TOTAL",SUM($D$8:D44),IF(AX46="","",AX46))),"") ->  | E45: =IFERROR(IF($C45="TOTAL",SUM($E$8:E44),IF(AY46="","",AY46)),"") ->  | F45: =IFERROR(IF($C45="TOTAL",SUM($F$8:F44),IF(OR(C45=$AP$16,C45=$AP$17,C45=$AP$18,C45=$AP$19,C45=$AP$20,C45=$AP$21,C45=$AP$22,C45=$AP$23,C45=$AP$24),0,IF(AZ46="","",AZ46))),"") ->  | H45: =IFERROR(IF($C45="TOTAL",SUM($H$8:H44),IF(BB46="","",BB46)),"") ->  | I45: =IFERROR(IF($C45="TOTAL",SUM($I$8:I44),IF(BC46="","",BC46)),"") ->  | J45: =IFERROR(IF($C45="TOTAL",SUM($J$8:J44),IF(OR(C45=$AP$16,C45=$AP$17,C45=$AP$18,C45=$AP$19,C45=$AP$20,C45=$AP$21,C45=$AP$22,C45=$AP$23,C45=$AP$24),0,IF(BD46="","",BD46))),"") ->  | L45: =IFERROR(IF(C45="","",IF(D45="","",IF(H45="","",IF($C45="TOTAL",SUM($L$8:L44),SUM(D45-H45))))),"") ->  | M45: =IFERROR(IF(C45="","",IF(E45="","",IF(I45="","",IF($C45="TOTAL",SUM($M$8:M44),SUM(E45-I45))))),"") ->  | N45: =IFERROR(IF(C45="","",IF(F45="","",IF(J45="","",IF($C45="TOTAL",SUM($N$8:N44),SUM(F45-J45))))),"") ->  | P45: =IFERROR(IF(C45="","",IF($C45="TOTAL",SUM($P$8:P44),IF(AND(C45>$AO$1,$AF$3=$AO$2),BR46,IF($AR$18=$AR$20,SUM(BE46+BM46),ROUND((D45+E45)*10%,0))))),"") ->  | Q45: =IFERROR(IF(C45="","",IF(H45="","",IF(I45="","",IF($C45="TOTAL",SUM($Q$8:Q44),IF(AND(C45>$AO$1,$AF$3=$AO$2),BR46,IF($AR$18=$AR$20,$AR$21,ROUND((H45+I45)*10%,0))))))),"") ->  | S45: =IFERROR(IF(C45="","",IF($AR$16=$AR$17,0,IF($C45="TOTAL",SUM($S$8:S44),IF($AR$19=$AR$31,0,IF(AND($AR$32=$AR$20,C45=$AR$33),$AR$34,S44))))),"") ->  | T45: =IFERROR(IF(C45="","",IF($AR$16=$AR$17,0,IF($C45="TOTAL",SUM($T$8:T44),IF($AR$19=$AR$20,$AR$24,0)))),"") ->  | V45: =IF(C45="","",IF($C45="TOTAL",SUM($V$8:V44),IF(AND($AR$2=$AR$20,C45=$AR$1),ROUND(D45/31*$AS$2,0),IF(C45=$AP$6,ROUND((G45)*1/30,0),IF(C45=$AQ$6,ROUND((G45)*1/31,0),""))))) ->  | W45: =IF(C45="","",IF($C45="TOTAL",SUM($W$8:W44),IF(AND($AR$2=$AR$20,C45=$AR$1),ROUND(H45/31*$AS$2,0),IF(C45=$AP$6,ROUND((K45)*1/30,0),IF(C45=$AQ$6,ROUND((K45)*1/31,0),""))))) ->  | Y45: =IFERROR(IF(C45="","",IF($AR$16=$AR$17,0,IF($AF$3=$AO$4,"",IF($C45="TOTAL",SUM($Y$8:Y44),BU45)))),"") ->  | Z45: =IFERROR(IF(C45="","",IF($AR$16=$AR$17,0,IF($AF$3=$AO$4,"",IF($C45="TOTAL",SUM($Z$8:Z44),BT45)))),"") ->  | AB45: =IFERROR(IF(C45="","",IF(AND(BK46="",BR46=""),"",IF($C45="TOTAL",SUM($AB$8:AB44),BK46))),"") ->  | AC45: =IFERROR(IF(C45="","",IF($C45="TOTAL",SUM($AC$8:AC44),ROUND(O45*$AR$7%,0))),"") ->  | AD45: =IFERROR(IF(C45="","",IF($C45="TOTAL",SUM($AD$8:AD44),IF($AF$3=$AO$2,SUM(U45,X45,AB45,AC45),SUM(R45,U45,X45,AB45,AC45)))),"") ->  | AE45: =IFERROR(IF(C45="","",IF($C45="TOTAL",SUM($AE$8:AE44),SUM(O45-AD45))),"") ->  | AN45: 42 | AO45: 42 | AQ45: 2020-01-01 | AS45: 2026-01-01 | BL45: 0 | BM45: 0 | BU45: =IF(AW46="","",IF(AW46="TOTAL","",IF($AR$16=$AR$17,0,IF(AND(AW46>$BT$1,$AF$3=$AO$2,'Master Sheet'!$D$31>0),'Master Sheet'!$D$31,IF(AND(AW46=$BT$1,$AF$3=$AO$2),IF($AR$9<18001,135,IF($AR$9<33501,220,IF($AR$9<54001,330,440))),IF(AND(AW46>$BT$1,$AF$3=$AO$2),IF($AR$9<18001,265,IF($AR$9<33501,440,IF($AR$9<54001,658,875))),"")))))) -> 
D46: =IFERROR(IF($C45="TOTAL","अक्षरें राशि :-",IF($C46="TOTAL",SUM($D$8:D45),IF(AX47="","",AX47))),"") ->  | E46: =IFERROR(IF($C46="TOTAL",SUM($E$8:E45),IF(AY47="","",AY47)),"") ->  | F46: =IFERROR(IF($C46="TOTAL",SUM($F$8:F45),IF(OR(C46=$AP$16,C46=$AP$17,C46=$AP$18,C46=$AP$19,C46=$AP$20,C46=$AP$21,C46=$AP$22,C46=$AP$23,C46=$AP$24),0,IF(AZ47="","",AZ47))),"") ->  | H46: =IFERROR(IF($C46="TOTAL",SUM($H$8:H45),IF(BB47="","",BB47)),"") ->  | I46: =IFERROR(IF($C46="TOTAL",SUM($I$8:I45),IF(BC47="","",BC47)),"") ->  | J46: =IFERROR(IF($C46="TOTAL",SUM($J$8:J45),IF(OR(C46=$AP$16,C46=$AP$17,C46=$AP$18,C46=$AP$19,C46=$AP$20,C46=$AP$21,C46=$AP$22,C46=$AP$23,C46=$AP$24),0,IF(BD47="","",BD47))),"") ->  | L46: =IFERROR(IF(C46="","",IF(D46="","",IF(H46="","",IF($C46="TOTAL",SUM($L$8:L45),SUM(D46-H46))))),"") ->  | M46: =IFERROR(IF(C46="","",IF(E46="","",IF(I46="","",IF($C46="TOTAL",SUM($M$8:M45),SUM(E46-I46))))),"") ->  | N46: =IFERROR(IF(C46="","",IF(F46="","",IF(J46="","",IF($C46="TOTAL",SUM($N$8:N45),SUM(F46-J46))))),"") ->  | P46: =IFERROR(IF(C46="","",IF($C46="TOTAL",SUM($P$8:P45),IF(AND(C46>$AO$1,$AF$3=$AO$2),BR47,IF($AR$18=$AR$20,SUM(BE47+BM47),ROUND((D46+E46)*10%,0))))),"") ->  | Q46: =IFERROR(IF(C46="","",IF(H46="","",IF(I46="","",IF($C46="TOTAL",SUM($Q$8:Q45),IF(AND(C46>$AO$1,$AF$3=$AO$2),BR47,IF($AR$18=$AR$20,$AR$21,ROUND((H46+I46)*10%,0))))))),"") ->  | S46: =IFERROR(IF(C46="","",IF($AR$16=$AR$17,0,IF($C46="TOTAL",SUM($S$8:S45),IF($AR$19=$AR$31,0,IF(AND($AR$32=$AR$20,C46=$AR$33),$AR$34,S45))))),"") ->  | T46: =IFERROR(IF(C46="","",IF($AR$16=$AR$17,0,IF($C46="TOTAL",SUM($T$8:T45),IF($AR$19=$AR$20,$AR$24,0)))),"") ->  | V46: =IF(C46="","",IF($C46="TOTAL",SUM($V$8:V45),IF(AND($AR$2=$AR$20,C46=$AR$1),ROUND(D46/31*$AS$2,0),IF(C46=$AP$6,ROUND((G46)*1/30,0),IF(C46=$AQ$6,ROUND((G46)*1/31,0),""))))) ->  | W46: =IF(C46="","",IF($C46="TOTAL",SUM($W$8:W45),IF(AND($AR$2=$AR$20,C46=$AR$1),ROUND(H46/31*$AS$2,0),IF(C46=$AP$6,ROUND((K46)*1/30,0),IF(C46=$AQ$6,ROUND((K46)*1/31,0),""))))) ->  | Y46: =IFERROR(IF(C46="","",IF($AR$16=$AR$17,0,IF($AF$3=$AO$4,"",IF($C46="TOTAL",SUM($Y$8:Y45),BU46)))),"") ->  | Z46: =IFERROR(IF(C46="","",IF($AR$16=$AR$17,0,IF($AF$3=$AO$4,"",IF($C46="TOTAL",SUM($Z$8:Z45),BT46)))),"") ->  | AB46: =IFERROR(IF(C46="","",IF(AND(BK47="",BR47=""),"",IF($C46="TOTAL",SUM($AB$8:AB45),BK47))),"") ->  | AC46: =IFERROR(IF(C46="","",IF($C46="TOTAL",SUM($AC$8:AC45),ROUND(O46*$AR$7%,0))),"") ->  | AD46: =IFERROR(IF(C46="","",IF($C46="TOTAL",SUM($AD$8:AD45),IF($AF$3=$AO$2,SUM(U46,X46,AB46,AC46),SUM(R46,U46,X46,AB46,AC46)))),"") ->  | AE46: =IFERROR(IF(C46="","",IF($C46="TOTAL",SUM($AE$8:AE45),SUM(O46-AD46))),"") ->  | AN46: 42 | AO46: 42 | AQ46: 2020-02-01 | AS46: 2026-02-01 | BL46: 0 | BM46: 0 | BU46: =IF(AW47="","",IF(AW47="TOTAL","",IF($AR$16=$AR$17,0,IF(AND(AW47>$BT$1,$AF$3=$AO$2,'Master Sheet'!$D$31>0),'Master Sheet'!$D$31,IF(AND(AW47=$BT$1,$AF$3=$AO$2),IF($AR$9<18001,135,IF($AR$9<33501,220,IF($AR$9<54001,330,440))),IF(AND(AW47>$BT$1,$AF$3=$AO$2),IF($AR$9<18001,265,IF($AR$9<33501,440,IF($AR$9<54001,658,875))),"")))))) -> 
D47: =IFERROR(IF($C46="TOTAL","अक्षरें राशि :-",IF($C47="TOTAL",SUM($D$8:D46),IF(AX48="","",AX48))),"") ->  | E47: =IFERROR(IF($C47="TOTAL",SUM($E$8:E46),IF(AY48="","",AY48)),"") ->  | F47: =IFERROR(IF($C47="TOTAL",SUM($F$8:F46),IF(OR(C47=$AP$16,C47=$AP$17,C47=$AP$18,C47=$AP$19,C47=$AP$20,C47=$AP$21,C47=$AP$22,C47=$AP$23,C47=$AP$24),0,IF(AZ48="","",AZ48))),"") ->  | H47: =IFERROR(IF($C47="TOTAL",SUM($H$8:H46),IF(BB48="","",BB48)),"") ->  | I47: =IFERROR(IF($C47="TOTAL",SUM($I$8:I46),IF(BC48="","",BC48)),"") ->  | J47: =IFERROR(IF($C47="TOTAL",SUM($J$8:J46),IF(OR(C47=$AP$16,C47=$AP$17,C47=$AP$18,C47=$AP$19,C47=$AP$20,C47=$AP$21,C47=$AP$22,C47=$AP$23,C47=$AP$24),0,IF(BD48="","",BD48))),"") ->  | L47: =IFERROR(IF(C47="","",IF(D47="","",IF(H47="","",IF($C47="TOTAL",SUM($L$8:L46),SUM(D47-H47))))),"") ->  | M47: =IFERROR(IF(C47="","",IF(E47="","",IF(I47="","",IF($C47="TOTAL",SUM($M$8:M46),SUM(E47-I47))))),"") ->  | N47: =IFERROR(IF(C47="","",IF(F47="","",IF(J47="","",IF($C47="TOTAL",SUM($N$8:N46),SUM(F47-J47))))),"") ->  | P47: =IFERROR(IF(C47="","",IF($C47="TOTAL",SUM($P$8:P46),IF(AND(C47>$AO$1,$AF$3=$AO$2),BR48,IF($AR$18=$AR$20,SUM(BE48+BM48),ROUND((D47+E47)*10%,0))))),"") ->  | Q47: =IFERROR(IF(C47="","",IF(H47="","",IF(I47="","",IF($C47="TOTAL",SUM($Q$8:Q46),IF(AND(C47>$AO$1,$AF$3=$AO$2),BR48,IF($AR$18=$AR$20,$AR$21,ROUND((H47+I47)*10%,0))))))),"") ->  | S47: =IFERROR(IF(C47="","",IF($AR$16=$AR$17,0,IF($C47="TOTAL",SUM($S$8:S46),IF($AR$19=$AR$31,0,IF(AND($AR$32=$AR$20,C47=$AR$33),$AR$34,S46))))),"") ->  | T47: =IFERROR(IF(C47="","",IF($AR$16=$AR$17,0,IF($C47="TOTAL",SUM($T$8:T46),IF($AR$19=$AR$20,$AR$24,0)))),"") ->  | V47: =IF(C47="","",IF($C47="TOTAL",SUM($V$8:V46),IF(AND($AR$2=$AR$20,C47=$AR$1),ROUND(D47/31*$AS$2,0),IF(C47=$AP$6,ROUND((G47)*1/30,0),IF(C47=$AQ$6,ROUND((G47)*1/31,0),""))))) ->  | W47: =IF(C47="","",IF($C47="TOTAL",SUM($W$8:W46),IF(AND($AR$2=$AR$20,C47=$AR$1),ROUND(H47/31*$AS$2,0),IF(C47=$AP$6,ROUND((K47)*1/30,0),IF(C47=$AQ$6,ROUND((K47)*1/31,0),""))))) ->  | Y47: =IFERROR(IF(C47="","",IF($AR$16=$AR$17,0,IF($AF$3=$AO$4,"",IF($C47="TOTAL",SUM($Y$8:Y46),BU47)))),"") ->  | Z47: =IFERROR(IF(C47="","",IF($AR$16=$AR$17,0,IF($AF$3=$AO$4,"",IF($C47="TOTAL",SUM($Z$8:Z46),BT47)))),"") ->  | AB47: =IFERROR(IF(C47="","",IF(AND(BK48="",BR48=""),"",IF($C47="TOTAL",SUM($AB$8:AB46),BK48))),"") ->  | AC47: =IFERROR(IF(C47="","",IF($C47="TOTAL",SUM($AC$8:AC46),ROUND(O47*$AR$7%,0))),"") ->  | AD47: =IFERROR(IF(C47="","",IF($C47="TOTAL",SUM($AD$8:AD46),IF($AF$3=$AO$2,SUM(U47,X47,AB47,AC47),SUM(R47,U47,X47,AB47,AC47)))),"") ->  | AE47: =IFERROR(IF(C47="","",IF($C47="TOTAL",SUM($AE$8:AE46),SUM(O47-AD47))),"") ->  | AN47: 42 | AO47: 42 | AQ47: 2020-03-01 | AS47: 2026-03-01 | BL47: 0 | BM47: 0 | BU47: =IF(AW48="","",IF(AW48="TOTAL","",IF($AR$16=$AR$17,0,IF(AND(AW48>$BT$1,$AF$3=$AO$2,'Master Sheet'!$D$31>0),'Master Sheet'!$D$31,IF(AND(AW48=$BT$1,$AF$3=$AO$2),IF($AR$9<18001,135,IF($AR$9<33501,220,IF($AR$9<54001,330,440))),IF(AND(AW48>$BT$1,$AF$3=$AO$2),IF($AR$9<18001,265,IF($AR$9<33501,440,IF($AR$9<54001,658,875))),"")))))) -> 
D48: =IFERROR(IF($C47="TOTAL","अक्षरें राशि :-",IF($C48="TOTAL",SUM($D$8:D47),IF(AX49="","",AX49))),"") ->  | E48: =IFERROR(IF($C48="TOTAL",SUM($E$8:E47),IF(AY49="","",AY49)),"") ->  | F48: =IFERROR(IF($C48="TOTAL",SUM($F$8:F47),IF(OR(C48=$AP$16,C48=$AP$17,C48=$AP$18,C48=$AP$19,C48=$AP$20,C48=$AP$21,C48=$AP$22,C48=$AP$23,C48=$AP$24),0,IF(AZ49="","",AZ49))),"") ->  | H48: =IFERROR(IF($C48="TOTAL",SUM($H$8:H47),IF(BB49="","",BB49)),"") ->  | I48: =IFERROR(IF($C48="TOTAL",SUM($I$8:I47),IF(BC49="","",BC49)),"") ->  | J48: =IFERROR(IF($C48="TOTAL",SUM($J$8:J47),IF(OR(C48=$AP$16,C48=$AP$17,C48=$AP$18,C48=$AP$19,C48=$AP$20,C48=$AP$21,C48=$AP$22,C48=$AP$23,C48=$AP$24),0,IF(BD49="","",BD49))),"") ->  | L48: =IFERROR(IF(C48="","",IF(D48="","",IF(H48="","",IF($C48="TOTAL",SUM($L$8:L47),SUM(D48-H48))))),"") ->  | M48: =IFERROR(IF(C48="","",IF(E48="","",IF(I48="","",IF($C48="TOTAL",SUM($M$8:M47),SUM(E48-I48))))),"") ->  | N48: =IFERROR(IF(C48="","",IF(F48="","",IF(J48="","",IF($C48="TOTAL",SUM($N$8:N47),SUM(F48-J48))))),"") ->  | P48: =IFERROR(IF(C48="","",IF($C48="TOTAL",SUM($P$8:P47),IF(AND(C48>$AO$1,$AF$3=$AO$2),BR49,IF($AR$18=$AR$20,SUM(BE49+BM49),ROUND((D48+E48)*10%,0))))),"") ->  | Q48: =IFERROR(IF(C48="","",IF(H48="","",IF(I48="","",IF($C48="TOTAL",SUM($Q$8:Q47),IF(AND(C48>$AO$1,$AF$3=$AO$2),BR49,IF($AR$18=$AR$20,$AR$21,ROUND((H48+I48)*10%,0))))))),"") ->  | S48: =IFERROR(IF(C48="","",IF($AR$16=$AR$17,0,IF($C48="TOTAL",SUM($S$8:S47),IF($AR$19=$AR$31,0,IF(AND($AR$32=$AR$20,C48=$AR$33),$AR$34,S47))))),"") ->  | T48: =IFERROR(IF(C48="","",IF($AR$16=$AR$17,0,IF($C48="TOTAL",SUM($T$8:T47),IF($AR$19=$AR$20,$AR$24,0)))),"") ->  | V48: =IF(C48="","",IF($C48="TOTAL",SUM($V$8:V47),IF(AND($AR$2=$AR$20,C48=$AR$1),ROUND(D48/31*$AS$2,0),IF(C48=$AP$6,ROUND((G48)*1/30,0),IF(C48=$AQ$6,ROUND((G48)*1/31,0),""))))) ->  | W48: =IF(C48="","",IF($C48="TOTAL",SUM($W$8:W47),IF(AND($AR$2=$AR$20,C48=$AR$1),ROUND(H48/31*$AS$2,0),IF(C48=$AP$6,ROUND((K48)*1/30,0),IF(C48=$AQ$6,ROUND((K48)*1/31,0),""))))) ->  | Y48: =IFERROR(IF(C48="","",IF($AR$16=$AR$17,0,IF($AF$3=$AO$4,"",IF($C48="TOTAL",SUM($Y$8:Y47),BU48)))),"") ->  | Z48: =IFERROR(IF(C48="","",IF($AR$16=$AR$17,0,IF($AF$3=$AO$4,"",IF($C48="TOTAL",SUM($Z$8:Z47),BT48)))),"") ->  | AB48: =IFERROR(IF(C48="","",IF(AND(BK49="",BR49=""),"",IF($C48="TOTAL",SUM($AB$8:AB47),BK49))),"") ->  | AC48: =IFERROR(IF(C48="","",IF($C48="TOTAL",SUM($AC$8:AC47),ROUND(O48*$AR$7%,0))),"") ->  | AD48: =IFERROR(IF(C48="","",IF($C48="TOTAL",SUM($AD$8:AD47),IF($AF$3=$AO$2,SUM(U48,X48,AB48,AC48),SUM(R48,U48,X48,AB48,AC48)))),"") ->  | AE48: =IFERROR(IF(C48="","",IF($C48="TOTAL",SUM($AE$8:AE47),SUM(O48-AD48))),"") ->  | AN48: 42 | AO48: 42 | AQ48: 2020-04-01 | AS48: 2026-04-01 | BL48: 0 | BM48: 0 | BU48: =IF(AW49="","",IF(AW49="TOTAL","",IF($AR$16=$AR$17,0,IF(AND(AW49>$BT$1,$AF$3=$AO$2,'Master Sheet'!$D$31>0),'Master Sheet'!$D$31,IF(AND(AW49=$BT$1,$AF$3=$AO$2),IF($AR$9<18001,135,IF($AR$9<33501,220,IF($AR$9<54001,330,440))),IF(AND(AW49>$BT$1,$AF$3=$AO$2),IF($AR$9<18001,265,IF($AR$9<33501,440,IF($AR$9<54001,658,875))),"")))))) -> 
D49: =IFERROR(IF($C48="TOTAL","अक्षरें राशि :-",IF($C49="TOTAL",SUM($D$8:D48),IF(AX50="","",AX50))),"") ->  | E49: =IFERROR(IF($C49="TOTAL",SUM($E$8:E48),IF(AY50="","",AY50)),"") ->  | F49: =IFERROR(IF($C49="TOTAL",SUM($F$8:F48),IF(OR(C49=$AP$16,C49=$AP$17,C49=$AP$18,C49=$AP$19,C49=$AP$20,C49=$AP$21,C49=$AP$22,C49=$AP$23,C49=$AP$24),0,IF(AZ50="","",AZ50))),"") ->  | H49: =IFERROR(IF($C49="TOTAL",SUM($H$8:H48),IF(BB50="","",BB50)),"") ->  | I49: =IFERROR(IF($C49="TOTAL",SUM($I$8:I48),IF(BC50="","",BC50)),"") ->  | J49: =IFERROR(IF($C49="TOTAL",SUM($J$8:J48),IF(OR(C49=$AP$16,C49=$AP$17,C49=$AP$18,C49=$AP$19,C49=$AP$20,C49=$AP$21,C49=$AP$22,C49=$AP$23,C49=$AP$24),0,IF(BD50="","",BD50))),"") ->  | L49: =IFERROR(IF(C49="","",IF(D49="","",IF(H49="","",IF($C49="TOTAL",SUM($L$8:L48),SUM(D49-H49))))),"") ->  | M49: =IFERROR(IF(C49="","",IF(E49="","",IF(I49="","",IF($C49="TOTAL",SUM($M$8:M48),SUM(E49-I49))))),"") ->  | N49: =IFERROR(IF(C49="","",IF(F49="","",IF(J49="","",IF($C49="TOTAL",SUM($N$8:N48),SUM(F49-J49))))),"") ->  | P49: =IFERROR(IF(C49="","",IF($C49="TOTAL",SUM($P$8:P48),IF(AND(C49>$AO$1,$AF$3=$AO$2),BR50,IF($AR$18=$AR$20,SUM(BE50+BM50),ROUND((D49+E49)*10%,0))))),"") ->  | Q49: =IFERROR(IF(C49="","",IF(H49="","",IF(I49="","",IF($C49="TOTAL",SUM($Q$8:Q48),IF(AND(C49>$AO$1,$AF$3=$AO$2),BR50,IF($AR$18=$AR$20,$AR$21,ROUND((H49+I49)*10%,0))))))),"") ->  | S49: =IFERROR(IF(C49="","",IF($AR$16=$AR$17,0,IF($C49="TOTAL",SUM($S$8:S48),IF($AR$19=$AR$31,0,IF(AND($AR$32=$AR$20,C49=$AR$33),$AR$34,S48))))),"") ->  | T49: =IFERROR(IF(C49="","",IF($AR$16=$AR$17,0,IF($C49="TOTAL",SUM($T$8:T48),IF($AR$19=$AR$20,$AR$24,0)))),"") ->  | V49: =IF(C49="","",IF($C49="TOTAL",SUM($V$8:V48),IF(AND($AR$2=$AR$20,C49=$AR$1),ROUND(D49/31*$AS$2,0),IF(C49=$AP$6,ROUND((G49)*1/30,0),IF(C49=$AQ$6,ROUND((G49)*1/31,0),""))))) ->  | W49: =IF(C49="","",IF($C49="TOTAL",SUM($W$8:W48),IF(AND($AR$2=$AR$20,C49=$AR$1),ROUND(H49/31*$AS$2,0),IF(C49=$AP$6,ROUND((K49)*1/30,0),IF(C49=$AQ$6,ROUND((K49)*1/31,0),""))))) ->  | Y49: =IFERROR(IF(C49="","",IF($AR$16=$AR$17,0,IF($AF$3=$AO$4,"",IF($C49="TOTAL",SUM($Y$8:Y48),BU49)))),"") ->  | Z49: =IFERROR(IF(C49="","",IF($AR$16=$AR$17,0,IF($AF$3=$AO$4,"",IF($C49="TOTAL",SUM($Z$8:Z48),BT49)))),"") ->  | AB49: =IFERROR(IF(C49="","",IF(AND(BK50="",BR50=""),"",IF($C49="TOTAL",SUM($AB$8:AB48),BK50))),"") ->  | AC49: =IFERROR(IF(C49="","",IF($C49="TOTAL",SUM($AC$8:AC48),ROUND(O49*$AR$7%,0))),"") ->  | AD49: =IFERROR(IF(C49="","",IF($C49="TOTAL",SUM($AD$8:AD48),IF($AF$3=$AO$2,SUM(U49,X49,AB49,AC49),SUM(R49,U49,X49,AB49,AC49)))),"") ->  | AE49: =IFERROR(IF(C49="","",IF($C49="TOTAL",SUM($AE$8:AE48),SUM(O49-AD49))),"") ->  | AN49: 42 | AO49: 42 | AQ49: 2020-05-01 | AS49: 2026-05-01 | BL49: 0 | BM49: 0 | BU49: =IF(AW50="","",IF(AW50="TOTAL","",IF($AR$16=$AR$17,0,IF(AND(AW50>$BT$1,$AF$3=$AO$2,'Master Sheet'!$D$31>0),'Master Sheet'!$D$31,IF(AND(AW50=$BT$1,$AF$3=$AO$2),IF($AR$9<18001,135,IF($AR$9<33501,220,IF($AR$9<54001,330,440))),IF(AND(AW50>$BT$1,$AF$3=$AO$2),IF($AR$9<18001,265,IF($AR$9<33501,440,IF($AR$9<54001,658,875))),"")))))) -> 
D50: =IFERROR(IF($C49="TOTAL","अक्षरें राशि :-",IF($C50="TOTAL",SUM($D$8:D49),IF(AX51="","",AX51))),"") ->  | E50: =IFERROR(IF($C50="TOTAL",SUM($E$8:E49),IF(AY51="","",AY51)),"") ->  | F50: =IFERROR(IF($C50="TOTAL",SUM($F$8:F49),IF(OR(C50=$AP$16,C50=$AP$17,C50=$AP$18,C50=$AP$19,C50=$AP$20,C50=$AP$21,C50=$AP$22,C50=$AP$23,C50=$AP$24),0,IF(AZ51="","",AZ51))),"") ->  | H50: =IFERROR(IF($C50="TOTAL",SUM($H$8:H49),IF(BB51="","",BB51)),"") ->  | I50: =IFERROR(IF($C50="TOTAL",SUM($I$8:I49),IF(BC51="","",BC51)),"") ->  | J50: =IFERROR(IF($C50="TOTAL",SUM($J$8:J49),IF(OR(C50=$AP$16,C50=$AP$17,C50=$AP$18,C50=$AP$19,C50=$AP$20,C50=$AP$21,C50=$AP$22,C50=$AP$23,C50=$AP$24),0,IF(BD51="","",BD51))),"") ->  | L50: =IFERROR(IF(C50="","",IF(D50="","",IF(H50="","",IF($C50="TOTAL",SUM($L$8:L49),SUM(D50-H50))))),"") ->  | M50: =IFERROR(IF(C50="","",IF(E50="","",IF(I50="","",IF($C50="TOTAL",SUM($M$8:M49),SUM(E50-I50))))),"") ->  | N50: =IFERROR(IF(C50="","",IF(F50="","",IF(J50="","",IF($C50="TOTAL",SUM($N$8:N49),SUM(F50-J50))))),"") ->  | P50: =IFERROR(IF(C50="","",IF($C50="TOTAL",SUM($P$8:P49),IF(AND(C50>$AO$1,$AF$3=$AO$2),BR51,IF($AR$18=$AR$20,SUM(BE51+BM51),ROUND((D50+E50)*10%,0))))),"") ->  | Q50: =IFERROR(IF(C50="","",IF(H50="","",IF(I50="","",IF($C50="TOTAL",SUM($Q$8:Q49),IF(AND(C50>$AO$1,$AF$3=$AO$2),BR51,IF($AR$18=$AR$20,$AR$21,ROUND((H50+I50)*10%,0))))))),"") ->  | S50: =IFERROR(IF(C50="","",IF($AR$16=$AR$17,0,IF($C50="TOTAL",SUM($S$8:S49),IF($AR$19=$AR$31,0,IF(AND($AR$32=$AR$20,C50=$AR$33),$AR$34,S49))))),"") ->  | T50: =IFERROR(IF(C50="","",IF($AR$16=$AR$17,0,IF($C50="TOTAL",SUM($T$8:T49),IF($AR$19=$AR$20,$AR$24,0)))),"") ->  | V50: =IF(C50="","",IF($C50="TOTAL",SUM($V$8:V49),IF(AND($AR$2=$AR$20,C50=$AR$1),ROUND(D50/31*$AS$2,0),IF(C50=$AP$6,ROUND((G50)*1/30,0),IF(C50=$AQ$6,ROUND((G50)*1/31,0),""))))) ->  | W50: =IF(C50="","",IF($C50="TOTAL",SUM($W$8:W49),IF(AND($AR$2=$AR$20,C50=$AR$1),ROUND(H50/31*$AS$2,0),IF(C50=$AP$6,ROUND((K50)*1/30,0),IF(C50=$AQ$6,ROUND((K50)*1/31,0),""))))) ->  | Y50: =IFERROR(IF(C50="","",IF($AR$16=$AR$17,0,IF($AF$3=$AO$4,"",IF($C50="TOTAL",SUM($Y$8:Y49),BU50)))),"") ->  | Z50: =IFERROR(IF(C50="","",IF($AR$16=$AR$17,0,IF($AF$3=$AO$4,"",IF($C50="TOTAL",SUM($Z$8:Z49),BT50)))),"") ->  | AB50: =IFERROR(IF(C50="","",IF(AND(BK51="",BR51=""),"",IF($C50="TOTAL",SUM($AB$8:AB49),BK51))),"") ->  | AC50: =IFERROR(IF(C50="","",IF($C50="TOTAL",SUM($AC$8:AC49),ROUND(O50*$AR$7%,0))),"") ->  | AD50: =IFERROR(IF(C50="","",IF($C50="TOTAL",SUM($AD$8:AD49),IF($AF$3=$AO$2,SUM(U50,X50,AB50,AC50),SUM(R50,U50,X50,AB50,AC50)))),"") ->  | AE50: =IFERROR(IF(C50="","",IF($C50="TOTAL",SUM($AE$8:AE49),SUM(O50-AD50))),"") ->  | AN50: 42 | AO50: 42 | AQ50: 2020-06-01 | AS50: 2026-06-01 | BL50: 0 | BM50: 0 | BU50: =IF(AW51="","",IF(AW51="TOTAL","",IF($AR$16=$AR$17,0,IF(AND(AW51>$BT$1,$AF$3=$AO$2,'Master Sheet'!$D$31>0),'Master Sheet'!$D$31,IF(AND(AW51=$BT$1,$AF$3=$AO$2),IF($AR$9<18001,135,IF($AR$9<33501,220,IF($AR$9<54001,330,440))),IF(AND(AW51>$BT$1,$AF$3=$AO$2),IF($AR$9<18001,265,IF($AR$9<33501,440,IF($AR$9<54001,658,875))),"")))))) -> 
D51: =IFERROR(IF($C50="TOTAL","अक्षरें राशि :-",IF($C51="TOTAL",SUM($D$8:D50),IF(AX52="","",AX52))),"") ->  | E51: =IFERROR(IF($C51="TOTAL",SUM($E$8:E50),IF(AY52="","",AY52)),"") ->  | F51: =IFERROR(IF($C51="TOTAL",SUM($F$8:F50),IF(OR(C51=$AP$16,C51=$AP$17,C51=$AP$18,C51=$AP$19,C51=$AP$20,C51=$AP$21,C51=$AP$22,C51=$AP$23,C51=$AP$24),0,IF(AZ52="","",AZ52))),"") ->  | H51: =IFERROR(IF($C51="TOTAL",SUM($H$8:H50),IF(BB52="","",BB52)),"") ->  | I51: =IFERROR(IF($C51="TOTAL",SUM($I$8:I50),IF(BC52="","",BC52)),"") ->  | J51: =IFERROR(IF($C51="TOTAL",SUM($J$8:J50),IF(OR(C51=$AP$16,C51=$AP$17,C51=$AP$18,C51=$AP$19,C51=$AP$20,C51=$AP$21,C51=$AP$22,C51=$AP$23,C51=$AP$24),0,IF(BD52="","",BD52))),"") ->  | L51: =IFERROR(IF(C51="","",IF(D51="","",IF(H51="","",IF($C51="TOTAL",SUM($L$8:L50),SUM(D51-H51))))),"") ->  | M51: =IFERROR(IF(C51="","",IF(E51="","",IF(I51="","",IF($C51="TOTAL",SUM($M$8:M50),SUM(E51-I51))))),"") ->  | N51: =IFERROR(IF(C51="","",IF(F51="","",IF(J51="","",IF($C51="TOTAL",SUM($N$8:N50),SUM(F51-J51))))),"") ->  | P51: =IFERROR(IF(C51="","",IF($C51="TOTAL",SUM($P$8:P50),IF(AND(C51>$AO$1,$AF$3=$AO$2),BR52,IF($AR$18=$AR$20,SUM(BE52+BM52),ROUND((D51+E51)*10%,0))))),"") ->  | Q51: =IFERROR(IF(C51="","",IF(H51="","",IF(I51="","",IF($C51="TOTAL",SUM($Q$8:Q50),IF(AND(C51>$AO$1,$AF$3=$AO$2),BR52,IF($AR$18=$AR$20,$AR$21,ROUND((H51+I51)*10%,0))))))),"") ->  | S51: =IFERROR(IF(C51="","",IF($AR$16=$AR$17,0,IF($C51="TOTAL",SUM($S$8:S50),IF($AR$19=$AR$31,0,IF(AND($AR$32=$AR$20,C51=$AR$33),$AR$34,S50))))),"") ->  | T51: =IFERROR(IF(C51="","",IF($AR$16=$AR$17,0,IF($C51="TOTAL",SUM($T$8:T50),IF($AR$19=$AR$20,$AR$24,0)))),"") ->  | V51: =IF(C51="","",IF($C51="TOTAL",SUM($V$8:V50),IF(AND($AR$2=$AR$20,C51=$AR$1),ROUND(D51/31*$AS$2,0),IF(C51=$AP$6,ROUND((G51)*1/30,0),IF(C51=$AQ$6,ROUND((G51)*1/31,0),""))))) ->  | W51: =IF(C51="","",IF($C51="TOTAL",SUM($W$8:W50),IF(AND($AR$2=$AR$20,C51=$AR$1),ROUND(H51/31*$AS$2,0),IF(C51=$AP$6,ROUND((K51)*1/30,0),IF(C51=$AQ$6,ROUND((K51)*1/31,0),""))))) ->  | Y51: =IFERROR(IF(C51="","",IF($AR$16=$AR$17,0,IF($AF$3=$AO$4,"",IF($C51="TOTAL",SUM($Y$8:Y50),BU51)))),"") ->  | Z51: =IFERROR(IF(C51="","",IF($AR$16=$AR$17,0,IF($AF$3=$AO$4,"",IF($C51="TOTAL",SUM($Z$8:Z50),BT51)))),"") ->  | AB51: =IFERROR(IF(C51="","",IF(AND(BK52="",BR52=""),"",IF($C51="TOTAL",SUM($AB$8:AB50),BK52))),"") ->  | AC51: =IFERROR(IF(C51="","",IF($C51="TOTAL",SUM($AC$8:AC50),ROUND(O51*$AR$7%,0))),"") ->  | AD51: =IFERROR(IF(C51="","",IF($C51="TOTAL",SUM($AD$8:AD50),IF($AF$3=$AO$2,SUM(U51,X51,AB51,AC51),SUM(R51,U51,X51,AB51,AC51)))),"") ->  | AE51: =IFERROR(IF(C51="","",IF($C51="TOTAL",SUM($AE$8:AE50),SUM(O51-AD51))),"") ->  | AN51: 42 | AO51: 42 | AQ51: 2020-07-01 | AS51: 2026-07-01 | BL51: 0 | BM51: 0 | BU51: =IF(AW52="","",IF(AW52="TOTAL","",IF($AR$16=$AR$17,0,IF(AND(AW52>$BT$1,$AF$3=$AO$2,'Master Sheet'!$D$31>0),'Master Sheet'!$D$31,IF(AND(AW52=$BT$1,$AF$3=$AO$2),IF($AR$9<18001,135,IF($AR$9<33501,220,IF($AR$9<54001,330,440))),IF(AND(AW52>$BT$1,$AF$3=$AO$2),IF($AR$9<18001,265,IF($AR$9<33501,440,IF($AR$9<54001,658,875))),"")))))) -> 
D52: =IFERROR(IF($C51="TOTAL","अक्षरें राशि :-",IF($C52="TOTAL",SUM($D$8:D51),IF(AX53="","",AX53))),"") ->  | E52: =IFERROR(IF($C52="TOTAL",SUM($E$8:E51),IF(AY53="","",AY53)),"") ->  | F52: =IFERROR(IF($C52="TOTAL",SUM($F$8:F51),IF(OR(C52=$AP$16,C52=$AP$17,C52=$AP$18,C52=$AP$19,C52=$AP$20,C52=$AP$21,C52=$AP$22,C52=$AP$23,C52=$AP$24),0,IF(AZ53="","",AZ53))),"") ->  | H52: =IFERROR(IF($C52="TOTAL",SUM($H$8:H51),IF(BB53="","",BB53)),"") ->  | I52: =IFERROR(IF($C52="TOTAL",SUM($I$8:I51),IF(BC53="","",BC53)),"") ->  | J52: =IFERROR(IF($C52="TOTAL",SUM($J$8:J51),IF(OR(C52=$AP$16,C52=$AP$17,C52=$AP$18,C52=$AP$19,C52=$AP$20,C52=$AP$21,C52=$AP$22,C52=$AP$23,C52=$AP$24),0,IF(BD53="","",BD53))),"") ->  | L52: =IFERROR(IF(C52="","",IF(D52="","",IF(H52="","",IF($C52="TOTAL",SUM($L$8:L51),SUM(D52-H52))))),"") ->  | M52: =IFERROR(IF(C52="","",IF(E52="","",IF(I52="","",IF($C52="TOTAL",SUM($M$8:M51),SUM(E52-I52))))),"") ->  | N52: =IFERROR(IF(C52="","",IF(F52="","",IF(J52="","",IF($C52="TOTAL",SUM($N$8:N51),SUM(F52-J52))))),"") ->  | P52: =IFERROR(IF(C52="","",IF($C52="TOTAL",SUM($P$8:P51),IF(AND(C52>$AO$1,$AF$3=$AO$2),BR53,IF($AR$18=$AR$20,SUM(BE53+BM53),ROUND((D52+E52)*10%,0))))),"") ->  | Q52: =IFERROR(IF(C52="","",IF(H52="","",IF(I52="","",IF($C52="TOTAL",SUM($Q$8:Q51),IF(AND(C52>$AO$1,$AF$3=$AO$2),BR53,IF($AR$18=$AR$20,$AR$21,ROUND((H52+I52)*10%,0))))))),"") ->  | S52: =IFERROR(IF(C52="","",IF($AR$16=$AR$17,0,IF($C52="TOTAL",SUM($S$8:S51),IF($AR$19=$AR$31,0,IF(AND($AR$32=$AR$20,C52=$AR$33),$AR$34,S51))))),"") ->  | T52: =IFERROR(IF(C52="","",IF($AR$16=$AR$17,0,IF($C52="TOTAL",SUM($T$8:T51),IF($AR$19=$AR$20,$AR$24,0)))),"") ->  | V52: =IF(C52="","",IF($C52="TOTAL",SUM($V$8:V51),IF(AND($AR$2=$AR$20,C52=$AR$1),ROUND(D52/31*$AS$2,0),IF(C52=$AP$6,ROUND((G52)*1/30,0),IF(C52=$AQ$6,ROUND((G52)*1/31,0),""))))) ->  | W52: =IF(C52="","",IF($C52="TOTAL",SUM($W$8:W51),IF(AND($AR$2=$AR$20,C52=$AR$1),ROUND(H52/31*$AS$2,0),IF(C52=$AP$6,ROUND((K52)*1/30,0),IF(C52=$AQ$6,ROUND((K52)*1/31,0),""))))) ->  | Y52: =IFERROR(IF(C52="","",IF($AR$16=$AR$17,0,IF($AF$3=$AO$4,"",IF($C52="TOTAL",SUM($Y$8:Y51),BU52)))),"") ->  | Z52: =IFERROR(IF(C52="","",IF($AR$16=$AR$17,0,IF($AF$3=$AO$4,"",IF($C52="TOTAL",SUM($Z$8:Z51),BT52)))),"") ->  | AB52: =IFERROR(IF(C52="","",IF(AND(BK53="",BR53=""),"",IF($C52="TOTAL",SUM($AB$8:AB51),BK53))),"") ->  | AC52: =IFERROR(IF(C52="","",IF($C52="TOTAL",SUM($AC$8:AC51),ROUND(O52*$AR$7%,0))),"") ->  | AD52: =IFERROR(IF(C52="","",IF($C52="TOTAL",SUM($AD$8:AD51),IF($AF$3=$AO$2,SUM(U52,X52,AB52,AC52),SUM(R52,U52,X52,AB52,AC52)))),"") ->  | AE52: =IFERROR(IF(C52="","",IF($C52="TOTAL",SUM($AE$8:AE51),SUM(O52-AD52))),"") ->  | AN52: 42 | AO52: 42 | AQ52: 2020-08-01 | AS52: 2026-08-01 | BL52: 0 | BM52: 0 | BU52: =IF(AW53="","",IF(AW53="TOTAL","",IF($AR$16=$AR$17,0,IF(AND(AW53>$BT$1,$AF$3=$AO$2,'Master Sheet'!$D$31>0),'Master Sheet'!$D$31,IF(AND(AW53=$BT$1,$AF$3=$AO$2),IF($AR$9<18001,135,IF($AR$9<33501,220,IF($AR$9<54001,330,440))),IF(AND(AW53>$BT$1,$AF$3=$AO$2),IF($AR$9<18001,265,IF($AR$9<33501,440,IF($AR$9<54001,658,875))),"")))))) -> 
D53: =IFERROR(IF($C52="TOTAL","अक्षरें राशि :-",IF($C53="TOTAL",SUM($D$8:D52),IF(AX54="","",AX54))),"") ->  | E53: =IFERROR(IF($C53="TOTAL",SUM($E$8:E52),IF(AY54="","",AY54)),"") ->  | F53: =IFERROR(IF($C53="TOTAL",SUM($F$8:F52),IF(OR(C53=$AP$16,C53=$AP$17,C53=$AP$18,C53=$AP$19,C53=$AP$20,C53=$AP$21,C53=$AP$22,C53=$AP$23,C53=$AP$24),0,IF(AZ54="","",AZ54))),"") ->  | H53: =IFERROR(IF($C53="TOTAL",SUM($H$8:H52),IF(BB54="","",BB54)),"") ->  | I53: =IFERROR(IF($C53="TOTAL",SUM($I$8:I52),IF(BC54="","",BC54)),"") ->  | J53: =IFERROR(IF($C53="TOTAL",SUM($J$8:J52),IF(OR(C53=$AP$16,C53=$AP$17,C53=$AP$18,C53=$AP$19,C53=$AP$20,C53=$AP$21,C53=$AP$22,C53=$AP$23,C53=$AP$24),0,IF(BD54="","",BD54))),"") ->  | L53: =IFERROR(IF(C53="","",IF(D53="","",IF(H53="","",IF($C53="TOTAL",SUM($L$8:L52),SUM(D53-H53))))),"") ->  | M53: =IFERROR(IF(C53="","",IF(E53="","",IF(I53="","",IF($C53="TOTAL",SUM($M$8:M52),SUM(E53-I53))))),"") ->  | N53: =IFERROR(IF(C53="","",IF(F53="","",IF(J53="","",IF($C53="TOTAL",SUM($N$8:N52),SUM(F53-J53))))),"") ->  | P53: =IFERROR(IF(C53="","",IF($C53="TOTAL",SUM($P$8:P52),IF(AND(C53>$AO$1,$AF$3=$AO$2),BR54,IF($AR$18=$AR$20,SUM(BE54+BM54),ROUND((D53+E53)*10%,0))))),"") ->  | Q53: =IFERROR(IF(C53="","",IF(H53="","",IF(I53="","",IF($C53="TOTAL",SUM($Q$8:Q52),IF(AND(C53>$AO$1,$AF$3=$AO$2),BR54,IF($AR$18=$AR$20,$AR$21,ROUND((H53+I53)*10%,0))))))),"") ->  | S53: =IFERROR(IF(C53="","",IF($AR$16=$AR$17,0,IF($C53="TOTAL",SUM($S$8:S52),IF($AR$19=$AR$31,0,IF(AND($AR$32=$AR$20,C53=$AR$33),$AR$34,S52))))),"") ->  | T53: =IFERROR(IF(C53="","",IF($AR$16=$AR$17,0,IF($C53="TOTAL",SUM($T$8:T52),IF($AR$19=$AR$20,$AR$24,0)))),"") ->  | V53: =IF(C53="","",IF($C53="TOTAL",SUM($V$8:V52),IF(AND($AR$2=$AR$20,C53=$AR$1),ROUND(D53/31*$AS$2,0),IF(C53=$AP$6,ROUND((G53)*1/30,0),IF(C53=$AQ$6,ROUND((G53)*1/31,0),""))))) ->  | W53: =IF(C53="","",IF($C53="TOTAL",SUM($W$8:W52),IF(AND($AR$2=$AR$20,C53=$AR$1),ROUND(H53/31*$AS$2,0),IF(C53=$AP$6,ROUND((K53)*1/30,0),IF(C53=$AQ$6,ROUND((K53)*1/31,0),""))))) ->  | Y53: =IFERROR(IF(C53="","",IF($AR$16=$AR$17,0,IF($AF$3=$AO$4,"",IF($C53="TOTAL",SUM($Y$8:Y52),BU53)))),"") ->  | Z53: =IFERROR(IF(C53="","",IF($AR$16=$AR$17,0,IF($AF$3=$AO$4,"",IF($C53="TOTAL",SUM($Z$8:Z52),BT53)))),"") ->  | AB53: =IFERROR(IF(C53="","",IF(AND(BK54="",BR54=""),"",IF($C53="TOTAL",SUM($AB$8:AB52),BK54))),"") ->  | AC53: =IFERROR(IF(C53="","",IF($C53="TOTAL",SUM($AC$8:AC52),ROUND(O53*$AR$7%,0))),"") ->  | AD53: =IFERROR(IF(C53="","",IF($C53="TOTAL",SUM($AD$8:AD52),IF($AF$3=$AO$2,SUM(U53,X53,AB53,AC53),SUM(R53,U53,X53,AB53,AC53)))),"") ->  | AE53: =IFERROR(IF(C53="","",IF($C53="TOTAL",SUM($AE$8:AE52),SUM(O53-AD53))),"") ->  | AN53: 42 | AO53: 42 | AQ53: 2020-09-01 | AS53: 2026-09-01 | BL53: 0 | BM53: 0 | BU53: =IF(AW54="","",IF(AW54="TOTAL","",IF($AR$16=$AR$17,0,IF(AND(AW54>$BT$1,$AF$3=$AO$2,'Master Sheet'!$D$31>0),'Master Sheet'!$D$31,IF(AND(AW54=$BT$1,$AF$3=$AO$2),IF($AR$9<18001,135,IF($AR$9<33501,220,IF($AR$9<54001,330,440))),IF(AND(AW54>$BT$1,$AF$3=$AO$2),IF($AR$9<18001,265,IF($AR$9<33501,440,IF($AR$9<54001,658,875))),"")))))) -> 
D54: =IFERROR(IF($C53="TOTAL","अक्षरें राशि :-",IF($C54="TOTAL",SUM($D$8:D53),IF(AX55="","",AX55))),"") ->  | E54: =IFERROR(IF($C54="TOTAL",SUM($E$8:E53),IF(AY55="","",AY55)),"") ->  | F54: =IFERROR(IF($C54="TOTAL",SUM($F$8:F53),IF(OR(C54=$AP$16,C54=$AP$17,C54=$AP$18,C54=$AP$19,C54=$AP$20,C54=$AP$21,C54=$AP$22,C54=$AP$23,C54=$AP$24),0,IF(AZ55="","",AZ55))),"") ->  | H54: =IFERROR(IF($C54="TOTAL",SUM($H$8:H53),IF(BB55="","",BB55)),"") ->  | I54: =IFERROR(IF($C54="TOTAL",SUM($I$8:I53),IF(BC55="","",BC55)),"") ->  | J54: =IFERROR(IF($C54="TOTAL",SUM($J$8:J53),IF(OR(C54=$AP$16,C54=$AP$17,C54=$AP$18,C54=$AP$19,C54=$AP$20,C54=$AP$21,C54=$AP$22,C54=$AP$23,C54=$AP$24),0,IF(BD55="","",BD55))),"") ->  | L54: =IFERROR(IF(C54="","",IF(D54="","",IF(H54="","",IF($C54="TOTAL",SUM($L$8:L53),SUM(D54-H54))))),"") ->  | M54: =IFERROR(IF(C54="","",IF(E54="","",IF(I54="","",IF($C54="TOTAL",SUM($M$8:M53),SUM(E54-I54))))),"") ->  | N54: =IFERROR(IF(C54="","",IF(F54="","",IF(J54="","",IF($C54="TOTAL",SUM($N$8:N53),SUM(F54-J54))))),"") ->  | P54: =IFERROR(IF(C54="","",IF($C54="TOTAL",SUM($P$8:P53),IF(AND(C54>$AO$1,$AF$3=$AO$2),BR55,IF($AR$18=$AR$20,SUM(BE55+BM55),ROUND((D54+E54)*10%,0))))),"") ->  | Q54: =IFERROR(IF(C54="","",IF(H54="","",IF(I54="","",IF($C54="TOTAL",SUM($Q$8:Q53),IF(AND(C54>$AO$1,$AF$3=$AO$2),BR55,IF($AR$18=$AR$20,$AR$21,ROUND((H54+I54)*10%,0))))))),"") ->  | S54: =IFERROR(IF(C54="","",IF($AR$16=$AR$17,0,IF($C54="TOTAL",SUM($S$8:S53),IF($AR$19=$AR$31,0,IF(AND($AR$32=$AR$20,C54=$AR$33),$AR$34,S53))))),"") ->  | T54: =IFERROR(IF(C54="","",IF($AR$16=$AR$17,0,IF($C54="TOTAL",SUM($T$8:T53),IF($AR$19=$AR$20,$AR$24,0)))),"") ->  | V54: =IF(C54="","",IF($C54="TOTAL",SUM($V$8:V53),IF(AND($AR$2=$AR$20,C54=$AR$1),ROUND(D54/31*$AS$2,0),IF(C54=$AP$6,ROUND((G54)*1/30,0),IF(C54=$AQ$6,ROUND((G54)*1/31,0),""))))) ->  | W54: =IF(C54="","",IF($C54="TOTAL",SUM($W$8:W53),IF(AND($AR$2=$AR$20,C54=$AR$1),ROUND(H54/31*$AS$2,0),IF(C54=$AP$6,ROUND((K54)*1/30,0),IF(C54=$AQ$6,ROUND((K54)*1/31,0),""))))) ->  | Y54: =IFERROR(IF(C54="","",IF($AR$16=$AR$17,0,IF($AF$3=$AO$4,"",IF($C54="TOTAL",SUM($Y$8:Y53),BU54)))),"") ->  | Z54: =IFERROR(IF(C54="","",IF($AR$16=$AR$17,0,IF($AF$3=$AO$4,"",IF($C54="TOTAL",SUM($Z$8:Z53),BT54)))),"") ->  | AB54: =IFERROR(IF(C54="","",IF(AND(BK55="",BR55=""),"",IF($C54="TOTAL",SUM($AB$8:AB53),BK55))),"") ->  | AC54: =IFERROR(IF(C54="","",IF($C54="TOTAL",SUM($AC$8:AC53),ROUND(O54*$AR$7%,0))),"") ->  | AD54: =IFERROR(IF(C54="","",IF($C54="TOTAL",SUM($AD$8:AD53),IF($AF$3=$AO$2,SUM(U54,X54,AB54,AC54),SUM(R54,U54,X54,AB54,AC54)))),"") ->  | AE54: =IFERROR(IF(C54="","",IF($C54="TOTAL",SUM($AE$8:AE53),SUM(O54-AD54))),"") ->  | AN54: 42 | AO54: 42 | AQ54: 2020-10-01 | AS54: 2026-10-01 | BL54: 0 | BM54: 0 | BU54: =IF(AW55="","",IF(AW55="TOTAL","",IF($AR$16=$AR$17,0,IF(AND(AW55>$BT$1,$AF$3=$AO$2,'Master Sheet'!$D$31>0),'Master Sheet'!$D$31,IF(AND(AW55=$BT$1,$AF$3=$AO$2),IF($AR$9<18001,135,IF($AR$9<33501,220,IF($AR$9<54001,330,440))),IF(AND(AW55>$BT$1,$AF$3=$AO$2),IF($AR$9<18001,265,IF($AR$9<33501,440,IF($AR$9<54001,658,875))),"")))))) -> 
D55: =IFERROR(IF($C54="TOTAL","अक्षरें राशि :-",IF($C55="TOTAL",SUM($D$8:D54),IF(AX56="","",AX56))),"") ->  | E55: =IFERROR(IF($C55="TOTAL",SUM($E$8:E54),IF(AY56="","",AY56)),"") ->  | F55: =IFERROR(IF($C55="TOTAL",SUM($F$8:F54),IF(OR(C55=$AP$16,C55=$AP$17,C55=$AP$18,C55=$AP$19,C55=$AP$20,C55=$AP$21,C55=$AP$22,C55=$AP$23,C55=$AP$24),0,IF(AZ56="","",AZ56))),"") ->  | H55: =IFERROR(IF($C55="TOTAL",SUM($H$8:H54),IF(BB56="","",BB56)),"") ->  | I55: =IFERROR(IF($C55="TOTAL",SUM($I$8:I54),IF(BC56="","",BC56)),"") ->  | J55: =IFERROR(IF($C55="TOTAL",SUM($J$8:J54),IF(OR(C55=$AP$16,C55=$AP$17,C55=$AP$18,C55=$AP$19,C55=$AP$20,C55=$AP$21,C55=$AP$22,C55=$AP$23,C55=$AP$24),0,IF(BD56="","",BD56))),"") ->  | L55: =IFERROR(IF(C55="","",IF(D55="","",IF(H55="","",IF($C55="TOTAL",SUM($L$8:L54),SUM(D55-H55))))),"") ->  | M55: =IFERROR(IF(C55="","",IF(E55="","",IF(I55="","",IF($C55="TOTAL",SUM($M$8:M54),SUM(E55-I55))))),"") ->  | N55: =IFERROR(IF(C55="","",IF(F55="","",IF(J55="","",IF($C55="TOTAL",SUM($N$8:N54),SUM(F55-J55))))),"") ->  | P55: =IFERROR(IF(C55="","",IF($C55="TOTAL",SUM($P$8:P54),IF(AND(C55>$AO$1,$AF$3=$AO$2),BR56,IF($AR$18=$AR$20,SUM(BE56+BM56),ROUND((D55+E55)*10%,0))))),"") ->  | Q55: =IFERROR(IF(C55="","",IF(H55="","",IF(I55="","",IF($C55="TOTAL",SUM($Q$8:Q54),IF(AND(C55>$AO$1,$AF$3=$AO$2),BR56,IF($AR$18=$AR$20,$AR$21,ROUND((H55+I55)*10%,0))))))),"") ->  | S55: =IFERROR(IF(C55="","",IF($AR$16=$AR$17,0,IF($C55="TOTAL",SUM($S$8:S54),IF($AR$19=$AR$31,0,IF(AND($AR$32=$AR$20,C55=$AR$33),$AR$34,S54))))),"") ->  | T55: =IFERROR(IF(C55="","",IF($AR$16=$AR$17,0,IF($C55="TOTAL",SUM($T$8:T54),IF($AR$19=$AR$20,$AR$24,0)))),"") ->  | V55: =IF(C55="","",IF($C55="TOTAL",SUM($V$8:V54),IF(AND($AR$2=$AR$20,C55=$AR$1),ROUND(D55/31*$AS$2,0),IF(C55=$AP$6,ROUND((G55)*1/30,0),IF(C55=$AQ$6,ROUND((G55)*1/31,0),""))))) ->  | W55: =IF(C55="","",IF($C55="TOTAL",SUM($W$8:W54),IF(AND($AR$2=$AR$20,C55=$AR$1),ROUND(H55/31*$AS$2,0),IF(C55=$AP$6,ROUND((K55)*1/30,0),IF(C55=$AQ$6,ROUND((K55)*1/31,0),""))))) ->  | Y55: =IFERROR(IF(C55="","",IF($AR$16=$AR$17,0,IF($AF$3=$AO$4,"",IF($C55="TOTAL",SUM($Y$8:Y54),BU55)))),"") ->  | Z55: =IFERROR(IF(C55="","",IF($AR$16=$AR$17,0,IF($AF$3=$AO$4,"",IF($C55="TOTAL",SUM($Z$8:Z54),BT55)))),"") ->  | AB55: =IFERROR(IF(C55="","",IF(AND(BK56="",BR56=""),"",IF($C55="TOTAL",SUM($AB$8:AB54),BK56))),"") ->  | AC55: =IFERROR(IF(C55="","",IF($C55="TOTAL",SUM($AC$8:AC54),ROUND(O55*$AR$7%,0))),"") ->  | AD55: =IFERROR(IF(C55="","",IF($C55="TOTAL",SUM($AD$8:AD54),IF($AF$3=$AO$2,SUM(U55,X55,AB55,AC55),SUM(R55,U55,X55,AB55,AC55)))),"") ->  | AE55: =IFERROR(IF(C55="","",IF($C55="TOTAL",SUM($AE$8:AE54),SUM(O55-AD55))),"") ->  | AN55: 42 | AO55: 42 | AQ55: 2020-11-01 | AS55: 2026-11-01 | BL55: 0 | BM55: 0 | BU55: =IF(AW56="","",IF(AW56="TOTAL","",IF($AR$16=$AR$17,0,IF(AND(AW56>$BT$1,$AF$3=$AO$2,'Master Sheet'!$D$31>0),'Master Sheet'!$D$31,IF(AND(AW56=$BT$1,$AF$3=$AO$2),IF($AR$9<18001,135,IF($AR$9<33501,220,IF($AR$9<54001,330,440))),IF(AND(AW56>$BT$1,$AF$3=$AO$2),IF($AR$9<18001,265,IF($AR$9<33501,440,IF($AR$9<54001,658,875))),"")))))) -> 
D56: =IFERROR(IF($C55="TOTAL","अक्षरें राशि :-",IF($C56="TOTAL",SUM($D$8:D55),IF(AX57="","",AX57))),"") ->  | E56: =IFERROR(IF($C56="TOTAL",SUM($E$8:E55),IF(AY57="","",AY57)),"") ->  | F56: =IFERROR(IF($C56="TOTAL",SUM($F$8:F55),IF(OR(C56=$AP$16,C56=$AP$17,C56=$AP$18,C56=$AP$19,C56=$AP$20,C56=$AP$21,C56=$AP$22,C56=$AP$23,C56=$AP$24),0,IF(AZ57="","",AZ57))),"") ->  | H56: =IFERROR(IF($C56="TOTAL",SUM($H$8:H55),IF(BB57="","",BB57)),"") ->  | I56: =IFERROR(IF($C56="TOTAL",SUM($I$8:I55),IF(BC57="","",BC57)),"") ->  | J56: =IFERROR(IF($C56="TOTAL",SUM($J$8:J55),IF(OR(C56=$AP$16,C56=$AP$17,C56=$AP$18,C56=$AP$19,C56=$AP$20,C56=$AP$21,C56=$AP$22,C56=$AP$23,C56=$AP$24),0,IF(BD57="","",BD57))),"") ->  | L56: =IFERROR(IF(C56="","",IF(D56="","",IF(H56="","",IF($C56="TOTAL",SUM($L$8:L55),SUM(D56-H56))))),"") ->  | M56: =IFERROR(IF(C56="","",IF(E56="","",IF(I56="","",IF($C56="TOTAL",SUM($M$8:M55),SUM(E56-I56))))),"") ->  | N56: =IFERROR(IF(C56="","",IF(F56="","",IF(J56="","",IF($C56="TOTAL",SUM($N$8:N55),SUM(F56-J56))))),"") ->  | P56: =IFERROR(IF(C56="","",IF($C56="TOTAL",SUM($P$8:P55),IF(AND(C56>$AO$1,$AF$3=$AO$2),BR57,IF($AR$18=$AR$20,SUM(BE57+BM57),ROUND((D56+E56)*10%,0))))),"") ->  | Q56: =IFERROR(IF(C56="","",IF(H56="","",IF(I56="","",IF($C56="TOTAL",SUM($Q$8:Q55),IF(AND(C56>$AO$1,$AF$3=$AO$2),BR57,IF($AR$18=$AR$20,$AR$21,ROUND((H56+I56)*10%,0))))))),"") ->  | S56: =IFERROR(IF(C56="","",IF($AR$16=$AR$17,0,IF($C56="TOTAL",SUM($S$8:S55),IF($AR$19=$AR$31,0,IF(AND($AR$32=$AR$20,C56=$AR$33),$AR$34,S55))))),"") ->  | T56: =IFERROR(IF(C56="","",IF($AR$16=$AR$17,0,IF($C56="TOTAL",SUM($T$8:T55),IF($AR$19=$AR$20,$AR$24,0)))),"") ->  | V56: =IF(C56="","",IF($C56="TOTAL",SUM($V$8:V55),IF(AND($AR$2=$AR$20,C56=$AR$1),ROUND(D56/31*$AS$2,0),IF(C56=$AP$6,ROUND((G56)*1/30,0),IF(C56=$AQ$6,ROUND((G56)*1/31,0),""))))) ->  | W56: =IF(C56="","",IF($C56="TOTAL",SUM($W$8:W55),IF(AND($AR$2=$AR$20,C56=$AR$1),ROUND(H56/31*$AS$2,0),IF(C56=$AP$6,ROUND((K56)*1/30,0),IF(C56=$AQ$6,ROUND((K56)*1/31,0),""))))) ->  | Y56: =IFERROR(IF(C56="","",IF($AR$16=$AR$17,0,IF($AF$3=$AO$4,"",IF($C56="TOTAL",SUM($Y$8:Y55),BU56)))),"") ->  | Z56: =IFERROR(IF(C56="","",IF($AR$16=$AR$17,0,IF($AF$3=$AO$4,"",IF($C56="TOTAL",SUM($Z$8:Z55),BT56)))),"") ->  | AB56: =IFERROR(IF(C56="","",IF(AND(BK57="",BR57=""),"",IF($C56="TOTAL",SUM($AB$8:AB55),BK57))),"") ->  | AC56: =IFERROR(IF(C56="","",IF($C56="TOTAL",SUM($AC$8:AC55),ROUND(O56*$AR$7%,0))),"") ->  | AD56: =IFERROR(IF(C56="","",IF($C56="TOTAL",SUM($AD$8:AD55),IF($AF$3=$AO$2,SUM(U56,X56,AB56,AC56),SUM(R56,U56,X56,AB56,AC56)))),"") ->  | AE56: =IFERROR(IF(C56="","",IF($C56="TOTAL",SUM($AE$8:AE55),SUM(O56-AD56))),"") ->  | AN56: 42 | AO56: 42 | AQ56: 2020-12-01 | AS56: 2026-12-01 | BL56: 0 | BM56: 0 | BU56: =IF(AW57="","",IF(AW57="TOTAL","",IF($AR$16=$AR$17,0,IF(AND(AW57>$BT$1,$AF$3=$AO$2,'Master Sheet'!$D$31>0),'Master Sheet'!$D$31,IF(AND(AW57=$BT$1,$AF$3=$AO$2),IF($AR$9<18001,135,IF($AR$9<33501,220,IF($AR$9<54001,330,440))),IF(AND(AW57>$BT$1,$AF$3=$AO$2),IF($AR$9<18001,265,IF($AR$9<33501,440,IF($AR$9<54001,658,875))),"")))))) -> 
D57: =IFERROR(IF($C56="TOTAL","अक्षरें राशि :-",IF($C57="TOTAL",SUM($D$8:D56),IF(AX58="","",AX58))),"") ->  | E57: =IFERROR(IF($C57="TOTAL",SUM($E$8:E56),IF(AY58="","",AY58)),"") ->  | F57: =IFERROR(IF($C57="TOTAL",SUM($F$8:F56),IF(OR(C57=$AP$16,C57=$AP$17,C57=$AP$18,C57=$AP$19,C57=$AP$20,C57=$AP$21,C57=$AP$22,C57=$AP$23,C57=$AP$24),0,IF(AZ58="","",AZ58))),"") ->  | H57: =IFERROR(IF($C57="TOTAL",SUM($H$8:H56),IF(BB58="","",BB58)),"") ->  | I57: =IFERROR(IF($C57="TOTAL",SUM($I$8:I56),IF(BC58="","",BC58)),"") ->  | J57: =IFERROR(IF($C57="TOTAL",SUM($J$8:J56),IF(OR(C57=$AP$16,C57=$AP$17,C57=$AP$18,C57=$AP$19,C57=$AP$20,C57=$AP$21,C57=$AP$22,C57=$AP$23,C57=$AP$24),0,IF(BD58="","",BD58))),"") ->  | L57: =IFERROR(IF(C57="","",IF(D57="","",IF(H57="","",IF($C57="TOTAL",SUM($L$8:L56),SUM(D57-H57))))),"") ->  | M57: =IFERROR(IF(C57="","",IF(E57="","",IF(I57="","",IF($C57="TOTAL",SUM($M$8:M56),SUM(E57-I57))))),"") ->  | N57: =IFERROR(IF(C57="","",IF(F57="","",IF(J57="","",IF($C57="TOTAL",SUM($N$8:N56),SUM(F57-J57))))),"") ->  | P57: =IFERROR(IF(C57="","",IF($C57="TOTAL",SUM($P$8:P56),IF(AND(C57>$AO$1,$AF$3=$AO$2),BR58,IF($AR$18=$AR$20,SUM(BE58+BM58),ROUND((D57+E57)*10%,0))))),"") ->  | Q57: =IFERROR(IF(C57="","",IF(H57="","",IF(I57="","",IF($C57="TOTAL",SUM($Q$8:Q56),IF(AND(C57>$AO$1,$AF$3=$AO$2),BR58,IF($AR$18=$AR$20,$AR$21,ROUND((H57+I57)*10%,0))))))),"") ->  | S57: =IFERROR(IF(C57="","",IF($AR$16=$AR$17,0,IF($C57="TOTAL",SUM($S$8:S56),IF($AR$19=$AR$31,0,IF(AND($AR$32=$AR$20,C57=$AR$33),$AR$34,S56))))),"") ->  | T57: =IFERROR(IF(C57="","",IF($AR$16=$AR$17,0,IF($C57="TOTAL",SUM($T$8:T56),IF($AR$19=$AR$20,$AR$24,0)))),"") ->  | V57: =IF(C57="","",IF($C57="TOTAL",SUM($V$8:V56),IF(AND($AR$2=$AR$20,C57=$AR$1),ROUND(D57/31*$AS$2,0),IF(C57=$AP$6,ROUND((G57)*1/30,0),IF(C57=$AQ$6,ROUND((G57)*1/31,0),""))))) ->  | W57: =IF(C57="","",IF($C57="TOTAL",SUM($W$8:W56),IF(AND($AR$2=$AR$20,C57=$AR$1),ROUND(H57/31*$AS$2,0),IF(C57=$AP$6,ROUND((K57)*1/30,0),IF(C57=$AQ$6,ROUND((K57)*1/31,0),""))))) ->  | Y57: =IFERROR(IF(C57="","",IF($AR$16=$AR$17,0,IF($AF$3=$AO$4,"",IF($C57="TOTAL",SUM($Y$8:Y56),BU57)))),"") ->  | Z57: =IFERROR(IF(C57="","",IF($AR$16=$AR$17,0,IF($AF$3=$AO$4,"",IF($C57="TOTAL",SUM($Z$8:Z56),BT57)))),"") ->  | AB57: =IFERROR(IF(C57="","",IF(AND(BK58="",BR58=""),"",IF($C57="TOTAL",SUM($AB$8:AB56),BK58))),"") ->  | AC57: =IFERROR(IF(C57="","",IF($C57="TOTAL",SUM($AC$8:AC56),ROUND(O57*$AR$7%,0))),"") ->  | AD57: =IFERROR(IF(C57="","",IF($C57="TOTAL",SUM($AD$8:AD56),IF($AF$3=$AO$2,SUM(U57,X57,AB57,AC57),SUM(R57,U57,X57,AB57,AC57)))),"") ->  | AE57: =IFERROR(IF(C57="","",IF($C57="TOTAL",SUM($AE$8:AE56),SUM(O57-AD57))),"") ->  | AN57: 42 | AO57: 42 | AQ57: 2021-01-01 | AS57: 2027-01-01 | BL57: 0 | BM57: 0 | BU57: =IF(AW58="","",IF(AW58="TOTAL","",IF($AR$16=$AR$17,0,IF(AND(AW58>$BT$1,$AF$3=$AO$2,'Master Sheet'!$D$31>0),'Master Sheet'!$D$31,IF(AND(AW58=$BT$1,$AF$3=$AO$2),IF($AR$9<18001,135,IF($AR$9<33501,220,IF($AR$9<54001,330,440))),IF(AND(AW58>$BT$1,$AF$3=$AO$2),IF($AR$9<18001,265,IF($AR$9<33501,440,IF($AR$9<54001,658,875))),"")))))) -> 
D58: =IFERROR(IF($C57="TOTAL","अक्षरें राशि :-",IF($C58="TOTAL",SUM($D$8:D57),IF(AX59="","",AX59))),"") ->  | E58: =IFERROR(IF($C58="TOTAL",SUM($E$8:E57),IF(AY59="","",AY59)),"") ->  | F58: =IFERROR(IF($C58="TOTAL",SUM($F$8:F57),IF(OR(C58=$AP$16,C58=$AP$17,C58=$AP$18,C58=$AP$19,C58=$AP$20,C58=$AP$21,C58=$AP$22,C58=$AP$23,C58=$AP$24),0,IF(AZ59="","",AZ59))),"") ->  | H58: =IFERROR(IF($C58="TOTAL",SUM($H$8:H57),IF(BB59="","",BB59)),"") ->  | I58: =IFERROR(IF($C58="TOTAL",SUM($I$8:I57),IF(BC59="","",BC59)),"") ->  | J58: =IFERROR(IF($C58="TOTAL",SUM($J$8:J57),IF(OR(C58=$AP$16,C58=$AP$17,C58=$AP$18,C58=$AP$19,C58=$AP$20,C58=$AP$21,C58=$AP$22,C58=$AP$23,C58=$AP$24),0,IF(BD59="","",BD59))),"") ->  | L58: =IFERROR(IF(C58="","",IF(D58="","",IF(H58="","",IF($C58="TOTAL",SUM($L$8:L57),SUM(D58-H58))))),"") ->  | M58: =IFERROR(IF(C58="","",IF(E58="","",IF(I58="","",IF($C58="TOTAL",SUM($M$8:M57),SUM(E58-I58))))),"") ->  | N58: =IFERROR(IF(C58="","",IF(F58="","",IF(J58="","",IF($C58="TOTAL",SUM($N$8:N57),SUM(F58-J58))))),"") ->  | P58: =IFERROR(IF(C58="","",IF($C58="TOTAL",SUM($P$8:P57),IF(AND(C58>$AO$1,$AF$3=$AO$2),BR59,IF($AR$18=$AR$20,SUM(BE59+BM59),ROUND((D58+E58)*10%,0))))),"") ->  | Q58: =IFERROR(IF(C58="","",IF(H58="","",IF(I58="","",IF($C58="TOTAL",SUM($Q$8:Q57),IF(AND(C58>$AO$1,$AF$3=$AO$2),BR59,IF($AR$18=$AR$20,$AR$21,ROUND((H58+I58)*10%,0))))))),"") ->  | S58: =IFERROR(IF(C58="","",IF($AR$16=$AR$17,0,IF($C58="TOTAL",SUM($S$8:S57),IF($AR$19=$AR$31,0,IF(AND($AR$32=$AR$20,C58=$AR$33),$AR$34,S57))))),"") ->  | T58: =IFERROR(IF(C58="","",IF($AR$16=$AR$17,0,IF($C58="TOTAL",SUM($T$8:T57),IF($AR$19=$AR$20,$AR$24,0)))),"") ->  | V58: =IF(C58="","",IF($C58="TOTAL",SUM($V$8:V57),IF(AND($AR$2=$AR$20,C58=$AR$1),ROUND(D58/31*$AS$2,0),IF(C58=$AP$6,ROUND((G58)*1/30,0),IF(C58=$AQ$6,ROUND((G58)*1/31,0),""))))) ->  | W58: =IF(C58="","",IF($C58="TOTAL",SUM($W$8:W57),IF(AND($AR$2=$AR$20,C58=$AR$1),ROUND(H58/31*$AS$2,0),IF(C58=$AP$6,ROUND((K58)*1/30,0),IF(C58=$AQ$6,ROUND((K58)*1/31,0),""))))) ->  | Y58: =IFERROR(IF(C58="","",IF($AR$16=$AR$17,0,IF($AF$3=$AO$4,"",IF($C58="TOTAL",SUM($Y$8:Y57),BU58)))),"") ->  | Z58: =IFERROR(IF(C58="","",IF($AR$16=$AR$17,0,IF($AF$3=$AO$4,"",IF($C58="TOTAL",SUM($Z$8:Z57),BT58)))),"") ->  | AB58: =IFERROR(IF(C58="","",IF(AND(BK59="",BR59=""),"",IF($C58="TOTAL",SUM($AB$8:AB57),BK59))),"") ->  | AC58: =IFERROR(IF(C58="","",IF($C58="TOTAL",SUM($AC$8:AC57),ROUND(O58*$AR$7%,0))),"") ->  | AD58: =IFERROR(IF(C58="","",IF($C58="TOTAL",SUM($AD$8:AD57),IF($AF$3=$AO$2,SUM(U58,X58,AB58,AC58),SUM(R58,U58,X58,AB58,AC58)))),"") ->  | AE58: =IFERROR(IF(C58="","",IF($C58="TOTAL",SUM($AE$8:AE57),SUM(O58-AD58))),"") ->  | AN58: 42 | AO58: 42 | AQ58: 2021-02-01 | AS58: 2027-02-01 | BL58: 0 | BM58: 0 | BU58: =IF(AW59="","",IF(AW59="TOTAL","",IF($AR$16=$AR$17,0,IF(AND(AW59>$BT$1,$AF$3=$AO$2,'Master Sheet'!$D$31>0),'Master Sheet'!$D$31,IF(AND(AW59=$BT$1,$AF$3=$AO$2),IF($AR$9<18001,135,IF($AR$9<33501,220,IF($AR$9<54001,330,440))),IF(AND(AW59>$BT$1,$AF$3=$AO$2),IF($AR$9<18001,265,IF($AR$9<33501,440,IF($AR$9<54001,658,875))),"")))))) -> 
D59: =IFERROR(IF($C58="TOTAL","अक्षरें राशि :-",IF($C59="TOTAL",SUM($D$8:D58),IF(AX60="","",AX60))),"") ->  | E59: =IFERROR(IF($C59="TOTAL",SUM($E$8:E58),IF(AY60="","",AY60)),"") ->  | F59: =IFERROR(IF($C59="TOTAL",SUM($F$8:F58),IF(OR(C59=$AP$16,C59=$AP$17,C59=$AP$18,C59=$AP$19,C59=$AP$20,C59=$AP$21,C59=$AP$22,C59=$AP$23,C59=$AP$24),0,IF(AZ60="","",AZ60))),"") ->  | H59: =IFERROR(IF($C59="TOTAL",SUM($H$8:H58),IF(BB60="","",BB60)),"") ->  | I59: =IFERROR(IF($C59="TOTAL",SUM($I$8:I58),IF(BC60="","",BC60)),"") ->  | J59: =IFERROR(IF($C59="TOTAL",SUM($J$8:J58),IF(OR(C59=$AP$16,C59=$AP$17,C59=$AP$18,C59=$AP$19,C59=$AP$20,C59=$AP$21,C59=$AP$22,C59=$AP$23,C59=$AP$24),0,IF(BD60="","",BD60))),"") ->  | L59: =IFERROR(IF(C59="","",IF(D59="","",IF(H59="","",IF($C59="TOTAL",SUM($L$8:L58),SUM(D59-H59))))),"") ->  | M59: =IFERROR(IF(C59="","",IF(E59="","",IF(I59="","",IF($C59="TOTAL",SUM($M$8:M58),SUM(E59-I59))))),"") ->  | N59: =IFERROR(IF(C59="","",IF(F59="","",IF(J59="","",IF($C59="TOTAL",SUM($N$8:N58),SUM(F59-J59))))),"") ->  | P59: =IFERROR(IF(C59="","",IF($C59="TOTAL",SUM($P$8:P58),IF(AND(C59>$AO$1,$AF$3=$AO$2),BR60,IF($AR$18=$AR$20,SUM(BE60+BM60),ROUND((D59+E59)*10%,0))))),"") ->  | Q59: =IFERROR(IF(C59="","",IF(H59="","",IF(I59="","",IF($C59="TOTAL",SUM($Q$8:Q58),IF(AND(C59>$AO$1,$AF$3=$AO$2),BR60,IF($AR$18=$AR$20,$AR$21,ROUND((H59+I59)*10%,0))))))),"") ->  | S59: =IFERROR(IF(C59="","",IF($AR$16=$AR$17,0,IF($C59="TOTAL",SUM($S$8:S58),IF($AR$19=$AR$31,0,IF(AND($AR$32=$AR$20,C59=$AR$33),$AR$34,S58))))),"") ->  | T59: =IFERROR(IF(C59="","",IF($AR$16=$AR$17,0,IF($C59="TOTAL",SUM($T$8:T58),IF($AR$19=$AR$20,$AR$24,0)))),"") ->  | V59: =IF(C59="","",IF($C59="TOTAL",SUM($V$8:V58),IF(AND($AR$2=$AR$20,C59=$AR$1),ROUND(D59/31*$AS$2,0),IF(C59=$AP$6,ROUND((G59)*1/30,0),IF(C59=$AQ$6,ROUND((G59)*1/31,0),""))))) ->  | W59: =IF(C59="","",IF($C59="TOTAL",SUM($W$8:W58),IF(AND($AR$2=$AR$20,C59=$AR$1),ROUND(H59/31*$AS$2,0),IF(C59=$AP$6,ROUND((K59)*1/30,0),IF(C59=$AQ$6,ROUND((K59)*1/31,0),""))))) ->  | Y59: =IFERROR(IF(C59="","",IF($AR$16=$AR$17,0,IF($AF$3=$AO$4,"",IF($C59="TOTAL",SUM($Y$8:Y58),BU59)))),"") ->  | Z59: =IFERROR(IF(C59="","",IF($AR$16=$AR$17,0,IF($AF$3=$AO$4,"",IF($C59="TOTAL",SUM($Z$8:Z58),BT59)))),"") ->  | AB59: =IFERROR(IF(C59="","",IF(AND(BK60="",BR60=""),"",IF($C59="TOTAL",SUM($AB$8:AB58),BK60))),"") ->  | AC59: =IFERROR(IF(C59="","",IF($C59="TOTAL",SUM($AC$8:AC58),ROUND(O59*$AR$7%,0))),"") ->  | AD59: =IFERROR(IF(C59="","",IF($C59="TOTAL",SUM($AD$8:AD58),IF($AF$3=$AO$2,SUM(U59,X59,AB59,AC59),SUM(R59,U59,X59,AB59,AC59)))),"") ->  | AE59: =IFERROR(IF(C59="","",IF($C59="TOTAL",SUM($AE$8:AE58),SUM(O59-AD59))),"") ->  | AN59: 42 | AO59: 42 | AQ59: 2021-03-01 | AS59: 2027-03-01 | BL59: 0 | BM59: 0 | BU59: =IF(AW60="","",IF(AW60="TOTAL","",IF($AR$16=$AR$17,0,IF(AND(AW60>$BT$1,$AF$3=$AO$2,'Master Sheet'!$D$31>0),'Master Sheet'!$D$31,IF(AND(AW60=$BT$1,$AF$3=$AO$2),IF($AR$9<18001,135,IF($AR$9<33501,220,IF($AR$9<54001,330,440))),IF(AND(AW60>$BT$1,$AF$3=$AO$2),IF($AR$9<18001,265,IF($AR$9<33501,440,IF($AR$9<54001,658,875))),"")))))) -> 
D60: =IFERROR(IF($C59="TOTAL","अक्षरें राशि :-",IF($C60="TOTAL",SUM($D$8:D59),IF(AX61="","",AX61))),"") ->  | E60: =IFERROR(IF($C60="TOTAL",SUM($E$8:E59),IF(AY61="","",AY61)),"") ->  | F60: =IFERROR(IF($C60="TOTAL",SUM($F$8:F59),IF(OR(C60=$AP$16,C60=$AP$17,C60=$AP$18,C60=$AP$19,C60=$AP$20,C60=$AP$21,C60=$AP$22,C60=$AP$23,C60=$AP$24),0,IF(AZ61="","",AZ61))),"") ->  | H60: =IFERROR(IF($C60="TOTAL",SUM($H$8:H59),IF(BB61="","",BB61)),"") ->  | I60: =IFERROR(IF($C60="TOTAL",SUM($I$8:I59),IF(BC61="","",BC61)),"") ->  | J60: =IFERROR(IF($C60="TOTAL",SUM($J$8:J59),IF(OR(C60=$AP$16,C60=$AP$17,C60=$AP$18,C60=$AP$19,C60=$AP$20,C60=$AP$21,C60=$AP$22,C60=$AP$23,C60=$AP$24),0,IF(BD61="","",BD61))),"") ->  | L60: =IFERROR(IF(C60="","",IF(D60="","",IF(H60="","",IF($C60="TOTAL",SUM($L$8:L59),SUM(D60-H60))))),"") ->  | M60: =IFERROR(IF(C60="","",IF(E60="","",IF(I60="","",IF($C60="TOTAL",SUM($M$8:M59),SUM(E60-I60))))),"") ->  | N60: =IFERROR(IF(C60="","",IF(F60="","",IF(J60="","",IF($C60="TOTAL",SUM($N$8:N59),SUM(F60-J60))))),"") ->  | P60: =IFERROR(IF(C60="","",IF($C60="TOTAL",SUM($P$8:P59),IF(AND(C60>$AO$1,$AF$3=$AO$2),BR61,IF($AR$18=$AR$20,SUM(BE61+BM61),ROUND((D60+E60)*10%,0))))),"") ->  | Q60: =IFERROR(IF(C60="","",IF(H60="","",IF(I60="","",IF($C60="TOTAL",SUM($Q$8:Q59),IF(AND(C60>$AO$1,$AF$3=$AO$2),BR61,IF($AR$18=$AR$20,$AR$21,ROUND((H60+I60)*10%,0))))))),"") ->  | S60: =IFERROR(IF(C60="","",IF($AR$16=$AR$17,0,IF($C60="TOTAL",SUM($S$8:S59),IF($AR$19=$AR$31,0,IF(AND($AR$32=$AR$20,C60=$AR$33),$AR$34,S59))))),"") ->  | T60: =IFERROR(IF(C60="","",IF($AR$16=$AR$17,0,IF($C60="TOTAL",SUM($T$8:T59),IF($AR$19=$AR$20,$AR$24,0)))),"") ->  | V60: =IF(C60="","",IF($C60="TOTAL",SUM($V$8:V59),IF(AND($AR$2=$AR$20,C60=$AR$1),ROUND(D60/31*$AS$2,0),IF(C60=$AP$6,ROUND((G60)*1/30,0),IF(C60=$AQ$6,ROUND((G60)*1/31,0),""))))) ->  | W60: =IF(C60="","",IF($C60="TOTAL",SUM($W$8:W59),IF(AND($AR$2=$AR$20,C60=$AR$1),ROUND(H60/31*$AS$2,0),IF(C60=$AP$6,ROUND((K60)*1/30,0),IF(C60=$AQ$6,ROUND((K60)*1/31,0),""))))) ->  | Y60: =IFERROR(IF(C60="","",IF($AR$16=$AR$17,0,IF($AF$3=$AO$4,"",IF($C60="TOTAL",SUM($Y$8:Y59),BU60)))),"") ->  | Z60: =IFERROR(IF(C60="","",IF($AR$16=$AR$17,0,IF($AF$3=$AO$4,"",IF($C60="TOTAL",SUM($Z$8:Z59),BT60)))),"") ->  | AB60: =IFERROR(IF(C60="","",IF(AND(BK61="",BR61=""),"",IF($C60="TOTAL",SUM($AB$8:AB59),BK61))),"") ->  | AC60: =IFERROR(IF(C60="","",IF($C60="TOTAL",SUM($AC$8:AC59),ROUND(O60*$AR$7%,0))),"") ->  | AD60: =IFERROR(IF(C60="","",IF($C60="TOTAL",SUM($AD$8:AD59),IF($AF$3=$AO$2,SUM(U60,X60,AB60,AC60),SUM(R60,U60,X60,AB60,AC60)))),"") ->  | AE60: =IFERROR(IF(C60="","",IF($C60="TOTAL",SUM($AE$8:AE59),SUM(O60-AD60))),"") ->  | AN60: 42 | AO60: 42 | AQ60: 2021-04-01 | AS60: 2027-04-01 | BL60: 0 | BM60: 0 | BU60: =IF(AW61="","",IF(AW61="TOTAL","",IF($AR$16=$AR$17,0,IF(AND(AW61>$BT$1,$AF$3=$AO$2,'Master Sheet'!$D$31>0),'Master Sheet'!$D$31,IF(AND(AW61=$BT$1,$AF$3=$AO$2),IF($AR$9<18001,135,IF($AR$9<33501,220,IF($AR$9<54001,330,440))),IF(AND(AW61>$BT$1,$AF$3=$AO$2),IF($AR$9<18001,265,IF($AR$9<33501,440,IF($AR$9<54001,658,875))),"")))))) -> 
D61: =IFERROR(IF($C60="TOTAL","अक्षरें राशि :-",IF($C61="TOTAL",SUM($D$8:D60),IF(AX62="","",AX62))),"") ->  | E61: =IFERROR(IF($C61="TOTAL",SUM($E$8:E60),IF(AY62="","",AY62)),"") ->  | F61: =IFERROR(IF($C61="TOTAL",SUM($F$8:F60),IF(OR(C61=$AP$16,C61=$AP$17,C61=$AP$18,C61=$AP$19,C61=$AP$20,C61=$AP$21,C61=$AP$22,C61=$AP$23,C61=$AP$24),0,IF(AZ62="","",AZ62))),"") ->  | H61: =IFERROR(IF($C61="TOTAL",SUM($H$8:H60),IF(BB62="","",BB62)),"") ->  | I61: =IFERROR(IF($C61="TOTAL",SUM($I$8:I60),IF(BC62="","",BC62)),"") ->  | J61: =IFERROR(IF($C61="TOTAL",SUM($J$8:J60),IF(OR(C61=$AP$16,C61=$AP$17,C61=$AP$18,C61=$AP$19,C61=$AP$20,C61=$AP$21,C61=$AP$22,C61=$AP$23,C61=$AP$24),0,IF(BD62="","",BD62))),"") ->  | L61: =IFERROR(IF(C61="","",IF(D61="","",IF(H61="","",IF($C61="TOTAL",SUM($L$8:L60),SUM(D61-H61))))),"") ->  | M61: =IFERROR(IF(C61="","",IF(E61="","",IF(I61="","",IF($C61="TOTAL",SUM($M$8:M60),SUM(E61-I61))))),"") ->  | N61: =IFERROR(IF(C61="","",IF(F61="","",IF(J61="","",IF($C61="TOTAL",SUM($N$8:N60),SUM(F61-J61))))),"") ->  | P61: =IFERROR(IF(C61="","",IF($C61="TOTAL",SUM($P$8:P60),IF(AND(C61>$AO$1,$AF$3=$AO$2),BR62,IF($AR$18=$AR$20,SUM(BE62+BM62),ROUND((D61+E61)*10%,0))))),"") ->  | Q61: =IFERROR(IF(C61="","",IF(H61="","",IF(I61="","",IF($C61="TOTAL",SUM($Q$8:Q60),IF(AND(C61>$AO$1,$AF$3=$AO$2),BR62,IF($AR$18=$AR$20,$AR$21,ROUND((H61+I61)*10%,0))))))),"") ->  | S61: =IFERROR(IF(C61="","",IF($AR$16=$AR$17,0,IF($C61="TOTAL",SUM($S$8:S60),IF($AR$19=$AR$31,0,IF(AND($AR$32=$AR$20,C61=$AR$33),$AR$34,S60))))),"") ->  | T61: =IFERROR(IF(C61="","",IF($AR$16=$AR$17,0,IF($C61="TOTAL",SUM($T$8:T60),IF($AR$19=$AR$20,$AR$24,0)))),"") ->  | V61: =IF(C61="","",IF($C61="TOTAL",SUM($V$8:V60),IF(AND($AR$2=$AR$20,C61=$AR$1),ROUND(D61/31*$AS$2,0),IF(C61=$AP$6,ROUND((G61)*1/30,0),IF(C61=$AQ$6,ROUND((G61)*1/31,0),""))))) ->  | W61: =IF(C61="","",IF($C61="TOTAL",SUM($W$8:W60),IF(AND($AR$2=$AR$20,C61=$AR$1),ROUND(H61/31*$AS$2,0),IF(C61=$AP$6,ROUND((K61)*1/30,0),IF(C61=$AQ$6,ROUND((K61)*1/31,0),""))))) ->  | Y61: =IFERROR(IF(C61="","",IF($AR$16=$AR$17,0,IF($AF$3=$AO$4,"",IF($C61="TOTAL",SUM($Y$8:Y60),BU61)))),"") ->  | Z61: =IFERROR(IF(C61="","",IF($AR$16=$AR$17,0,IF($AF$3=$AO$4,"",IF($C61="TOTAL",SUM($Z$8:Z60),BT61)))),"") ->  | AB61: =IFERROR(IF(C61="","",IF(AND(BK62="",BR62=""),"",IF($C61="TOTAL",SUM($AB$8:AB60),BK62))),"") ->  | AC61: =IFERROR(IF(C61="","",IF($C61="TOTAL",SUM($AC$8:AC60),ROUND(O61*$AR$7%,0))),"") ->  | AD61: =IFERROR(IF(C61="","",IF($C61="TOTAL",SUM($AD$8:AD60),IF($AF$3=$AO$2,SUM(U61,X61,AB61,AC61),SUM(R61,U61,X61,AB61,AC61)))),"") ->  | AE61: =IFERROR(IF(C61="","",IF($C61="TOTAL",SUM($AE$8:AE60),SUM(O61-AD61))),"") ->  | AN61: 42 | AO61: 42 | AQ61: 2021-05-01 | AS61: 2027-05-01 | BL61: 0 | BM61: 0 | BO61: =SUM(ROUND(D62*34%,0))-SUM(ROUND(D62*31%,0)) ->  | BU61: =IF(AW62="","",IF(AW62="TOTAL","",IF($AR$16=$AR$17,0,IF(AND(AW62>$BT$1,$AF$3=$AO$2,'Master Sheet'!$D$31>0),'Master Sheet'!$D$31,IF(AND(AW62=$BT$1,$AF$3=$AO$2),IF($AR$9<18001,135,IF($AR$9<33501,220,IF($AR$9<54001,330,440))),IF(AND(AW62>$BT$1,$AF$3=$AO$2),IF($AR$9<18001,265,IF($AR$9<33501,440,IF($AR$9<54001,658,875))),"")))))) -> 
D62: =IFERROR(IF($C61="TOTAL","अक्षरें राशि :-",IF($C62="TOTAL",SUM($D$8:D61),IF(AX63="","",AX63))),"") ->  | E62: =IFERROR(IF($C62="TOTAL",SUM($E$8:E61),IF(AY63="","",AY63)),"") ->  | F62: =IFERROR(IF($C62="TOTAL",SUM($F$8:F61),IF(OR(C62=$AP$16,C62=$AP$17,C62=$AP$18,C62=$AP$19,C62=$AP$20,C62=$AP$21,C62=$AP$22,C62=$AP$23,C62=$AP$24),0,IF(AZ63="","",AZ63))),"") ->  | H62: =IFERROR(IF($C62="TOTAL",SUM($H$8:H61),IF(BB63="","",BB63)),"") ->  | I62: =IFERROR(IF($C62="TOTAL",SUM($I$8:I61),IF(BC63="","",BC63)),"") ->  | J62: =IFERROR(IF($C62="TOTAL",SUM($J$8:J61),IF(OR(C62=$AP$16,C62=$AP$17,C62=$AP$18,C62=$AP$19,C62=$AP$20,C62=$AP$21,C62=$AP$22,C62=$AP$23,C62=$AP$24),0,IF(BD63="","",BD63))),"") ->  | L62: =IFERROR(IF(C62="","",IF(D62="","",IF(H62="","",IF($C62="TOTAL",SUM($L$8:L61),SUM(D62-H62))))),"") ->  | M62: =IFERROR(IF(C62="","",IF(E62="","",IF(I62="","",IF($C62="TOTAL",SUM($M$8:M61),SUM(E62-I62))))),"") ->  | N62: =IFERROR(IF(C62="","",IF(F62="","",IF(J62="","",IF($C62="TOTAL",SUM($N$8:N61),SUM(F62-J62))))),"") ->  | P62: =IFERROR(IF(C62="","",IF($C62="TOTAL",SUM($P$8:P61),IF(AND(C62>$AO$1,$AF$3=$AO$2),BR63,IF($AR$18=$AR$20,SUM(BE63+BM63),ROUND((D62+E62)*10%,0))))),"") ->  | Q62: =IFERROR(IF(C62="","",IF(H62="","",IF(I62="","",IF($C62="TOTAL",SUM($Q$8:Q61),IF(AND(C62>$AO$1,$AF$3=$AO$2),BR63,IF($AR$18=$AR$20,$AR$21,ROUND((H62+I62)*10%,0))))))),"") ->  | R62: =IFERROR(IF(C62="","",SUM(P62-Q62)),"") ->  | S62: =IFERROR(IF(C62="","",IF($AR$16=$AR$17,0,IF($C62="TOTAL",SUM($S$8:S61),IF($AR$19=$AR$31,0,IF(AND($AR$32=$AR$20,C62=$AR$33),$AR$34,S61))))),"") ->  | T62: =IFERROR(IF(C62="","",IF($AR$16=$AR$17,0,IF($C62="TOTAL",SUM($T$8:T61),IF($AR$19=$AR$20,$AR$24,0)))),"") ->  | V62: =IF(C62="","",IF($C62="TOTAL",SUM($V$8:V61),IF(AND($AR$2=$AR$20,C62=$AR$1),ROUND(D62/31*$AS$2,0),IF(C62=$AP$6,ROUND((G62)*1/30,0),IF(C62=$AQ$6,ROUND((G62)*1/31,0),""))))) ->  | W62: =IF(C62="","",IF($C62="TOTAL",SUM($W$8:W61),IF(AND($AR$2=$AR$20,C62=$AR$1),ROUND(H62/31*$AS$2,0),IF(C62=$AP$6,ROUND((K62)*1/30,0),IF(C62=$AQ$6,ROUND((K62)*1/31,0),""))))) ->  | Y62: =IFERROR(IF(C62="","",IF($AR$16=$AR$17,0,IF($AF$3=$AO$4,"",IF($C62="TOTAL",SUM($Y$8:Y61),BU62)))),"") ->  | Z62: =IFERROR(IF(C62="","",IF($AR$16=$AR$17,0,IF($AF$3=$AO$4,"",IF($C62="TOTAL",SUM($Z$8:Z61),BT62)))),"") ->  | AB62: =IFERROR(IF(C62="","",IF(AND(BK63="",BR63=""),"",IF($C62="TOTAL",SUM($AB$8:AB61),BK63))),"") ->  | AC62: =IFERROR(IF(C62="","",IF($C62="TOTAL",SUM($AC$8:AC61),ROUND(O62*$AR$7%,0))),"") ->  | AD62: =IFERROR(IF(C62="","",IF($C62="TOTAL",SUM($AD$8:AD61),IF($AF$3=$AO$2,SUM(U62,X62,AB62,AC62),SUM(R62,U62,X62,AB62,AC62)))),"") ->  | AE62: =IFERROR(IF(C62="","",IF($C62="TOTAL",SUM($AE$8:AE61),SUM(O62-AD62))),"") ->  | AN62: 42 | AO62: 42 | AQ62: 2021-06-01 | AS62: 2027-06-01 | BL62: 0 | BM62: 0 | BU62: =IF(AW63="","",IF(AW63="TOTAL","",IF($AR$16=$AR$17,0,IF(AND(AW63>$BT$1,$AF$3=$AO$2,'Master Sheet'!$D$31>0),'Master Sheet'!$D$31,IF(AND(AW63=$BT$1,$AF$3=$AO$2),IF($AR$9<18001,135,IF($AR$9<33501,220,IF($AR$9<54001,330,440))),IF(AND(AW63>$BT$1,$AF$3=$AO$2),IF($AR$9<18001,265,IF($AR$9<33501,440,IF($AR$9<54001,658,875))),"")))))) -> 
D63: =IFERROR(IF($C62="TOTAL","अक्षरें राशि :-",IF($C63="TOTAL",SUM($D$8:D62),IF(AX64="","",AX64))),"") ->  | E63: =IFERROR(IF($C63="TOTAL",SUM($E$8:E62),IF(AY64="","",AY64)),"") ->  | F63: =IFERROR(IF($C63="TOTAL",SUM($F$8:F62),IF(OR(C63=$AP$16,C63=$AP$17,C63=$AP$18,C63=$AP$19,C63=$AP$20,C63=$AP$21,C63=$AP$22,C63=$AP$23,C63=$AP$24),0,IF(AZ64="","",AZ64))),"") ->  | H63: =IFERROR(IF($C63="TOTAL",SUM($H$8:H62),IF(BB64="","",BB64)),"") ->  | I63: =IFERROR(IF($C63="TOTAL",SUM($I$8:I62),IF(BC64="","",BC64)),"") ->  | J63: =IFERROR(IF($C63="TOTAL",SUM($J$8:J62),IF(OR(C63=$AP$16,C63=$AP$17,C63=$AP$18,C63=$AP$19,C63=$AP$20,C63=$AP$21,C63=$AP$22,C63=$AP$23,C63=$AP$24),0,IF(BD64="","",BD64))),"") ->  | L63: =IFERROR(IF(C63="","",IF(D63="","",IF(H63="","",IF($C63="TOTAL",SUM($L$8:L62),SUM(D63-H63))))),"") ->  | M63: =IFERROR(IF(C63="","",IF(E63="","",IF(I63="","",IF($C63="TOTAL",SUM($M$8:M62),SUM(E63-I63))))),"") ->  | N63: =IFERROR(IF(C63="","",IF(F63="","",IF(J63="","",IF($C63="TOTAL",SUM($N$8:N62),SUM(F63-J63))))),"") ->  | P63: =IFERROR(IF(C63="","",IF($C63="TOTAL",SUM($P$8:P62),IF(AND(C63>$AO$1,$AF$3=$AO$2),BR64,IF($AR$18=$AR$20,SUM(BE64+BM64),ROUND((D63+E63)*10%,0))))),"") ->  | Q63: =IFERROR(IF(C63="","",IF(H63="","",IF(I63="","",IF($C63="TOTAL",SUM($Q$8:Q62),IF(AND(C63>$AO$1,$AF$3=$AO$2),BR64,IF($AR$18=$AR$20,$AR$21,ROUND((H63+I63)*10%,0))))))),"") ->  | S63: =IFERROR(IF(C63="","",IF($AR$16=$AR$17,0,IF($C63="TOTAL",SUM($S$8:S62),IF($AR$19=$AR$31,0,IF(AND($AR$32=$AR$20,C63=$AR$33),$AR$34,S62))))),"") ->  | T63: =IFERROR(IF(C63="","",IF($AR$16=$AR$17,0,IF($C63="TOTAL",SUM($T$8:T62),IF($AR$19=$AR$20,$AR$24,0)))),"") ->  | V63: =IF(C63="","",IF($C63="TOTAL",SUM($V$8:V62),IF(AND($AR$2=$AR$20,C63=$AR$1),ROUND(D63/31*$AS$2,0),IF(C63=$AP$6,ROUND((G63)*1/30,0),IF(C63=$AQ$6,ROUND((G63)*1/31,0),""))))) ->  | W63: =IF(C63="","",IF($C63="TOTAL",SUM($W$8:W62),IF(AND($AR$2=$AR$20,C63=$AR$1),ROUND(H63/31*$AS$2,0),IF(C63=$AP$6,ROUND((K63)*1/30,0),IF(C63=$AQ$6,ROUND((K63)*1/31,0),""))))) ->  | Y63: =IFERROR(IF(C63="","",IF($AR$16=$AR$17,0,IF($AF$3=$AO$4,"",IF($C63="TOTAL",SUM($Y$8:Y62),BU63)))),"") ->  | Z63: =IFERROR(IF(C63="","",IF($AR$16=$AR$17,0,IF($AF$3=$AO$4,"",IF($C63="TOTAL",SUM($Z$8:Z62),BT63)))),"") ->  | AB63: =IFERROR(IF(C63="","",IF(AND(BK64="",BR64=""),"",IF($C63="TOTAL",SUM($AB$8:AB62),BK64))),"") ->  | AC63: =IFERROR(IF(C63="","",IF($C63="TOTAL",SUM($AC$8:AC62),ROUND(O63*$AR$7%,0))),"") ->  | AD63: =IFERROR(IF(C63="","",IF($C63="TOTAL",SUM($AD$8:AD62),IF($AF$3=$AO$2,SUM(U63,X63,AB63,AC63),SUM(R63,U63,X63,AB63,AC63)))),"") ->  | AE63: =IFERROR(IF(C63="","",IF($C63="TOTAL",SUM($AE$8:AE62),SUM(O63-AD63))),"") ->  | AN63: 42 | AO63: 42 | AQ63: 2021-07-01 | AS63: 2027-07-01 | BJ63: =IF(OR(AW63=$AQ$63,AW63=$AQ$64,AW63=$AQ$65),"YES","") ->  | BK63: =IF(BJ63="","",IF($AR$16=$AR$17,ROUND((D62)*3%,0),IF(OR(AW63=$AQ$63,AW63=$AQ$64,AW63=$AQ$65),SUM(ROUND((D62-H62)*3%,0)),IF(OR(AW63=$AQ$69,AW63=$AQ$70,AW63=$AQ$71),SUM(ROUND((D62-H62)*3%,0)),"")))) ->  | BL63: 0 | BM63: 0 | BN63: =SUM(ROUND(D62*3%,0)) ->  | BO63: =IF($AP$7="NO",ROUND((H62+L62)*3%,0)-ROUND(ROUND((L62+H62)*3%,0)*10%,0),ROUND((L62+M62)*3%,0)-ROUND(ROUND((L62+M62)*3%,0)*10%,0)) ->  | BP63: =ROUND((L62+M62)*3%,0)-ROUND(ROUND((L62+M62)*3%,0)*10%,0) ->  | BQ63: =IF(AND($AR$16=$AR$17,BJ63="YES"),SUM(ROUND(D62*3%,0))-ROUND(ROUND(D62*3%,0)*10%,0),IF(AND($AR$16=$AR$15,BJ63="YES",$AP$7="NO"),ROUND((H62+L62)*3%,0)-ROUND(ROUND((L62+H62)*3%,0)*10%,0),IF(AND($AR$16=$AR$15,BJ63="YES",$AP$7="YES"),ROUND((L62+M62)*3%,0)-ROUND(ROUND((L62+M62)*3%,0)*10%,0),""))) ->  | BS63: =IF(C62="","",IF($C62="TOTAL",1,2)) ->  | BU63: =IF(AW64="","",IF(AW64="TOTAL","",IF($AR$16=$AR$17,0,IF(AND(AW64>$BT$1,$AF$3=$AO$2,'Master Sheet'!$D$31>0),'Master Sheet'!$D$31,IF(AND(AW64=$BT$1,$AF$3=$AO$2),IF($AR$9<18001,135,IF($AR$9<33501,220,IF($AR$9<54001,330,440))),IF(AND(AW64>$BT$1,$AF$3=$AO$2),IF($AR$9<18001,265,IF($AR$9<33501,440,IF($AR$9<54001,658,875))),"")))))) -> 
D64: =IFERROR(IF($C63="TOTAL","अक्षरें राशि :-",IF($C64="TOTAL",SUM($D$8:D63),IF(AX65="","",AX65))),"") ->  | E64: =IFERROR(IF($C64="TOTAL",SUM($E$8:E63),IF(AY65="","",AY65)),"") ->  | F64: =IFERROR(IF($C64="TOTAL",SUM($F$8:F63),IF(OR(C64=$AP$16,C64=$AP$17,C64=$AP$18,C64=$AP$19,C64=$AP$20,C64=$AP$21,C64=$AP$22,C64=$AP$23,C64=$AP$24),0,IF(AZ65="","",AZ65))),"") ->  | H64: =IFERROR(IF($C64="TOTAL",SUM($H$8:H63),IF(BB65="","",BB65)),"") ->  | I64: =IFERROR(IF($C64="TOTAL",SUM($I$8:I63),IF(BC65="","",BC65)),"") ->  | J64: =IFERROR(IF($C64="TOTAL",SUM($J$8:J63),IF(OR(C64=$AP$16,C64=$AP$17,C64=$AP$18,C64=$AP$19,C64=$AP$20,C64=$AP$21,C64=$AP$22,C64=$AP$23,C64=$AP$24),0,IF(BD65="","",BD65))),"") ->  | L64: =IFERROR(IF(C64="","",IF(D64="","",IF(H64="","",IF($C64="TOTAL",SUM($L$8:L63),SUM(D64-H64))))),"") ->  | M64: =IFERROR(IF(C64="","",IF(E64="","",IF(I64="","",IF($C64="TOTAL",SUM($M$8:M63),SUM(E64-I64))))),"") ->  | N64: =IFERROR(IF(C64="","",IF(F64="","",IF(J64="","",IF($C64="TOTAL",SUM($N$8:N63),SUM(F64-J64))))),"") ->  | P64: =IFERROR(IF(C64="","",IF($C64="TOTAL",SUM($P$8:P63),IF(AND(C64>$AO$1,$AF$3=$AO$2),BR65,IF($AR$18=$AR$20,SUM(BE65+BM65),ROUND((D64+E64)*10%,0))))),"") ->  | Q64: =IFERROR(IF(C64="","",IF(H64="","",IF(I64="","",IF($C64="TOTAL",SUM($Q$8:Q63),IF(AND(C64>$AO$1,$AF$3=$AO$2),BR65,IF($AR$18=$AR$20,$AR$21,ROUND((H64+I64)*10%,0))))))),"") ->  | S64: =IFERROR(IF(C64="","",IF($AR$16=$AR$17,0,IF($C64="TOTAL",SUM($S$8:S63),IF($AR$19=$AR$31,0,IF(AND($AR$32=$AR$20,C64=$AR$33),$AR$34,S63))))),"") ->  | T64: =IFERROR(IF(C64="","",IF($AR$16=$AR$17,0,IF($C64="TOTAL",SUM($T$8:T63),IF($AR$19=$AR$20,$AR$24,0)))),"") ->  | V64: =IF(C64="","",IF($C64="TOTAL",SUM($V$8:V63),IF(AND($AR$2=$AR$20,C64=$AR$1),ROUND(D64/31*$AS$2,0),IF(C64=$AP$6,ROUND((G64)*1/30,0),IF(C64=$AQ$6,ROUND((G64)*1/31,0),""))))) ->  | W64: =IF(C64="","",IF($C64="TOTAL",SUM($W$8:W63),IF(AND($AR$2=$AR$20,C64=$AR$1),ROUND(H64/31*$AS$2,0),IF(C64=$AP$6,ROUND((K64)*1/30,0),IF(C64=$AQ$6,ROUND((K64)*1/31,0),""))))) ->  | Y64: =IFERROR(IF(C64="","",IF($AR$16=$AR$17,0,IF($AF$3=$AO$4,"",IF($C64="TOTAL",SUM($Y$8:Y63),BU64)))),"") ->  | Z64: =IFERROR(IF(C64="","",IF($AR$16=$AR$17,0,IF($AF$3=$AO$4,"",IF($C64="TOTAL",SUM($Z$8:Z63),BT64)))),"") ->  | AB64: =IFERROR(IF(C64="","",IF(AND(BK65="",BR65=""),"",IF($C64="TOTAL",SUM($AB$8:AB63),BK65))),"") ->  | AC64: =IFERROR(IF(C64="","",IF($C64="TOTAL",SUM($AC$8:AC63),ROUND(O64*$AR$7%,0))),"") ->  | AD64: =IFERROR(IF(C64="","",IF($C64="TOTAL",SUM($AD$8:AD63),IF($AF$3=$AO$2,SUM(U64,X64,AB64,AC64),SUM(R64,U64,X64,AB64,AC64)))),"") ->  | AE64: =IFERROR(IF(C64="","",IF($C64="TOTAL",SUM($AE$8:AE63),SUM(O64-AD64))),"") ->  | AN64: 42 | AO64: 42 | AQ64: 2021-08-01 | AS64: 2027-08-01 | BL64: 0 | BM64: 0 | BN64: =ROUND(ROUND(L63*3%,0)*10%,0) ->  | BP64: =ROUND(ROUND((L64+H64)*3%,0)*10%,0) ->  | BQ64: =ROUND((H62+L62)*3%,0)-ROUND(ROUND((L62+H62)*3%,0)*10%,0) ->  | BU64: =IF(AW65="","",IF(AW65="TOTAL","",IF($AR$16=$AR$17,0,IF(AND(AW65>$BT$1,$AF$3=$AO$2,'Master Sheet'!$D$31>0),'Master Sheet'!$D$31,IF(AND(AW65=$BT$1,$AF$3=$AO$2),IF($AR$9<18001,135,IF($AR$9<33501,220,IF($AR$9<54001,330,440))),IF(AND(AW65>$BT$1,$AF$3=$AO$2),IF($AR$9<18001,265,IF($AR$9<33501,440,IF($AR$9<54001,658,875))),"")))))) -> 
D65: =IFERROR(IF($C64="TOTAL","अक्षरें राशि :-",IF($C65="TOTAL",SUM($D$8:D64),IF(AX66="","",AX66))),"") ->  | E65: =IFERROR(IF($C65="TOTAL",SUM($E$8:E64),IF(AY66="","",AY66)),"") ->  | F65: =IFERROR(IF($C65="TOTAL",SUM($F$8:F64),IF(OR(C65=$AP$16,C65=$AP$17,C65=$AP$18,C65=$AP$19,C65=$AP$20,C65=$AP$21,C65=$AP$22,C65=$AP$23,C65=$AP$24),0,IF(AZ66="","",AZ66))),"") ->  | H65: =IFERROR(IF($C65="TOTAL",SUM($H$8:H64),IF(BB66="","",BB66)),"") ->  | I65: =IFERROR(IF($C65="TOTAL",SUM($I$8:I64),IF(BC66="","",BC66)),"") ->  | J65: =IFERROR(IF($C65="TOTAL",SUM($J$8:J64),IF(OR(C65=$AP$16,C65=$AP$17,C65=$AP$18,C65=$AP$19,C65=$AP$20,C65=$AP$21,C65=$AP$22,C65=$AP$23,C65=$AP$24),0,IF(BD66="","",BD66))),"") ->  | L65: =IFERROR(IF(C65="","",IF(D65="","",IF(H65="","",IF($C65="TOTAL",SUM($L$8:L64),SUM(D65-H65))))),"") ->  | M65: =IFERROR(IF(C65="","",IF(E65="","",IF(I65="","",IF($C65="TOTAL",SUM($M$8:M64),SUM(E65-I65))))),"") ->  | N65: =IFERROR(IF(C65="","",IF(F65="","",IF(J65="","",IF($C65="TOTAL",SUM($N$8:N64),SUM(F65-J65))))),"") ->  | P65: =IFERROR(IF(C65="","",IF($C65="TOTAL",SUM($P$8:P64),IF(AND(C65>$AO$1,$AF$3=$AO$2),BR66,IF($AR$18=$AR$20,SUM(BE66+BM66),ROUND((D65+E65)*10%,0))))),"") ->  | Q65: =IFERROR(IF(C65="","",IF(H65="","",IF(I65="","",IF($C65="TOTAL",SUM($Q$8:Q64),IF(AND(C65>$AO$1,$AF$3=$AO$2),BR66,IF($AR$18=$AR$20,$AR$21,ROUND((H65+I65)*10%,0))))))),"") ->  | S65: =IFERROR(IF(C65="","",IF($AR$16=$AR$17,0,IF($C65="TOTAL",SUM($S$8:S64),IF($AR$19=$AR$31,0,IF(AND($AR$32=$AR$20,C65=$AR$33),$AR$34,S64))))),"") ->  | T65: =IFERROR(IF(C65="","",IF($AR$16=$AR$17,0,IF($C65="TOTAL",SUM($T$8:T64),IF($AR$19=$AR$20,$AR$24,0)))),"") ->  | V65: =IF(C65="","",IF($C65="TOTAL",SUM($V$8:V64),IF(AND($AR$2=$AR$20,C65=$AR$1),ROUND(D65/31*$AS$2,0),IF(C65=$AP$6,ROUND((G65)*1/30,0),IF(C65=$AQ$6,ROUND((G65)*1/31,0),""))))) ->  | W65: =IF(C65="","",IF($C65="TOTAL",SUM($W$8:W64),IF(AND($AR$2=$AR$20,C65=$AR$1),ROUND(H65/31*$AS$2,0),IF(C65=$AP$6,ROUND((K65)*1/30,0),IF(C65=$AQ$6,ROUND((K65)*1/31,0),""))))) ->  | Y65: =IFERROR(IF(C65="","",IF($AR$16=$AR$17,0,IF($AF$3=$AO$4,"",IF($C65="TOTAL",SUM($Y$8:Y64),BU65)))),"") ->  | Z65: =IFERROR(IF(C65="","",IF($AR$16=$AR$17,0,IF($AF$3=$AO$4,"",IF($C65="TOTAL",SUM($Z$8:Z64),BT65)))),"") ->  | AB65: =IFERROR(IF(C65="","",IF(AND(BK66="",BR66=""),"",IF($C65="TOTAL",SUM($AB$8:AB64),BK66))),"") ->  | AC65: =IFERROR(IF(C65="","",IF($C65="TOTAL",SUM($AC$8:AC64),ROUND(O65*$AR$7%,0))),"") ->  | AD65: =IFERROR(IF(C65="","",IF($C65="TOTAL",SUM($AD$8:AD64),IF($AF$3=$AO$2,SUM(U65,X65,AB65,AC65),SUM(R65,U65,X65,AB65,AC65)))),"") ->  | AE65: =IFERROR(IF(C65="","",IF($C65="TOTAL",SUM($AE$8:AE64),SUM(O65-AD65))),"") ->  | AN65: 42 | AO65: 42 | AQ65: 2021-09-01 | AS65: 2027-09-01 | BL65: 0 | BM65: 0 | BN65: =SUM(ROUND(L64*3%,0))-ROUND(ROUND(L64*3%,0)*10%,0) ->  | BO65: =SUM(ROUND(L64*3%,0))-ROUND(ROUND(L64*3%,0)*10%,0) ->  | BU65: =IF(AW66="","",IF(AW66="TOTAL","",IF($AR$16=$AR$17,0,IF(AND(AW66>$BT$1,$AF$3=$AO$2,'Master Sheet'!$D$31>0),'Master Sheet'!$D$31,IF(AND(AW66=$BT$1,$AF$3=$AO$2),IF($AR$9<18001,135,IF($AR$9<33501,220,IF($AR$9<54001,330,440))),IF(AND(AW66>$BT$1,$AF$3=$AO$2),IF($AR$9<18001,265,IF($AR$9<33501,440,IF($AR$9<54001,658,875))),"")))))) -> 
C66: =IFERROR(IF(AW67="","",AW67),"") ->  | D66: =IFERROR(IF($C65="TOTAL","अक्षरें राशि :-",IF($C66="TOTAL",SUM($D$8:D65),IF(AX67="","",AX67))),"") ->  | E66: =IFERROR(IF($C66="TOTAL",SUM($E$8:E65),IF(AY67="","",AY67)),"") ->  | F66: =IFERROR(IF($C66="TOTAL",SUM($F$8:F65),IF(OR(C66=$AP$16,C66=$AP$17,C66=$AP$18,C66=$AP$19,C66=$AP$20,C66=$AP$21,C66=$AP$22,C66=$AP$23,C66=$AP$24),0,IF(AZ67="","",AZ67))),"") ->  | G66: =IF(C66="","",SUM(D66:F66)) ->  | H66: =IFERROR(IF($C66="TOTAL",SUM($H$8:H65),IF(BB67="","",BB67)),"") ->  | I66: =IFERROR(IF($C66="TOTAL",SUM($I$8:I65),IF(BC67="","",BC67)),"") ->  | J66: =IFERROR(IF($C66="TOTAL",SUM($J$8:J65),IF(OR(C66=$AP$16,C66=$AP$17,C66=$AP$18,C66=$AP$19,C66=$AP$20,C66=$AP$21,C66=$AP$22,C66=$AP$23,C66=$AP$24),0,IF(BD67="","",BD67))),"") ->  | L66: =IFERROR(IF(C66="","",IF(D66="","",IF(H66="","",IF($C66="TOTAL",SUM($L$8:L65),SUM(D66-H66))))),"") ->  | M66: =IFERROR(IF(C66="","",IF(E66="","",IF(I66="","",IF($C66="TOTAL",SUM($M$8:M65),SUM(E66-I66))))),"") ->  | N66: =IFERROR(IF(C66="","",IF(F66="","",IF(J66="","",IF($C66="TOTAL",SUM($N$8:N65),SUM(F66-J66))))),"") ->  | P66: =IFERROR(IF(C66="","",IF($C66="TOTAL",SUM($P$8:P65),IF(AND(C66>$AO$1,$AF$3=$AO$2),BR67,IF($AR$18=$AR$20,SUM(BE67+BM67),ROUND((D66+E66)*10%,0))))),"") ->  | Q66: =IFERROR(IF(C66="","",IF(H66="","",IF(I66="","",IF($C66="TOTAL",SUM($Q$8:Q65),IF(AND(C66>$AO$1,$AF$3=$AO$2),BR67,IF($AR$18=$AR$20,$AR$21,ROUND((H66+I66)*10%,0))))))),"") ->  | S66: =IFERROR(IF(C66="","",IF($AR$16=$AR$17,0,IF($C66="TOTAL",SUM($S$8:S65),IF($AR$19=$AR$31,0,IF(AND($AR$32=$AR$20,C66=$AR$33),$AR$34,S65))))),"") ->  | T66: =IFERROR(IF(C66="","",IF($AR$16=$AR$17,0,IF($C66="TOTAL",SUM($T$8:T65),IF($AR$19=$AR$20,$AR$24,0)))),"") ->  | V66: =IF(C66="","",IF($C66="TOTAL",SUM($V$8:V65),IF(AND($AR$2=$AR$20,C66=$AR$1),ROUND(D66/31*$AS$2,0),IF(C66=$AP$6,ROUND((G66)*1/30,0),IF(C66=$AQ$6,ROUND((G66)*1/31,0),""))))) ->  | W66: =IF(C66="","",IF($C66="TOTAL",SUM($W$8:W65),IF(AND($AR$2=$AR$20,C66=$AR$1),ROUND(H66/31*$AS$2,0),IF(C66=$AP$6,ROUND((K66)*1/30,0),IF(C66=$AQ$6,ROUND((K66)*1/31,0),""))))) ->  | Y66: =IFERROR(IF(C66="","",IF($AR$16=$AR$17,0,IF($AF$3=$AO$4,"",IF($C66="TOTAL",SUM($Y$8:Y65),BU66)))),"") ->  | Z66: =IFERROR(IF(C66="","",IF($AR$16=$AR$17,0,IF($AF$3=$AO$4,"",IF($C66="TOTAL",SUM($Z$8:Z65),BT66)))),"") ->  | AB66: =IFERROR(IF(C66="","",IF(AND(BK67="",BR67=""),"",IF($C66="TOTAL",SUM($AB$8:AB65),BK67))),"") ->  | AC66: =IFERROR(IF(C66="","",IF($C66="TOTAL",SUM($AC$8:AC65),ROUND(O66*$AR$7%,0))),"") ->  | AD66: =IFERROR(IF(C66="","",IF($C66="TOTAL",SUM($AD$8:AD65),IF($AF$3=$AO$2,SUM(U66,X66,AB66,AC66),SUM(R66,U66,X66,AB66,AC66)))),"") ->  | AE66: =IFERROR(IF(C66="","",IF($C66="TOTAL",SUM($AE$8:AE65),SUM(O66-AD66))),"") ->  | AN66: 42 | AO66: 42 | AQ66: 2021-10-01 | AS66: 2027-10-01 | BL66: 0 | BM66: 0 | BU66: =IF(AW67="","",IF(AW67="TOTAL","",IF($AR$16=$AR$17,0,IF(AND(AW67>$BT$1,$AF$3=$AO$2,'Master Sheet'!$D$31>0),'Master Sheet'!$D$31,IF(AND(AW67=$BT$1,$AF$3=$AO$2),IF($AR$9<18001,135,IF($AR$9<33501,220,IF($AR$9<54001,330,440))),IF(AND(AW67>$BT$1,$AF$3=$AO$2),IF($AR$9<18001,265,IF($AR$9<33501,440,IF($AR$9<54001,658,875))),"")))))) -> 
C67: =IFERROR(IF(AW68="","",AW68),"") ->  | D67: =IFERROR(IF($C66="TOTAL","अक्षरें राशि :-",IF($C67="TOTAL",SUM($D$8:D66),IF(AX68="","",AX68))),"") ->  | E67: =IFERROR(IF($C67="TOTAL",SUM($E$8:E66),IF(AY68="","",AY68)),"") ->  | F67: =IFERROR(IF($C67="TOTAL",SUM($F$8:F66),IF(OR(C67=$AP$16,C67=$AP$17,C67=$AP$18,C67=$AP$19,C67=$AP$20,C67=$AP$21,C67=$AP$22,C67=$AP$23,C67=$AP$24),0,IF(AZ68="","",AZ68))),"") ->  | H67: =IFERROR(IF($C67="TOTAL",SUM($H$8:H66),IF(BB68="","",BB68)),"") ->  | I67: =IFERROR(IF($C67="TOTAL",SUM($I$8:I66),IF(BC68="","",BC68)),"") ->  | J67: =IFERROR(IF($C67="TOTAL",SUM($J$8:J66),IF(OR(C67=$AP$16,C67=$AP$17,C67=$AP$18,C67=$AP$19,C67=$AP$20,C67=$AP$21,C67=$AP$22,C67=$AP$23,C67=$AP$24),0,IF(BD68="","",BD68))),"") ->  | L67: =IFERROR(IF(C67="","",IF(D67="","",IF(H67="","",IF($C67="TOTAL",SUM($L$8:L66),SUM(D67-H67))))),"") ->  | M67: =IFERROR(IF(C67="","",IF(E67="","",IF(I67="","",IF($C67="TOTAL",SUM($M$8:M66),SUM(E67-I67))))),"") ->  | N67: =IFERROR(IF(C67="","",IF(F67="","",IF(J67="","",IF($C67="TOTAL",SUM($N$8:N66),SUM(F67-J67))))),"") ->  | P67: =IFERROR(IF(C67="","",IF($C67="TOTAL",SUM($P$8:P66),IF(AND(C67>$AO$1,$AF$3=$AO$2),BR68,IF($AR$18=$AR$20,SUM(BE68+BM68),ROUND((D67+E67)*10%,0))))),"") ->  | Q67: =IFERROR(IF(C67="","",IF(H67="","",IF(I67="","",IF($C67="TOTAL",SUM($Q$8:Q66),IF(AND(C67>$AO$1,$AF$3=$AO$2),BR68,IF($AR$18=$AR$20,$AR$21,ROUND((H67+I67)*10%,0))))))),"") ->  | S67: =IFERROR(IF(C67="","",IF($AR$16=$AR$17,0,IF($C67="TOTAL",SUM($S$8:S66),IF($AR$19=$AR$31,0,IF(AND($AR$32=$AR$20,C67=$AR$33),$AR$34,S66))))),"") ->  | T67: =IFERROR(IF(C67="","",IF($AR$16=$AR$17,0,IF($C67="TOTAL",SUM($T$8:T66),IF($AR$19=$AR$20,$AR$24,0)))),"") ->  | V67: =IF(C67="","",IF($C67="TOTAL",SUM($V$8:V66),IF(AND($AR$2=$AR$20,C67=$AR$1),ROUND(D67/31*$AS$2,0),IF(C67=$AP$6,ROUND((G67)*1/30,0),IF(C67=$AQ$6,ROUND((G67)*1/31,0),""))))) ->  | W67: =IF(C67="","",IF($C67="TOTAL",SUM($W$8:W66),IF(AND($AR$2=$AR$20,C67=$AR$1),ROUND(H67/31*$AS$2,0),IF(C67=$AP$6,ROUND((K67)*1/30,0),IF(C67=$AQ$6,ROUND((K67)*1/31,0),""))))) ->  | Y67: =IFERROR(IF(C67="","",IF($AR$16=$AR$17,0,IF($AF$3=$AO$4,"",IF($C67="TOTAL",SUM($Y$8:Y66),BU67)))),"") ->  | Z67: =IFERROR(IF(C67="","",IF($AR$16=$AR$17,0,IF($AF$3=$AO$4,"",IF($C67="TOTAL",SUM($Z$8:Z66),BT67)))),"") ->  | AB67: =IFERROR(IF(C67="","",IF(AND(BK68="",BR68=""),"",IF($C67="TOTAL",SUM($AB$8:AB66),BK68))),"") ->  | AC67: =IFERROR(IF(C67="","",IF($C67="TOTAL",SUM($AC$8:AC66),ROUND(O67*$AR$7%,0))),"") ->  | AD67: =IFERROR(IF(C67="","",IF($C67="TOTAL",SUM($AD$8:AD66),IF($AF$3=$AO$2,SUM(U67,X67,AB67,AC67),SUM(R67,U67,X67,AB67,AC67)))),"") ->  | AE67: =IFERROR(IF(C67="","",IF($C67="TOTAL",SUM($AE$8:AE66),SUM(O67-AD67))),"") ->  | AN67: 42 | AO67: 42 | AQ67: 2021-11-01 | AS67: 2027-11-01 | BL67: 0 | BM67: 0 | BU67: =IF(AW68="","",IF(AW68="TOTAL","",IF($AR$16=$AR$17,0,IF(AND(AW68>$BT$1,$AF$3=$AO$2,'Master Sheet'!$D$31>0),'Master Sheet'!$D$31,IF(AND(AW68=$BT$1,$AF$3=$AO$2),IF($AR$9<18001,135,IF($AR$9<33501,220,IF($AR$9<54001,330,440))),IF(AND(AW68>$BT$1,$AF$3=$AO$2),IF($AR$9<18001,265,IF($AR$9<33501,440,IF($AR$9<54001,658,875))),"")))))) -> 
D68: =IFERROR(IF($C67="TOTAL","अक्षरें राशि :-",IF($C68="TOTAL",SUM($D$8:D67),IF(AX69="","",AX69))),"") ->  | E68: =IFERROR(IF($C68="TOTAL",SUM($E$8:E67),IF(AY69="","",AY69)),"") ->  | F68: =IFERROR(IF($C68="TOTAL",SUM($F$8:F67),IF(AZ69="","",AZ69)),"") ->  | H68: =IFERROR(IF($C68="TOTAL",SUM($H$8:H67),IF(BB69="","",BB69)),"") ->  | I68: =IFERROR(IF($C68="TOTAL",SUM($I$8:I67),IF(BC69="","",BC69)),"") ->  | J68: =IFERROR(IF($C68="TOTAL",SUM($J$8:J67),IF(BD69="","",BD69)),"") ->  | L68: =IFERROR(IF(C68="","",IF(D68="","",IF(H68="","",IF($C68="TOTAL",SUM($L$8:L67),SUM(D68-H68))))),"") ->  | M68: =IFERROR(IF(C68="","",IF(E68="","",IF(I68="","",IF($C68="TOTAL",SUM($M$8:M67),SUM(E68-I68))))),"") ->  | N68: =IFERROR(IF(C68="","",IF(F68="","",IF(J68="","",IF($C68="TOTAL",SUM($N$8:N67),SUM(F68-J68))))),"") ->  | P68: =IFERROR(IF(C68="","",IF($C68="TOTAL",SUM($P$8:P67),IF(AND(C68>$AO$1,$AF$3=$AO$2),BR69,IF($AR$18=$AR$20,SUM(BE69+BM69),ROUND((D68+E68)*10%,0))))),"") ->  | Q68: =IFERROR(IF(C68="","",IF(H68="","",IF(I68="","",IF($C68="TOTAL",SUM($Q$8:Q67),IF(AND(C68>$AO$1,$AF$3=$AO$2),BR69,IF($AR$18=$AR$20,$AR$21,ROUND((H68+I68)*10%,0))))))),"") ->  | S68: =IFERROR(IF(C68="","",IF($AR$16=$AR$17,0,IF($C68="TOTAL",SUM($S$8:S67),IF($AR$19=$AR$20,$AR$25,0)))),"") ->  | T68: =IFERROR(IF(C68="","",IF($AR$16=$AR$17,0,IF($C68="TOTAL",SUM($T$8:T67),IF($AR$19=$AR$20,$AR$24,0)))),"") ->  | V68: =IF(C68="","",IF($C68="TOTAL",SUM($V$8:V67),IF(AND($AR$2=$AR$20,C68=$AR$1),ROUND(D68/31*$AS$2,0),IF(C68=$AP$6,ROUND((G68)*1/30,0),IF(C68=$AQ$6,ROUND((G68)*1/31,0),""))))) ->  | W68: =IF(C68="","",IF($C68="TOTAL",SUM($W$8:W67),IF(AND($AR$2=$AR$20,C68=$AR$1),ROUND(H68/31*$AS$2,0),IF(C68=$AP$6,ROUND((K68)*1/30,0),IF(C68=$AQ$6,ROUND((K68)*1/31,0),""))))) ->  | Y68: =IFERROR(IF(C68="","",IF($AR$16=$AR$17,0,IF($AF$3=$AO$4,"",IF($C68="TOTAL",SUM($Y$8:Y67),BU68)))),"") ->  | Z68: =IFERROR(IF(C68="","",IF($AR$16=$AR$17,0,IF($AF$3=$AO$4,"",IF($C68="TOTAL",SUM($Z$8:Z67),BT68)))),"") ->  | AB68: =IFERROR(IF(C68="","",IF(AND(BK69="",BR69=""),"",IF($C68="TOTAL",SUM($AB$8:AB67),BK69))),"") ->  | AC68: =IFERROR(IF(C68="","",IF($C68="TOTAL",SUM($AC$8:AC67),ROUND(O68*$AR$7%,0))),"") ->  | AD68: =IFERROR(IF(C68="","",IF($C68="TOTAL",SUM($AD$8:AD67),IF($AF$3=$AO$2,SUM(U68,X68,AB68,AC68),SUM(R68,U68,X68,AB68,AC68)))),"") ->  | AE68: =IFERROR(IF(C68="","",IF($C68="TOTAL",SUM($AE$8:AE67),SUM(O68-AD68))),"") ->  | AN68: 42 | AO68: 42 | AQ68: 2021-12-01 | AS68: 2027-12-01 | BL68: 0 | BM68: 0 | BU68: =IF(AW69="","",IF(AW69="TOTAL","",IF($AR$16=$AR$17,0,IF(AND(AW69>$BT$1,$AF$3=$AO$2,'Master Sheet'!$D$31>0),'Master Sheet'!$D$31,IF(AND(AW69=$BT$1,$AF$3=$AO$2),IF($AR$9<18001,135,IF($AR$9<33501,220,IF($AR$9<54001,330,440))),IF(AND(AW69>$BT$1,$AF$3=$AO$2),IF($AR$9<18001,265,IF($AR$9<33501,440,IF($AR$9<54001,658,875))),"")))))) -> 
C69: =IFERROR(IF(AW70="","",AW70),"") ->  | D69: =IFERROR(IF($C68="TOTAL","अक्षरें राशि :-",IF($C69="TOTAL",SUM($D$8:D68),IF(AX70="","",AX70))),"") ->  | E69: =IFERROR(IF($C69="TOTAL",SUM($E$8:E68),IF(AY70="","",AY70)),"") ->  | F69: =IFERROR(IF($C69="TOTAL",SUM($F$8:F68),IF(AZ70="","",AZ70)),"") ->  | G69: =IF(C69="","",SUM(D69:F69)) ->  | H69: =IFERROR(IF($C69="TOTAL",SUM($H$8:H68),IF(BB70="","",BB70)),"") ->  | I69: =IFERROR(IF($C69="TOTAL",SUM($I$8:I68),IF(BC70="","",BC70)),"") ->  | J69: =IFERROR(IF($C69="TOTAL",SUM($J$8:J68),IF(BD70="","",BD70)),"") ->  | K69: =IF(C69="","",SUM(H69:J69)) ->  | L69: =IFERROR(IF(C69="","",IF(D69="","",IF(H69="","",IF($C69="TOTAL",SUM($L$8:L68),SUM(D69-H69))))),"") ->  | M69: =IFERROR(IF(C69="","",IF(E69="","",IF(I69="","",IF($C69="TOTAL",SUM($M$8:M68),SUM(E69-I69))))),"") ->  | N69: =IFERROR(IF(C69="","",IF(F69="","",IF(J69="","",IF($C69="TOTAL",SUM($N$8:N68),SUM(F69-J69))))),"") ->  | O69: =IFERROR(IF(C69="","",IF(G69="","",IF(K69="","",SUM(G69-K69)))),"") ->  | P69: =IFERROR(IF(C69="","",IF($C69="TOTAL",SUM($P$8:P68),IF(AND(C69>$AO$1,$AF$3=$AO$2),BR70,IF($AR$18=$AR$20,SUM(BE70+BM70),ROUND((D69+E69)*10%,0))))),"") ->  | Q69: =IFERROR(IF(C69="","",IF(H69="","",IF(I69="","",IF($C69="TOTAL",SUM($Q$8:Q68),IF(AND(C69>$AO$1,$AF$3=$AO$2),BR70,IF($AR$18=$AR$20,$AR$21,ROUND((H69+I69)*10%,0))))))),"") ->  | R69: =IFERROR(IF(C69="","",SUM(P69-Q69)),"") ->  | S69: =IFERROR(IF(C69="","",IF($AR$16=$AR$17,0,IF($C69="TOTAL",SUM($S$8:S68),IF($AR$19=$AR$20,$AR$25,0)))),"") ->  | T69: =IFERROR(IF(C69="","",IF($AR$16=$AR$17,0,IF($C69="TOTAL",SUM($T$8:T68),IF($AR$19=$AR$20,$AR$24,0)))),"") ->  | U69: =IFERROR(IF(C69="","",SUM(S69-T69)),"") ->  | V69: =IF(C69="","",IF($C69="TOTAL",SUM($V$8:V68),IF(AND($AR$2=$AR$20,C69=$AR$1),ROUND(D69/31*$AS$2,0),IF(C69=$AP$6,ROUND((G69)*1/30,0),IF(C69=$AQ$6,ROUND((G69)*1/31,0),""))))) ->  | W69: =IF(C69="","",IF($C69="TOTAL",SUM($W$8:W68),IF(AND($AR$2=$AR$20,C69=$AR$1),ROUND(H69/31*$AS$2,0),IF(C69=$AP$6,ROUND((K69)*1/30,0),IF(C69=$AQ$6,ROUND((K69)*1/31,0),""))))) ->  | X69: =IFERROR(IF(C69="","",SUM(V69-W69)),"") ->  | Y69: =IFERROR(IF(C69="","",IF($AR$16=$AR$17,0,IF($AF$3=$AO$4,"",IF($C69="TOTAL",SUM($Y$8:Y68),BU69)))),"") ->  | Z69: =IFERROR(IF(C69="","",IF($AR$16=$AR$17,0,IF($AF$3=$AO$4,"",IF($C69="TOTAL",SUM($Z$8:Z68),BT69)))),"") ->  | AB69: =IFERROR(IF(C69="","",IF(AND(BK70="",BR70=""),"",IF($C69="TOTAL",SUM($AB$8:AB68),BK70))),"") ->  | AC69: =IFERROR(IF(C69="","",IF($C69="TOTAL",SUM($AC$8:AC68),ROUND(O69*$AR$7%,0))),"") ->  | AD69: =IFERROR(IF(C69="","",IF($C69="TOTAL",SUM($AD$8:AD68),IF($AF$3=$AO$2,SUM(U69,X69,AB69,AC69),SUM(R69,U69,X69,AB69,AC69)))),"") ->  | AE69: =IFERROR(IF(C69="","",IF($C69="TOTAL",SUM($AE$8:AE68),SUM(O69-AD69))),"") ->  | AN69: 42 | AO69: 42 | AQ69: 2022-01-01 | AS69: 2028-01-01 | BL69: 0 | BM69: 0 | BU69: =IF(AW70="","",IF(AW70="TOTAL","",IF($AR$16=$AR$17,0,IF(AND(AW70>$BT$1,$AF$3=$AO$2,'Master Sheet'!$D$31>0),'Master Sheet'!$D$31,IF(AND(AW70=$BT$1,$AF$3=$AO$2),IF($AR$9<18001,135,IF($AR$9<33501,220,IF($AR$9<54001,330,440))),IF(AND(AW70>$BT$1,$AF$3=$AO$2),IF($AR$9<18001,265,IF($AR$9<33501,440,IF($AR$9<54001,658,875))),"")))))) -> 
D70: =IFERROR(IF($C69="TOTAL","अक्षरें राशि :-",IF($C70="TOTAL",SUM($D$8:D69),IF(AX71="","",AX71))),"") ->  | E70: =IFERROR(IF($C70="TOTAL",SUM($E$8:E69),IF(AY71="","",AY71)),"") ->  | F70: =IFERROR(IF($C70="TOTAL",SUM($F$8:F69),IF(AZ71="","",AZ71)),"") ->  | H70: =IFERROR(IF($C70="TOTAL",SUM($H$8:H69),IF(BB71="","",BB71)),"") ->  | I70: =IFERROR(IF($C70="TOTAL",SUM($I$8:I69),IF(BC71="","",BC71)),"") ->  | J70: =IFERROR(IF($C70="TOTAL",SUM($J$8:J69),IF(BD71="","",BD71)),"") ->  | L70: =IFERROR(IF(C70="","",IF(D70="","",IF(H70="","",IF($C70="TOTAL",SUM($L$8:L69),SUM(D70-H70))))),"") ->  | M70: =IFERROR(IF(C70="","",IF(E70="","",IF(I70="","",IF($C70="TOTAL",SUM($M$8:M69),SUM(E70-I70))))),"") ->  | N70: =IFERROR(IF(C70="","",IF(F70="","",IF(J70="","",IF($C70="TOTAL",SUM($N$8:N69),SUM(F70-J70))))),"") ->  | P70: =IFERROR(IF(C70="","",IF($C70="TOTAL",SUM($P$8:P69),IF(AND(C70>$AO$1,$AF$3=$AO$2),BR71,IF($AR$18=$AR$20,SUM(BE71+BM71),ROUND((D70+E70)*10%,0))))),"") ->  | Q70: =IFERROR(IF(C70="","",IF(H70="","",IF(I70="","",IF($C70="TOTAL",SUM($Q$8:Q69),IF(AND(C70>$AO$1,$AF$3=$AO$2),BR71,IF($AR$18=$AR$20,$AR$21,ROUND((H70+I70)*10%,0))))))),"") ->  | S70: =IFERROR(IF(C70="","",IF($AR$16=$AR$17,0,IF($C70="TOTAL",SUM($S$8:S69),IF($AR$19=$AR$20,$AR$25,0)))),"") ->  | T70: =IFERROR(IF(C70="","",IF($AR$16=$AR$17,0,IF($C70="TOTAL",SUM($T$8:T69),IF($AR$19=$AR$20,$AR$24,0)))),"") ->  | V70: =IF(C70="","",IF($C70="TOTAL",SUM($V$8:V69),IF(AND($AR$2=$AR$20,C70=$AR$1),ROUND(D70/31*$AS$2,0),IF(C70=$AP$6,ROUND((G70)*1/30,0),IF(C70=$AQ$6,ROUND((G70)*1/31,0),""))))) ->  | W70: =IF(C70="","",IF($C70="TOTAL",SUM($W$8:W69),IF(AND($AR$2=$AR$20,C70=$AR$1),ROUND(H70/31*$AS$2,0),IF(C70=$AP$6,ROUND((K70)*1/30,0),IF(C70=$AQ$6,ROUND((K70)*1/31,0),""))))) ->  | Y70: =IFERROR(IF(C70="","",IF($AR$16=$AR$17,0,IF($AF$3=$AO$4,"",IF($C70="TOTAL",SUM($Y$8:Y69),BU70)))),"") ->  | Z70: =IFERROR(IF(C70="","",IF($AR$16=$AR$17,0,IF($AF$3=$AO$4,"",IF($C70="TOTAL",SUM($Z$8:Z69),BT70)))),"") ->  | AB70: =IFERROR(IF(C70="","",IF(AND(BK71="",BR71=""),"",IF($C70="TOTAL",SUM($AB$8:AB69),BK71))),"") ->  | AC70: =IFERROR(IF(C70="","",IF($C70="TOTAL",SUM($AC$8:AC69),ROUND(O70*$AR$7%,0))),"") ->  | AD70: =IFERROR(IF(C70="","",IF($C70="TOTAL",SUM($AD$8:AD69),IF($AF$3=$AO$2,SUM(U70,X70,AB70,AC70),SUM(R70,U70,X70,AB70,AC70)))),"") ->  | AE70: =IFERROR(IF(C70="","",IF($C70="TOTAL",SUM($AE$8:AE69),SUM(O70-AD70))),"") ->  | AN70: 42 | AO70: 42 | AQ70: 2022-02-01 | AS70: 2028-02-01 | AV70: =IFERROR(IF(AND(AT70="",AU70=""),"",IF(AT70="",AU70,AT70)),"") ->  | BL70: 0 | BM70: 0 | BU70: =IF(AW71="","",IF(AW71="TOTAL","",IF($AR$16=$AR$17,0,IF(AND(AW71>$BT$1,$AF$3=$AO$2,'Master Sheet'!$D$31>0),'Master Sheet'!$D$31,IF(AND(AW71=$BT$1,$AF$3=$AO$2),IF($AR$9<18001,135,IF($AR$9<33501,220,IF($AR$9<54001,330,440))),IF(AND(AW71>$BT$1,$AF$3=$AO$2),IF($AR$9<18001,265,IF($AR$9<33501,440,IF($AR$9<54001,658,875))),"")))))) -> 
D71: =IFERROR(IF($C70="TOTAL","अक्षरें राशि :-",IF($C71="TOTAL",SUM($D$8:D70),IF(AX72="","",AX72))),"") ->  | E71: =IFERROR(IF($C71="TOTAL",SUM($E$8:E70),IF(AY72="","",AY72)),"") ->  | F71: =IFERROR(IF($C71="TOTAL",SUM($F$8:F70),IF(AZ72="","",AZ72)),"") ->  | H71: =IFERROR(IF($C71="TOTAL",SUM($H$8:H70),IF(BB72="","",BB72)),"") ->  | I71: =IFERROR(IF($C71="TOTAL",SUM($I$8:I70),IF(BC72="","",BC72)),"") ->  | J71: =IFERROR(IF($C71="TOTAL",SUM($J$8:J70),IF(BD72="","",BD72)),"") ->  | L71: =IFERROR(IF(C71="","",IF(D71="","",IF(H71="","",IF($C71="TOTAL",SUM($L$8:L70),SUM(D71-H71))))),"") ->  | M71: =IFERROR(IF(C71="","",IF(E71="","",IF(I71="","",IF($C71="TOTAL",SUM($M$8:M70),SUM(E71-I71))))),"") ->  | N71: =IFERROR(IF(C71="","",IF(F71="","",IF(J71="","",IF($C71="TOTAL",SUM($N$8:N70),SUM(F71-J71))))),"") ->  | P71: =IFERROR(IF(C71="","",IF($C71="TOTAL",SUM($P$8:P70),IF(AND(C71>$AO$1,$AF$3=$AO$2),BR72,IF($AR$18=$AR$20,SUM(BE72+BM72),ROUND((D71+E71)*10%,0))))),"") ->  | Q71: =IFERROR(IF(C71="","",IF(H71="","",IF(I71="","",IF($C71="TOTAL",SUM($Q$8:Q70),IF(AND(C71>$AO$1,$AF$3=$AO$2),BR72,IF($AR$18=$AR$20,$AR$21,ROUND((H71+I71)*10%,0))))))),"") ->  | S71: =IFERROR(IF(C71="","",IF($AR$16=$AR$17,0,IF($C71="TOTAL",SUM($S$8:S70),IF($AR$19=$AR$20,$AR$25,0)))),"") ->  | T71: =IFERROR(IF(C71="","",IF($AR$16=$AR$17,0,IF($C71="TOTAL",SUM($T$8:T70),IF($AR$19=$AR$20,$AR$24,0)))),"") ->  | V71: =IF(C71="","",IF($C71="TOTAL",SUM($V$8:V70),IF(AND($AR$2=$AR$20,C71=$AR$1),ROUND(D71/31*$AS$2,0),IF(C71=$AP$6,ROUND((G71)*1/30,0),IF(C71=$AQ$6,ROUND((G71)*1/31,0),""))))) ->  | W71: =IF(C71="","",IF($C71="TOTAL",SUM($W$8:W70),IF(AND($AR$2=$AR$20,C71=$AR$1),ROUND(H71/31*$AS$2,0),IF(C71=$AP$6,ROUND((K71)*1/30,0),IF(C71=$AQ$6,ROUND((K71)*1/31,0),""))))) ->  | Y71: =IFERROR(IF(C71="","",IF($AR$16=$AR$17,0,IF($AF$3=$AO$4,"",IF($C71="TOTAL",SUM($Y$8:Y70),BU71)))),"") ->  | Z71: =IFERROR(IF(C71="","",IF($AR$16=$AR$17,0,IF($AF$3=$AO$4,"",IF($C71="TOTAL",SUM($Z$8:Z70),BT71)))),"") ->  | AB71: =IFERROR(IF(C71="","",IF(AND(BK72="",BR72=""),"",IF($C71="TOTAL",SUM($AB$8:AB70),BK72))),"") ->  | AC71: =IFERROR(IF(C71="","",IF($C71="TOTAL",SUM($AC$8:AC70),ROUND(O71*$AR$7%,0))),"") ->  | AD71: =IFERROR(IF(C71="","",IF($C71="TOTAL",SUM($AD$8:AD70),IF($AF$3=$AO$2,SUM(U71,X71,AB71,AC71),SUM(R71,U71,X71,AB71,AC71)))),"") ->  | AE71: =IFERROR(IF(C71="","",IF($C71="TOTAL",SUM($AE$8:AE70),SUM(O71-AD71))),"") ->  | AN71: 42 | AO71: 42 | AQ71: 2022-03-01 | AR71: 2022-03-01 | AS71: 2028-03-01 | AT71: =IF(AND(AS71=""),"",IF(AND(AS71=$AQ$9),$AQ$9,IF(AND(AS71=$AQ$10),$AQ$10,IF(AND(AS71=$AQ$11),$AQ$11,IF(AND(AS71=$AQ$12),$AQ$12,IF(AND(AS71=$AQ$13),$AQ$13,IF(AND(AS71=$AQ$14),$AQ$14,IF(AND(AS71=$AQ$15),$AQ$15,IF(AND(AS71=$AQ$16),$AQ$16,IF(AND(AS71=$AQ$17),$AQ$17,IF(AND(AS71=$AQ$18),$AQ$18,IF(AND(AS71=$AQ$19),$AQ$19,IF(AND(AS71=$AQ$20),$AQ$20,IF(AND(AS71=$AQ$21),$AQ$21,IF(AND(AS71=$AQ$22),$AQ$22,IF(AND(AS71=$AQ$23),$AQ$23,IF(AND(AS71=$AQ$24),$AQ$24,IF(AND(AS71=$AQ$25),$AQ$25,IF(AND(AS71=$AQ$26),$AQ$26,IF(AND(AS71=$AQ$27),$AQ$27,IF(AND(AS71=$AQ$28),$AQ$28,IF(AND(AS71=$AQ$29),$AQ$29,IF(AND(AS71=$AQ$30),$AQ$30,IF(AND(AS71=$AQ$31),$AQ$31,IF(AND(AS71=$AQ$32),$AQ$32,IF(AND(AS71=$AQ$33),$AQ$33,IF(AND(AS71=$AQ$34),$AQ$34,IF(AND(AS71=$AQ$35),$AQ$35,IF(AND(AS71=$AQ$36),$AQ$36,IF(AND(AS71=$AQ$37),$AQ$37,IF(AND(AS71=$AQ$38),$AQ$38,IF(AND(AS71=$AQ$39),$AQ$39,IF(AND(AS71=$AQ$40),$AQ$40,IF(AND(AS71=$AQ$41),$AQ$41,IF(AND(AS71=$AQ$42),$AQ$42,IF(AND(AS71=$AQ$43),$AQ$43,IF(AND(AS71=$AQ$44),$AQ$44,IF(AND(AS71=$AQ$45),$AQ$45,IF(AND(AS71=$AQ$46),$AQ$46,IF(AND(AS71=$AQ$47),$AQ$47,IF(AND(AS71=$AQ$48),$AQ$48,IF(AND(AS71=$AQ$49),$AQ$49,IF(AND(AS71=$AQ$50),$AQ$50,IF(AND(AS71=$AQ$51),$AQ$51,IF(AND(AS71=$AQ$52),$AQ$52,IF(AND(AS71=$AQ$53),$AQ$53,IF(AND(AS71=$AQ$54),$AQ$54,IF(AND(AS71=$AQ$55),$AQ$55,IF(AND(AS71=$AQ$56),$AQ$56,IF(AND(AS71=$AQ$57),$AQ$57,IF(AND(AS71=$AQ$58),$AQ$58,IF(AND(AS71=$AQ$59),$AQ$59,IF(AND(AS71=$AQ$60),$AQ$60,IF(AND(AS71=$AQ$61),$AQ$61,IF(AND(AS71=$AQ$62),$AQ$62,IF(AND(AS71=$AQ$63),$AQ$63,IF(AND(AS71=$AQ$64),$AQ$64,IF(AND(AS71=$AQ$65),$AQ$65,IF(AND(AS71=$AQ$66),$AQ$66,IF(AND(AS71=$AQ$67),$AQ$67,IF(AND(AS71=$AQ$68),$AQ$68,IF(AND(AS71=$AQ$69),$AQ$69,IF(AND(AS71=$AQ$70),$AQ$70,IF(AND(AS71=$AQ$71),$AQ$71,"")))))))))))))))))))))))))))))))))))))))))))))))))))))))))))))))) ->  | AV71: =IFERROR(IF(AND(AT71="",AU71=""),"",IF(AT71="",AU71,AT71)),"") ->  | BL71: 0 | BM71: 0 | BU71: =IF(AW72="","",IF(AW72="TOTAL","",IF($AR$16=$AR$17,0,IF(AND(AW72>$BT$1,$AF$3=$AO$2,'Master Sheet'!$D$31>0),'Master Sheet'!$D$31,IF(AND(AW72=$BT$1,$AF$3=$AO$2),IF($AR$9<18001,135,IF($AR$9<33501,220,IF($AR$9<54001,330,440))),IF(AND(AW72>$BT$1,$AF$3=$AO$2),IF($AR$9<18001,265,IF($AR$9<33501,440,IF($AR$9<54001,658,875))),"")))))) -> 
D72: =IFERROR(IF($C71="TOTAL","अक्षरें राशि :-",IF($C72="TOTAL",SUM($D$8:D71),IF(AX73="","",AX73))),"") ->  | E72: =IFERROR(IF($C72="TOTAL",SUM($E$8:E71),IF(AY73="","",AY73)),"") ->  | F72: =IFERROR(IF($C72="TOTAL",SUM($F$8:F71),IF(AZ73="","",AZ73)),"") ->  | H72: =IFERROR(IF($C72="TOTAL",SUM($H$8:H71),IF(BB73="","",BB73)),"") ->  | I72: =IFERROR(IF($C72="TOTAL",SUM($I$8:I71),IF(BC73="","",BC73)),"") ->  | J72: =IFERROR(IF($C72="TOTAL",SUM($J$8:J71),IF(BD73="","",BD73)),"") ->  | L72: =IFERROR(IF(C72="","",IF(D72="","",IF(H72="","",IF($C72="TOTAL",SUM($L$8:L71),SUM(D72-H72))))),"") ->  | M72: =IFERROR(IF(C72="","",IF(E72="","",IF(I72="","",IF($C72="TOTAL",SUM($M$8:M71),SUM(E72-I72))))),"") ->  | N72: =IFERROR(IF(C72="","",IF(F72="","",IF(J72="","",IF($C72="TOTAL",SUM($N$8:N71),SUM(F72-J72))))),"") ->  | P72: =IFERROR(IF(C72="","",IF($C72="TOTAL",SUM($P$8:P71),IF(AND(C72>$AO$1,$AF$3=$AO$2),BR73,IF($AR$18=$AR$20,SUM(BE73+BM73),ROUND((D72+E72)*10%,0))))),"") ->  | Q72: =IFERROR(IF(C72="","",IF(H72="","",IF(I72="","",IF($C72="TOTAL",SUM($Q$8:Q71),IF(AND(C72>$AO$1,$AF$3=$AO$2),BR73,IF($AR$18=$AR$20,$AR$21,ROUND((H72+I72)*10%,0))))))),"") ->  | S72: =IFERROR(IF(C72="","",IF($AR$16=$AR$17,0,IF($C72="TOTAL",SUM($S$8:S71),IF($AR$19=$AR$20,$AR$25,0)))),"") ->  | T72: =IFERROR(IF(C72="","",IF($AR$16=$AR$17,0,IF($C72="TOTAL",SUM($T$8:T71),IF($AR$19=$AR$20,$AR$24,0)))),"") ->  | V72: =IF(C72="","",IF($C72="TOTAL",SUM($V$8:V71),IF(AND($AR$2=$AR$20,C72=$AR$1),ROUND(D72/31*$AS$2,0),IF(C72=$AP$6,ROUND((G72)*1/30,0),IF(C72=$AQ$6,ROUND((G72)*1/31,0),""))))) ->  | W72: =IF(C72="","",IF($C72="TOTAL",SUM($W$8:W71),IF(AND($AR$2=$AR$20,C72=$AR$1),ROUND(H72/31*$AS$2,0),IF(C72=$AP$6,ROUND((K72)*1/30,0),IF(C72=$AQ$6,ROUND((K72)*1/31,0),""))))) ->  | Y72: =IFERROR(IF(C72="","",IF($AR$16=$AR$17,0,IF($AF$3=$AO$4,"",IF($C72="TOTAL",SUM($Y$8:Y71),BU72)))),"") ->  | Z72: =IFERROR(IF(C72="","",IF($AR$16=$AR$17,0,IF($AF$3=$AO$4,"",IF($C72="TOTAL",SUM($Z$8:Z71),BT72)))),"") ->  | AB72: =IFERROR(IF(C72="","",IF(AND(BK73="",BR73=""),"",IF($C72="TOTAL",SUM($AB$8:AB71),BK73))),"") ->  | AC72: =IFERROR(IF(C72="","",IF($C72="TOTAL",SUM($AC$8:AC71),ROUND(O72*$AR$7%,0))),"") ->  | AD72: =IFERROR(IF(C72="","",IF($C72="TOTAL",SUM($AD$8:AD71),IF($AF$3=$AO$2,SUM(U72,X72,AB72,AC72),SUM(R72,U72,X72,AB72,AC72)))),"") ->  | AE72: =IFERROR(IF(C72="","",IF($C72="TOTAL",SUM($AE$8:AE71),SUM(O72-AD72))),"") ->  | AN72: 42 | AO72: 42 | AQ72: 2022-04-01 | AR72: 2022-04-01 | AS72: 2028-04-01 | AT72: =IF(AND(AS72=""),"",IF(AND(AS72=$AQ$9),$AQ$9,IF(AND(AS72=$AQ$10),$AQ$10,IF(AND(AS72=$AQ$11),$AQ$11,IF(AND(AS72=$AQ$12),$AQ$12,IF(AND(AS72=$AQ$13),$AQ$13,IF(AND(AS72=$AQ$14),$AQ$14,IF(AND(AS72=$AQ$15),$AQ$15,IF(AND(AS72=$AQ$16),$AQ$16,IF(AND(AS72=$AQ$17),$AQ$17,IF(AND(AS72=$AQ$18),$AQ$18,IF(AND(AS72=$AQ$19),$AQ$19,IF(AND(AS72=$AQ$20),$AQ$20,IF(AND(AS72=$AQ$21),$AQ$21,IF(AND(AS72=$AQ$22),$AQ$22,IF(AND(AS72=$AQ$23),$AQ$23,IF(AND(AS72=$AQ$24),$AQ$24,IF(AND(AS72=$AQ$25),$AQ$25,IF(AND(AS72=$AQ$26),$AQ$26,IF(AND(AS72=$AQ$27),$AQ$27,IF(AND(AS72=$AQ$28),$AQ$28,IF(AND(AS72=$AQ$29),$AQ$29,IF(AND(AS72=$AQ$30),$AQ$30,IF(AND(AS72=$AQ$31),$AQ$31,IF(AND(AS72=$AQ$32),$AQ$32,IF(AND(AS72=$AQ$33),$AQ$33,IF(AND(AS72=$AQ$34),$AQ$34,IF(AND(AS72=$AQ$35),$AQ$35,IF(AND(AS72=$AQ$36),$AQ$36,IF(AND(AS72=$AQ$37),$AQ$37,IF(AND(AS72=$AQ$38),$AQ$38,IF(AND(AS72=$AQ$39),$AQ$39,IF(AND(AS72=$AQ$40),$AQ$40,IF(AND(AS72=$AQ$41),$AQ$41,IF(AND(AS72=$AQ$42),$AQ$42,IF(AND(AS72=$AQ$43),$AQ$43,IF(AND(AS72=$AQ$44),$AQ$44,IF(AND(AS72=$AQ$45),$AQ$45,IF(AND(AS72=$AQ$46),$AQ$46,IF(AND(AS72=$AQ$47),$AQ$47,IF(AND(AS72=$AQ$48),$AQ$48,IF(AND(AS72=$AQ$49),$AQ$49,IF(AND(AS72=$AQ$50),$AQ$50,IF(AND(AS72=$AQ$51),$AQ$51,IF(AND(AS72=$AQ$52),$AQ$52,IF(AND(AS72=$AQ$53),$AQ$53,IF(AND(AS72=$AQ$54),$AQ$54,IF(AND(AS72=$AQ$55),$AQ$55,IF(AND(AS72=$AQ$56),$AQ$56,IF(AND(AS72=$AQ$57),$AQ$57,IF(AND(AS72=$AQ$58),$AQ$58,IF(AND(AS72=$AQ$59),$AQ$59,IF(AND(AS72=$AQ$60),$AQ$60,IF(AND(AS72=$AQ$61),$AQ$61,IF(AND(AS72=$AQ$62),$AQ$62,IF(AND(AS72=$AQ$63),$AQ$63,IF(AND(AS72=$AQ$64),$AQ$64,IF(AND(AS72=$AQ$65),$AQ$65,IF(AND(AS72=$AQ$66),$AQ$66,IF(AND(AS72=$AQ$67),$AQ$67,IF(AND(AS72=$AQ$68),$AQ$68,IF(AND(AS72=$AQ$69),$AQ$69,IF(AND(AS72=$AQ$70),$AQ$70,IF(AND(AS72=$AQ$71),$AQ$71,"")))))))))))))))))))))))))))))))))))))))))))))))))))))))))))))))) ->  | AU72: =IF(AND(AS72=""),"",IF(AND(AS72=$AQ$72),$AR$72,IF(AND(AS72=$AQ$73),$AR$73,IF(AND(AS72=$AQ$74),$AR$74,IF(AND(AS72=$AQ$75),$AR$75,IF(AND(AS72=$AQ$76),$AR$76,IF(AND(AS72=$AQ$77),$AR$77,IF(AND(AS72=$AQ$78),$AR$78,IF(AND(AS72=$AQ$79),$AR$79,IF(AND(AS72=$AQ$80),$AR$80,IF(AND(AS72=$AQ$81),$AR$81,IF(AND(AS72=$AQ$82),$AR$82,IF(AND(AS72=$AQ$83),$AR$83,IF(AND(AS72=$AQ$84),$AR$84,IF(AND(AS72=$AQ$85),$AR$85,IF(AND(AS72=$AQ$86),$AR$86,IF(AND(AS72=$AQ$87),$AR$87,IF(AND(AS72=$AQ$88),$AR$88,IF(AND(AS72=$AQ$89),$AR$89,IF(AND(AS72=$AQ$90),$AR$90,IF(AND(AS72=$AQ$91),$AR$91,IF(AND(AS72=$AQ$92),$AR$92,IF(AND(AS72=$AQ$93),$AR$93,""))))))))))))))))))))))) ->  | AV72: =IFERROR(IF(AND(AT72="",AU72=""),"",IF(AT72="",AU72,AT72)),"") ->  | AX72: =IFERROR(IF(AW72="","",IF(AND($AR$20=$AR$28,$AR$30=AW72),$AR$29,IF(OR(AW72=$AZ$2,AW72=$AZ$3,AW72=$AZ$4,AW72=$AZ$5,AW72=$AZ$6,AW72=$AZ$7,AW72=$BA$2),MROUND(AX71*1.03,100),AX71))),"") ->  | BL72: 0 | BM72: 0 | BU72: =IF(AW73="","",IF(AW73="TOTAL","",IF($AR$16=$AR$17,0,IF(AND(AW73>$BT$1,$AF$3=$AO$2,'Master Sheet'!$D$31>0),'Master Sheet'!$D$31,IF(AND(AW73=$BT$1,$AF$3=$AO$2),IF($AR$9<18001,135,IF($AR$9<33501,220,IF($AR$9<54001,330,440))),IF(AND(AW73>$BT$1,$AF$3=$AO$2),IF($AR$9<18001,265,IF($AR$9<33501,440,IF($AR$9<54001,658,875))),"")))))) -> 
B73: =IFERROR(IF(A73="","",IF(A73=0,"",A73)),"") ->  | C73: =IFERROR(IF(AW74="","",AW74),"") ->  | D73: =IFERROR(IF($C72="TOTAL","अक्षरें राशि :-",IF($C73="TOTAL",SUM($D$8:D72),IF(AX74="","",AX74))),"") ->  | E73: =IFERROR(IF($C73="TOTAL",SUM($E$8:E72),IF(AY74="","",AY74)),"") ->  | F73: =IFERROR(IF($C73="TOTAL",SUM($F$8:F72),IF(AZ74="","",AZ74)),"") ->  | G73: =IF(C73="","",SUM(D73:F73)) ->  | H73: =IFERROR(IF($C73="TOTAL",SUM($H$8:H72),IF(BB74="","",BB74)),"") ->  | I73: =IFERROR(IF($C73="TOTAL",SUM($I$8:I72),IF(BC74="","",BC74)),"") ->  | J73: =IFERROR(IF($C73="TOTAL",SUM($J$8:J72),IF(BD74="","",BD74)),"") ->  | K73: =IF(C73="","",SUM(H73:J73)) ->  | L73: =IFERROR(IF(C73="","",IF(D73="","",IF(H73="","",IF($C73="TOTAL",SUM($L$8:L72),SUM(D73-H73))))),"") ->  | M73: =IFERROR(IF(C73="","",IF(E73="","",IF(I73="","",IF($C73="TOTAL",SUM($M$8:M72),SUM(E73-I73))))),"") ->  | N73: =IFERROR(IF(C73="","",IF(F73="","",IF(J73="","",IF($C73="TOTAL",SUM($N$8:N72),SUM(F73-J73))))),"") ->  | O73: =IFERROR(IF(C73="","",IF(G73="","",IF(K73="","",SUM(G73-K73)))),"") ->  | P73: =IFERROR(IF(C73="","",IF($C73="TOTAL",SUM($P$8:P72),IF(AND(C73>$AO$1,$AF$3=$AO$2),BR74,IF($AR$18=$AR$20,SUM(BE74+BM74),ROUND((D73+E73)*10%,0))))),"") ->  | Q73: =IFERROR(IF(C73="","",IF(H73="","",IF(I73="","",IF($C73="TOTAL",SUM($Q$8:Q72),IF(AND(C73>$AO$1,$AF$3=$AO$2),BR74,IF($AR$18=$AR$20,$AR$21,ROUND((H73+I73)*10%,0))))))),"") ->  | R73: =IFERROR(IF(C73="","",SUM(P73-Q73)),"") ->  | S73: =IFERROR(IF(C73="","",IF($AR$16=$AR$17,0,IF($C73="TOTAL",SUM($S$8:S72),IF($AR$19=$AR$20,$AR$25,0)))),"") ->  | T73: =IFERROR(IF(C73="","",IF($AR$16=$AR$17,0,IF($C73="TOTAL",SUM($T$8:T72),IF($AR$19=$AR$20,$AR$24,0)))),"") ->  | U73: =IFERROR(IF(C73="","",SUM(S73-T73)),"") ->  | V73: =IF(C73="","",IF($C73="TOTAL",SUM($V$8:V72),IF(AND($AR$2=$AR$20,C73=$AR$1),ROUND(D73/31*$AS$2,0),IF(C73=$AP$6,ROUND((G73)*1/30,0),IF(C73=$AQ$6,ROUND((G73)*1/31,0),""))))) ->  | W73: =IF(C73="","",IF($C73="TOTAL",SUM($W$8:W72),IF(AND($AR$2=$AR$20,C73=$AR$1),ROUND(H73/31*$AS$2,0),IF(C73=$AP$6,ROUND((K73)*1/30,0),IF(C73=$AQ$6,ROUND((K73)*1/31,0),""))))) ->  | X73: =IFERROR(IF(C73="","",SUM(V73-W73)),"") ->  | Y73: =IFERROR(IF(C73="","",IF($AR$16=$AR$17,0,IF($AF$3=$AO$4,"",IF($C73="TOTAL",SUM($Y$8:Y72),BU73)))),"") ->  | Z73: =IFERROR(IF(C73="","",IF($AR$16=$AR$17,0,IF($AF$3=$AO$4,"",IF($C73="TOTAL",SUM($Z$8:Z72),BT73)))),"") ->  | AA73: =IFERROR(IF(C73="","",SUM(Y73-Z73)),"") ->  | AB73: =IFERROR(IF(C73="","",IF(AND(BK74="",BR74=""),"",IF($C73="TOTAL",SUM($AB$8:AB72),BK74))),"") ->  | AC73: =IFERROR(IF(C73="","",IF($C73="TOTAL",SUM($AC$8:AC72),ROUND(O73*$AR$7%,0))),"") ->  | AD73: =IFERROR(IF(C73="","",IF($C73="TOTAL",SUM($AD$8:AD72),IF($AF$3=$AO$2,SUM(U73,X73,AB73,AC73),SUM(R73,U73,X73,AB73,AC73)))),"") ->  | AE73: =IFERROR(IF(C73="","",IF($C73="TOTAL",SUM($AE$8:AE72),SUM(O73-AD73))),"") ->  | AN73: 42 | AO73: 42 | AQ73: 2022-05-01 | AR73: 2022-05-01 | AS73: 2028-05-01 | AU73: =IF(AND(AS73=""),"",IF(AND(AS73=$AQ$72),$AR$72,IF(AND(AS73=$AQ$73),$AR$73,IF(AND(AS73=$AQ$74),$AR$74,IF(AND(AS73=$AQ$75),$AR$75,IF(AND(AS73=$AQ$76),$AR$76,IF(AND(AS73=$AQ$77),$AR$77,IF(AND(AS73=$AQ$78),$AR$78,IF(AND(AS73=$AQ$79),$AR$79,IF(AND(AS73=$AQ$80),$AR$80,IF(AND(AS73=$AQ$81),$AR$81,IF(AND(AS73=$AQ$82),$AR$82,IF(AND(AS73=$AQ$83),$AR$83,IF(AND(AS73=$AQ$84),$AR$84,IF(AND(AS73=$AQ$85),$AR$85,IF(AND(AS73=$AQ$86),$AR$86,IF(AND(AS73=$AQ$87),$AR$87,IF(AND(AS73=$AQ$88),$AR$88,IF(AND(AS73=$AQ$89),$AR$89,IF(AND(AS73=$AQ$90),$AR$90,IF(AND(AS73=$AQ$91),$AR$91,IF(AND(AS73=$AQ$92),$AR$92,IF(AND(AS73=$AQ$93),$AR$93,""))))))))))))))))))))))) ->  | AW73: =IFERROR(IF(AV73="","",IF(DATE(YEAR(AV73),MONTH(AV73),DAY(AV73))=DATE(YEAR($AS$6),MONTH($AS$6)+1,DAY($AS$6)),"TOTAL",IF(AV73>$AS$6,"",AV73))),"") ->  | BL73: 0 | BM73: 0 | BT73: =IF(AW74="","",IF(AW74="TOTAL","",IF($AR$16=$AR$17,0,IF(AND(AW74=$BT$1,$AF$3=$AO$2),IF($AR$14<18001,135,IF($AR$14<33501,220,IF($AR$14<54001,330,440))),IF(AND(AW74>$BT$1,$AF$3=$AO$2),IF($AR$14<18001,265,IF($AR$14<33501,440,IF($AR$14<54001,658,875))),""))))) ->  | BU73: =IF(AW74="","",IF(AW74="TOTAL","",IF($AR$16=$AR$17,0,IF(AND(AW74>$BT$1,$AF$3=$AO$2,'Master Sheet'!$D$31>0),'Master Sheet'!$D$31,IF(AND(AW74=$BT$1,$AF$3=$AO$2),IF($AR$9<18001,135,IF($AR$9<33501,220,IF($AR$9<54001,330,440))),IF(AND(AW74>$BT$1,$AF$3=$AO$2),IF($AR$9<18001,265,IF($AR$9<33501,440,IF($AR$9<54001,658,875))),"")))))) -> 
D74: =IFERROR(IF($C73="TOTAL","अक्षरें राशि :-",IF($C74="TOTAL",SUM($D$8:D73),IF(AX75="","",AX75))),"") ->  | E74: =IFERROR(IF($C74="TOTAL",SUM($E$8:E73),IF(AY75="","",AY75)),"") ->  | F74: =IFERROR(IF($C74="TOTAL",SUM($F$8:F73),IF(AZ75="","",AZ75)),"") ->  | H74: =IFERROR(IF($C74="TOTAL",SUM($H$8:H73),IF(BB75="","",BB75)),"") ->  | I74: =IFERROR(IF($C74="TOTAL",SUM($I$8:I73),IF(BC75="","",BC75)),"") ->  | J74: =IFERROR(IF($C74="TOTAL",SUM($J$8:J73),IF(BD75="","",BD75)),"") ->  | L74: =IFERROR(IF(C74="","",IF(D74="","",IF(H74="","",IF($C74="TOTAL",SUM($L$8:L73),SUM(D74-H74))))),"") ->  | M74: =IFERROR(IF(C74="","",IF(E74="","",IF(I74="","",IF($C74="TOTAL",SUM($M$8:M73),SUM(E74-I74))))),"") ->  | N74: =IFERROR(IF(C74="","",IF(F74="","",IF(J74="","",IF($C74="TOTAL",SUM($N$8:N73),SUM(F74-J74))))),"") ->  | P74: =IFERROR(IF(C74="","",IF($C74="TOTAL",SUM($P$8:P73),IF(AND(C74>$AO$1,$AF$3=$AO$2),BR75,IF($AR$18=$AR$20,SUM(BE75+BM75),ROUND((D74+E74)*10%,0))))),"") ->  | Q74: =IFERROR(IF(C74="","",IF(H74="","",IF(I74="","",IF($C74="TOTAL",SUM($Q$8:Q73),IF(AND(C74>$AO$1,$AF$3=$AO$2),BR75,IF($AR$18=$AR$20,$AR$21,ROUND((H74+I74)*10%,0))))))),"") ->  | S74: =IFERROR(IF(C74="","",IF($AR$16=$AR$17,0,IF($C74="TOTAL",SUM($S$8:S73),IF($AR$19=$AR$20,$AR$25,0)))),"") ->  | T74: =IFERROR(IF(C74="","",IF($AR$16=$AR$17,0,IF($C74="TOTAL",SUM($T$8:T73),IF($AR$19=$AR$20,$AR$24,0)))),"") ->  | V74: =IF(C74="","",IF($C74="TOTAL",SUM($V$8:V73),IF(AND($AR$2=$AR$20,C74=$AR$1),ROUND(D74/31*$AS$2,0),IF(C74=$AP$6,ROUND((G74)*1/30,0),IF(C74=$AQ$6,ROUND((G74)*1/31,0),""))))) ->  | W74: =IF(C74="","",IF($C74="TOTAL",SUM($W$8:W73),IF(AND($AR$2=$AR$20,C74=$AR$1),ROUND(H74/31*$AS$2,0),IF(C74=$AP$6,ROUND((K74)*1/30,0),IF(C74=$AQ$6,ROUND((K74)*1/31,0),""))))) ->  | Y74: =IFERROR(IF(C74="","",IF($AR$16=$AR$17,0,IF($AF$3=$AO$4,"",IF($C74="TOTAL",SUM($Y$8:Y73),BU74)))),"") ->  | Z74: =IFERROR(IF(C74="","",IF($AR$16=$AR$17,0,IF($AF$3=$AO$4,"",IF($C74="TOTAL",SUM($Z$8:Z73),BT74)))),"") ->  | AB74: =IFERROR(IF(C74="","",IF(AND(BK75="",BR75=""),"",IF($C74="TOTAL",SUM($AB$8:AB73),BK75))),"") ->  | AC74: =IFERROR(IF(C74="","",IF($C74="TOTAL",SUM($AC$8:AC73),ROUND(O74*$AR$7%,0))),"") ->  | AD74: =IFERROR(IF(C74="","",IF($C74="TOTAL",SUM($AD$8:AD73),IF($AF$3=$AO$2,SUM(U74,X74,AB74,AC74),SUM(R74,U74,X74,AB74,AC74)))),"") ->  | AE74: =IFERROR(IF(C74="","",IF($C74="TOTAL",SUM($AE$8:AE73),SUM(O74-AD74))),"") ->  | AN74: =IF(OR(AW74=$AQ$9,AW74=$AQ$10,AW74=$AQ$11,AW74=$AQ$12,AW74=$AQ$13,AW74=$AQ$14),4,IF(OR(AW74=$AQ$15,AW74=$AQ$16,AW74=$AQ$17,AW74=$AQ$18,AW74=$AQ$19,AW74=$AQ$20),5,IF(OR(AW74=$AQ$21,AW74=$AQ$22,AW74=$AQ$23,AW74=$AQ$24,AW74=$AQ$25,AW74=$AQ$26),7,IF(OR(AW74=$AQ$27,AW74=$AQ$28,AW74=$AQ$29,AW74=$AQ$30,AW74=$AQ$31,AW74=$AQ$32),9,IF(OR(AW74=$AQ$33,AW74=$AQ$34,AW74=$AQ$35,AW74=$AQ$36,AW74=$AQ$37,AW74=$AQ$38),12,IF(OR(AW74=$AQ$39,AW74=$AQ$40,AW74=$AQ$41,AW74=$AQ$42,AW74=$AQ$43,AW74=$AQ$44,AW74=$AQ$45,AW74=$AQ$46,AW74=$AQ$47,AW74=$AQ$48,AW74=$AQ$49,AW74=$AQ$50,AW74=$AQ$51,AW74=$AQ$52,AW74=$AQ$53,AW74=$AQ$54,AW74=$AQ$55,AW74=$AQ$56,AW74=$AQ$57,AW74=$AQ$58,AW74=$AQ$59,AW74=$AQ$60,AW74=$AQ$61,AW74=$AQ$62),17,IF(OR(AW74=$AQ$63,AW74=$AQ$64,AW74=$AQ$65,AW74=$AQ$66,AW74=$AQ$67,AW74=$AQ$68),31,IF(OR(AW74=$AQ$69,AW74=$AQ$70,AW74=$AQ$71,AW74=$AQ$72,AW74=$AQ$73,AW74=$AQ$74),34,IF(OR(AW74=$AQ$75,AW74=$AQ$76,AW74=$AQ$77,AW74=$AQ$78,AW74=$AQ$79,AW74=$AQ$80),38,42))))))))) -> 42 | AO74: =IF(OR(AW74=$AQ$9,AW74=$AQ$10,AW74=$AQ$11,AW74=$AQ$12,AW74=$AQ$13,AW74=$AQ$14),4,IF(OR(AW74=$AQ$15,AW74=$AQ$16,AW74=$AQ$17,AW74=$AQ$18,AW74=$AQ$19,AW74=$AQ$20),5,IF(OR(AW74=$AQ$21,AW74=$AQ$22,AW74=$AQ$23,AW74=$AQ$24,AW74=$AQ$25,AW74=$AQ$26),7,IF(OR(AW74=$AQ$27,AW74=$AQ$28,AW74=$AQ$29,AW74=$AQ$30,AW74=$AQ$31,AW74=$AQ$32),9,IF(OR(AW74=$AQ$33,AW74=$AQ$34,AW74=$AQ$35,AW74=$AQ$36,AW74=$AQ$37,AW74=$AQ$38),12,IF(OR(AW74=$AQ$39,AW74=$AQ$40,AW74=$AQ$41,AW74=$AQ$42,AW74=$AQ$43,AW74=$AQ$44,AW74=$AQ$45,AW74=$AQ$46,AW74=$AQ$47,AW74=$AQ$48,AW74=$AQ$49,AW74=$AQ$50,AW74=$AQ$51,AW74=$AQ$52,AW74=$AQ$53,AW74=$AQ$54,AW74=$AQ$55,AW74=$AQ$56,AW74=$AQ$57,AW74=$AQ$58,AW74=$AQ$59,AW74=$AQ$60,AW74=$AQ$61,AW74=$AQ$62),17,IF(OR(AW74=$AQ$63,AW74=$AQ$64,AW74=$AQ$65,AW74=$AQ$66,AW74=$AQ$67,AW74=$AQ$68),31,IF(OR(AW74=$AQ$69,AW74=$AQ$70,AW74=$AQ$71,AW74=$AQ$72,AW74=$AQ$73,AW74=$AQ$74),34,IF(OR(AW74=$AQ$75,AW74=$AQ$76,AW74=$AQ$77,AW74=$AQ$78,AW74=$AQ$79,AW74=$AQ$80),38,42))))))))) -> 42 | AQ74: 2022-06-01 | AR74: 2022-06-01 | AS74: 2028-06-01 | AT74: =IF(AND(AS74=""),"",IF(AND(AS74=$AQ$9),$AQ$9,IF(AND(AS74=$AQ$10),$AQ$10,IF(AND(AS74=$AQ$11),$AQ$11,IF(AND(AS74=$AQ$12),$AQ$12,IF(AND(AS74=$AQ$13),$AQ$13,IF(AND(AS74=$AQ$14),$AQ$14,IF(AND(AS74=$AQ$15),$AQ$15,IF(AND(AS74=$AQ$16),$AQ$16,IF(AND(AS74=$AQ$17),$AQ$17,IF(AND(AS74=$AQ$18),$AQ$18,IF(AND(AS74=$AQ$19),$AQ$19,IF(AND(AS74=$AQ$20),$AQ$20,IF(AND(AS74=$AQ$21),$AQ$21,IF(AND(AS74=$AQ$22),$AQ$22,IF(AND(AS74=$AQ$23),$AQ$23,IF(AND(AS74=$AQ$24),$AQ$24,IF(AND(AS74=$AQ$25),$AQ$25,IF(AND(AS74=$AQ$26),$AQ$26,IF(AND(AS74=$AQ$27),$AQ$27,IF(AND(AS74=$AQ$28),$AQ$28,IF(AND(AS74=$AQ$29),$AQ$29,IF(AND(AS74=$AQ$30),$AQ$30,IF(AND(AS74=$AQ$31),$AQ$31,IF(AND(AS74=$AQ$32),$AQ$32,IF(AND(AS74=$AQ$33),$AQ$33,IF(AND(AS74=$AQ$34),$AQ$34,IF(AND(AS74=$AQ$35),$AQ$35,IF(AND(AS74=$AQ$36),$AQ$36,IF(AND(AS74=$AQ$37),$AQ$37,IF(AND(AS74=$AQ$38),$AQ$38,IF(AND(AS74=$AQ$39),$AQ$39,IF(AND(AS74=$AQ$40),$AQ$40,IF(AND(AS74=$AQ$41),$AQ$41,IF(AND(AS74=$AQ$42),$AQ$42,IF(AND(AS74=$AQ$43),$AQ$43,IF(AND(AS74=$AQ$44),$AQ$44,IF(AND(AS74=$AQ$45),$AQ$45,IF(AND(AS74=$AQ$46),$AQ$46,IF(AND(AS74=$AQ$47),$AQ$47,IF(AND(AS74=$AQ$48),$AQ$48,IF(AND(AS74=$AQ$49),$AQ$49,IF(AND(AS74=$AQ$50),$AQ$50,IF(AND(AS74=$AQ$51),$AQ$51,IF(AND(AS74=$AQ$52),$AQ$52,IF(AND(AS74=$AQ$53),$AQ$53,IF(AND(AS74=$AQ$54),$AQ$54,IF(AND(AS74=$AQ$55),$AQ$55,IF(AND(AS74=$AQ$56),$AQ$56,IF(AND(AS74=$AQ$57),$AQ$57,IF(AND(AS74=$AQ$58),$AQ$58,IF(AND(AS74=$AQ$59),$AQ$59,IF(AND(AS74=$AQ$60),$AQ$60,IF(AND(AS74=$AQ$61),$AQ$61,IF(AND(AS74=$AQ$62),$AQ$62,IF(AND(AS74=$AQ$63),$AQ$63,IF(AND(AS74=$AQ$64),$AQ$64,IF(AND(AS74=$AQ$65),$AQ$65,IF(AND(AS74=$AQ$66),$AQ$66,IF(AND(AS74=$AQ$67),$AQ$67,IF(AND(AS74=$AQ$68),$AQ$68,IF(AND(AS74=$AQ$69),$AQ$69,IF(AND(AS74=$AQ$70),$AQ$70,IF(AND(AS74=$AQ$71),$AQ$71,"")))))))))))))))))))))))))))))))))))))))))))))))))))))))))))))))) ->  | AV74: =IFERROR(IF(AND(AT74="",AU74=""),"",IF(AT74="",AU74,AT74)),"") ->  | AW74: =IFERROR(IF(AV74="","",IF(DATE(YEAR(AV74),MONTH(AV74),DAY(AV74))=DATE(YEAR($AS$6),MONTH($AS$6)+1,DAY($AS$6)),"TOTAL",IF(AV74>$AS$6,"",AV74))),"") ->  | BC74: =IF(AW74="","",IF(AW74="TOTAL","",IF(BB74="","",IF($AR$16=$AR$17,0,ROUND(BB74*AO74%,0))))) ->  | BE74: =IF(AW74="","",IF(AW74="TOTAL","",IF(BB74="","",IF($AR$16=$AR$17,0,IF(OR(C73=$AP$16,C73=$AP$17,C73=$AP$18,C73=$AP$19,C73=$AP$20,C73=$AP$21,C73=$AP$22,C73=$AP$23,C73=$AP$24),SUM(BH74+BI74),BI74))))) ->  | BJ74: =IF(OR(AW74=$AQ$63,AW74=$AQ$64,AW74=$AQ$65),"YES","") ->  | BK74: =IF(BJ74="","",IF($AR$16=$AR$17,ROUND((D73)*3%,0),IF(OR(AW74=$AQ$63,AW74=$AQ$64,AW74=$AQ$65),SUM(ROUND((D73-H73)*3%,0)),IF(OR(AW74=$AQ$69,AW74=$AQ$70,AW74=$AQ$71),SUM(ROUND((D73-H73)*3%,0)),"")))) ->  | BL74: 0 | BM74: 0 | BR74: =IF(AW74="","",IF(AW74="TOTAL","",IF(AND(AW74>$AO$1,$AF$3=$AO$2),$AV$1,""))) ->  | BU74: =IF(AW75="","",IF(AW75="TOTAL","",IF($AR$16=$AR$17,0,IF(AND(AW75>$BT$1,$AF$3=$AO$2,'Master Sheet'!$D$31>0),'Master Sheet'!$D$31,IF(AND(AW75=$BT$1,$AF$3=$AO$2),IF($AR$9<18001,135,IF($AR$9<33501,220,IF($AR$9<54001,330,440))),IF(AND(AW75>$BT$1,$AF$3=$AO$2),IF($AR$9<18001,265,IF($AR$9<33501,440,IF($AR$9<54001,658,875))),"")))))) -> 
D75: =IFERROR(IF($C74="TOTAL","अक्षरें राशि :-",IF($C75="TOTAL",SUM($D$8:D74),IF(AX76="","",AX76))),"") ->  | E75: =IFERROR(IF($C75="TOTAL",SUM($E$8:E74),IF(AY76="","",AY76)),"") ->  | F75: =IFERROR(IF($C75="TOTAL",SUM($F$8:F74),IF(AZ76="","",AZ76)),"") ->  | H75: =IFERROR(IF($C75="TOTAL",SUM($H$8:H74),IF(BB76="","",BB76)),"") ->  | I75: =IFERROR(IF($C75="TOTAL",SUM($I$8:I74),IF(BC76="","",BC76)),"") ->  | J75: =IFERROR(IF($C75="TOTAL",SUM($J$8:J74),IF(BD76="","",BD76)),"") ->  | L75: =IFERROR(IF(C75="","",IF(D75="","",IF(H75="","",IF($C75="TOTAL",SUM($L$8:L74),SUM(D75-H75))))),"") ->  | M75: =IFERROR(IF(C75="","",IF(E75="","",IF(I75="","",IF($C75="TOTAL",SUM($M$8:M74),SUM(E75-I75))))),"") ->  | N75: =IFERROR(IF(C75="","",IF(F75="","",IF(J75="","",IF($C75="TOTAL",SUM($N$8:N74),SUM(F75-J75))))),"") ->  | P75: =IFERROR(IF(C75="","",IF($C75="TOTAL",SUM($P$8:P74),IF(AND(C75>$AO$1,$AF$3=$AO$2),BR76,IF($AR$18=$AR$20,SUM(BE76+BM76),ROUND((D75+E75)*10%,0))))),"") ->  | Q75: =IFERROR(IF(C75="","",IF(H75="","",IF(I75="","",IF($C75="TOTAL",SUM($Q$8:Q74),IF(AND(C75>$AO$1,$AF$3=$AO$2),BR76,IF($AR$18=$AR$20,$AR$21,ROUND((H75+I75)*10%,0))))))),"") ->  | S75: =IFERROR(IF(C75="","",IF($AR$16=$AR$17,0,IF($C75="TOTAL",SUM($S$8:S74),IF($AR$19=$AR$20,$AR$25,0)))),"") ->  | T75: =IFERROR(IF(C75="","",IF($AR$16=$AR$17,0,IF($C75="TOTAL",SUM($T$8:T74),IF($AR$19=$AR$20,$AR$24,0)))),"") ->  | V75: =IF(C75="","",IF($C75="TOTAL",SUM($V$8:V74),IF(AND($AR$2=$AR$20,C75=$AR$1),ROUND(D75/31*$AS$2,0),IF(C75=$AP$6,ROUND((G75)*1/30,0),IF(C75=$AQ$6,ROUND((G75)*1/31,0),""))))) ->  | W75: =IF(C75="","",IF($C75="TOTAL",SUM($W$8:W74),IF(AND($AR$2=$AR$20,C75=$AR$1),ROUND(H75/31*$AS$2,0),IF(C75=$AP$6,ROUND((K75)*1/30,0),IF(C75=$AQ$6,ROUND((K75)*1/31,0),""))))) ->  | Y75: =IFERROR(IF(C75="","",IF($AR$16=$AR$17,0,IF($AF$3=$AO$4,"",IF($C75="TOTAL",SUM($Y$8:Y74),BU75)))),"") ->  | Z75: =IFERROR(IF(C75="","",IF($AR$16=$AR$17,0,IF($AF$3=$AO$4,"",IF($C75="TOTAL",SUM($Z$8:Z74),BT75)))),"") ->  | AB75: =IFERROR(IF(C75="","",IF(AND(BK76="",BR76=""),"",IF($C75="TOTAL",SUM($AB$8:AB74),BK76))),"") ->  | AC75: =IFERROR(IF(C75="","",IF($C75="TOTAL",SUM($AC$8:AC74),ROUND(O75*$AR$7%,0))),"") ->  | AD75: =IFERROR(IF(C75="","",IF($C75="TOTAL",SUM($AD$8:AD74),IF($AF$3=$AO$2,SUM(U75,X75,AB75,AC75),SUM(R75,U75,X75,AB75,AC75)))),"") ->  | AE75: =IFERROR(IF(C75="","",IF($C75="TOTAL",SUM($AE$8:AE74),SUM(O75-AD75))),"") ->  | AN75: 42 | AO75: 42 | AQ75: 2022-07-01 | AR75: 2022-07-01 | AS75: 2028-07-01 | AW75: =IFERROR(IF(AV75="","",IF(DATE(YEAR(AV75),MONTH(AV75),DAY(AV75))=DATE(YEAR($AS$6),MONTH($AS$6)+1,DAY($AS$6)),"TOTAL",IF(AV75>$AS$6,"",AV75))),"") ->  | BL75: 0 | BM75: 0 | BU75: =IF(AW76="","",IF(AW76="TOTAL","",IF($AR$16=$AR$17,0,IF(AND(AW76>$BT$1,$AF$3=$AO$2,'Master Sheet'!$D$31>0),'Master Sheet'!$D$31,IF(AND(AW76=$BT$1,$AF$3=$AO$2),IF($AR$9<18001,135,IF($AR$9<33501,220,IF($AR$9<54001,330,440))),IF(AND(AW76>$BT$1,$AF$3=$AO$2),IF($AR$9<18001,265,IF($AR$9<33501,440,IF($AR$9<54001,658,875))),"")))))) -> 
A76: =IF(C76="TOTAL","",IF(B75="","",IF(LEN(C76)>=2,B75+1,0))) ->  | D76: =IFERROR(IF($C75="TOTAL","अक्षरें राशि :-",IF($C76="TOTAL",SUM($D$8:D75),IF(AX77="","",AX77))),"") ->  | E76: =IFERROR(IF($C76="TOTAL",SUM($E$8:E75),IF(AY77="","",AY77)),"") ->  | F76: =IFERROR(IF($C76="TOTAL",SUM($F$8:F75),IF(AZ77="","",AZ77)),"") ->  | H76: =IFERROR(IF($C76="TOTAL",SUM($H$8:H75),IF(BB77="","",BB77)),"") ->  | I76: =IFERROR(IF($C76="TOTAL",SUM($I$8:I75),IF(BC77="","",BC77)),"") ->  | J76: =IFERROR(IF($C76="TOTAL",SUM($J$8:J75),IF(BD77="","",BD77)),"") ->  | L76: =IFERROR(IF(C76="","",IF(D76="","",IF(H76="","",IF($C76="TOTAL",SUM($L$8:L75),SUM(D76-H76))))),"") ->  | M76: =IFERROR(IF(C76="","",IF(E76="","",IF(I76="","",IF($C76="TOTAL",SUM($M$8:M75),SUM(E76-I76))))),"") ->  | N76: =IFERROR(IF(C76="","",IF(F76="","",IF(J76="","",IF($C76="TOTAL",SUM($N$8:N75),SUM(F76-J76))))),"") ->  | P76: =IFERROR(IF(C76="","",IF($C76="TOTAL",SUM($P$8:P75),IF(AND(C76>$AO$1,$AF$3=$AO$2),BR77,IF($AR$18=$AR$20,SUM(BE77+BM77),ROUND((D76+E76)*10%,0))))),"") ->  | Q76: =IFERROR(IF(C76="","",IF(H76="","",IF(I76="","",IF($C76="TOTAL",SUM($Q$8:Q75),IF(AND(C76>$AO$1,$AF$3=$AO$2),BR77,IF($AR$18=$AR$20,$AR$21,ROUND((H76+I76)*10%,0))))))),"") ->  | S76: =IFERROR(IF(C76="","",IF($AR$16=$AR$17,0,IF($C76="TOTAL",SUM($S$8:S75),IF($AR$19=$AR$20,$AR$25,0)))),"") ->  | T76: =IFERROR(IF(C76="","",IF($AR$16=$AR$17,0,IF($C76="TOTAL",SUM($T$8:T75),IF($AR$19=$AR$20,$AR$24,0)))),"") ->  | V76: =IF(C76="","",IF($C76="TOTAL",SUM($V$8:V75),IF(AND($AR$2=$AR$20,C76=$AR$1),ROUND(D76/31*$AS$2,0),IF(C76=$AP$6,ROUND((G76)*1/30,0),IF(C76=$AQ$6,ROUND((G76)*1/31,0),""))))) ->  | W76: =IF(C76="","",IF($C76="TOTAL",SUM($W$8:W75),IF(AND($AR$2=$AR$20,C76=$AR$1),ROUND(H76/31*$AS$2,0),IF(C76=$AP$6,ROUND((K76)*1/30,0),IF(C76=$AQ$6,ROUND((K76)*1/31,0),""))))) ->  | Y76: =IFERROR(IF(C76="","",IF($AR$16=$AR$17,0,IF($AF$3=$AO$4,"",IF($C76="TOTAL",SUM($Y$8:Y75),BU76)))),"") ->  | Z76: =IFERROR(IF(C76="","",IF($AR$16=$AR$17,0,IF($AF$3=$AO$4,"",IF($C76="TOTAL",SUM($Z$8:Z75),BT76)))),"") ->  | AB76: =IFERROR(IF(C76="","",IF(AND(BK77="",BR77=""),"",IF($C76="TOTAL",SUM($AB$8:AB75),BK77))),"") ->  | AC76: =IFERROR(IF(C76="","",IF($C76="TOTAL",SUM($AC$8:AC75),ROUND(O76*$AR$7%,0))),"") ->  | AD76: =IFERROR(IF(C76="","",IF($C76="TOTAL",SUM($AD$8:AD75),IF($AF$3=$AO$2,SUM(U76,X76,AB76,AC76),SUM(R76,U76,X76,AB76,AC76)))),"") ->  | AE76: =IFERROR(IF(C76="","",IF($C76="TOTAL",SUM($AE$8:AE75),SUM(O76-AD76))),"") ->  | AN76: 42 | AO76: 42 | AQ76: 2022-08-01 | AR76: 2022-08-01 | AS76: 2028-08-01 | AX76: =IFERROR(IF(AW76="","",IF(AND($AR$20=$AR$28,$AR$30=AW76),$AR$29,IF(OR(AW76=$AZ$2,AW76=$AZ$3,AW76=$AZ$4,AW76=$AZ$5,AW76=$AZ$6,AW76=$AZ$7,AW76=$BA$2),MROUND(AX75*1.03,100),AX75))),"") ->  | AZ76: =IF(AW76="","",IF(AW76="TOTAL","",IF(AW76>=$AY$7,ROUND(AX76*$AX$7%,0),ROUND(AX76*$AT$7%,0)))) ->  | BB76: =IFERROR(IF(AW76="","",IF(AW76="TOTAL","",IF($AR$16=$AR$17,$AR$10,IF(OR(AW76=$AZ$2,AW76=$AZ$3,AW76=$AZ$4,AW76=$AZ$5,AW76=$AZ$6,AW76=$AZ$7,AW76=$BA$2),MROUND(BB75*1.03,100),BB75)))),"") ->  | BD76: =IF(AW76="","",IF(AW76="TOTAL","",IF(BB76="","",IF($AR$16=$AR$17,0,IF(AW76>=$AY$7,ROUND(BB76*$AX$7%,0),ROUND(BB76*$AT$7%,0)))))) ->  | BL76: 0 | BM76: 0 | BU76: =IF(AW77="","",IF(AW77="TOTAL","",IF($AR$16=$AR$17,0,IF(AND(AW77>$BT$1,$AF$3=$AO$2,'Master Sheet'!$D$31>0),'Master Sheet'!$D$31,IF(AND(AW77=$BT$1,$AF$3=$AO$2),IF($AR$9<18001,135,IF($AR$9<33501,220,IF($AR$9<54001,330,440))),IF(AND(AW77>$BT$1,$AF$3=$AO$2),IF($AR$9<18001,265,IF($AR$9<33501,440,IF($AR$9<54001,658,875))),"")))))) -> 
D77: =IFERROR(IF($C76="TOTAL","अक्षरें राशि :-",IF($C77="TOTAL",SUM($D$8:D76),IF(AX78="","",AX78))),"") ->  | E77: =IFERROR(IF($C77="TOTAL",SUM($E$8:E76),IF(AY78="","",AY78)),"") ->  | F77: =IFERROR(IF($C77="TOTAL",SUM($F$8:F76),IF(AZ78="","",AZ78)),"") ->  | H77: =IFERROR(IF($C77="TOTAL",SUM($H$8:H76),IF(BB78="","",BB78)),"") ->  | I77: =IFERROR(IF($C77="TOTAL",SUM($I$8:I76),IF(BC78="","",BC78)),"") ->  | J77: =IFERROR(IF($C77="TOTAL",SUM($J$8:J76),IF(BD78="","",BD78)),"") ->  | L77: =IFERROR(IF(C77="","",IF(D77="","",IF(H77="","",IF($C77="TOTAL",SUM($L$8:L76),SUM(D77-H77))))),"") ->  | M77: =IFERROR(IF(C77="","",IF(E77="","",IF(I77="","",IF($C77="TOTAL",SUM($M$8:M76),SUM(E77-I77))))),"") ->  | N77: =IFERROR(IF(C77="","",IF(F77="","",IF(J77="","",IF($C77="TOTAL",SUM($N$8:N76),SUM(F77-J77))))),"") ->  | P77: =IFERROR(IF(C77="","",IF($C77="TOTAL",SUM($P$8:P76),IF(AND(C77>$AO$1,$AF$3=$AO$2),BR78,IF($AR$18=$AR$20,SUM(BE78+BM78),ROUND((D77+E77)*10%,0))))),"") ->  | Q77: =IFERROR(IF(C77="","",IF(H77="","",IF(I77="","",IF($C77="TOTAL",SUM($Q$8:Q76),IF(AND(C77>$AO$1,$AF$3=$AO$2),BR78,IF($AR$18=$AR$20,$AR$21,ROUND((H77+I77)*10%,0))))))),"") ->  | S77: =IFERROR(IF(C77="","",IF($AR$16=$AR$17,0,IF($C77="TOTAL",SUM($S$8:S76),IF($AR$19=$AR$20,$AR$25,0)))),"") ->  | T77: =IFERROR(IF(C77="","",IF($AR$16=$AR$17,0,IF($C77="TOTAL",SUM($T$8:T76),IF($AR$19=$AR$20,$AR$24,0)))),"") ->  | V77: =IF(C77="","",IF($C77="TOTAL",SUM($V$8:V76),IF(AND($AR$2=$AR$20,C77=$AR$1),ROUND(D77/31*$AS$2,0),IF(C77=$AP$6,ROUND((G77)*1/30,0),IF(C77=$AQ$6,ROUND((G77)*1/31,0),""))))) ->  | W77: =IF(C77="","",IF($C77="TOTAL",SUM($W$8:W76),IF(AND($AR$2=$AR$20,C77=$AR$1),ROUND(H77/31*$AS$2,0),IF(C77=$AP$6,ROUND((K77)*1/30,0),IF(C77=$AQ$6,ROUND((K77)*1/31,0),""))))) ->  | Y77: =IFERROR(IF(C77="","",IF($AR$16=$AR$17,0,IF($AF$3=$AO$4,"",IF($C77="TOTAL",SUM($Y$8:Y76),BU77)))),"") ->  | Z77: =IFERROR(IF(C77="","",IF($AR$16=$AR$17,0,IF($AF$3=$AO$4,"",IF($C77="TOTAL",SUM($Z$8:Z76),BT77)))),"") ->  | AB77: =IFERROR(IF(C77="","",IF(AND(BK78="",BR78=""),"",IF($C77="TOTAL",SUM($AB$8:AB76),BK78))),"") ->  | AC77: =IFERROR(IF(C77="","",IF($C77="TOTAL",SUM($AC$8:AC76),ROUND(O77*$AR$7%,0))),"") ->  | AD77: =IFERROR(IF(C77="","",IF($C77="TOTAL",SUM($AD$8:AD76),IF($AF$3=$AO$2,SUM(U77,X77,AB77,AC77),SUM(R77,U77,X77,AB77,AC77)))),"") ->  | AE77: =IFERROR(IF(C77="","",IF($C77="TOTAL",SUM($AE$8:AE76),SUM(O77-AD77))),"") ->  | AN77: 42 | AO77: 42 | AQ77: 2022-09-01 | AR77: 2022-09-01 | AS77: 2028-09-01 | BH77: =IF(AW77="","",IF(AW77="TOTAL","",IF(BB77="","",SUM(O76)-SUM((BI77-$AR$21)+SUM(U76,X76,AC76))))) ->  | BI77: =IF(AW76="","",IF(AW76="TOTAL","",IF(AND($AR$20=$AR$36,C77=$AR$37),$AR$38,BI76))) ->  | BL77: =IFERROR(IF(AND($AR$16=$AR$17,BJ77="YES"),ROUND(ROUND(D76*3%,0)*10%,0),IF(AND($AR$16=$AR$15,BJ77="YES",$AP$7="NO"),ROUND(ROUND((L76+H76)*3%,0)*10%,0),IF(AND($AR$16=$AR$15,BJ77="YES",$AP$7="YES"),ROUND(ROUND((L76+M76)*3%,0)*10%,0),0))),"") -> 0 | BM77: =IF(AND($AR$16=$AR$17,BJ77="YES"),ROUND(D76*3%,0),IF(AND($AR$16=$AR$15,BJ77="YES",$AP$7="NO"),ROUND((L76+H76)*3%,0),IF(AND($AR$16=$AR$15,BJ77="YES",$AP$7="YES"),ROUND((L76+M76)*3%,0),0))) -> 0 | BU77: =IF(AW78="","",IF(AW78="TOTAL","",IF($AR$16=$AR$17,0,IF(AND(AW78>$BT$1,$AF$3=$AO$2,'Master Sheet'!$D$31>0),'Master Sheet'!$D$31,IF(AND(AW78=$BT$1,$AF$3=$AO$2),IF($AR$9<18001,135,IF($AR$9<33501,220,IF($AR$9<54001,330,440))),IF(AND(AW78>$BT$1,$AF$3=$AO$2),IF($AR$9<18001,265,IF($AR$9<33501,440,IF($AR$9<54001,658,875))),"")))))) -> 
D78: =IFERROR(IF($C77="TOTAL","अक्षरें राशि :-",IF($C78="TOTAL",SUM($D$8:D77),IF(AX79="","",AX79))),"") ->  | E78: =IFERROR(IF($C78="TOTAL",SUM($E$8:E77),IF(AY79="","",AY79)),"") ->  | F78: =IFERROR(IF($C78="TOTAL",SUM($F$8:F77),IF(AZ79="","",AZ79)),"") ->  | H78: =IFERROR(IF($C78="TOTAL",SUM($H$8:H77),IF(BB79="","",BB79)),"") ->  | I78: =IFERROR(IF($C78="TOTAL",SUM($I$8:I77),IF(BC79="","",BC79)),"") ->  | J78: =IFERROR(IF($C78="TOTAL",SUM($J$8:J77),IF(BD79="","",BD79)),"") ->  | L78: =IFERROR(IF(C78="","",IF(D78="","",IF(H78="","",IF($C78="TOTAL",SUM($L$8:L77),SUM(D78-H78))))),"") ->  | M78: =IFERROR(IF(C78="","",IF(E78="","",IF(I78="","",IF($C78="TOTAL",SUM($M$8:M77),SUM(E78-I78))))),"") ->  | N78: =IFERROR(IF(C78="","",IF(F78="","",IF(J78="","",IF($C78="TOTAL",SUM($N$8:N77),SUM(F78-J78))))),"") ->  | P78: =IFERROR(IF(C78="","",IF($C78="TOTAL",SUM($P$8:P77),IF(AND(C78>$AO$1,$AF$3=$AO$2),BR79,IF($AR$18=$AR$20,SUM(BE79+BM79),ROUND((D78+E78)*10%,0))))),"") ->  | Q78: =IFERROR(IF(C78="","",IF(H78="","",IF(I78="","",IF($C78="TOTAL",SUM($Q$8:Q77),IF(AND(C78>$AO$1,$AF$3=$AO$2),BR79,IF($AR$18=$AR$20,$AR$21,ROUND((H78+I78)*10%,0))))))),"") ->  | S78: =IFERROR(IF(C78="","",IF($AR$16=$AR$17,0,IF($C78="TOTAL",SUM($S$8:S77),IF($AR$19=$AR$20,$AR$25,0)))),"") ->  | T78: =IFERROR(IF(C78="","",IF($AR$16=$AR$17,0,IF($C78="TOTAL",SUM($T$8:T77),IF($AR$19=$AR$20,$AR$24,0)))),"") ->  | V78: =IF(C78="","",IF($C78="TOTAL",SUM($V$8:V77),IF(AND($AR$2=$AR$20,C78=$AR$1),ROUND(D78/31*$AS$2,0),IF(C78=$AP$6,ROUND((G78)*1/30,0),IF(C78=$AQ$6,ROUND((G78)*1/31,0),""))))) ->  | W78: =IF(C78="","",IF($C78="TOTAL",SUM($W$8:W77),IF(AND($AR$2=$AR$20,C78=$AR$1),ROUND(H78/31*$AS$2,0),IF(C78=$AP$6,ROUND((K78)*1/30,0),IF(C78=$AQ$6,ROUND((K78)*1/31,0),""))))) ->  | Y78: =IFERROR(IF(C78="","",IF($AR$16=$AR$17,0,IF($AF$3=$AO$4,"",IF($C78="TOTAL",SUM($Y$8:Y77),BU78)))),"") ->  | Z78: =IFERROR(IF(C78="","",IF($AR$16=$AR$17,0,IF($AF$3=$AO$4,"",IF($C78="TOTAL",SUM($Z$8:Z77),BT78)))),"") ->  | AB78: =IFERROR(IF(C78="","",IF(AND(BK79="",BR79=""),"",IF($C78="TOTAL",SUM($AB$8:AB77),BK79))),"") ->  | AC78: =IFERROR(IF(C78="","",IF($C78="TOTAL",SUM($AC$8:AC77),ROUND(O78*$AR$7%,0))),"") ->  | AD78: =IFERROR(IF(C78="","",IF($C78="TOTAL",SUM($AD$8:AD77),IF($AF$3=$AO$2,SUM(U78,X78,AB78,AC78),SUM(R78,U78,X78,AB78,AC78)))),"") ->  | AE78: =IFERROR(IF(C78="","",IF($C78="TOTAL",SUM($AE$8:AE77),SUM(O78-AD78))),"") ->  | AN78: 42 | AO78: 42 | AQ78: 2022-10-01 | AR78: 2022-10-01 | AS78: 2028-10-01 | AY78: =IF(AW78="","",IF(AW78="TOTAL","",ROUND(AX78*AN78%,0))) ->  | BL78: 0 | BM78: 0 | BU78: =IF(AW79="","",IF(AW79="TOTAL","",IF($AR$16=$AR$17,0,IF(AND(AW79>$BT$1,$AF$3=$AO$2,'Master Sheet'!$D$31>0),'Master Sheet'!$D$31,IF(AND(AW79=$BT$1,$AF$3=$AO$2),IF($AR$9<18001,135,IF($AR$9<33501,220,IF($AR$9<54001,330,440))),IF(AND(AW79>$BT$1,$AF$3=$AO$2),IF($AR$9<18001,265,IF($AR$9<33501,440,IF($AR$9<54001,658,875))),"")))))) -> 
D79: =IFERROR(IF($C78="TOTAL","अक्षरें राशि :-",IF($C79="TOTAL",SUM($D$8:D78),IF(AX80="","",AX80))),"") ->  | E79: =IFERROR(IF($C79="TOTAL",SUM($E$8:E78),IF(AY80="","",AY80)),"") ->  | F79: =IFERROR(IF($C79="TOTAL",SUM($F$8:F78),IF(AZ80="","",AZ80)),"") ->  | H79: =IFERROR(IF($C79="TOTAL",SUM($H$8:H78),IF(BB80="","",BB80)),"") ->  | I79: =IFERROR(IF($C79="TOTAL",SUM($I$8:I78),IF(BC80="","",BC80)),"") ->  | J79: =IFERROR(IF($C79="TOTAL",SUM($J$8:J78),IF(BD80="","",BD80)),"") ->  | L79: =IFERROR(IF(C79="","",IF(D79="","",IF(H79="","",IF($C79="TOTAL",SUM($L$8:L78),SUM(D79-H79))))),"") ->  | M79: =IFERROR(IF(C79="","",IF(E79="","",IF(I79="","",IF($C79="TOTAL",SUM($M$8:M78),SUM(E79-I79))))),"") ->  | N79: =IFERROR(IF(C79="","",IF(F79="","",IF(J79="","",IF($C79="TOTAL",SUM($N$8:N78),SUM(F79-J79))))),"") ->  | P79: =IFERROR(IF(C79="","",IF($C79="TOTAL",SUM($P$8:P78),IF(AND(C79>$AO$1,$AF$3=$AO$2),BR80,IF($AR$18=$AR$20,SUM(BE80+BM80),ROUND((D79+E79)*10%,0))))),"") ->  | Q79: =IFERROR(IF(C79="","",IF(H79="","",IF(I79="","",IF($C79="TOTAL",SUM($Q$8:Q78),IF(AND(C79>$AO$1,$AF$3=$AO$2),BR80,IF($AR$18=$AR$20,$AR$21,ROUND((H79+I79)*10%,0))))))),"") ->  | S79: =IFERROR(IF(C79="","",IF($AR$16=$AR$17,0,IF($C79="TOTAL",SUM($S$8:S78),IF($AR$19=$AR$20,$AR$25,0)))),"") ->  | T79: =IFERROR(IF(C79="","",IF($AR$16=$AR$17,0,IF($C79="TOTAL",SUM($T$8:T78),IF($AR$19=$AR$20,$AR$24,0)))),"") ->  | V79: =IF(C79="","",IF($C79="TOTAL",SUM($V$8:V78),IF(AND($AR$2=$AR$20,C79=$AR$1),ROUND(D79/31*$AS$2,0),IF(C79=$AP$6,ROUND((G79)*1/30,0),IF(C79=$AQ$6,ROUND((G79)*1/31,0),""))))) ->  | W79: =IF(C79="","",IF($C79="TOTAL",SUM($W$8:W78),IF(AND($AR$2=$AR$20,C79=$AR$1),ROUND(H79/31*$AS$2,0),IF(C79=$AP$6,ROUND((K79)*1/30,0),IF(C79=$AQ$6,ROUND((K79)*1/31,0),""))))) ->  | Y79: =IFERROR(IF(C79="","",IF($AR$16=$AR$17,0,IF($AF$3=$AO$4,"",IF($C79="TOTAL",SUM($Y$8:Y78),BU79)))),"") ->  | Z79: =IFERROR(IF(C79="","",IF($AR$16=$AR$17,0,IF($AF$3=$AO$4,"",IF($C79="TOTAL",SUM($Z$8:Z78),BT79)))),"") ->  | AB79: =IFERROR(IF(C79="","",IF(AND(BK80="",BR80=""),"",IF($C79="TOTAL",SUM($AB$8:AB78),BK80))),"") ->  | AC79: =IFERROR(IF(C79="","",IF($C79="TOTAL",SUM($AC$8:AC78),ROUND(O79*$AR$7%,0))),"") ->  | AD79: =IFERROR(IF(C79="","",IF($C79="TOTAL",SUM($AD$8:AD78),IF($AF$3=$AO$2,SUM(U79,X79,AB79,AC79),SUM(R79,U79,X79,AB79,AC79)))),"") ->  | AE79: =IFERROR(IF(C79="","",IF($C79="TOTAL",SUM($AE$8:AE78),SUM(O79-AD79))),"") ->  | AN79: 42 | AO79: 42 | AQ79: 2022-11-01 | AR79: 2022-11-01 | AS79: 2028-11-01 | BL79: 0 | BM79: 0 | BU79: =IF(AW80="","",IF(AW80="TOTAL","",IF($AR$16=$AR$17,0,IF(AND(AW80>$BT$1,$AF$3=$AO$2,'Master Sheet'!$D$31>0),'Master Sheet'!$D$31,IF(AND(AW80=$BT$1,$AF$3=$AO$2),IF($AR$9<18001,135,IF($AR$9<33501,220,IF($AR$9<54001,330,440))),IF(AND(AW80>$BT$1,$AF$3=$AO$2),IF($AR$9<18001,265,IF($AR$9<33501,440,IF($AR$9<54001,658,875))),"")))))) -> 
D80: =IFERROR(IF($C79="TOTAL","अक्षरें राशि :-",IF($C80="TOTAL",SUM($D$8:D79),IF(AX81="","",AX81))),"") ->  | E80: =IFERROR(IF($C80="TOTAL",SUM($E$8:E79),IF(AY81="","",AY81)),"") ->  | F80: =IFERROR(IF($C80="TOTAL",SUM($F$8:F79),IF(AZ81="","",AZ81)),"") ->  | H80: =IFERROR(IF($C80="TOTAL",SUM($H$8:H79),IF(BB81="","",BB81)),"") ->  | I80: =IFERROR(IF($C80="TOTAL",SUM($I$8:I79),IF(BC81="","",BC81)),"") ->  | J80: =IFERROR(IF($C80="TOTAL",SUM($J$8:J79),IF(BD81="","",BD81)),"") ->  | L80: =IFERROR(IF(C80="","",IF(D80="","",IF(H80="","",IF($C80="TOTAL",SUM($L$8:L79),SUM(D80-H80))))),"") ->  | M80: =IFERROR(IF(C80="","",IF(E80="","",IF(I80="","",IF($C80="TOTAL",SUM($M$8:M79),SUM(E80-I80))))),"") ->  | N80: =IFERROR(IF(C80="","",IF(F80="","",IF(J80="","",IF($C80="TOTAL",SUM($N$8:N79),SUM(F80-J80))))),"") ->  | P80: =IFERROR(IF(C80="","",IF($C80="TOTAL",SUM($P$8:P79),IF(AND(C80>$AO$1,$AF$3=$AO$2),BR81,IF($AR$18=$AR$20,SUM(BE81+BM81),ROUND((D80+E80)*10%,0))))),"") ->  | Q80: =IFERROR(IF(C80="","",IF(H80="","",IF(I80="","",IF($C80="TOTAL",SUM($Q$8:Q79),IF(AND(C80>$AO$1,$AF$3=$AO$2),BR81,IF($AR$18=$AR$20,$AR$21,ROUND((H80+I80)*10%,0))))))),"") ->  | S80: =IFERROR(IF(C80="","",IF($AR$16=$AR$17,0,IF($C80="TOTAL",SUM($S$8:S79),IF($AR$19=$AR$20,$AR$25,0)))),"") ->  | T80: =IFERROR(IF(C80="","",IF($AR$16=$AR$17,0,IF($C80="TOTAL",SUM($T$8:T79),IF($AR$19=$AR$20,$AR$24,0)))),"") ->  | V80: =IF(C80="","",IF($C80="TOTAL",SUM($V$8:V79),IF(AND($AR$2=$AR$20,C80=$AR$1),ROUND(D80/31*$AS$2,0),IF(C80=$AP$6,ROUND((G80)*1/30,0),IF(C80=$AQ$6,ROUND((G80)*1/31,0),""))))) ->  | W80: =IF(C80="","",IF($C80="TOTAL",SUM($W$8:W79),IF(AND($AR$2=$AR$20,C80=$AR$1),ROUND(H80/31*$AS$2,0),IF(C80=$AP$6,ROUND((K80)*1/30,0),IF(C80=$AQ$6,ROUND((K80)*1/31,0),""))))) ->  | Y80: =IFERROR(IF(C80="","",IF($AR$16=$AR$17,0,IF($AF$3=$AO$4,"",IF($C80="TOTAL",SUM($Y$8:Y79),BU80)))),"") ->  | Z80: =IFERROR(IF(C80="","",IF($AR$16=$AR$17,0,IF($AF$3=$AO$4,"",IF($C80="TOTAL",SUM($Z$8:Z79),BT80)))),"") ->  | AB80: =IFERROR(IF(C80="","",IF(AND(BK81="",BR81=""),"",IF($C80="TOTAL",SUM($AB$8:AB79),BK81))),"") ->  | AC80: =IFERROR(IF(C80="","",IF($C80="TOTAL",SUM($AC$8:AC79),ROUND(O80*$AR$7%,0))),"") ->  | AD80: =IFERROR(IF(C80="","",IF($C80="TOTAL",SUM($AD$8:AD79),IF($AF$3=$AO$2,SUM(U80,X80,AB80,AC80),SUM(R80,U80,X80,AB80,AC80)))),"") ->  | AE80: =IFERROR(IF(C80="","",IF($C80="TOTAL",SUM($AE$8:AE79),SUM(O80-AD80))),"") ->  | AN80: 42 | AO80: 42 | AQ80: 2022-12-01 | AR80: 2022-12-01 | AS80: =IF(AND($AR$6>$AS$6),"",DATE(YEAR(AS79),MONTH(AS79)+1,DAY(AS79))) -> 2028-12-01 | BL80: 0 | BM80: 0 | BT80: =IF(AW81="","",IF(AW81="TOTAL","",IF($AR$16=$AR$17,0,IF(AND(AW81=$BT$1,$AF$3=$AO$2),IF($AR$14<18001,135,IF($AR$14<33501,220,IF($AR$14<54001,330,440))),IF(AND(AW81>$BT$1,$AF$3=$AO$2),IF($AR$14<18001,265,IF($AR$14<33501,440,IF($AR$14<54001,658,875))),""))))) ->  | BU80: =IF(AW81="","",IF(AW81="TOTAL","",IF($AR$16=$AR$17,0,IF(AND(AW81>$BT$1,$AF$3=$AO$2,'Master Sheet'!$D$31>0),'Master Sheet'!$D$31,IF(AND(AW81=$BT$1,$AF$3=$AO$2),IF($AR$9<18001,135,IF($AR$9<33501,220,IF($AR$9<54001,330,440))),IF(AND(AW81>$BT$1,$AF$3=$AO$2),IF($AR$9<18001,265,IF($AR$9<33501,440,IF($AR$9<54001,658,875))),"")))))) -> 
C81: =IFERROR(IF(AW82="","",AW82),"") ->  | D81: =IFERROR(IF($C80="TOTAL","अक्षरें राशि :-",IF($C81="TOTAL",SUM($D$8:D80),IF(AX82="","",AX82))),"") ->  | E81: =IFERROR(IF($C81="TOTAL",SUM($E$8:E80),IF(AY82="","",AY82)),"") ->  | F81: =IFERROR(IF($C81="TOTAL",SUM($F$8:F80),IF(AZ82="","",AZ82)),"") ->  | G81: =IF(C81="","",SUM(D81:F81)) ->  | H81: =IFERROR(IF($C81="TOTAL",SUM($H$8:H80),IF(BB82="","",BB82)),"") ->  | I81: =IFERROR(IF($C81="TOTAL",SUM($I$8:I80),IF(BC82="","",BC82)),"") ->  | J81: =IFERROR(IF($C81="TOTAL",SUM($J$8:J80),IF(BD82="","",BD82)),"") ->  | K81: =IF(C81="","",SUM(H81:J81)) ->  | L81: =IFERROR(IF(C81="","",IF(D81="","",IF(H81="","",IF($C81="TOTAL",SUM($L$8:L80),SUM(D81-H81))))),"") ->  | M81: =IFERROR(IF(C81="","",IF(E81="","",IF(I81="","",IF($C81="TOTAL",SUM($M$8:M80),SUM(E81-I81))))),"") ->  | N81: =IFERROR(IF(C81="","",IF(F81="","",IF(J81="","",IF($C81="TOTAL",SUM($N$8:N80),SUM(F81-J81))))),"") ->  | O81: =IFERROR(IF(C81="","",IF(G81="","",IF(K81="","",SUM(G81-K81)))),"") ->  | P81: =IFERROR(IF(C81="","",IF($C81="TOTAL",SUM($P$8:P80),IF(AND(C81>$AO$1,$AF$3=$AO$2),BR82,IF($AR$18=$AR$20,SUM(BE82+BM82),ROUND((D81+E81)*10%,0))))),"") ->  | Q81: =IFERROR(IF(C81="","",IF(H81="","",IF(I81="","",IF($C81="TOTAL",SUM($Q$8:Q80),IF(AND(C81>$AO$1,$AF$3=$AO$2),BR82,IF($AR$18=$AR$20,$AR$21,ROUND((H81+I81)*10%,0))))))),"") ->  | R81: =IFERROR(IF(C81="","",SUM(P81-Q81)),"") ->  | S81: =IFERROR(IF(C81="","",IF($AR$16=$AR$17,0,IF($C81="TOTAL",SUM($S$8:S80),IF($AR$19=$AR$20,$AR$25,0)))),"") ->  | T81: =IFERROR(IF(C81="","",IF($AR$16=$AR$17,0,IF($C81="TOTAL",SUM($T$8:T80),IF($AR$19=$AR$20,$AR$24,0)))),"") ->  | U81: =IFERROR(IF(C81="","",SUM(S81-T81)),"") ->  | V81: =IF(C81="","",IF($C81="TOTAL",SUM($V$8:V80),IF(AND($AR$2=$AR$20,C81=$AR$1),ROUND(D81/31*$AS$2,0),IF(C81=$AP$6,ROUND((G81)*1/30,0),IF(C81=$AQ$6,ROUND((G81)*1/31,0),""))))) ->  | W81: =IF(C81="","",IF($C81="TOTAL",SUM($W$8:W80),IF(AND($AR$2=$AR$20,C81=$AR$1),ROUND(H81/31*$AS$2,0),IF(C81=$AP$6,ROUND((K81)*1/30,0),IF(C81=$AQ$6,ROUND((K81)*1/31,0),""))))) ->  | X81: =IFERROR(IF(C81="","",SUM(V81-W81)),"") ->  | Y81: =IFERROR(IF(C81="","",IF($AR$16=$AR$17,0,IF($AF$3=$AO$4,"",IF($C81="TOTAL",SUM($Y$8:Y80),BU81)))),"") ->  | Z81: =IFERROR(IF(C81="","",IF($AR$16=$AR$17,0,IF($AF$3=$AO$4,"",IF($C81="TOTAL",SUM($Z$8:Z80),BT81)))),"") ->  | AB81: =IFERROR(IF(C81="","",IF(AND(BK82="",BR82=""),"",IF($C81="TOTAL",SUM($AB$8:AB80),BK82))),"") ->  | AC81: =IFERROR(IF(C81="","",IF($C81="TOTAL",SUM($AC$8:AC80),ROUND(O81*$AR$7%,0))),"") ->  | AD81: =IFERROR(IF(C81="","",IF($C81="TOTAL",SUM($AD$8:AD80),IF($AF$3=$AO$2,SUM(U81,X81,AB81,AC81),SUM(R81,U81,X81,AB81,AC81)))),"") ->  | AE81: =IFERROR(IF(C81="","",IF($C81="TOTAL",SUM($AE$8:AE80),SUM(O81-AD81))),"") ->  | AN81: 42 | AO81: 42 | AQ81: 2023-01-01 | AR81: 2023-01-01 | AS81: 2029-01-01 | BL81: 0 | BM81: 0 | BU81: =IF(AW82="","",IF(AW82="TOTAL","",IF($AR$16=$AR$17,0,IF(AND(AW82>$BT$1,$AF$3=$AO$2,'Master Sheet'!$D$31>0),'Master Sheet'!$D$31,IF(AND(AW82=$BT$1,$AF$3=$AO$2),IF($AR$9<18001,135,IF($AR$9<33501,220,IF($AR$9<54001,330,440))),IF(AND(AW82>$BT$1,$AF$3=$AO$2),IF($AR$9<18001,265,IF($AR$9<33501,440,IF($AR$9<54001,658,875))),"")))))) -> 
D82: =IFERROR(IF($C81="TOTAL","अक्षरें राशि :-",IF($C82="TOTAL",SUM($D$8:D81),IF(AX83="","",AX83))),"") ->  | E82: =IFERROR(IF($C82="TOTAL",SUM($E$8:E81),IF(AY83="","",AY83)),"") ->  | F82: =IFERROR(IF($C82="TOTAL",SUM($F$8:F81),IF(AZ83="","",AZ83)),"") ->  | H82: =IFERROR(IF($C82="TOTAL",SUM($H$8:H81),IF(BB83="","",BB83)),"") ->  | I82: =IFERROR(IF($C82="TOTAL",SUM($I$8:I81),IF(BC83="","",BC83)),"") ->  | J82: =IFERROR(IF($C82="TOTAL",SUM($J$8:J81),IF(BD83="","",BD83)),"") ->  | L82: =IFERROR(IF(C82="","",IF(D82="","",IF(H82="","",IF($C82="TOTAL",SUM($L$8:L81),SUM(D82-H82))))),"") ->  | M82: =IFERROR(IF(C82="","",IF(E82="","",IF(I82="","",IF($C82="TOTAL",SUM($M$8:M81),SUM(E82-I82))))),"") ->  | N82: =IFERROR(IF(C82="","",IF(F82="","",IF(J82="","",IF($C82="TOTAL",SUM($N$8:N81),SUM(F82-J82))))),"") ->  | P82: =IFERROR(IF(C82="","",IF($C82="TOTAL",SUM($P$8:P81),IF(AND(C82>$AO$1,$AF$3=$AO$2),BR83,IF($AR$18=$AR$20,SUM(BE83+BM83),ROUND((D82+E82)*10%,0))))),"") ->  | Q82: =IFERROR(IF(C82="","",IF(H82="","",IF(I82="","",IF($C82="TOTAL",SUM($Q$8:Q81),IF(AND(C82>$AO$1,$AF$3=$AO$2),BR83,IF($AR$18=$AR$20,$AR$21,ROUND((H82+I82)*10%,0))))))),"") ->  | S82: =IFERROR(IF(C82="","",IF($AR$16=$AR$17,0,IF($C82="TOTAL",SUM($S$8:S81),IF($AR$19=$AR$20,$AR$25,0)))),"") ->  | T82: =IFERROR(IF(C82="","",IF($AR$16=$AR$17,0,IF($C82="TOTAL",SUM($T$8:T81),IF($AR$19=$AR$20,$AR$24,0)))),"") ->  | V82: =IF(C82="","",IF($C82="TOTAL",SUM($V$8:V81),IF(AND($AR$2=$AR$20,C82=$AR$1),ROUND(D82/31*$AS$2,0),IF(C82=$AP$6,ROUND((G82)*1/30,0),IF(C82=$AQ$6,ROUND((G82)*1/31,0),""))))) ->  | W82: =IF(C82="","",IF($C82="TOTAL",SUM($W$8:W81),IF(AND($AR$2=$AR$20,C82=$AR$1),ROUND(H82/31*$AS$2,0),IF(C82=$AP$6,ROUND((K82)*1/30,0),IF(C82=$AQ$6,ROUND((K82)*1/31,0),""))))) ->  | Y82: =IFERROR(IF(C82="","",IF($AR$16=$AR$17,0,IF($AF$3=$AO$4,"",IF($C82="TOTAL",SUM($Y$8:Y81),BU82)))),"") ->  | Z82: =IFERROR(IF(C82="","",IF($AR$16=$AR$17,0,IF($AF$3=$AO$4,"",IF($C82="TOTAL",SUM($Z$8:Z81),BT82)))),"") ->  | AB82: =IFERROR(IF(C82="","",IF(AND(BK83="",BR83=""),"",IF($C82="TOTAL",SUM($AB$8:AB81),BK83))),"") ->  | AC82: =IFERROR(IF(C82="","",IF($C82="TOTAL",SUM($AC$8:AC81),ROUND(O82*$AR$7%,0))),"") ->  | AD82: =IFERROR(IF(C82="","",IF($C82="TOTAL",SUM($AD$8:AD81),IF($AF$3=$AO$2,SUM(U82,X82,AB82,AC82),SUM(R82,U82,X82,AB82,AC82)))),"") ->  | AE82: =IFERROR(IF(C82="","",IF($C82="TOTAL",SUM($AE$8:AE81),SUM(O82-AD82))),"") ->  | AN82: 42 | AO82: 42 | AQ82: 2023-02-01 | AR82: 2023-02-01 | AS82: 2029-02-01 | BL82: 0 | BM82: 0 | BU82: =IF(AW83="","",IF(AW83="TOTAL","",IF($AR$16=$AR$17,0,IF(AND(AW83>$BT$1,$AF$3=$AO$2,'Master Sheet'!$D$31>0),'Master Sheet'!$D$31,IF(AND(AW83=$BT$1,$AF$3=$AO$2),IF($AR$9<18001,135,IF($AR$9<33501,220,IF($AR$9<54001,330,440))),IF(AND(AW83>$BT$1,$AF$3=$AO$2),IF($AR$9<18001,265,IF($AR$9<33501,440,IF($AR$9<54001,658,875))),"")))))) -> 
D83: =IFERROR(IF($C82="TOTAL","अक्षरें राशि :-",IF($C83="TOTAL",SUM($D$8:D82),IF(AX84="","",AX84))),"") ->  | E83: =IFERROR(IF($C83="TOTAL",SUM($E$8:E82),IF(AY84="","",AY84)),"") ->  | F83: =IFERROR(IF($C83="TOTAL",SUM($F$8:F82),IF(AZ84="","",AZ84)),"") ->  | H83: =IFERROR(IF($C83="TOTAL",SUM($H$8:H82),IF(BB84="","",BB84)),"") ->  | I83: =IFERROR(IF($C83="TOTAL",SUM($I$8:I82),IF(BC84="","",BC84)),"") ->  | J83: =IFERROR(IF($C83="TOTAL",SUM($J$8:J82),IF(BD84="","",BD84)),"") ->  | L83: =IFERROR(IF(C83="","",IF(D83="","",IF(H83="","",IF($C83="TOTAL",SUM($L$8:L82),SUM(D83-H83))))),"") ->  | M83: =IFERROR(IF(C83="","",IF(E83="","",IF(I83="","",IF($C83="TOTAL",SUM($M$8:M82),SUM(E83-I83))))),"") ->  | N83: =IFERROR(IF(C83="","",IF(F83="","",IF(J83="","",IF($C83="TOTAL",SUM($N$8:N82),SUM(F83-J83))))),"") ->  | P83: =IFERROR(IF(C83="","",IF($C83="TOTAL",SUM($P$8:P82),IF(AND(C83>$AO$1,$AF$3=$AO$2),BR84,IF($AR$18=$AR$20,SUM(BE84+BM84),ROUND((D83+E83)*10%,0))))),"") ->  | Q83: =IFERROR(IF(C83="","",IF(H83="","",IF(I83="","",IF($C83="TOTAL",SUM($Q$8:Q82),IF(AND(C83>$AO$1,$AF$3=$AO$2),BR84,IF($AR$18=$AR$20,$AR$21,ROUND((H83+I83)*10%,0))))))),"") ->  | S83: =IFERROR(IF(C83="","",IF($AR$16=$AR$17,0,IF($C83="TOTAL",SUM($S$8:S82),IF($AR$19=$AR$20,$AR$25,0)))),"") ->  | T83: =IFERROR(IF(C83="","",IF($AR$16=$AR$17,0,IF($C83="TOTAL",SUM($T$8:T82),IF($AR$19=$AR$20,$AR$24,0)))),"") ->  | V83: =IF(C83="","",IF($C83="TOTAL",SUM($V$8:V82),IF(AND($AR$2=$AR$20,C83=$AR$1),ROUND(D83/31*$AS$2,0),IF(C83=$AP$6,ROUND((G83)*1/30,0),IF(C83=$AQ$6,ROUND((G83)*1/31,0),""))))) ->  | W83: =IF(C83="","",IF($C83="TOTAL",SUM($W$8:W82),IF(AND($AR$2=$AR$20,C83=$AR$1),ROUND(H83/31*$AS$2,0),IF(C83=$AP$6,ROUND((K83)*1/30,0),IF(C83=$AQ$6,ROUND((K83)*1/31,0),""))))) ->  | Y83: =IFERROR(IF(C83="","",IF($AR$16=$AR$17,0,IF($AF$3=$AO$4,"",IF($C83="TOTAL",SUM($Y$8:Y82),BU83)))),"") ->  | Z83: =IFERROR(IF(C83="","",IF($AR$16=$AR$17,0,IF($AF$3=$AO$4,"",IF($C83="TOTAL",SUM($Z$8:Z82),BT83)))),"") ->  | AB83: =IFERROR(IF(C83="","",IF(AND(BK84="",BR84=""),"",IF($C83="TOTAL",SUM($AB$8:AB82),BK84))),"") ->  | AC83: =IFERROR(IF(C83="","",IF($C83="TOTAL",SUM($AC$8:AC82),ROUND(O83*$AR$7%,0))),"") ->  | AD83: =IFERROR(IF(C83="","",IF($C83="TOTAL",SUM($AD$8:AD82),IF($AF$3=$AO$2,SUM(U83,X83,AB83,AC83),SUM(R83,U83,X83,AB83,AC83)))),"") ->  | AE83: =IFERROR(IF(C83="","",IF($C83="TOTAL",SUM($AE$8:AE82),SUM(O83-AD83))),"") ->  | AN83: 42 | AO83: 42 | AQ83: 2023-03-01 | AR83: 2023-03-01 | AS83: 2029-03-01 | BL83: 0 | BM83: 0 | BU83: =IF(AW84="","",IF(AW84="TOTAL","",IF($AR$16=$AR$17,0,IF(AND(AW84>$BT$1,$AF$3=$AO$2,'Master Sheet'!$D$31>0),'Master Sheet'!$D$31,IF(AND(AW84=$BT$1,$AF$3=$AO$2),IF($AR$9<18001,135,IF($AR$9<33501,220,IF($AR$9<54001,330,440))),IF(AND(AW84>$BT$1,$AF$3=$AO$2),IF($AR$9<18001,265,IF($AR$9<33501,440,IF($AR$9<54001,658,875))),"")))))) -> 
A84: =IF(C84="TOTAL","",IF(B83="","",IF(LEN(C84)>=2,B83+1,0))) ->  | D84: =IFERROR(IF($C83="TOTAL","अक्षरें राशि :-",IF($C84="TOTAL",SUM($D$8:D83),IF(AX85="","",AX85))),"") ->  | E84: =IFERROR(IF($C84="TOTAL",SUM($E$8:E83),IF(AY85="","",AY85)),"") ->  | F84: =IFERROR(IF($C84="TOTAL",SUM($F$8:F83),IF(AZ85="","",AZ85)),"") ->  | H84: =IFERROR(IF($C84="TOTAL",SUM($H$8:H83),IF(BB85="","",BB85)),"") ->  | I84: =IFERROR(IF($C84="TOTAL",SUM($I$8:I83),IF(BC85="","",BC85)),"") ->  | J84: =IFERROR(IF($C84="TOTAL",SUM($J$8:J83),IF(BD85="","",BD85)),"") ->  | L84: =IFERROR(IF(C84="","",IF(D84="","",IF(H84="","",IF($C84="TOTAL",SUM($L$8:L83),SUM(D84-H84))))),"") ->  | M84: =IFERROR(IF(C84="","",IF(E84="","",IF(I84="","",IF($C84="TOTAL",SUM($M$8:M83),SUM(E84-I84))))),"") ->  | N84: =IFERROR(IF(C84="","",IF(F84="","",IF(J84="","",IF($C84="TOTAL",SUM($N$8:N83),SUM(F84-J84))))),"") ->  | P84: =IFERROR(IF(C84="","",IF($C84="TOTAL",SUM($P$8:P83),IF(AND(C84>$AO$1,$AF$3=$AO$2),BR85,IF($AR$18=$AR$20,SUM(BE85+BM85),ROUND((D84+E84)*10%,0))))),"") ->  | Q84: =IFERROR(IF(C84="","",IF(H84="","",IF(I84="","",IF($C84="TOTAL",SUM($Q$8:Q83),IF(AND(C84>$AO$1,$AF$3=$AO$2),BR85,IF($AR$18=$AR$20,$AR$21,ROUND((H84+I84)*10%,0))))))),"") ->  | S84: =IFERROR(IF(C84="","",IF($AR$16=$AR$17,0,IF($C84="TOTAL",SUM($S$8:S83),IF($AR$19=$AR$20,$AR$25,0)))),"") ->  | T84: =IFERROR(IF(C84="","",IF($AR$16=$AR$17,0,IF($C84="TOTAL",SUM($T$8:T83),IF($AR$19=$AR$20,$AR$24,0)))),"") ->  | V84: =IF(C84="","",IF($C84="TOTAL",SUM($V$8:V83),IF(AND($AR$2=$AR$20,C84=$AR$1),ROUND(D84/31*$AS$2,0),IF(C84=$AP$6,ROUND((G84)*1/30,0),IF(C84=$AQ$6,ROUND((G84)*1/31,0),""))))) ->  | W84: =IF(C84="","",IF($C84="TOTAL",SUM($W$8:W83),IF(AND($AR$2=$AR$20,C84=$AR$1),ROUND(H84/31*$AS$2,0),IF(C84=$AP$6,ROUND((K84)*1/30,0),IF(C84=$AQ$6,ROUND((K84)*1/31,0),""))))) ->  | Y84: =IFERROR(IF(C84="","",IF($AR$16=$AR$17,0,IF($AF$3=$AO$4,"",IF($C84="TOTAL",SUM($Y$8:Y83),BU84)))),"") ->  | Z84: =IFERROR(IF(C84="","",IF($AR$16=$AR$17,0,IF($AF$3=$AO$4,"",IF($C84="TOTAL",SUM($Z$8:Z83),BT84)))),"") ->  | AB84: =IFERROR(IF(C84="","",IF(AND(BK85="",BR85=""),"",IF($C84="TOTAL",SUM($AB$8:AB83),BK85))),"") ->  | AC84: =IFERROR(IF(C84="","",IF($C84="TOTAL",SUM($AC$8:AC83),ROUND(O84*$AR$7%,0))),"") ->  | AD84: =IFERROR(IF(C84="","",IF($C84="TOTAL",SUM($AD$8:AD83),IF($AF$3=$AO$2,SUM(U84,X84,AB84,AC84),SUM(R84,U84,X84,AB84,AC84)))),"") ->  | AE84: =IFERROR(IF(C84="","",IF($C84="TOTAL",SUM($AE$8:AE83),SUM(O84-AD84))),"") ->  | AN84: 42 | AO84: 42 | AQ84: 2023-04-01 | AR84: 2023-04-01 | AS84: =IF(AND($AR$6>$AS$6),"",DATE(YEAR(AS83),MONTH(AS83)+1,DAY(AS83))) -> 2029-04-01 | AW84: =IFERROR(IF(AV84="","",IF(DATE(YEAR(AV84),MONTH(AV84),DAY(AV84))=DATE(YEAR($AS$6),MONTH($AS$6)+1,DAY($AS$6)),"TOTAL",IF(AV84>$AS$6,"",AV84))),"") ->  | BL84: 0 | BM84: 0 | BU84: =IF(AW85="","",IF(AW85="TOTAL","",IF($AR$16=$AR$17,0,IF(AND(AW85>$BT$1,$AF$3=$AO$2,'Master Sheet'!$D$31>0),'Master Sheet'!$D$31,IF(AND(AW85=$BT$1,$AF$3=$AO$2),IF($AR$9<18001,135,IF($AR$9<33501,220,IF($AR$9<54001,330,440))),IF(AND(AW85>$BT$1,$AF$3=$AO$2),IF($AR$9<18001,265,IF($AR$9<33501,440,IF($AR$9<54001,658,875))),"")))))) -> 
D85: =IFERROR(IF($C84="TOTAL","अक्षरें राशि :-",IF($C85="TOTAL",SUM($D$8:D84),IF(AX86="","",AX86))),"") ->  | E85: =IFERROR(IF($C85="TOTAL",SUM($E$8:E84),IF(AY86="","",AY86)),"") ->  | F85: =IFERROR(IF($C85="TOTAL",SUM($F$8:F84),IF(AZ86="","",AZ86)),"") ->  | H85: =IFERROR(IF($C85="TOTAL",SUM($H$8:H84),IF(BB86="","",BB86)),"") ->  | I85: =IFERROR(IF($C85="TOTAL",SUM($I$8:I84),IF(BC86="","",BC86)),"") ->  | J85: =IFERROR(IF($C85="TOTAL",SUM($J$8:J84),IF(BD86="","",BD86)),"") ->  | L85: =IFERROR(IF(C85="","",IF(D85="","",IF(H85="","",IF($C85="TOTAL",SUM($L$8:L84),SUM(D85-H85))))),"") ->  | M85: =IFERROR(IF(C85="","",IF(E85="","",IF(I85="","",IF($C85="TOTAL",SUM($M$8:M84),SUM(E85-I85))))),"") ->  | N85: =IFERROR(IF(C85="","",IF(F85="","",IF(J85="","",IF($C85="TOTAL",SUM($N$8:N84),SUM(F85-J85))))),"") ->  | P85: =IFERROR(IF(C85="","",IF($C85="TOTAL",SUM($P$8:P84),IF(AND(C85>$AO$1,$AF$3=$AO$2),BR86,IF($AR$18=$AR$20,SUM(BE86+BM86),ROUND((D85+E85)*10%,0))))),"") ->  | Q85: =IFERROR(IF(C85="","",IF(H85="","",IF(I85="","",IF($C85="TOTAL",SUM($Q$8:Q84),IF(AND(C85>$AO$1,$AF$3=$AO$2),BR86,IF($AR$18=$AR$20,$AR$21,ROUND((H85+I85)*10%,0))))))),"") ->  | S85: =IFERROR(IF(C85="","",IF($AR$16=$AR$17,0,IF($C85="TOTAL",SUM($S$8:S84),IF($AR$19=$AR$20,$AR$25,0)))),"") ->  | T85: =IFERROR(IF(C85="","",IF($AR$16=$AR$17,0,IF($C85="TOTAL",SUM($T$8:T84),IF($AR$19=$AR$20,$AR$24,0)))),"") ->  | V85: =IF(C85="","",IF($C85="TOTAL",SUM($V$8:V84),IF(AND($AR$2=$AR$20,C85=$AR$1),ROUND(D85/31*$AS$2,0),IF(C85=$AP$6,ROUND((G85)*1/30,0),IF(C85=$AQ$6,ROUND((G85)*1/31,0),""))))) ->  | W85: =IF(C85="","",IF($C85="TOTAL",SUM($W$8:W84),IF(AND($AR$2=$AR$20,C85=$AR$1),ROUND(H85/31*$AS$2,0),IF(C85=$AP$6,ROUND((K85)*1/30,0),IF(C85=$AQ$6,ROUND((K85)*1/31,0),""))))) ->  | Y85: =IFERROR(IF(C85="","",IF($AR$16=$AR$17,0,IF($AF$3=$AO$4,"",IF($C85="TOTAL",SUM($Y$8:Y84),BU85)))),"") ->  | Z85: =IFERROR(IF(C85="","",IF($AR$16=$AR$17,0,IF($AF$3=$AO$4,"",IF($C85="TOTAL",SUM($Z$8:Z84),BT85)))),"") ->  | AB85: =IFERROR(IF(C85="","",IF(AND(BK86="",BR86=""),"",IF($C85="TOTAL",SUM($AB$8:AB84),BK86))),"") ->  | AC85: =IFERROR(IF(C85="","",IF($C85="TOTAL",SUM($AC$8:AC84),ROUND(O85*$AR$7%,0))),"") ->  | AD85: =IFERROR(IF(C85="","",IF($C85="TOTAL",SUM($AD$8:AD84),IF($AF$3=$AO$2,SUM(U85,X85,AB85,AC85),SUM(R85,U85,X85,AB85,AC85)))),"") ->  | AE85: =IFERROR(IF(C85="","",IF($C85="TOTAL",SUM($AE$8:AE84),SUM(O85-AD85))),"") ->  | AN85: 42 | AO85: 42 | AQ85: 2023-05-01 | AR85: 2023-05-01 | AS85: 2029-05-01 | AW85: =IFERROR(IF(AV85="","",IF(DATE(YEAR(AV85),MONTH(AV85),DAY(AV85))=DATE(YEAR($AS$6),MONTH($AS$6)+1,DAY($AS$6)),"TOTAL",IF(AV85>$AS$6,"",AV85))),"") ->  | BL85: 0 | BM85: 0 | BU85: =IF(AW86="","",IF(AW86="TOTAL","",IF($AR$16=$AR$17,0,IF(AND(AW86>$BT$1,$AF$3=$AO$2,'Master Sheet'!$D$31>0),'Master Sheet'!$D$31,IF(AND(AW86=$BT$1,$AF$3=$AO$2),IF($AR$9<18001,135,IF($AR$9<33501,220,IF($AR$9<54001,330,440))),IF(AND(AW86>$BT$1,$AF$3=$AO$2),IF($AR$9<18001,265,IF($AR$9<33501,440,IF($AR$9<54001,658,875))),"")))))) -> 
D86: =IFERROR(IF($C85="TOTAL","अक्षरें राशि :-",IF($C86="TOTAL",SUM($D$8:D85),IF(AX87="","",AX87))),"") ->  | E86: =IFERROR(IF($C86="TOTAL",SUM($E$8:E85),IF(AY87="","",AY87)),"") ->  | F86: =IFERROR(IF($C86="TOTAL",SUM($F$8:F85),IF(AZ87="","",AZ87)),"") ->  | H86: =IFERROR(IF($C86="TOTAL",SUM($H$8:H85),IF(BB87="","",BB87)),"") ->  | I86: =IFERROR(IF($C86="TOTAL",SUM($I$8:I85),IF(BC87="","",BC87)),"") ->  | J86: =IFERROR(IF($C86="TOTAL",SUM($J$8:J85),IF(BD87="","",BD87)),"") ->  | L86: =IFERROR(IF(C86="","",IF(D86="","",IF(H86="","",IF($C86="TOTAL",SUM($L$8:L85),SUM(D86-H86))))),"") ->  | M86: =IFERROR(IF(C86="","",IF(E86="","",IF(I86="","",IF($C86="TOTAL",SUM($M$8:M85),SUM(E86-I86))))),"") ->  | N86: =IFERROR(IF(C86="","",IF(F86="","",IF(J86="","",IF($C86="TOTAL",SUM($N$8:N85),SUM(F86-J86))))),"") ->  | P86: =IFERROR(IF(C86="","",IF($C86="TOTAL",SUM($P$8:P85),IF(AND(C86>$AO$1,$AF$3=$AO$2),BR87,IF($AR$18=$AR$20,SUM(BE87+BM87),ROUND((D86+E86)*10%,0))))),"") ->  | Q86: =IFERROR(IF(C86="","",IF(H86="","",IF(I86="","",IF($C86="TOTAL",SUM($Q$8:Q85),IF(AND(C86>$AO$1,$AF$3=$AO$2),BR87,IF($AR$18=$AR$20,$AR$21,ROUND((H86+I86)*10%,0))))))),"") ->  | S86: =IFERROR(IF(C86="","",IF($AR$16=$AR$17,0,IF($C86="TOTAL",SUM($S$8:S85),IF($AR$19=$AR$20,$AR$25,0)))),"") ->  | T86: =IFERROR(IF(C86="","",IF($AR$16=$AR$17,0,IF($C86="TOTAL",SUM($T$8:T85),IF($AR$19=$AR$20,$AR$24,0)))),"") ->  | V86: =IF(C86="","",IF($C86="TOTAL",SUM($V$8:V85),IF(AND($AR$2=$AR$20,C86=$AR$1),ROUND(D86/31*$AS$2,0),IF(C86=$AP$6,ROUND((G86)*1/30,0),IF(C86=$AQ$6,ROUND((G86)*1/31,0),""))))) ->  | W86: =IF(C86="","",IF($C86="TOTAL",SUM($W$8:W85),IF(AND($AR$2=$AR$20,C86=$AR$1),ROUND(H86/31*$AS$2,0),IF(C86=$AP$6,ROUND((K86)*1/30,0),IF(C86=$AQ$6,ROUND((K86)*1/31,0),""))))) ->  | Y86: =IFERROR(IF(C86="","",IF($AR$16=$AR$17,0,IF($AF$3=$AO$4,"",IF($C86="TOTAL",SUM($Y$8:Y85),BU86)))),"") ->  | Z86: =IFERROR(IF(C86="","",IF($AR$16=$AR$17,0,IF($AF$3=$AO$4,"",IF($C86="TOTAL",SUM($Z$8:Z85),BT86)))),"") ->  | AB86: =IFERROR(IF(C86="","",IF(AND(BK87="",BR87=""),"",IF($C86="TOTAL",SUM($AB$8:AB85),BK87))),"") ->  | AC86: =IFERROR(IF(C86="","",IF($C86="TOTAL",SUM($AC$8:AC85),ROUND(O86*$AR$7%,0))),"") ->  | AD86: =IFERROR(IF(C86="","",IF($C86="TOTAL",SUM($AD$8:AD85),IF($AF$3=$AO$2,SUM(U86,X86,AB86,AC86),SUM(R86,U86,X86,AB86,AC86)))),"") ->  | AE86: =IFERROR(IF(C86="","",IF($C86="TOTAL",SUM($AE$8:AE85),SUM(O86-AD86))),"") ->  | AN86: 42 | AO86: 42 | AQ86: 2023-06-01 | AR86: 2023-06-01 | AS86: 2029-06-01 | BC86: =IF(AW86="","",IF(AW86="TOTAL","",IF(BB86="","",IF($AR$16=$AR$17,0,ROUND(BB86*AO86%,0))))) ->  | BL86: 0 | BM86: 0 | BU86: =IF(AW87="","",IF(AW87="TOTAL","",IF($AR$16=$AR$17,0,IF(AND(AW87>$BT$1,$AF$3=$AO$2,'Master Sheet'!$D$31>0),'Master Sheet'!$D$31,IF(AND(AW87=$BT$1,$AF$3=$AO$2),IF($AR$9<18001,135,IF($AR$9<33501,220,IF($AR$9<54001,330,440))),IF(AND(AW87>$BT$1,$AF$3=$AO$2),IF($AR$9<18001,265,IF($AR$9<33501,440,IF($AR$9<54001,658,875))),"")))))) -> 
D87: =IFERROR(IF($C86="TOTAL","अक्षरें राशि :-",IF($C87="TOTAL",SUM($D$8:D86),IF(AX88="","",AX88))),"") ->  | E87: =IFERROR(IF($C87="TOTAL",SUM($E$8:E86),IF(AY88="","",AY88)),"") ->  | F87: =IFERROR(IF($C87="TOTAL",SUM($F$8:F86),IF(AZ88="","",AZ88)),"") ->  | H87: =IFERROR(IF($C87="TOTAL",SUM($H$8:H86),IF(BB88="","",BB88)),"") ->  | I87: =IFERROR(IF($C87="TOTAL",SUM($I$8:I86),IF(BC88="","",BC88)),"") ->  | J87: =IFERROR(IF($C87="TOTAL",SUM($J$8:J86),IF(BD88="","",BD88)),"") ->  | L87: =IFERROR(IF(C87="","",IF(D87="","",IF(H87="","",IF($C87="TOTAL",SUM($L$8:L86),SUM(D87-H87))))),"") ->  | M87: =IFERROR(IF(C87="","",IF(E87="","",IF(I87="","",IF($C87="TOTAL",SUM($M$8:M86),SUM(E87-I87))))),"") ->  | N87: =IFERROR(IF(C87="","",IF(F87="","",IF(J87="","",IF($C87="TOTAL",SUM($N$8:N86),SUM(F87-J87))))),"") ->  | P87: =IFERROR(IF(C87="","",IF($C87="TOTAL",SUM($P$8:P86),IF(AND(C87>$AO$1,$AF$3=$AO$2),BR88,IF($AR$18=$AR$20,SUM(BE88+BM88),ROUND((D87+E87)*10%,0))))),"") ->  | Q87: =IFERROR(IF(C87="","",IF(H87="","",IF(I87="","",IF($C87="TOTAL",SUM($Q$8:Q86),IF(AND(C87>$AO$1,$AF$3=$AO$2),BR88,IF($AR$18=$AR$20,$AR$21,ROUND((H87+I87)*10%,0))))))),"") ->  | S87: =IFERROR(IF(C87="","",IF($AR$16=$AR$17,0,IF($C87="TOTAL",SUM($S$8:S86),IF($AR$19=$AR$20,$AR$25,0)))),"") ->  | T87: =IFERROR(IF(C87="","",IF($AR$16=$AR$17,0,IF($C87="TOTAL",SUM($T$8:T86),IF($AR$19=$AR$20,$AR$24,0)))),"") ->  | V87: =IF(C87="","",IF($C87="TOTAL",SUM($V$8:V86),IF(AND($AR$2=$AR$20,C87=$AR$1),ROUND(D87/31*$AS$2,0),IF(C87=$AP$6,ROUND((G87)*1/30,0),IF(C87=$AQ$6,ROUND((G87)*1/31,0),""))))) ->  | W87: =IF(C87="","",IF($C87="TOTAL",SUM($W$8:W86),IF(AND($AR$2=$AR$20,C87=$AR$1),ROUND(H87/31*$AS$2,0),IF(C87=$AP$6,ROUND((K87)*1/30,0),IF(C87=$AQ$6,ROUND((K87)*1/31,0),""))))) ->  | Y87: =IFERROR(IF(C87="","",IF($AR$16=$AR$17,0,IF($AF$3=$AO$4,"",IF($C87="TOTAL",SUM($Y$8:Y86),BU87)))),"") ->  | Z87: =IFERROR(IF(C87="","",IF($AR$16=$AR$17,0,IF($AF$3=$AO$4,"",IF($C87="TOTAL",SUM($Z$8:Z86),BT87)))),"") ->  | AB87: =IFERROR(IF(C87="","",IF(AND(BK88="",BR88=""),"",IF($C87="TOTAL",SUM($AB$8:AB86),BK88))),"") ->  | AC87: =IFERROR(IF(C87="","",IF($C87="TOTAL",SUM($AC$8:AC86),ROUND(O87*$AR$7%,0))),"") ->  | AD87: =IFERROR(IF(C87="","",IF($C87="TOTAL",SUM($AD$8:AD86),IF($AF$3=$AO$2,SUM(U87,X87,AB87,AC87),SUM(R87,U87,X87,AB87,AC87)))),"") ->  | AE87: =IFERROR(IF(C87="","",IF($C87="TOTAL",SUM($AE$8:AE86),SUM(O87-AD87))),"") ->  | AN87: 42 | AO87: 42 | AQ87: 2023-07-01 | AR87: 2023-07-01 | AS87: =IF(AND($AR$6>$AS$6),"",DATE(YEAR(AS86),MONTH(AS86)+1,DAY(AS86))) -> 2029-07-01 | BL87: 0 | BM87: 0 | BU87: =IF(AW88="","",IF(AW88="TOTAL","",IF($AR$16=$AR$17,0,IF(AND(AW88>$BT$1,$AF$3=$AO$2,'Master Sheet'!$D$31>0),'Master Sheet'!$D$31,IF(AND(AW88=$BT$1,$AF$3=$AO$2),IF($AR$9<18001,135,IF($AR$9<33501,220,IF($AR$9<54001,330,440))),IF(AND(AW88>$BT$1,$AF$3=$AO$2),IF($AR$9<18001,265,IF($AR$9<33501,440,IF($AR$9<54001,658,875))),"")))))) -> 
B88: =IFERROR(IF(A88="","",IF(A88=0,"",A88)),"") ->  | C88: =IFERROR(IF(AW89="","",AW89),"") ->  | D88: =IFERROR(IF($C87="TOTAL","अक्षरें राशि :-",IF($C88="TOTAL",SUM($D$8:D87),IF(AX89="","",AX89))),"") ->  | E88: =IFERROR(IF($C88="TOTAL",SUM($E$8:E87),IF(AY89="","",AY89)),"") ->  | F88: =IFERROR(IF($C88="TOTAL",SUM($F$8:F87),IF(AZ89="","",AZ89)),"") ->  | H88: =IFERROR(IF($C88="TOTAL",SUM($H$8:H87),IF(BB89="","",BB89)),"") ->  | I88: =IFERROR(IF($C88="TOTAL",SUM($I$8:I87),IF(BC89="","",BC89)),"") ->  | J88: =IFERROR(IF($C88="TOTAL",SUM($J$8:J87),IF(BD89="","",BD89)),"") ->  | L88: =IFERROR(IF(C88="","",IF(D88="","",IF(H88="","",IF($C88="TOTAL",SUM($L$8:L87),SUM(D88-H88))))),"") ->  | M88: =IFERROR(IF(C88="","",IF(E88="","",IF(I88="","",IF($C88="TOTAL",SUM($M$8:M87),SUM(E88-I88))))),"") ->  | N88: =IFERROR(IF(C88="","",IF(F88="","",IF(J88="","",IF($C88="TOTAL",SUM($N$8:N87),SUM(F88-J88))))),"") ->  | P88: =IFERROR(IF(C88="","",IF($C88="TOTAL",SUM($P$8:P87),IF(AND(C88>$AO$1,$AF$3=$AO$2),BR89,IF($AR$18=$AR$20,SUM(BE89+BM89),ROUND((D88+E88)*10%,0))))),"") ->  | Q88: =IFERROR(IF(C88="","",IF(H88="","",IF(I88="","",IF($C88="TOTAL",SUM($Q$8:Q87),IF(AND(C88>$AO$1,$AF$3=$AO$2),BR89,IF($AR$18=$AR$20,$AR$21,ROUND((H88+I88)*10%,0))))))),"") ->  | S88: =IFERROR(IF(C88="","",IF($AR$16=$AR$17,0,IF($C88="TOTAL",SUM($S$8:S87),IF($AR$19=$AR$20,$AR$25,0)))),"") ->  | T88: =IFERROR(IF(C88="","",IF($AR$16=$AR$17,0,IF($C88="TOTAL",SUM($T$8:T87),IF($AR$19=$AR$20,$AR$24,0)))),"") ->  | V88: =IF(C88="","",IF($C88="TOTAL",SUM($V$8:V87),IF(AND($AR$2=$AR$20,C88=$AR$1),ROUND(D88/31*$AS$2,0),IF(C88=$AP$6,ROUND((G88)*1/30,0),IF(C88=$AQ$6,ROUND((G88)*1/31,0),""))))) ->  | W88: =IF(C88="","",IF($C88="TOTAL",SUM($W$8:W87),IF(AND($AR$2=$AR$20,C88=$AR$1),ROUND(H88/31*$AS$2,0),IF(C88=$AP$6,ROUND((K88)*1/30,0),IF(C88=$AQ$6,ROUND((K88)*1/31,0),""))))) ->  | Y88: =IFERROR(IF(C88="","",IF($AR$16=$AR$17,0,IF($AF$3=$AO$4,"",IF($C88="TOTAL",SUM($Y$8:Y87),BU88)))),"") ->  | Z88: =IFERROR(IF(C88="","",IF($AR$16=$AR$17,0,IF($AF$3=$AO$4,"",IF($C88="TOTAL",SUM($Z$8:Z87),BT88)))),"") ->  | AB88: =IFERROR(IF(C88="","",IF(AND(BK89="",BR89=""),"",IF($C88="TOTAL",SUM($AB$8:AB87),BK89))),"") ->  | AC88: =IFERROR(IF(C88="","",IF($C88="TOTAL",SUM($AC$8:AC87),ROUND(O88*$AR$7%,0))),"") ->  | AD88: =IFERROR(IF(C88="","",IF($C88="TOTAL",SUM($AD$8:AD87),IF($AF$3=$AO$2,SUM(U88,X88,AB88,AC88),SUM(R88,U88,X88,AB88,AC88)))),"") ->  | AE88: =IFERROR(IF(C88="","",IF($C88="TOTAL",SUM($AE$8:AE87),SUM(O88-AD88))),"") ->  | AN88: 42 | AO88: 42 | AQ88: 2023-08-01 | AR88: 2023-08-01 | AS88: =IF(AND($AR$6>$AS$6),"",DATE(YEAR(AS87),MONTH(AS87)+1,DAY(AS87))) -> 2029-08-01 | BL88: 0 | BM88: 0 | BU88: =IF(AW89="","",IF(AW89="TOTAL","",IF($AR$16=$AR$17,0,IF(AND(AW89>$BT$1,$AF$3=$AO$2,'Master Sheet'!$D$31>0),'Master Sheet'!$D$31,IF(AND(AW89=$BT$1,$AF$3=$AO$2),IF($AR$9<18001,135,IF($AR$9<33501,220,IF($AR$9<54001,330,440))),IF(AND(AW89>$BT$1,$AF$3=$AO$2),IF($AR$9<18001,265,IF($AR$9<33501,440,IF($AR$9<54001,658,875))),"")))))) -> 
D89: =IFERROR(IF($C88="TOTAL","अक्षरें राशि :-",IF($C89="TOTAL",SUM($D$8:D88),IF(AX90="","",AX90))),"") ->  | E89: =IFERROR(IF($C89="TOTAL",SUM($E$8:E88),IF(AY90="","",AY90)),"") ->  | F89: =IFERROR(IF($C89="TOTAL",SUM($F$8:F88),IF(AZ90="","",AZ90)),"") ->  | H89: =IFERROR(IF($C89="TOTAL",SUM($H$8:H88),IF(BB90="","",BB90)),"") ->  | I89: =IFERROR(IF($C89="TOTAL",SUM($I$8:I88),IF(BC90="","",BC90)),"") ->  | J89: =IFERROR(IF($C89="TOTAL",SUM($J$8:J88),IF(BD90="","",BD90)),"") ->  | L89: =IFERROR(IF(C89="","",IF(D89="","",IF(H89="","",IF($C89="TOTAL",SUM($L$8:L88),SUM(D89-H89))))),"") ->  | M89: =IFERROR(IF(C89="","",IF(E89="","",IF(I89="","",IF($C89="TOTAL",SUM($M$8:M88),SUM(E89-I89))))),"") ->  | N89: =IFERROR(IF(C89="","",IF(F89="","",IF(J89="","",IF($C89="TOTAL",SUM($N$8:N88),SUM(F89-J89))))),"") ->  | P89: =IFERROR(IF(C89="","",IF($C89="TOTAL",SUM($P$8:P88),IF(AND(C89>$AO$1,$AF$3=$AO$2),BR90,IF($AR$18=$AR$20,SUM(BE90+BM90),ROUND((D89+E89)*10%,0))))),"") ->  | Q89: =IFERROR(IF(C89="","",IF(H89="","",IF(I89="","",IF($C89="TOTAL",SUM($Q$8:Q88),IF(AND(C89>$AO$1,$AF$3=$AO$2),BR90,IF($AR$18=$AR$20,$AR$21,ROUND((H89+I89)*10%,0))))))),"") ->  | S89: =IFERROR(IF(C89="","",IF($AR$16=$AR$17,0,IF($C89="TOTAL",SUM($S$8:S88),IF($AR$19=$AR$20,$AR$25,0)))),"") ->  | T89: =IFERROR(IF(C89="","",IF($AR$16=$AR$17,0,IF($C89="TOTAL",SUM($T$8:T88),IF($AR$19=$AR$20,$AR$24,0)))),"") ->  | V89: =IF(C89="","",IF($C89="TOTAL",SUM($V$8:V88),IF(AND($AR$2=$AR$20,C89=$AR$1),ROUND(D89/31*$AS$2,0),IF(C89=$AP$6,ROUND((G89)*1/30,0),IF(C89=$AQ$6,ROUND((G89)*1/31,0),""))))) ->  | W89: =IF(C89="","",IF($C89="TOTAL",SUM($W$8:W88),IF(AND($AR$2=$AR$20,C89=$AR$1),ROUND(H89/31*$AS$2,0),IF(C89=$AP$6,ROUND((K89)*1/30,0),IF(C89=$AQ$6,ROUND((K89)*1/31,0),""))))) ->  | Y89: =IFERROR(IF(C89="","",IF($AR$16=$AR$17,0,IF($AF$3=$AO$4,"",IF($C89="TOTAL",SUM($Y$8:Y88),BU89)))),"") ->  | Z89: =IFERROR(IF(C89="","",IF($AR$16=$AR$17,0,IF($AF$3=$AO$4,"",IF($C89="TOTAL",SUM($Z$8:Z88),BT89)))),"") ->  | AB89: =IFERROR(IF(C89="","",IF(AND(BK90="",BR90=""),"",IF($C89="TOTAL",SUM($AB$8:AB88),BK90))),"") ->  | AC89: =IFERROR(IF(C89="","",IF($C89="TOTAL",SUM($AC$8:AC88),ROUND(O89*$AR$7%,0))),"") ->  | AD89: =IFERROR(IF(C89="","",IF($C89="TOTAL",SUM($AD$8:AD88),IF($AF$3=$AO$2,SUM(U89,X89,AB89,AC89),SUM(R89,U89,X89,AB89,AC89)))),"") ->  | AE89: =IFERROR(IF(C89="","",IF($C89="TOTAL",SUM($AE$8:AE88),SUM(O89-AD89))),"") ->  | AN89: 42 | AO89: 42 | AQ89: 2023-09-01 | AR89: 2023-09-01 | AS89: 2029-09-01 | BL89: 0 | BM89: 0 | BU89: =IF(AW90="","",IF(AW90="TOTAL","",IF($AR$16=$AR$17,0,IF(AND(AW90>$BT$1,$AF$3=$AO$2,'Master Sheet'!$D$31>0),'Master Sheet'!$D$31,IF(AND(AW90=$BT$1,$AF$3=$AO$2),IF($AR$9<18001,135,IF($AR$9<33501,220,IF($AR$9<54001,330,440))),IF(AND(AW90>$BT$1,$AF$3=$AO$2),IF($AR$9<18001,265,IF($AR$9<33501,440,IF($AR$9<54001,658,875))),"")))))) -> 
